Workbook

Sheet Circuit Criminal
F2: REQUIRED: Reason Codes AND Action to Improve / Descriptions Required if Measure(s) Not Met | M2: County Fiscal Year 2015-2016 | T2: CountyNames
G3: Internal: Must clarify reason AND expected duration internal reason will be resolved | M3: Collections Quarterly Report Form | T3: Alachua
C4: Report for Quarter Ending: | D4: June 2016 | G4: External: Detailed explanation of external reason the measure wasn't met | T4: Baker
C5: Version #: | D5: 1 | T5: Bay
C6: County: | D6: Brevard | F6: Contact Person: | G6: Michelle Levar | I6: Telephone #: | J6: 321-633-7782 | T6: Bradford
T7: Brevard
C8: Court/Case Type: | D8: Circuit Criminal | G8: Performance Measure Standard: | H8: 0.09 | I8: Email: | J8: michelle.levar@brevardclerk.us | T8: Broward
L9: Action Plan | N9: 1 | O9: 1 | P9: December 2015 | T9: Calhoun
C10: Control Groups | D10: 10/01/14 - 12/31/14 | E10: 01/01/15 - 03/31/15 | F10: 04/01/15 - 06/30/15 | G10: 07/01/15 - 09/30/15 | H10: 10/01/15 - 12/31/15 | I10: 01/01/16 - 03/31/16 | J10: 04/01/16 - 06/30/16 | K10: 07/01/16 - 09/30/16 | L10: Reason Code | M10: Current Actions to Improve | O10: 2 | P10: March 2016 | T10: Charlotte | V10: 5
A11: =LEFT(B11,3)&" "&RIGHT(B11,6) -> CGE CQ1-16 | B11: CGE CQ1-16 | C11: RPE 12/31/14 | D11: Qtr 1 | E11: Qtr 2 | F11: Qtr 3 | G11: Qtr 4 | H11: Qtr 5 | N11: Internal | O11: 3 | P11: June 2016 | T11: Citrus | U11: =D6&" "&D8 -> Brevard Circuit Criminal | V11: 0.15
C12: C = Cumulative Collections | D12: =LOOKUP($U$11,Lookup!$C$3:$C$672,Lookup!I$3:I$672) -> 41345.19 | E12: =LOOKUP($U$11,Lookup!$C$3:$C$672,Lookup!J$3:J$672) -> 62561.24 | F12: =LOOKUP($U$11,Lookup!$C$3:$C$672,Lookup!K$3:K$672) -> 74427.09 | G12: =LOOKUP($U$11,Lookup!$C$3:$C$672,Lookup!L$3:L$672) -> 90308.16 | H12: 104158.79 | N12: External | O12: 4 | P12: September 2016 | T12: Clay | U12: =IF(P13=TRUE,A11,"") -> CGE CQ1-16
C13: A = Amount Assessed - Adjusted | D13: =LOOKUP($U$11,Lookup!$C$3:$C$672,Lookup!D$3:D$672) -> 579827.95 | E13: =LOOKUP($U$11,Lookup!$C$3:$C$672,Lookup!E$3:E$672) -> 560478.95 | F13: =LOOKUP($U$11,Lookup!$C$3:$C$672,Lookup!F$3:F$672) -> 551669.45 | G13: =LOOKUP($U$11,Lookup!$C$3:$C$672,Lookup!G$3:G$672) -> 547517.45 | H13: 544982.95 | O13: 5 | P13: =OR(AND(E12<D12,E12>0),AND(F12<E12,F12>0),AND(G12<F12,G12>0),AND(H12<G12,H12>0),AND(F13>E13,E13>0),AND(G13>F13,F13>0),AND(H13<G13,G13>0)) -> TRUE | T13: Collier | U13: =IF(P14=TRUE,A15,"") -> CGE CQ2-16
C14: CR = Collection Rate | D14: =IF(ISBLANK(D12),"N/A",IF(OR(D12=0,D12="N/A"),0,D12/D13)) -> 0.0713059624 | E14: =IF(ISBLANK(E12),"N/A",IF(OR(E12=0,E12="N/A"),0,E12/E13)) -> 0.1116210341 | F14: =IF(ISBLANK(F12),"N/A",IF(OR(F12=0,F12="N/A"),0,F12/F13)) -> 0.1349124734 | G14: =IF(ISBLANK(G12),"N/A",IF(OR(G12=0,G12="N/A"),0,G12/G13)) -> 0.1649411539 | H14: =IF(ISBLANK(H12),"N/A",IF(AND(H12=0,H13=0,NOT(ISBLANK(H12)),NOT(ISBLANK(H13))),1,H12/H13)) -> 0.191123025 | O14: 6 | P14: =OR(AND(F16<E16,F16>0),AND(G16<F16,G16>0),AND(H16<G16,H16>0),AND(I16<H16,I16>0),AND(G17>F17, F17>0),AND(H17>G17, G17>0),AND(I17<H17,I17>0)) -> TRUE | T14: Columbia | U14: =IF(P15=TRUE,A19,"") -> CGE CQ3-16
A15: =LEFT(B15,3)&" "&RIGHT(B15,6) -> CGE CQ2-16 | B15: CGE CQ2-16 | C15: RPE 03/31/15 | E15: Qtr 1 | F15: Qtr 2 | G15: Qtr 3 | H15: Qtr 4 | I15: Qtr 5 | O15: 7 | P15: =OR(AND(G20<F20,D10>0),AND(H20<G20,H20>0),AND(I20<H20,I20>0),AND(J20<I20,J20>0),AND(H21>G21, G21>0),AND(I21>H21, H21>0),AND(J21<I21, J21>0)) -> TRUE | T15: Dade | U15: =IF(P16=TRUE,A23,"") -> CGE CQ4-16
C16: C = Cumulative Collections | E16: =LOOKUP($U$11,Lookup!$C$3:$C$672,Lookup!S$3:S$672) -> 49748.85 | F16: =LOOKUP($U$11,Lookup!$C$3:$C$672,Lookup!T$3:T$672) -> 66623.61 | G16: =LOOKUP($U$11,Lookup!$C$3:$C$672,Lookup!U$3:U$672) -> 77617.34 | H16: 91158.18 | I16: 112127.61 | O16: 8 | P16: =OR(AND(H24<G24, H24>0),AND(I24<H24, I24>0),AND(J24<I24, J24>0),AND(K24<J24, K24>0),AND(I25>H25, H25>0),AND(J25>I25, I25>0),AND(K25<J25, J25>0)) -> TRUE | T16: Desoto | U16: =IF(P17=TRUE,A27,"") -> 
C17: A = Amount Assessed - Adjusted | E17: =LOOKUP($U$11,Lookup!$C$3:$C$672,Lookup!N$3:N$672) -> 738206.75 | F17: =LOOKUP($U$11,Lookup!$C$3:$C$672,Lookup!O$3:O$672) -> 718324.75 | G17: =LOOKUP($U$11,Lookup!$C$3:$C$672,Lookup!P$3:P$672) -> 711164.75 | H17: 707314.25 | I17: 703632.75 | O17: 9 | P17: =OR(AND(I28<H28, I28>0),AND(J28<I28, J28>0),AND(K28<J28, K28>0),AND(J29>I29, I29>0),AND(K29>J29, J29>0)) -> FALSE | T17: Dixie | U17: =IF(P18=TRUE,A31,"") -> 
C18: CR = Collection Rate | E18: =IF(ISBLANK(E16),"N/A",IF(OR(E16=0,E16="N/A"),0,E16/E17)) -> 0.06739148619 | F18: =IF(ISBLANK(F16),"N/A",IF(OR(F16=0,F16="N/A"),0,F16/F17)) -> 0.09274859317 | G18: =IF(ISBLANK(G16),"N/A",IF(OR(G16=0,G16="N/A"),0,G16/G17)) -> 0.1091411519 | H18: =IF(ISBLANK(H16),"N/A",IF(AND(H16=0,H17=0,NOT(ISBLANK(H16)),NOT(ISBLANK(H17))),1,H16/H17)) -> 0.1288793206 | I18: =IF(ISBLANK(I16),"N/A",IF(AND(I16=0,I17=0,NOT(ISBLANK(I16)),NOT(ISBLANK(I17))),1,I16/I17)) -> 0.1593553029 | P18: =OR(AND(J32<I32, J32>0),AND(K32<J32, K32>0),AND(K33>J33, J33>0)) -> FALSE | T18: Duval | U18: =IF(P19=TRUE,A35,"") -> CGE CQ3-17
A19: =LEFT(B19,3)&" "&RIGHT(B19,6) -> CGE CQ3-16 | B19: CGE CQ3-16 | C19: RPE 06/30/15 | F19: Qtr 1 | G19: Qtr 2 | H19: Qtr 3 | I19: Qtr 4 | J19: Qtr 5 | P19: =OR(K36<J36) -> TRUE | T19: Escambia | U19: =U12&" "&U13&" "&U14&" "&U15&" "&U16&" "&U17&" "&U18 -> CGE CQ1-16 CGE CQ2-16 CGE CQ3-16 CGE CQ4-16 CGE CQ3-17
C20: C = Cumulative Collections | F20: =LOOKUP($U$11,Lookup!$C$3:$C$672,Lookup!AC$3:AC$672) -> 43536.8 | G20: =LOOKUP($U$11,Lookup!$C$3:$C$672,Lookup!AD$3:AD$672) -> 54585.76 | H20: 63795.17 | I20: 89802.15 | J20: 104258.97 | P20: =COUNTIF(P13:P19,"TRUE") -> 5 | T20: Flagler
C21: A = Amount Assessed - Adjusted | F21: =LOOKUP($U$11,Lookup!$C$3:$C$672,Lookup!X$3:X$672) -> 633945.32 | G21: =LOOKUP($U$11,Lookup!$C$3:$C$672,Lookup!Y$3:Y$672) -> 611800.32 | H21: 602853.82 | I21: 598346.82 | J21: 597360.82 | T21: Franklin
C22: CR = Collection Rate | F22: =IF(ISBLANK(F20),"N/A",IF(OR(F20=0,F20="N/A"),0,F20/F21)) -> 0.06867595458 | G22: =IF(ISBLANK(G20),"N/A",IF(OR(G20=0,G20="N/A"),0,G20/G21)) -> 0.08922152901 | H22: =IF(ISBLANK(H20),"N/A",IF(AND(H20=0,H21=0,NOT(ISBLANK(H20)),NOT(ISBLANK(H21))),1,H20/H21)) -> 0.1058219553 | I22: =IF(ISBLANK(I20),"N/A",IF(AND(I20=0,I21=0,NOT(ISBLANK(I20)),NOT(ISBLANK(I21))),1,I20/I21)) -> 0.1500837758 | J22: =IF(ISBLANK(J20),"N/A",IF(AND(J20=0,J21=0,NOT(ISBLANK(J20)),NOT(ISBLANK(J21))),1,J20/J21)) -> 0.1745326552 | O22: Q1 | P22: Q2 | T22: Gadsden
A23: =LEFT(B23,3)&" "&RIGHT(B23,6) -> CGE CQ4-16 | B23: CGE CQ4-16 | C23: RPE 09/30/15 | G23: Qtr 1 | H23: Qtr 2 | I23: Qtr 3 | J23: Qtr 4 | K23: Qtr 5 | O23: TRUE | P23: FALSE | Q23: =IF(AND(OR(ISBLANK(H12),ISBLANK(H13)),O23=FALSE),"Red","Gray") -> Gray | R23: =IF(AND(OR(ISBLANK(I16),ISBLANK(I17)),P23=FALSE),"Red","Gray") -> Gray | S23: =IF(AND(D4=1,S36=1),A11,IF(AND(D4=2,S36=1),A15,IF(AND(D4=3,S36=1),A19,IF(AND(D4=4,S36=1),A23,"")))) ->  | T23: Gilchrist
C24: C = Cumulative Collections | G24: =LOOKUP($U$11,Lookup!$C$3:$C$672,Lookup!AM$3:AM$672) -> 40869.19 | H24: 54957.78 | I24: 75361.61 | J24: 93354.34 | O24: FALSE | P24: FALSE | Q24: =IF(AND(OR(ISBLANK(H16),ISBLANK(H17)),O24=FALSE),"Red","Gray") -> Gray | R24: =IF(AND(OR(ISBLANK(I20),ISBLANK(I21)),P24=FALSE),"Red","Gray") -> Gray | S24: =IF(AND(D4=1,S37=1),A15,IF(AND(D4=2,S37=1),A19,IF(AND(D4=3,S37=1),A23,IF(AND(D4=4,S37=1),A27,"")))) ->  | T24: Glades
C25: A = Amount Assessed - Adjusted | G25: =LOOKUP($U$11,Lookup!$C$3:$C$672,Lookup!AH$3:AH$672) -> 817861.03 | H25: 797374.03 | I25: 789616.03 | J25: 782081.53 | O25: FALSE | P25: FALSE | Q25: =IF(AND(OR(ISBLANK(H20),ISBLANK(H21)),O25=FALSE),"Red","Gray") -> Gray | R25: =IF(AND(OR(ISBLANK(I24),ISBLANK(I25)),P25=FALSE),"Red","Gray") -> Gray | S25: =IF(AND(D4=1,S38=1),A19,IF(AND(D4=2,S38=1),A23,IF(AND(D4=3,S38=1),A27,IF(AND(D4=4,S38=1),A31,"")))) ->  | T25: Gulf
C26: CR = Collection Rate | G26: =IF(ISBLANK(G24),"N/A",IF(OR(G24=0,G24="N/A"),0,G24/G25)) -> 0.04997082451 | H26: =IF(ISBLANK(H24),"N/A",IF(AND(H24=0,H25=0,NOT(ISBLANK(H24)),NOT(ISBLANK(H25))),1,H24/H25)) -> 0.06892346368 | I26: =IF(ISBLANK(I24),"N/A",IF(AND(I24=0,I25=0,NOT(ISBLANK(I24)),NOT(ISBLANK(I25))),1,I24/I25)) -> 0.09544083091 | J26: =IF(ISBLANK(J24),"N/A",IF(AND(J24=0,J25=0,NOT(ISBLANK(J24)),NOT(ISBLANK(J25))),1,J24/J25)) -> 0.1193665065 | K26: =IF(ISBLANK(K24),"N/A",IF(AND(K24=0,K25=0,NOT(ISBLANK(K24)),NOT(ISBLANK(K25))),1,K24/K25)) -> N/A | O26: FALSE | P26: FALSE | Q26: =IF(AND(OR(ISBLANK(H24),ISBLANK(H25)),O26=FALSE),"Red","Gray") -> Gray | R26: =IF(AND(OR(ISBLANK(I28),ISBLANK(I29)),P26=FALSE),"Red","Gray") -> Gray | S26: =IF(AND(D4=1,S39=1),A23,IF(AND(D4=2,S39=1),A27,IF(AND(D4=3,S39=1),A31,IF(AND(D4=4,S39=1),A35,"")))) ->  | T26: Hamilton
A27: =LEFT(B27,3)&" "&RIGHT(B27,6) -> CGE CQ1-17 | B27: CGE CQ1-17 | C27: RPE 12/31/15 | H27: Qtr 1 | I27: Qtr 2 | J27: Qtr 3 | K27: Qtr 4 | O27: FALSE | P27: FALSE | Q27: =IF(AND(OR(ISBLANK(H28),ISBLANK(H29)),O27=FALSE),"Red","Gray") -> Gray | R27: =IF(AND(OR(ISBLANK(I32),ISBLANK(I33)),P27=FALSE),"Red","Gray") -> Gray | S27: =IF(AND(D4=1,S40=1),A27,IF(AND(D4=2,S40=1),A31,IF(AND(D4=3,S40=1),A35,IF(AND(D4=4,S40=1),A39,"")))) ->  | T27: Hardee
C28: C = Cumulative Collections | H28: 36680.57 | I28: 55980.75 | J28: 71177.7 | T28: Hendry
C29: A = Amount Assessed - Adjusted | H29: 772338.08 | I29: 751439.58 | J29: 749783.08 | O29: Q3 | P29: Q4 | T29: Hernando
C30: CR = Collection Rate | H30: =IF(ISBLANK(H28),"N/A",IF(AND(H28=0,H29=0,NOT(ISBLANK(H28)),NOT(ISBLANK(H29))),1,H28/H29)) -> 0.04749289327 | I30: =IF(ISBLANK(I28),"N/A",IF(AND(I28=0,I29=0,NOT(ISBLANK(I28)),NOT(ISBLANK(I29))),1,I28/I29)) -> 0.07449800555 | J30: =IF(ISBLANK(J28),"N/A",IF(AND(J28=0,J29=0,NOT(ISBLANK(J28)),NOT(ISBLANK(J29))),1,J28/J29)) -> 0.09493105659 | K30: =IF(ISBLANK(K28),"N/A",IF(AND(K28=0,K29=0,NOT(ISBLANK(K28)),NOT(ISBLANK(K29))),1,K28/K29)) -> N/A | O30: FALSE | P30: FALSE | Q30: =IF(AND(OR(ISBLANK(J20),ISBLANK(J21)),O30=FALSE),"Red","Gray") -> Gray | R30: =IF(AND(OR(ISBLANK(K24),ISBLANK(K25)),P30=FALSE),"Red","Gray") -> Red | T30: Highlands
A31: =LEFT(B31,3)&" "&RIGHT(B31,6) -> CGE CQ2-17 | B31: CGE CQ2-17 | C31: RPE 03/31/16 | I31: Qtr 1 | J31: Qtr 2 | K31: Qtr 3 | L31: Additional Notes Related to Collection Issues | O31: FALSE | P31: FALSE | Q31: =IF(AND(OR(ISBLANK(J24),ISBLANK(J25)),O31=FALSE),"Red","Gray") -> Gray | R31: =IF(AND(OR(ISBLANK(K28),ISBLANK(K29)),P31=FALSE),"Red","Gray") -> Red | T31: Hillsborough
C32: C = Cumulative Collections | I32: 37669.13 | J32: 54437.51 | O32: FALSE | P32: FALSE | Q32: =IF(AND(OR(ISBLANK(J28),ISBLANK(J29)),O32=FALSE),"Red","Gray") -> Gray | R32: =IF(AND(OR(ISBLANK(K32),ISBLANK(K33)),P32=FALSE),"Red","Gray") -> Red | T32: Holmes
C33: A = Amount Assessed - Adjusted | I33: 757886.04 | J33: 753292.04 | O33: FALSE | P33: FALSE | Q33: =IF(AND(OR(ISBLANK(J32),ISBLANK(J33)),O33=FALSE),"Red","Gray") -> Gray | R33: =IF(AND(OR(ISBLANK(K36),ISBLANK(K37)),P33=FALSE),"Red","Gray") -> Red | T33: Indian River
C34: CR = Collection Rate | I34: =IF(ISBLANK(I32),"N/A",IF(AND(I32=0,I33=0,NOT(ISBLANK(I32)),NOT(ISBLANK(I33))),1,I32/I33)) -> 0.04970289465 | J34: =IF(ISBLANK(J32),"N/A",IF(AND(J32=0,J33=0,NOT(ISBLANK(J32)),NOT(ISBLANK(J33))),1,J32/J33)) -> 0.07226614262 | K34: =IF(ISBLANK(K32),"N/A",IF(AND(K32=0,K33=0,NOT(ISBLANK(K32)),NOT(ISBLANK(K33))),1,K32/K33)) -> N/A | O34: FALSE | P34: FALSE | Q34: =IF(AND(OR(ISBLANK(J36),ISBLANK(J37)),O34=FALSE),"Red","Gray") -> Gray | R34: =IF(AND(OR(ISBLANK(K40),ISBLANK(K41)),P34=FALSE),"Red","Gray") -> Red | T34: Jackson
A35: =LEFT(B35,3)&" "&RIGHT(B35,6) -> CGE CQ3-17 | B35: CGE CQ3-17 | C35: RPE 06/30/16 | J35: Qtr 1 | K35: Qtr 2 | T35: Jefferson
C36: C = Cumulative Collections | J36: 40489.47 | O36: =IF(AND($D$4=1,Q23="Red"),"Red","Gray") -> Gray | P36: =IF(AND($D$4=2,R23="Red"),"Red","Gray") -> Gray | Q36: =IF(AND($D$4=3,Q30="Red"),"Red","Gray") -> Gray | R36: =IF(AND($D$4=4,R30="Red"),"Red","Gray") -> Gray | S36: =COUNTIF(O36:R36,"Red") -> 0 | T36: Lafayette
C37: A = Amount Assessed - Adjusted | J37: 1281107.55 | O37: =IF(AND($D$4=1,Q24="Red"),"Red","Gray") -> Gray | P37: =IF(AND($D$4=2,R24="Red"),"Red","Gray") -> Gray | Q37: =IF(AND($D$4=3,Q31="Red"),"Red","Gray") -> Gray | R37: =IF(AND($D$4=4,R31="Red"),"Red","Gray") -> Gray | S37: =COUNTIF(O37:R37,"Red") -> 0 | T37: Lake
C38: CR = Collection Rate | J38: =IF(ISBLANK(J36),"N/A",IF(AND(J36=0,J37=0,NOT(ISBLANK(J36)),NOT(ISBLANK(J37))),1,J36/J37)) -> 0.03160505143 | K38: =IF(ISBLANK(K36),"N/A",IF(AND(K36=0,K37=0,NOT(ISBLANK(K36)),NOT(ISBLANK(K37))),1,K36/K37)) -> N/A | O38: =IF(AND($D$4=1,Q25="Red"),"Red","Gray") -> Gray | P38: =IF(AND($D$4=2,R25="Red"),"Red","Gray") -> Gray | Q38: =IF(AND($D$4=3,Q32="Red"),"Red","Gray") -> Gray | R38: =IF(AND($D$4=4,R32="Red"),"Red","Gray") -> Gray | S38: =COUNTIF(O38:R38,"Red") -> 0 | T38: Lee
A39: =LEFT(B39,3)&" "&RIGHT(B39,6) -> CGE CQ4-17 | B39: CGE CQ4-17 | C39: RPE 09/30/16 | K39: Qtr 1 | O39: =IF(AND($D$4=1,Q26="Red"),"Red","Gray") -> Gray | P39: =IF(AND($D$4=2,R26="Red"),"Red","Gray") -> Gray | Q39: =IF(AND($D$4=3,Q33="Red"),"Red","Gray") -> Gray | R39: =IF(AND($D$4=4,R33="Red"),"Red","Gray") -> Gray | S39: =COUNTIF(O39:R39,"Red") -> 0 | T39: Leon
C40: C = Cumulative Collections | O40: =IF(AND($D$4=1,Q27="Red"),"Red","Gray") -> Gray | P40: =IF(AND($D$4=2,R27="Red"),"Red","Gray") -> Gray | Q40: =IF(AND($D$4=3,Q34="Red"),"Red","Gray") -> Gray | R40: =IF(AND($D$4=4,R34="Red"),"Red","Gray") -> Gray | S40: =COUNTIF(O40:R40,"Red") -> 0 | T40: Levy
C41: A = Amount Assessed - Adjusted | O41: =COUNTIF(O36:O40,"Red") -> 0 | P41: =COUNTIF(P36:P40,"Red") -> 0 | Q41: =COUNTIF(Q36:Q40,"Red") -> 0 | R41: =COUNTIF(R36:R40,"Red") -> 0 | T41: Liberty
C42: CR = Collection Rate | K42: =IF(ISBLANK(K40),"N/A",IF(OR(K40=0,K40="N/A"),0,K40/K41)) -> N/A | O42: =SUM(O41:R41) -> 0 | T42: Madison
C43: Business Rules | D43: Purpose of Report: The CCOC Collection Rate Performance Measure report tracks dollars in the quarter they are assessed and then how well those assessed dollars have been collected over the next five quarters. | H43: Adjustments to Assessments: The amount assessed in a given assessment control group should be adjusted in the reporting period when assessments are later adjusted by the Court or other provisions of law. | T43: Manatee
C44: NOTES: | D44: The following conditions will alert when performance standards are not met and/or established business rules within the control group are not followed. | T44: Marion
D45: 1.) Action Plan: If the 5th quarter Collection Rate is below Standard (red numbers on rose background), select a "Reason Code" and write a brief statement in "Current Action to Improve" in the green area ONLY. | T45: Martin
D46: 2.) Additional Notes Related to Collection Issues: Include a brief explaination when either of the following conditions not consistant with the Collection Report Business Rules. | T46: Monroe
E47: a.) Cumulative Collection amount has Decreased from the previous quarter in the same Control Group (font color for amount will change to RED) | T47: Nassau
E48: b.) The Amount Assessed - Adjusted has Increased from the previous quarter in the same Control Group (font color for amount will change to RED) | T48: Okaloosa
D49: 3.) To see Circuit Criminal Collection Rate LESS Drug Trafficking assessment and collection dollars, please see Drug Trafficking tab/page. | T49: Okeechobee
T50: Orange
B51: 0 | D51: Issue | F51: Calc 1 Needed | G51: Calc 2 Needed | H51: Calc 3 Needed | I51: Calc 4 Needed | J51: Standard | T51: Palm Beach
A52: =D$8 -> Circuit Criminal | B52: =IF(E52="YES",MAX(B51)+1,0) -> 0 | C52: =A$11 -> CGE CQ1-16 | D52: ="After 3rd Q, Collections went up by more than set percentage of: "&TEXT(J52,"#0%") -> After 3rd Q, Collections went up by more than set percentage of: 500% | E52: =IF(MAX(F52:G52)>V$10,"YES","NO") -> NO | F52: =IFERROR(IF(NOT(ISBLANK(G12)),(G12-F12)/F12,0),0) -> 0.2133775484 | G52: =IFERROR(IF(NOT(ISBLANK(H12)),(H12-G12)/G12,0),0) -> 0.1533707474 | J52: =V$10 -> 5 | T52: Pasco
A53: Circuit Criminal | B53: =IF(E53="YES",MAX(B$51:B52)+1,0) -> 0 | C53: =A$11 -> CGE CQ1-16 | D53: ="Assessments dropped by more than set percentage of: "&TEXT(J53,"#0%") -> Assessments dropped by more than set percentage of: 15% | E53: =IF(MIN(F53:I53)<(-1*V$11),"YES","NO") -> NO | F53: =IFERROR(IF(NOT(ISBLANK(E13)),(E13-D13)/D13,0),0) -> -0.03337024371 | G53: =IFERROR(IF(NOT(ISBLANK(F13)),(F13-E13)/E13,0),0) -> -0.01571780706 | H53: =IFERROR(IF(NOT(ISBLANK(G13)),(G13-F13)/F13,0),0) -> -0.007526246016 | I53: =IFERROR(IF(NOT(ISBLANK(H13)),(H13-G13)/G13,0),0) -> -0.004629076206 | J53: =V$11 -> 0.15 | T53: Pinellas
A54: Circuit Criminal | B54: =IF(E54="YES",MAX(B$51:B53)+1,0) -> 0 | C54: =A$11 -> CGE CQ1-16 | D54: ="The 5th Quarter Collection Rate did not meet the established performance measure standard of: "&TEXT(J54,"#0%") -> The 5th Quarter Collection Rate did not meet the established performance measure standard of: 9% | E54: =IF(F54="N/A","NO",IF(F54<H$8,"YES","NO")) -> NO | F54: =H14 -> 0.191123025 | J54: =H$8 -> 0.09 | T54: Polk
A55: Circuit Criminal | B55: =IF(E55="YES",MAX(B$51:B54)+1,0) -> 0 | C55: =A$11 -> CGE CQ1-16 | D55: Collections amount decreased from prior quarter | E55: =IF(MIN(F55:I55)<0,"YES","NO") -> NO | F55: =IFERROR(IF(NOT(ISBLANK(E12)),(E12-D12)/D12,0),0) -> 0.5131443343 | G55: 0.1896677559 | H55: 0.2133775484 | I55: 0.1533707474 | T55: Putnam
A56: Circuit Criminal | B56: =IF(E56="YES",MAX(B$51:B55)+1,0) -> 0 | C56: =A$11 -> CGE CQ1-16 | D56: Assessment amount increased from prior quarter | E56: =IF(MAX(F56:I56)>0,"YES","NO") -> NO | F56: -0.03337024371 | G56: -0.01571780706 | H56: -0.007526246016 | I56: -0.004629076206 | T56: Santa Rosa
A57: Circuit Criminal | B57: =IF(E57="YES",MAX(B$51:B56)+1,0) -> 0 | C57: =A$15 -> CGE CQ2-16 | D57: ="After 3rd Q, Collections went up by more than set percentage of: "&TEXT(J57,"#0%") -> After 3rd Q, Collections went up by more than set percentage of: 500% | E57: =IF(MAX(F57:G57)>V$10,"YES","NO") -> NO | F57: =IFERROR(IF(NOT(ISBLANK(H16)),(H16-G16)/G16,0),0) -> 0.1744563779 | G57: =IFERROR(IF(NOT(ISBLANK(I16)),(I16-H16)/H16,0),0) -> 0.230033443 | J57: =V$10 -> 5 | T57: Sarasota
A58: Circuit Criminal | B58: =IF(E58="YES",MAX(B$51:B57)+1,0) -> 0 | C58: =A$15 -> CGE CQ2-16 | D58: ="Assessments dropped by more than set percentage of: "&TEXT(J58,"#0%") -> Assessments dropped by more than set percentage of: 15% | E58: =IF(MIN(F58:I58)<(-1*V$11),"YES","NO") -> NO | F58: =IFERROR(IF(NOT(ISBLANK(F17)),(F17-E17)/E17,0),0) -> -0.0269328342 | G58: =IFERROR(IF(NOT(ISBLANK(G17)),(G17-F17)/F17,0),0) -> -0.009967636504 | H58: =IFERROR(IF(NOT(ISBLANK(H17)),(H17-G17)/G17,0),0) -> -0.005414357222 | I58: =IFERROR(IF(NOT(ISBLANK(I17)),(I17-H17)/H17,0),0) -> -0.005204900085 | J58: =V$11 -> 0.15 | T58: Seminole
A59: Circuit Criminal | B59: =IF(E59="YES",MAX(B$51:B58)+1,0) -> 0 | C59: =A$15 -> CGE CQ2-16 | D59: Collections amount decreased from prior quarter | E59: =IF(MIN(F59:I59)<0,"YES","NO") -> NO | F59: =IFERROR(IF(NOT(ISBLANK(F16)),(F16-E16)/E16,0),0) -> 0.3391989966 | G59: 0.1650125233 | H59: 0.1744563779 | I59: 0.230033443 | T59: St. Johns
A60: Circuit Criminal | B60: =IF(E60="YES",MAX(B$51:B59)+1,0) -> 0 | C60: =A$15 -> CGE CQ2-16 | D60: Assessment amount increased from prior quarter | E60: =IF(MAX(F60:I60)>0,"YES","NO") -> NO | F60: -0.0269328342 | G60: -0.009967636504 | H60: -0.005414357222 | I60: -0.005204900085 | T60: St. Lucie
A61: Circuit Criminal | B61: =IF(E61="YES",MAX(B$51:B60)+1,0) -> 0 | C61: =A$15 -> CGE CQ2-16 | D61: ="The 5th Quarter Collection Rate did not meet the established performance measure standard of: "&TEXT(J61,"#0%") -> The 5th Quarter Collection Rate did not meet the established performance measure standard of: 9% | E61: =IF(F61="N/A","NO",IF(F61<H$8,"YES","NO")) -> NO | F61: =I18 -> 0.1593553029 | J61: =H$8 -> 0.09 | T61: Sumter
A62: Circuit Criminal | B62: =IF(E62="YES",MAX(B$51:B61)+1,0) -> 0 | C62: =A$19 -> CGE CQ3-16 | D62: ="After 3rd Q, Collections went up by more than set percentage of: "&TEXT(J62,"#0%") -> After 3rd Q, Collections went up by more than set percentage of: 500% | E62: =IF(MAX(F62:G62)>V$10,"YES","NO") -> NO | F62: =IFERROR(IF(NOT(ISBLANK(I20)),(I20-H20)/H20,0),0) -> 0.4076637777 | G62: =IFERROR(IF(NOT(ISBLANK(J20)),(J20-I20)/I20,0),0) -> 0.1609852325 | J62: =V$10 -> 5 | T62: Suwannee
A63: Circuit Criminal | B63: =IF(E63="YES",MAX(B$51:B62)+1,0) -> 0 | C63: =A$19 -> CGE CQ3-16 | D63: ="Assessments dropped by more than set percentage of: "&TEXT(J63,"#0%") -> Assessments dropped by more than set percentage of: 15% | E63: =IF(MIN(F63:I63)<(-1*V$11),"YES","NO") -> NO | F63: =IFERROR(IF(NOT(ISBLANK(G21)),(G21-F21)/F21,0),0) -> -0.03493203483 | G63: =IFERROR(IF(NOT(ISBLANK(H21)),(H21-G21)/G21,0),0) -> -0.01462323524 | H63: =IFERROR(IF(NOT(ISBLANK(I21)),(I21-H21)/H21,0),0) -> -0.007476107558 | I63: =IFERROR(IF(NOT(ISBLANK(J21)),(J21-I21)/I21,0),0) -> -0.00164787372 | J63: =V$11 -> 0.15 | T63: Taylor
A64: Circuit Criminal | B64: =IF(E64="YES",MAX(B$51:B63)+1,0) -> 0 | C64: =A$19 -> CGE CQ3-16 | D64: Collections amount decreased from prior quarter | E64: =IF(MIN(F64:I64)<0,"YES","NO") -> NO | F64: =IFERROR(IF(NOT(ISBLANK(G20)),(G20-F20)/F20,0),0) -> 0.2537843847 | G64: 0.1687145146 | H64: 0.4076637777 | I64: 0.1609852325 | T64: Union
A65: Circuit Criminal | B65: =IF(E65="YES",MAX(B$51:B64)+1,0) -> 0 | C65: =A$19 -> CGE CQ3-16 | D65: Assessment amount increased from prior quarter | E65: =IF(MAX(F65:I65)>0,"YES","NO") -> NO | F65: -0.03493203483 | G65: -0.01462323524 | H65: -0.007476107558 | I65: -0.00164787372 | T65: Volusia
A66: Circuit Criminal | B66: =IF(E66="YES",MAX(B$51:B65)+1,0) -> 0 | C66: =A$19 -> CGE CQ3-16 | D66: ="The 5th Quarter Collection Rate did not meet the established performance measure standard of: "&TEXT(J66,"#0%") -> The 5th Quarter Collection Rate did not meet the established performance measure standard of: 9% | E66: =IF(F66="N/A","NO",IF(F66<H$8,"YES","NO")) -> NO | F66: =J22 -> 0.1745326552 | J66: =H$8 -> 0.09 | T66: Wakulla
A67: Circuit Criminal | B67: =IF(E67="YES",MAX(B$51:B66)+1,0) -> 0 | C67: =A$23 -> CGE CQ4-16 | D67: ="After 3rd Q, Collections went up by more than set percentage of: "&TEXT(J67,"#0%") -> After 3rd Q, Collections went up by more than set percentage of: 500% | E67: =IF(MAX(F67:G67)>V$10,"YES","NO") -> NO | F67: =IFERROR(IF(NOT(ISBLANK(J24)),(J24-I24)/I24,0),0) -> 0.2387519322 | G67: =IFERROR(IF(NOT(ISBLANK(K24)),(K24-J24)/J24,0),0) -> 0 | J67: =V$10 -> 5 | T67: Walton
A68: Circuit Criminal | B68: =IF(E68="YES",MAX(B$51:B67)+1,0) -> 0 | C68: =A$23 -> CGE CQ4-16 | D68: ="Assessments dropped by more than set percentage of: "&TEXT(J68,"#0%") -> Assessments dropped by more than set percentage of: 15% | E68: =IF(MIN(F68:I68)<(-1*V$11),"YES","NO") -> NO | F68: =IFERROR(IF(NOT(ISBLANK(H25)),(H25-G25)/G25,0),0) -> -0.02504948793 | G68: =IFERROR(IF(NOT(ISBLANK(I25)),(I25-H25)/H25,0),0) -> -0.00972943651 | H68: =IFERROR(IF(NOT(ISBLANK(J25)),(J25-I25)/I25,0),0) -> -0.009541979537 | I68: =IFERROR(IF(NOT(ISBLANK(K25)),(K25-J25)/J25,0),0) -> 0 | J68: =V$11 -> 0.15 | T68: Washington
A69: Circuit Criminal | B69: =IF(E69="YES",MAX(B$51:B68)+1,0) -> 0 | C69: =A$23 -> CGE CQ4-16 | D69: Collections amount decreased from prior quarter | E69: =IF(MIN(F69:I69)<0,"YES","NO") -> NO | F69: =IFERROR(IF(NOT(ISBLANK(H24)),(H24-G24)/G24,0),0) -> 0.344723984 | G69: 0.3712637228 | H69: 0.2387519322 | I69: 0
A70: Circuit Criminal | B70: =IF(E70="YES",MAX(B$51:B69)+1,0) -> 0 | C70: =A$23 -> CGE CQ4-16 | D70: Assessment amount increased from prior quarter | E70: =IF(MAX(F70:I70)>0,"YES","NO") -> NO | F70: -0.02504948793 | G70: -0.00972943651 | H70: -0.009541979537 | I70: 0
A71: Circuit Criminal | B71: =IF(E71="YES",MAX(B$51:B70)+1,0) -> 0 | C71: =A$23 -> CGE CQ4-16 | D71: ="The 5th Quarter Collection Rate did not meet the established performance measure standard of: "&TEXT(J71,"#0%") -> The 5th Quarter Collection Rate did not meet the established performance measure standard of: 9% | E71: =IF(F71="N/A","NO",IF(F71<H$8,"YES","NO")) -> NO | F71: =K26 -> N/A | J71: =H$8 -> 0.09
A72: Circuit Criminal | B72: =IF(E72="YES",MAX(B$51:B71)+1,0) -> 0 | C72: =A$27 -> CGE CQ1-17 | D72: ="After 3rd Q, Collections went up by more than set percentage of: "&TEXT(J72,"#0%") -> After 3rd Q, Collections went up by more than set percentage of: 500% | E72: =IF(MAX(F72)>V$10,"YES","NO") -> NO | F72: =IFERROR(IF(NOT(ISBLANK(K28)),(K28-J28)/J28,0),0) -> 0 | J72: =V$10 -> 5
A73: Circuit Criminal | B73: =IF(E73="YES",MAX(B$51:B72)+1,0) -> 0 | C73: =A$27 -> CGE CQ1-17 | D73: ="Assessments dropped by more than set percentage of: "&TEXT(J73,"#0%") -> Assessments dropped by more than set percentage of: 15% | E73: =IF(MIN(F73:H73)<(-1*V$11),"YES","NO") -> NO | F73: =IFERROR(IF(NOT(ISBLANK(I29)),(I29-H29)/H29,0),0) -> -0.02705874609 | G73: =IFERROR(IF(NOT(ISBLANK(J29)),(J29-I29)/I29,0),0) -> -0.002204435385 | H73: =IFERROR(IF(NOT(ISBLANK(K29)),(K29-J29)/J29,0),0) -> 0 | J73: =V$11 -> 0.15
A74: Circuit Criminal | B74: =IF(E74="YES",MAX(B$51:B73)+1,0) -> 0 | C74: =A$27 -> CGE CQ1-17 | D74: Collections amount decreased from prior quarter | E74: =IF(MIN(F74:H74)<0,"YES","NO") -> NO | F74: =IFERROR(IF(NOT(ISBLANK(I28)),(I28-H28)/H28,0),0) -> 0.5261690317 | G74: 0.2714674241 | H74: 0
A75: Circuit Criminal | B75: =IF(E75="YES",MAX(B$51:B74)+1,0) -> 0 | C75: =A$27 -> CGE CQ1-17 | D75: Assessment amount increased from prior quarter | E75: =IF(MAX(F75:H75)>0,"YES","NO") -> NO | F75: -0.02705874609 | G75: -0.002204435385 | H75: 0
A76: Circuit Criminal | B76: =IF(E76="YES",MAX(B$51:B75)+1,0) -> 0 | C76: =A$31 -> CGE CQ2-17 | D76: ="Assessments dropped by more than set percentage of: "&TEXT(J76,"#0%") -> Assessments dropped by more than set percentage of: 15% | E76: =IF(MIN(F76:G76)<(-1*V$11),"YES","NO") -> NO | F76: =IFERROR(IF(NOT(ISBLANK(J33)),(J33-I33)/I33,0),0) -> -0.006061597335 | G76: =IFERROR(IF(NOT(ISBLANK(K33)),(K33-J33)/J33,0),0) -> 0 | J76: =V$11 -> 0.15
A77: Circuit Criminal | B77: =IF(E77="YES",MAX(B$51:B76)+1,0) -> 0 | C77: =A$31 -> CGE CQ2-17 | D77: Collections amount decreased from prior quarter | E77: =IF(MIN(F77:G77)<0,"YES","NO") -> NO | F77: =IFERROR(IF(NOT(ISBLANK(J32)),(J32-I32)/I32,0),0) -> 0.4451491181 | G77: =IFERROR(IF(NOT(ISBLANK(K32)),(K32-J32)/J32,0),0) -> 0
A78: Circuit Criminal | B78: =IF(E78="YES",MAX(B$51:B77)+1,0) -> 0 | C78: =A$31 -> CGE CQ2-17 | D78: Assessment amount increased from prior quarter | E78: =IF(MAX(F78:G78)>0,"YES","NO") -> NO | F78: =IFERROR(IF(NOT(ISBLANK(J33)),(J33-I33)/I33,0),0) -> -0.006061597335 | G78: =IFERROR(IF(NOT(ISBLANK(K33)),(K33-J33)/J33,0),0) -> 0
A79: Circuit Criminal | B79: =IF(E79="YES",MAX(B$51:B78)+1,0) -> 0 | C79: =A$35 -> CGE CQ3-17 | D79: ="Assessments dropped by more than set percentage of: "&TEXT(J79,"#0%") -> Assessments dropped by more than set percentage of: 15% | E79: =IF(MIN(F79)<(-1*V$11),"YES","NO") -> NO | F79: =IFERROR(IF(NOT(ISBLANK(K37)),(K37-J37)/J37,0),0) -> 0 | J79: =V$11 -> 0.15
A80: Circuit Criminal | B80: =IF(E80="YES",MAX(B$51:B79)+1,0) -> 0 | C80: =A$35 -> CGE CQ3-17 | D80: Collections amount decreased from prior quarter | E80: =IF(MIN(F80)<0,"YES","NO") -> NO | F80: =IFERROR(IF(NOT(ISBLANK(K36)),(K36-J36)/J36,0),0) -> 0
A81: Circuit Criminal | B81: =IF(E81="YES",MAX(B$51:B80)+1,0) -> 0 | C81: =A$35 -> CGE CQ3-17 | D81: Assessment amount increased from prior quarter | E81: =IF(MAX(F81)>0,"YES","NO") -> NO | F81: =IFERROR(IF(NOT(ISBLANK(K37)),(K37-J37)/J37,0),0) -> 0

Sheet Circ Crim Drug Trfc Cases
M2: County Fiscal Year 2015-2016 | T2: CountyNames
M3: Collections Quarterly Report Form for CCOC | T3: Alachua
C4: Report for Quarter Ending: | D4: ='Circuit Criminal'!$D$4 -> June 2016 | T4: Baker
C5: Version #: | D5: ='Circuit Criminal'!$D$5 -> 1 | T5: Bay
C6: County: | D6: ='Circuit Criminal'!D6 -> Brevard | F6: Circuit Criminal Drug Trafficking Cases -- Not included in Corrective Action Plan | T6: Bradford
T7: Brevard
C8: Court/Case Type: | D8: Circuit Criminal Drug Trafficking Cases | F8: Note: The Collection and Amount Assessed are subsets of the entire dollars posted in the Circuit Criminal Court Division tab . | T8: Broward
F9: This break-out is in response to CCOC Executive Council direction to isolate criminal drug trafficking case collection rates and mirrors the efforts within the FCCC Collections and Assessment report.
N10: 1 | O10: 1 | P10: September, 2013 | Q10: 1 | T10: Calhoun
C11: Control Groups | D11: 10/01/14 - 12/31/14 | E11: 01/01/15 - 03/31/15 | F11: 04/01/15 - 06/30/15 | G11: 07/01/15 - 09/30/15 | H11: 10/01/15 - 12/31/15 | I11: 01/01/16 - 03/31/16 | J11: 04/01/16 - 06/30/16 | K11: 07/01/16 - 09/30/16 | L11: Circuit Criminal Less Drug Trafficking Results | O11: 2 | T11: Charlotte | V11: 5
A12: =LEFT(B12,3)&" "&RIGHT(B12,6) -> CGE CQ1-16 | B12: CGE CQ1-16 | C12: RPE 12/31/14 | D12: Qtr 1 | E12: Qtr 2 | F12: Qtr 3 | G12: Qtr 4 | H12: Qtr 5 | L12: Collection | M12: ='Circuit Criminal'!H12-'Circ Crim Drug Trfc Cases'!H13 -> 103958.79 | N12: Economy | O12: 3 | Q12: 3 | T12: Citrus | U12: =D6&" "&D8 -> Brevard Circuit Criminal Drug Trafficking Cases | V12: 0.15
C13: C = Cumulative Collections | D13: =LOOKUP($U$12,Lookup!$C$3:$C$672,Lookup!I$3:I$672) -> 222 | E13: =LOOKUP($U$12,Lookup!$C$3:$C$672,Lookup!J$3:J$672) -> 200 | F13: =LOOKUP($U$12,Lookup!$C$3:$C$672,Lookup!K$3:K$672) -> 200 | G13: =LOOKUP($U$12,Lookup!$C$3:$C$672,Lookup!L$3:L$672) -> 200 | H13: 200 | L13: Assessment | M13: ='Circuit Criminal'!H13-'Circ Crim Drug Trfc Cases'!H14 -> 542476.95 | N13: Incarcerations | O13: 4 | Q13: 4 | T13: Clay | U13: =IF(P14=TRUE,A12,"") -> CGE CQ1-16
C14: A = Amount Assessed - Adjusted | D14: =LOOKUP($U$12,Lookup!$C$3:$C$672,Lookup!D$3:D$672) -> 2308 | E14: =LOOKUP($U$12,Lookup!$C$3:$C$672,Lookup!E$3:E$672) -> 2556 | F14: =LOOKUP($U$12,Lookup!$C$3:$C$672,Lookup!F$3:F$672) -> 2506 | G14: =LOOKUP($U$12,Lookup!$C$3:$C$672,Lookup!G$3:G$672) -> 2506 | H14: 2506 | L14: Adj. Cir Crim Rate | M14: =M12/M13 -> 0.1916372484 | N14: Late/Non-pay/Pay Plans | O14: 5 | P14: =OR(AND(E13<D13,E13>0),AND(F13<E13,F13>0),AND(G13<F13,G13>0),AND(H13<G13,H13>0),AND(F14>E14,E14>0),AND(G14>F14,F14>0),AND(H14<G14,G14>0)) -> TRUE | Q14: 5 | T14: Collier | U14: =IF(P15=TRUE,A16,"") -> 
C15: CR = Collection Rate | D15: =IF(ISBLANK(D13),"N/A",IF(OR(D13=0,D13="N/A"),0,D13/D14)) -> 0.09618717504 | E15: =IF(ISBLANK(E13),"N/A",IF(OR(E13=0,E13="N/A"),0,E13/E14)) -> 0.07824726135 | F15: =IF(ISBLANK(F13),"N/A",IF(OR(F13=0,F13="N/A"),0,F13/F14)) -> 0.0798084597 | G15: =IF(ISBLANK(G13),"N/A",IF(OR(G13=0,G13="N/A"),0,G13/G14)) -> 0.0798084597 | H15: =IF(ISBLANK(H13),"N/A",IF(AND(H13=0,H14=0,NOT(ISBLANK(H13)),NOT(ISBLANK(H14))),1,H13/H14)) -> 0.0798084597 | N15: Mandatory Assessment | P15: =OR(AND(F17<E17,F17>0),AND(G17<F17,G17>0),AND(H17<G17,H17>0),AND(I17<H17,I17>0),AND(G18>F18, F18>0),AND(H18>G18, G18>0),AND(I18<H18,I18>0)) -> FALSE | Q15: 6 | T15: Columbia | U15: =IF(P16=TRUE,A20,"") -> CGE CQ3-16
A16: =LEFT(B16,3)&" "&RIGHT(B16,6) -> CGE CQ2-16 | B16: CGE CQ2-16 | C16: RPE 03/31/15 | E16: Qtr 1 | F16: Qtr 2 | G16: Qtr 3 | H16: Qtr 4 | I16: Qtr 5 | L16: Collection | M16: ='Circuit Criminal'!I16-'Circ Crim Drug Trfc Cases'!I17 -> 111934.61 | N16: Other | P16: =OR(AND(G21<F21,D11>0),AND(H21<G21,H21>0),AND(I21<H21,I21>0),AND(J21<I21,J21>0),AND(H22>G22, G22>0),AND(I22>H22, H22>0),AND(J22<I22, J22>0)) -> TRUE | Q16: 7 | T16: Dade | U16: =IF(P17=TRUE,A24,"") -> CGE CQ4-16
C17: C = Cumulative Collections | E17: =LOOKUP($U$12,Lookup!$C$3:$C$672,Lookup!S$3:S$672) -> 188 | F17: =LOOKUP($U$12,Lookup!$C$3:$C$672,Lookup!T$3:T$672) -> 193 | G17: =LOOKUP($U$12,Lookup!$C$3:$C$672,Lookup!U$3:U$672) -> 193 | H17: 193 | I17: 193 | L17: Assessment | M17: ='Circuit Criminal'!I17-'Circ Crim Drug Trfc Cases'!I18 -> 490552.75 | N17: Procedural | P17: =OR(AND(H25<G25, H25>0),AND(I25<H25, I25>0),AND(J25<I25, J25>0),AND(K25<J25, K25>0),AND(I26>H26, H26>0),AND(J26>I26, I26>0),AND(K26<J26, J26>0)) -> TRUE | Q17: 8 | T17: Desoto | U17: =IF(P18=TRUE,A28,"") -> 
C18: A = Amount Assessed - Adjusted | E18: =LOOKUP($U$12,Lookup!$C$3:$C$672,Lookup!N$3:N$672) -> 213130 | F18: =LOOKUP($U$12,Lookup!$C$3:$C$672,Lookup!O$3:O$672) -> 218080 | G18: =LOOKUP($U$12,Lookup!$C$3:$C$672,Lookup!P$3:P$672) -> 213080 | H18: 213080 | I18: 213080 | L18: Adj. Cir Crim Rate | M18: =M16/M17 -> 0.2281805779 | N18: Staffing - Insufficient Personnel | P18: =OR(AND(I29<H29, I29>0),AND(J29<I29, J29>0),AND(K29<J29, K29>0),AND(J30>I30, I30>0),AND(K30>J30, J30>0)) -> FALSE | Q18: 9 | T18: Dixie | U18: =IF(P19=TRUE,A32,"") -> 
C19: CR = Collection Rate | E19: =IF(ISBLANK(E17),"N/A",IF(OR(E17=0,E17="N/A"),0,E17/E18)) -> 0.0008820907427 | F19: =IF(ISBLANK(F17),"N/A",IF(OR(F17=0,F17="N/A"),0,F17/F18)) -> 0.0008849963316 | G19: =IF(ISBLANK(G17),"N/A",IF(OR(G17=0,G17="N/A"),0,G17/G18)) -> 0.0009057630937 | H19: =IF(ISBLANK(H17),"N/A",IF(AND(H17=0,H18=0,NOT(ISBLANK(H17)),NOT(ISBLANK(H18))),1,H17/H18)) -> 0.0009057630937 | I19: =IF(ISBLANK(I17),"N/A",IF(AND(I17=0,I18=0,NOT(ISBLANK(I17)),NOT(ISBLANK(I18))),1,I17/I18)) -> 0.0009057630937 | N19: Staffing - Training Required | P19: =OR(AND(J33<I33, J33>0),AND(K33<J33, K33>0),AND(K34>J34, J34>0)) -> FALSE | Q19: 10 | T19: Duval | U19: =IF(P20=TRUE,A36,"") -> CGE CQ3-17
A20: =LEFT(B20,3)&" "&RIGHT(B20,6) -> CGE CQ3-16 | B20: CGE CQ3-16 | C20: RPE 06/30/15 | F20: Qtr 1 | G20: Qtr 2 | H20: Qtr 3 | I20: Qtr 4 | J20: Qtr 5 | L20: Collection | M20: ='Circuit Criminal'!J20-'Circ Crim Drug Trfc Cases'!J21 -> 104013.97 | N20: Systems | P20: =OR(K37<J37) -> TRUE | Q20: 11 | T20: Escambia | U20: =U13&" "&U14&" "&U15&" "&U16&" "&U17&" "&U18&" "&U19 -> CGE CQ1-16 CGE CQ3-16 CGE CQ4-16 CGE CQ3-17
C21: C = Cumulative Collections | F21: =LOOKUP($U$12,Lookup!$C$3:$C$672,Lookup!AC$3:AC$672) -> 230 | G21: =LOOKUP($U$12,Lookup!$C$3:$C$672,Lookup!AD$3:AD$672) -> 245 | H21: 245 | I21: 245 | J21: 245 | L21: Assessment | M21: ='Circuit Criminal'!J21-'Circ Crim Drug Trfc Cases'!J22 -> 489184.69 | P21: =COUNTIF(P14:P20,"TRUE") -> 4 | Q21: 12 | T21: Flagler
C22: A = Amount Assessed - Adjusted | F22: =LOOKUP($U$12,Lookup!$C$3:$C$672,Lookup!X$3:X$672) -> 108081.13 | G22: =LOOKUP($U$12,Lookup!$C$3:$C$672,Lookup!Y$3:Y$672) -> 108031.13 | H22: 108076.13 | I22: 108076.13 | J22: 108176.13 | L22: Adj. Cir Crim Rate | M22: =M20/M21 -> 0.2126271981 | T22: Franklin
C23: CR = Collection Rate | F23: =IF(ISBLANK(F21),"N/A",IF(OR(F21=0,F21="N/A"),0,F21/F22)) -> 0.002128031045 | G23: =IF(ISBLANK(G21),"N/A",IF(OR(G21=0,G21="N/A"),0,G21/G22)) -> 0.002267864827 | H23: =IF(ISBLANK(H21),"N/A",IF(AND(H21=0,H22=0,NOT(ISBLANK(H21)),NOT(ISBLANK(H22))),1,H21/H22)) -> 0.002266920549 | I23: =IF(ISBLANK(I21),"N/A",IF(AND(I21=0,I22=0,NOT(ISBLANK(I21)),NOT(ISBLANK(I22))),1,I21/I22)) -> 0.002266920549 | J23: =IF(ISBLANK(J21),"N/A",IF(AND(J21=0,J22=0,NOT(ISBLANK(J21)),NOT(ISBLANK(J22))),1,J21/J22)) -> 0.002264824966 | O23: Q1 | P23: Q2 | T23: Gadsden
A24: =LEFT(B24,3)&" "&RIGHT(B24,6) -> CGE CQ4-16 | B24: CGE CQ4-16 | C24: RPE 09/30/15 | G24: Qtr 1 | H24: Qtr 2 | I24: Qtr 3 | J24: Qtr 4 | K24: Qtr 5 | L24: Collection | M24: ='Circuit Criminal'!K24-'Circ Crim Drug Trfc Cases'!K25 -> 0 | O24: FALSE | P24: FALSE | Q24: =IF(AND(OR(ISBLANK(H13),ISBLANK(H14)),O24=FALSE),"Red","Gray") -> Gray | R24: =IF(AND(OR(ISBLANK(I17),ISBLANK(I18)),P24=FALSE),"Red","Gray") -> Gray | S24: =IF(AND('Circuit Criminal'!D4=1,S37=1),A12,IF(AND('Circuit Criminal'!D4=2,S37=1),A16,IF(AND('Circuit Criminal'!D4=3,S37=1),A20,IF(AND('Circuit Criminal'!D4=4,S37=1),A24,"")))) ->  | T24: Gilchrist
C25: C = Cumulative Collections | G25: =LOOKUP($U$12,Lookup!$C$3:$C$672,Lookup!AM$3:AM$672) -> 255 | H25: 320 | I25: 320 | J25: 320 | L25: Assessment | M25: ='Circuit Criminal'!K25-'Circ Crim Drug Trfc Cases'!K26 -> 0 | O25: FALSE | P25: FALSE | Q25: =IF(AND(OR(ISBLANK(H17),ISBLANK(H18)),O25=FALSE),"Red","Gray") -> Gray | R25: =IF(AND(OR(ISBLANK(I21),ISBLANK(I22)),P25=FALSE),"Red","Gray") -> Gray | S25: =IF(AND('Circuit Criminal'!D4=1,S38=1),A16,IF(AND('Circuit Criminal'!D4=2,S38=1),A20,IF(AND('Circuit Criminal'!D4=3,S38=1),A24,IF(AND('Circuit Criminal'!D4=4,S38=1),A28,"")))) ->  | T25: Glades
C26: A = Amount Assessed - Adjusted | G26: =LOOKUP($U$12,Lookup!$C$3:$C$672,Lookup!AH$3:AH$672) -> 213292 | H26: 213337 | I26: 213337 | J26: 213337 | L26: Adj. Cir Crim Rate | M26: =M24/M25 ->  | O26: FALSE | P26: FALSE | Q26: =IF(AND(OR(ISBLANK(H21),ISBLANK(H22)),O26=FALSE),"Red","Gray") -> Gray | R26: =IF(AND(OR(ISBLANK(I25),ISBLANK(I26)),P26=FALSE),"Red","Gray") -> Gray | S26: =IF(AND('Circuit Criminal'!D4=1,S39=1),A20,IF(AND('Circuit Criminal'!D4=2,S39=1),A24,IF(AND('Circuit Criminal'!D4=3,S39=1),A28,IF(AND('Circuit Criminal'!D4=4,S39=1),A32,"")))) ->  | T26: Gulf
C27: CR = Collection Rate | G27: =IF(ISBLANK(G25),"N/A",IF(OR(G25=0,G25="N/A"),0,G25/G26)) -> 0.001195544137 | H27: =IF(ISBLANK(H25),"N/A",IF(AND(H25=0,H26=0,NOT(ISBLANK(H25)),NOT(ISBLANK(H26))),1,H25/H26)) -> 0.001499974219 | I27: =IF(ISBLANK(I25),"N/A",IF(AND(I25=0,I26=0,NOT(ISBLANK(I25)),NOT(ISBLANK(I26))),1,I25/I26)) -> 0.001499974219 | J27: =IF(ISBLANK(J25),"N/A",IF(AND(J25=0,J26=0,NOT(ISBLANK(J25)),NOT(ISBLANK(J26))),1,J25/J26)) -> 0.001499974219 | K27: =IF(ISBLANK(K25),"N/A",IF(AND(K25=0,K26=0,NOT(ISBLANK(K25)),NOT(ISBLANK(K26))),1,K25/K26)) -> N/A | O27: FALSE | P27: FALSE | Q27: =IF(AND(OR(ISBLANK(H25),ISBLANK(H26)),O27=FALSE),"Red","Gray") -> Gray | R27: =IF(AND(OR(ISBLANK(I29),ISBLANK(I30)),P27=FALSE),"Red","Gray") -> Gray | S27: =IF(AND('Circuit Criminal'!D4=1,S40=1),A24,IF(AND('Circuit Criminal'!D4=2,S40=1),A28,IF(AND('Circuit Criminal'!D4=3,S40=1),A32,IF(AND('Circuit Criminal'!D4=4,S40=1),A36,"")))) ->  | T27: Hamilton
A28: =LEFT(B28,3)&" "&RIGHT(B28,6) -> CGE CQ1-17 | B28: CGE CQ1-17 | C28: RPE 12/31/15 | H28: Qtr 1 | I28: Qtr 2 | J28: Qtr 3 | K28: Qtr 4 | O28: FALSE | P28: FALSE | Q28: =IF(AND(OR(ISBLANK(H29),ISBLANK(H30)),O28=FALSE),"Red","Gray") -> Gray | R28: =IF(AND(OR(ISBLANK(I33),ISBLANK(I34)),P28=FALSE),"Red","Gray") -> Gray | S28: =IF(AND('Circuit Criminal'!D4=1,S41=1),A28,IF(AND('Circuit Criminal'!D4=2,S41=1),A32,IF(AND('Circuit Criminal'!D4=3,S41=1),A36,IF(AND('Circuit Criminal'!D4=4,S41=1),A40,"")))) ->  | T28: Hardee
C29: C = Cumulative Collections | H29: 286.5 | I29: 286.5 | J29: 286.5 | T29: Hendry
C30: A = Amount Assessed - Adjusted | H30: 107684.5 | I30: 107784.5 | J30: 107784.5 | O30: Q3 | P30: Q4 | T30: Hernando
C31: CR = Collection Rate | H31: =IF(ISBLANK(H29),"N/A",IF(AND(H29=0,H30=0,NOT(ISBLANK(H29)),NOT(ISBLANK(H30))),1,H29/H30)) -> 0.002660550033 | I31: =IF(ISBLANK(I29),"N/A",IF(AND(I29=0,I30=0,NOT(ISBLANK(I29)),NOT(ISBLANK(I30))),1,I29/I30)) -> 0.002658081635 | J31: =IF(ISBLANK(J29),"N/A",IF(AND(J29=0,J30=0,NOT(ISBLANK(J29)),NOT(ISBLANK(J30))),1,J29/J30)) -> 0.002658081635 | K31: =IF(ISBLANK(K29),"N/A",IF(AND(K29=0,K30=0,NOT(ISBLANK(K29)),NOT(ISBLANK(K30))),1,K29/K30)) -> N/A | O31: FALSE | P31: FALSE | Q31: =IF(AND(OR(ISBLANK(J21),ISBLANK(J22)),O31=FALSE),"Red","Gray") -> Gray | R31: =IF(AND(OR(ISBLANK(K25),ISBLANK(K26)),P31=FALSE),"Red","Gray") -> Red | T31: Highlands
A32: =LEFT(B32,3)&" "&RIGHT(B32,6) -> CGE CQ2-17 | B32: CGE CQ2-17 | C32: RPE 03/31/16 | I32: Qtr 1 | J32: Qtr 2 | K32: Qtr 3 | O32: FALSE | P32: FALSE | Q32: =IF(AND(OR(ISBLANK(J25),ISBLANK(J26)),O32=FALSE),"Red","Gray") -> Gray | R32: =IF(AND(OR(ISBLANK(K29),ISBLANK(K30)),P32=FALSE),"Red","Gray") -> Red | T32: Hillsborough
C33: C = Cumulative Collections | I33: 273.5 | J33: 320.5 | O33: FALSE | P33: FALSE | Q33: =IF(AND(OR(ISBLANK(J29),ISBLANK(J30)),O33=FALSE),"Red","Gray") -> Gray | R33: =IF(AND(OR(ISBLANK(K33),ISBLANK(K34)),P33=FALSE),"Red","Gray") -> Red | T33: Holmes
C34: A = Amount Assessed - Adjusted | I34: 108378.5 | J34: 108428.5 | O34: FALSE | P34: FALSE | Q34: =IF(AND(OR(ISBLANK(J33),ISBLANK(J34)),O34=FALSE),"Red","Gray") -> Gray | R34: =IF(AND(OR(ISBLANK(K37),ISBLANK(K38)),P34=FALSE),"Red","Gray") -> Red | T34: Indian River
C35: CR = Collection Rate | I35: =IF(ISBLANK(I33),"N/A",IF(AND(I33=0,I34=0,NOT(ISBLANK(I33)),NOT(ISBLANK(I34))),1,I33/I34)) -> 0.002523563253 | J35: =IF(ISBLANK(J33),"N/A",IF(AND(J33=0,J34=0,NOT(ISBLANK(J33)),NOT(ISBLANK(J34))),1,J33/J34)) -> 0.002955864925 | K35: =IF(ISBLANK(K33),"N/A",IF(AND(K33=0,K34=0,NOT(ISBLANK(K33)),NOT(ISBLANK(K34))),1,K33/K34)) -> N/A | O35: FALSE | P35: FALSE | Q35: =IF(AND(OR(ISBLANK(J37),ISBLANK(J38)),O35=FALSE),"Red","Gray") -> Gray | R35: =IF(AND(OR(ISBLANK(K41),ISBLANK(K42)),P35=FALSE),"Red","Gray") -> Red | T35: Jackson
A36: =LEFT(B36,3)&" "&RIGHT(B36,6) -> CGE CQ3-17 | B36: CGE CQ3-17 | C36: RPE 06/30/16 | J36: Qtr 1 | K36: Qtr 2 | T36: Jefferson
C37: C = Cumulative Collections | J37: 221.5 | O37: =IF(AND('Circuit Criminal'!$D$4=1,Q24="Red"),"Red","Gray") -> Gray | P37: =IF(AND('Circuit Criminal'!$D$4=2,R24="Red"),"Red","Gray") -> Gray | Q37: =IF(AND('Circuit Criminal'!$D$4=3,Q31="Red"),"Red","Gray") -> Gray | R37: =IF(AND('Circuit Criminal'!$D$4=4,R31="Red"),"Red","Gray") -> Gray | S37: =COUNTIF(O37:R37,"Red") -> 0 | T37: Lafayette
C38: A = Amount Assessed - Adjusted | J38: 582206.5 | O38: =IF(AND('Circuit Criminal'!$D$4=1,Q25="Red"),"Red","Gray") -> Gray | P38: =IF(AND('Circuit Criminal'!$D$4=2,R25="Red"),"Red","Gray") -> Gray | Q38: =IF(AND('Circuit Criminal'!$D$4=3,Q32="Red"),"Red","Gray") -> Gray | R38: =IF(AND('Circuit Criminal'!$D$4=4,R32="Red"),"Red","Gray") -> Gray | S38: =COUNTIF(O38:R38,"Red") -> 0 | T38: Lake
C39: CR = Collection Rate | J39: =IF(ISBLANK(J37),"N/A",IF(AND(J37=0,J38=0,NOT(ISBLANK(J37)),NOT(ISBLANK(J38))),1,J37/J38)) -> 0.0003804492049 | K39: =IF(ISBLANK(K37),"N/A",IF(AND(K37=0,K38=0,NOT(ISBLANK(K37)),NOT(ISBLANK(K38))),1,K37/K38)) -> N/A | O39: =IF(AND('Circuit Criminal'!$D$4=1,Q26="Red"),"Red","Gray") -> Gray | P39: =IF(AND('Circuit Criminal'!$D$4=2,R26="Red"),"Red","Gray") -> Gray | Q39: =IF(AND('Circuit Criminal'!$D$4=3,Q33="Red"),"Red","Gray") -> Gray | R39: =IF(AND('Circuit Criminal'!$D$4=4,R33="Red"),"Red","Gray") -> Gray | S39: =COUNTIF(O39:R39,"Red") -> 0 | T39: Lee
A40: =LEFT(B40,3)&" "&RIGHT(B40,6) -> CGE CQ4-17 | B40: CGE CQ4-17 | C40: RPE 09/30/16 | K40: Qtr 1 | O40: =IF(AND('Circuit Criminal'!$D$4=1,Q27="Red"),"Red","Gray") -> Gray | P40: =IF(AND('Circuit Criminal'!$D$4=2,R27="Red"),"Red","Gray") -> Gray | Q40: =IF(AND('Circuit Criminal'!$D$4=3,Q34="Red"),"Red","Gray") -> Gray | R40: =IF(AND('Circuit Criminal'!$D$4=4,R34="Red"),"Red","Gray") -> Gray | S40: =COUNTIF(O40:R40,"Red") -> 0 | T40: Leon
C41: C = Cumulative Collections | O41: =IF(AND('Circuit Criminal'!$D$4=1,Q28="Red"),"Red","Gray") -> Gray | P41: =IF(AND('Circuit Criminal'!$D$4=2,R28="Red"),"Red","Gray") -> Gray | Q41: =IF(AND('Circuit Criminal'!$D$4=3,Q35="Red"),"Red","Gray") -> Gray | R41: =IF(AND('Circuit Criminal'!$D$4=4,R35="Red"),"Red","Gray") -> Gray | S41: =COUNTIF(O41:R41,"Red") -> 0 | T41: Levy
C42: A = Amount Assessed - Adjusted | O42: =COUNTIF(O37:O41,"Red") -> 0 | P42: =COUNTIF(P37:P41,"Red") -> 0 | Q42: =COUNTIF(Q37:Q41,"Red") -> 0 | R42: =COUNTIF(R37:R41,"Red") -> 0 | T42: Liberty
C43: CR = Collection Rate | K43: =IF(ISBLANK(K41),"N/A",IF(OR(K41=0,K41="N/A"),0,K41/K42)) -> N/A | O43: =SUM(O42:R42) -> 0 | T43: Madison
C44: Business Rules | D44: Purpose of Report: The CCOC Collection Rate Performance Measure report tracks dollars in the quarter they are assessed and then how well those assessed dollars have been collected over the next five quarters. | H44: Adjustments to Assessments: The amount assessed in a given assessment control group should be adjusted in the reporting period when assessments are later adjusted by the Court or other provisions of law. | T44: Manatee
C45: NOTES: | D45: 1.) There is no agreed standard for this tab because it is a sub-set of the Circuit Criminal Court Division measures. | T45: Martin
D46: 2.) Circuit Criminal LESS Drug Trafficking Rate will not be calculated until all 5 quarters of data is reported. | T46: Nassau
T47: Okaloosa
T48: Okeechobee
T49: Orange
B50: =MAX('Circuit Criminal'!B51:B98) -> 0 | D50: Issue | F50: Calc 1 Needed | G50: Calc 2 Needed | H50: Calc 3 Needed | I50: Calc 4 Needed | J50: Standard | T50: Putnam
A51: =D$8 -> Circuit Criminal Drug Trafficking Cases | B51: =IF(E51="YES",MAX(B50)+1,0) -> 0 | C51: =A$12 -> CGE CQ1-16 | D51: ="After 3rd Q, Collections went up by more than set percentage of: "&TEXT(J51,"#0%") -> After 3rd Q, Collections went up by more than set percentage of: 500% | E51: =IF(MAX(F51:G51)>V$11,"YES","NO") -> NO | F51: =IFERROR(IF(NOT(ISBLANK(G13)),(G13-F13)/F13,0),0) -> 0 | G51: =IFERROR(IF(NOT(ISBLANK(H13)),(H13-G13)/G13,0),0) -> 0 | J51: =V$11 -> 5 | T51: Santa Rosa
A52: =D$8 -> Circuit Criminal Drug Trafficking Cases | B52: =IF(E52="YES",MAX(B$50:B51)+1,0) -> 0 | C52: =A$12 -> CGE CQ1-16 | D52: ="Assessments dropped by more than set percentage of: "&TEXT(J52,"#0%") -> Assessments dropped by more than set percentage of: 15% | E52: =IF(MIN(F52:I52)<(-1*V$12),"YES","NO") -> NO | F52: =IFERROR(IF(NOT(ISBLANK(E14)),(E14-D14)/D14,0),0) -> 0.1074523397 | G52: =IFERROR(IF(NOT(ISBLANK(F14)),(F14-E14)/E14,0),0) -> -0.01956181534 | H52: =IFERROR(IF(NOT(ISBLANK(G14)),(G14-F14)/F14,0),0) -> 0 | I52: =IFERROR(IF(NOT(ISBLANK(H14)),(H14-G14)/G14,0),0) -> 0 | J52: =V$12 -> 0.15 | T52: Sumter
A53: Circuit Criminal Drug Trafficking Cases | B53: =IF(E53="YES",MAX(B$50:B52)+1,0) -> 0 | C53: =A$12 -> CGE CQ1-16 | D53: ="The 5th Quarter Collection Rate did not meet the established performance measure standard of: "&TEXT(J53,"#0%") -> The 5th Quarter Collection Rate did not meet the established performance measure standard of: 0% | E53: =IF(F53="N/A","NO",IF(F53<H$8,"YES","NO")) -> NO | F53: =H15 -> 0.0798084597 | J53: =H$8 -> 0 | T53: Washington
A54: Circuit Criminal Drug Trafficking Cases | B54: =IF(E54="YES",MAX(B$50:B53)+1,0) -> 1 | C54: =A$12 -> CGE CQ1-16 | D54: Collections amount decreased from prior quarter | E54: =IF(MIN(F54:I54)<0,"YES","NO") -> YES | F54: =IFERROR(IF(NOT(ISBLANK(E13)),(E13-D13)/D13,0),0) -> -0.0990990991 | G54: 0 | H54: 0 | I54: 0
A55: Circuit Criminal Drug Trafficking Cases | B55: =IF(E55="YES",MAX(B$50:B54)+1,0) -> 2 | C55: =A$12 -> CGE CQ1-16 | D55: Assessment amount increased from prior quarter | E55: =IF(MAX(F55:I55)>0,"YES","NO") -> YES | F55: 0.1074523397 | G55: -0.01956181534 | H55: 0 | I55: 0
A56: Circuit Criminal Drug Trafficking Cases | B56: =IF(E56="YES",MAX(B$50:B55)+1,0) -> 0 | C56: =A$16 -> CGE CQ2-16 | D56: ="After 3rd Q, Collections went up by more than set percentage of: "&TEXT(J56,"#0%") -> After 3rd Q, Collections went up by more than set percentage of: 500% | E56: =IF(MAX(F56:G56)>V$11,"YES","NO") -> NO | F56: =IFERROR(IF(NOT(ISBLANK(H17)),(H17-G17)/G17,0),0) -> 0 | G56: =IFERROR(IF(NOT(ISBLANK(I17)),(I17-H17)/H17,0),0) -> 0 | J56: =V$11 -> 5 | T56: Sarasota
A57: Circuit Criminal Drug Trafficking Cases | B57: =IF(E57="YES",MAX(B$50:B56)+1,0) -> 0 | C57: =A$16 -> CGE CQ2-16 | D57: ="Assessments dropped by more than set percentage of: "&TEXT(J57,"#0%") -> Assessments dropped by more than set percentage of: 15% | E57: =IF(MIN(F57:I57)<(-1*V$12),"YES","NO") -> NO | F57: =IFERROR(IF(NOT(ISBLANK(F18)),(F18-E18)/E18,0),0) -> 0.02322526158 | G57: =IFERROR(IF(NOT(ISBLANK(G18)),(G18-F18)/F18,0),0) -> -0.0229273661 | H57: =IFERROR(IF(NOT(ISBLANK(H18)),(H18-G18)/G18,0),0) -> 0 | I57: =IFERROR(IF(NOT(ISBLANK(I18)),(I18-H18)/H18,0),0) -> 0 | J57: =V$12 -> 0.15 | T57: Suwannee
A58: Circuit Criminal Drug Trafficking Cases | B58: =IF(E58="YES",MAX(B$50:B57)+1,0) -> 0 | C58: =A$16 -> CGE CQ2-16 | D58: Collections amount decreased from prior quarter | E58: =IF(MIN(F58:I58)<0,"YES","NO") -> NO | F58: =IFERROR(IF(NOT(ISBLANK(F17)),(F17-E17)/E17,0),0) -> 0.02659574468 | G58: 0 | H58: 0 | I58: 0
A59: Circuit Criminal Drug Trafficking Cases | B59: =IF(E59="YES",MAX(B$50:B58)+1,0) -> 3 | C59: =A$16 -> CGE CQ2-16 | D59: Assessment amount increased from prior quarter | E59: =IF(MAX(F59:I59)>0,"YES","NO") -> YES | F59: 0.02322526158 | G59: -0.0229273661 | H59: 0 | I59: 0
A60: Circuit Criminal Drug Trafficking Cases | B60: =IF(E60="YES",MAX(B$50:B59)+1,0) -> 0 | C60: =A$16 -> CGE CQ2-16 | D60: ="The 5th Quarter Collection Rate did not meet the established performance measure standard of: "&TEXT(J60,"#0%") -> The 5th Quarter Collection Rate did not meet the established performance measure standard of: 0% | E60: =IF(F60="N/A","NO",IF(F60<H$8,"YES","NO")) -> NO | F60: =I19 -> 0.0009057630937 | J60: =H$8 -> 0
A61: Circuit Criminal Drug Trafficking Cases | B61: =IF(E61="YES",MAX(B$50:B60)+1,0) -> 0 | C61: =A$20 -> CGE CQ3-16 | D61: ="After 3rd Q, Collections went up by more than set percentage of: "&TEXT(J61,"#0%") -> After 3rd Q, Collections went up by more than set percentage of: 500% | E61: =IF(MAX(F61:G61)>V$11,"YES","NO") -> NO | F61: =IFERROR(IF(NOT(ISBLANK(I21)),(I21-H21)/H21,0),0) -> 0 | G61: =IFERROR(IF(NOT(ISBLANK(J21)),(J21-I21)/I21,0),0) -> 0 | J61: =V$11 -> 5 | T61: Seminole
A62: Circuit Criminal Drug Trafficking Cases | B62: =IF(E62="YES",MAX(B$50:B61)+1,0) -> 0 | C62: =A$20 -> CGE CQ3-16 | D62: ="Assessments dropped by more than set percentage of: "&TEXT(J62,"#0%") -> Assessments dropped by more than set percentage of: 15% | E62: =IF(MIN(F62:I62)<(-1*V$12),"YES","NO") -> NO | F62: =IFERROR(IF(NOT(ISBLANK(G22)),(G22-F22)/F22,0),0) -> -0.0004626154445 | G62: =IFERROR(IF(NOT(ISBLANK(H22)),(H22-G22)/G22,0),0) -> 0.000416546601 | H62: =IFERROR(IF(NOT(ISBLANK(I22)),(I22-H22)/H22,0),0) -> 0 | I62: =IFERROR(IF(NOT(ISBLANK(J22)),(J22-I22)/I22,0),0) -> 0.0009252736936 | J62: =V$12 -> 0.15 | T62: Taylor
A63: Circuit Criminal Drug Trafficking Cases | B63: =IF(E63="YES",MAX(B$50:B62)+1,0) -> 0 | C63: =A$20 -> CGE CQ3-16 | D63: Collections amount decreased from prior quarter | E63: =IF(MIN(F63:I63)<0,"YES","NO") -> NO | F63: =IFERROR(IF(NOT(ISBLANK(G21)),(G21-F21)/F21,0),0) -> 0.0652173913 | G63: 0 | H63: 0 | I63: 0
A64: Circuit Criminal Drug Trafficking Cases | B64: =IF(E64="YES",MAX(B$50:B63)+1,0) -> 4 | C64: =A$20 -> CGE CQ3-16 | D64: Assessment amount increased from prior quarter | E64: =IF(MAX(F64:I64)>0,"YES","NO") -> YES | F64: -0.0004626154445 | G64: 0.000416546601 | H64: 0 | I64: 0.0009252736936
A65: Circuit Criminal Drug Trafficking Cases | B65: =IF(E65="YES",MAX(B$50:B64)+1,0) -> 0 | C65: =A$20 -> CGE CQ3-16 | D65: ="The 5th Quarter Collection Rate did not meet the established performance measure standard of: "&TEXT(J65,"#0%") -> The 5th Quarter Collection Rate did not meet the established performance measure standard of: 0% | E65: =IF(F65="N/A","NO",IF(F65<H$8,"YES","NO")) -> NO | F65: =J23 -> 0.002264824966 | J65: =H$8 -> 0
A66: Circuit Criminal Drug Trafficking Cases | B66: =IF(E66="YES",MAX(B$50:B65)+1,0) -> 0 | C66: =A$24 -> CGE CQ4-16 | D66: ="After 3rd Q, Collections went up by more than set percentage of: "&TEXT(J66,"#0%") -> After 3rd Q, Collections went up by more than set percentage of: 500% | E66: =IF(MAX(F66:G66)>V$11,"YES","NO") -> NO | F66: =IFERROR(IF(NOT(ISBLANK(J25)),(J25-I25)/I25,0),0) -> 0 | G66: =IFERROR(IF(NOT(ISBLANK(K25)),(K25-J25)/J25,0),0) -> 0 | J66: =V$11 -> 5 | T66: St. Johns
A67: Circuit Criminal Drug Trafficking Cases | B67: =IF(E67="YES",MAX(B$50:B66)+1,0) -> 0 | C67: =A$24 -> CGE CQ4-16 | D67: ="Assessments dropped by more than set percentage of: "&TEXT(J67,"#0%") -> Assessments dropped by more than set percentage of: 15% | E67: =IF(MIN(F67:I67)<(-1*V$12),"YES","NO") -> NO | F67: =IFERROR(IF(NOT(ISBLANK(H26)),(H26-G26)/G26,0),0) -> 0.0002109783771 | G67: =IFERROR(IF(NOT(ISBLANK(I26)),(I26-H26)/H26,0),0) -> 0 | H67: =IFERROR(IF(NOT(ISBLANK(J26)),(J26-I26)/I26,0),0) -> 0 | I67: =IFERROR(IF(NOT(ISBLANK(K26)),(K26-J26)/J26,0),0) -> 0 | J67: =V$12 -> 0.15 | T67: Union
A68: Circuit Criminal Drug Trafficking Cases | B68: =IF(E68="YES",MAX(B$50:B67)+1,0) -> 0 | C68: =A$24 -> CGE CQ4-16 | D68: Collections amount decreased from prior quarter | E68: =IF(MIN(F68:I68)<0,"YES","NO") -> NO | F68: =IFERROR(IF(NOT(ISBLANK(H25)),(H25-G25)/G25,0),0) -> 0.2549019608 | G68: 0 | H68: 0 | I68: 0
A69: Circuit Criminal Drug Trafficking Cases | B69: =IF(E69="YES",MAX(B$50:B68)+1,0) -> 5 | C69: =A$24 -> CGE CQ4-16 | D69: Assessment amount increased from prior quarter | E69: =IF(MAX(F69:I69)>0,"YES","NO") -> YES | F69: 0.0002109783771 | G69: 0 | H69: 0 | I69: 0
A70: Circuit Criminal Drug Trafficking Cases | B70: =IF(E70="YES",MAX(B$50:B69)+1,0) -> 0 | C70: =A$24 -> CGE CQ4-16 | D70: ="The 5th Quarter Collection Rate did not meet the established performance measure standard of: "&TEXT(J70,"#0%") -> The 5th Quarter Collection Rate did not meet the established performance measure standard of: 0% | E70: =IF(F70="N/A","NO",IF(F70<H$8,"YES","NO")) -> NO | F70: =K27 -> N/A | J70: =H$8 -> 0
A71: Circuit Criminal Drug Trafficking Cases | B71: =IF(E71="YES",MAX(B$50:B70)+1,0) -> 0 | C71: =A$28 -> CGE CQ1-17 | D71: ="After 3rd Q, Collections went up by more than set percentage of: "&TEXT(J71,"#0%") -> After 3rd Q, Collections went up by more than set percentage of: 500% | E71: =IF(MAX(F71)>V$11,"YES","NO") -> NO | F71: =IFERROR(IF(NOT(ISBLANK(K29)),(K29-J29)/J29,0),0) -> 0 | J71: =V$11 -> 5 | T71: St. Lucie
A72: Circuit Criminal Drug Trafficking Cases | B72: =IF(E72="YES",MAX(B$50:B71)+1,0) -> 0 | C72: =A$28 -> CGE CQ1-17 | D72: ="Assessments dropped by more than set percentage of: "&TEXT(J72,"#0%") -> Assessments dropped by more than set percentage of: 15% | E72: =IF(MIN(F72:H72)<(-1*V$12),"YES","NO") -> NO | F72: =IFERROR(IF(NOT(ISBLANK(I30)),(I30-H30)/H30,0),0) -> 0.0009286387549 | G72: =IFERROR(IF(NOT(ISBLANK(J30)),(J30-I30)/I30,0),0) -> 0 | H72: =IFERROR(IF(NOT(ISBLANK(K30)),(K30-J30)/J30,0),0) -> 0 | J72: =V$12 -> 0.15 | T72: Volusia
A73: Circuit Criminal Drug Trafficking Cases | B73: =IF(E73="YES",MAX(B$50:B72)+1,0) -> 0 | C73: =A$28 -> CGE CQ1-17 | D73: Collections amount decreased from prior quarter | E73: =IF(MIN(F73:H73)<0,"YES","NO") -> NO | F73: =IFERROR(IF(NOT(ISBLANK(I29)),(I29-H29)/H29,0),0) -> 0 | G73: 0 | H73: 0
A74: Circuit Criminal Drug Trafficking Cases | B74: =IF(E74="YES",MAX(B$50:B73)+1,0) -> 6 | C74: =A$28 -> CGE CQ1-17 | D74: Assessment amount increased from prior quarter | E74: =IF(MAX(F74:H74)>0,"YES","NO") -> YES | F74: 0.0009286387549 | G74: 0 | H74: 0
A75: Circuit Criminal Drug Trafficking Cases | B75: =IF(E75="YES",MAX(B$50:B74)+1,0) -> 0 | C75: =A$32 -> CGE CQ2-17 | D75: ="Assessments dropped by more than set percentage of: "&TEXT(J75,"#0%") -> Assessments dropped by more than set percentage of: 15% | E75: =IF(MIN(F75:G75)<(-1*V$12),"YES","NO") -> NO | F75: =IFERROR(IF(NOT(ISBLANK(J34)),(J34-I34)/I34,0),0) -> 0.0004613461157 | G75: =IFERROR(IF(NOT(ISBLANK(K34)),(K34-J34)/J34,0),0) -> 0 | J75: =V$12 -> 0.15 | T75: Wakulla
A76: Circuit Criminal Drug Trafficking Cases | B76: =IF(E76="YES",MAX(B$50:B75)+1,0) -> 0 | C76: =A$32 -> CGE CQ2-17 | D76: Collections amount decreased from prior quarter | E76: =IF(MIN(F76:G76)<0,"YES","NO") -> NO | F76: =IFERROR(IF(NOT(ISBLANK(J33)),(J33-I33)/I33,0),0) -> 0.1718464351 | G76: =IFERROR(IF(NOT(ISBLANK(K33)),(K33-J33)/J33,0),0) -> 0
A77: Circuit Criminal Drug Trafficking Cases | B77: =IF(E77="YES",MAX(B$50:B76)+1,0) -> 7 | C77: =A$32 -> CGE CQ2-17 | D77: Assessment amount increased from prior quarter | E77: =IF(MAX(F77:G77)>0,"YES","NO") -> YES | F77: =IFERROR(IF(NOT(ISBLANK(J34)),(J34-I34)/I34,0),0) -> 0.0004613461157 | G77: =IFERROR(IF(NOT(ISBLANK(K34)),(K34-J34)/J34,0),0) -> 0
A78: Circuit Criminal Drug Trafficking Cases | B78: =IF(E78="YES",MAX(B$50:B77)+1,0) -> 0 | C78: =A$36 -> CGE CQ3-17 | D78: ="Assessments dropped by more than set percentage of: "&TEXT(J78,"#0%") -> Assessments dropped by more than set percentage of: 15% | E78: =IF(MIN(F78)<(-1*V$12),"YES","NO") -> NO | F78: =IFERROR(IF(NOT(ISBLANK(K38)),(K38-J38)/J38,0),0) -> 0 | J78: =V$12 -> 0.15 | T78: Walton
A79: Circuit Criminal Drug Trafficking Cases | B79: =IF(E79="YES",MAX(B$50:B78)+1,0) -> 0 | C79: =A$36 -> CGE CQ3-17 | D79: Collections amount decreased from prior quarter | E79: =IF(MIN(F79)<0,"YES","NO") -> NO | F79: =IFERROR(IF(NOT(ISBLANK(K37)),(K37-J37)/J37,0),0) -> 0
A80: Circuit Criminal Drug Trafficking Cases | B80: =IF(E80="YES",MAX(B$50:B79)+1,0) -> 0 | C80: =A$36 -> CGE CQ3-17 | D80: Assessment amount increased from prior quarter | E80: =IF(MAX(F80)>0,"YES","NO") -> NO | F80: =IFERROR(IF(NOT(ISBLANK(K38)),(K38-J38)/J38,0),0) -> 0

Sheet County Criminal
M2: County Fiscal Year 2015-2016 | T2: CountyNames
M3: Collections Quarterly Report Form for CCOC | T3: Alachua
C4: Report for Quarter Ending: | D4: ='Circuit Criminal'!$D$4 -> June 2016 | I4: REQUIRED: Reason Codes AND Action to Improve / Descriptions Required if Measure(s) Not Met | T4: Baker
C5: Version #: | D5: ='Circuit Criminal'!$D$5 -> 1 | J5: Internal: Must clarify reason AND expected duration internal reason will be resolved | T5: Bay
C6: County: | D6: ='Circuit Criminal'!D6 -> Brevard | J6: External: Detailed explanation of external reason the measure wasn't met | T6: Bradford
T7: Brevard
C8: Court/Case Type: | D8: County Criminal | G8: Performance Measure Standard: | H8: 0.4 | T8: Broward
L9: Action Plan | N9: 1 | O9: 1 | P9: September, 2013 | Q9: 1 | T9: Calhoun
C10: Control Groups | D10: 10/01/14 - 12/31/14 | E10: 01/01/15 - 03/31/15 | F10: 04/01/15 - 06/30/15 | G10: 07/01/15 - 09/30/15 | H10: 10/01/15 - 12/31/15 | I10: 01/01/16 - 03/31/16 | J10: 04/01/16 - 06/30/16 | K10: 07/01/16 - 09/30/16 | L10: Reason Code | M10: Current Actions to Improve | O10: 2 | T10: Charlotte | V10: 5
A11: =LEFT(B11,3)&" "&RIGHT(B11,6) -> CGE CQ1-16 | B11: CGE CQ1-16 | C11: RPE 12/31/14 | D11: Qtr 1 | E11: Qtr 2 | F11: Qtr 3 | G11: Qtr 4 | H11: Qtr 5 | L11: External | M11: The standard was not met despite pursuit of all collection efforts within the control fo the Clerk. By the end if this fiscal year, we anticipate a change by the judiciary which will require payment on the day of sentencing with direction to either pay in full or enroll in a payment plan. | N11: Economy | O11: 3 | Q11: 3 | T11: Citrus | U11: =D6&" "&D8 -> Brevard County Criminal | V11: 0.15
C12: C = Cumulative Collections | D12: =LOOKUP($U$11,Lookup!$C$3:$C$672,Lookup!I$3:I$672) -> 61568.06 | E12: =LOOKUP($U$11,Lookup!$C$3:$C$672,Lookup!J$3:J$672) -> 96437.22 | F12: =LOOKUP($U$11,Lookup!$C$3:$C$672,Lookup!K$3:K$672) -> 126634.26 | G12: =LOOKUP($U$11,Lookup!$C$3:$C$672,Lookup!L$3:L$672) -> 143224.31 | H12: 162825.83 | N12: Incarcerations | O12: 4 | Q12: 4 | T12: Clay | U12: =IF(P13=TRUE,A11,"") -> CGE CQ1-16
C13: A = Amount Assessed - Adjusted | D13: =LOOKUP($U$11,Lookup!$C$3:$C$672,Lookup!D$3:D$672) -> 428220 | E13: =LOOKUP($U$11,Lookup!$C$3:$C$672,Lookup!E$3:E$672) -> 421237 | F13: =LOOKUP($U$11,Lookup!$C$3:$C$672,Lookup!F$3:F$672) -> 418983 | G13: =LOOKUP($U$11,Lookup!$C$3:$C$672,Lookup!G$3:G$672) -> 418633 | H13: 418483 | N13: Late/Non-pay/Pay Plans | O13: 5 | P13: =OR(AND(E12<D12,E12>0),AND(F12<E12,F12>0),AND(G12<F12,G12>0),AND(H12<G12,H12>0),AND(F13>E13,E13>0),AND(G13>F13,F13>0),AND(H13<G13,G13>0)) -> TRUE | Q13: 5 | T13: Collier | U13: =IF(P14=TRUE,A15,"") -> CGE CQ2-16
C14: CR = Collection Rate | D14: =IF(ISBLANK(D12),"N/A",IF(OR(D12=0,D12="N/A"),0,D12/D13)) -> 0.1437767036 | E14: =IF(ISBLANK(E12),"N/A",IF(OR(E12=0,E12="N/A"),0,E12/E13)) -> 0.2289381512 | F14: =IF(ISBLANK(F12),"N/A",IF(OR(F12=0,F12="N/A"),0,F12/F13)) -> 0.3022420003 | G14: =IF(ISBLANK(G12),"N/A",IF(OR(G12=0,G12="N/A"),0,G12/G13)) -> 0.3421237934 | H14: =IF(ISBLANK(H12),"N/A",IF(AND(H12=0,H13=0,NOT(ISBLANK(H12)),NOT(ISBLANK(H13))),1,H12/H13)) -> 0.3890858888 | N14: Mandatory Assessment | P14: =OR(AND(F16<E16,F16>0),AND(G16<F16,G16>0),AND(H16<G16,H16>0),AND(I16<H16,I16>0),AND(G17>F17, F17>0),AND(H17>G17, G17>0),AND(I17<H17,I17>0)) -> TRUE | Q14: 6 | T14: Columbia | U14: =IF(P15=TRUE,A19,"") -> CGE CQ3-16
A15: =LEFT(B15,3)&" "&RIGHT(B15,6) -> CGE CQ2-16 | B15: CGE CQ2-16 | C15: RPE 03/31/15 | E15: Qtr 1 | F15: Qtr 2 | G15: Qtr 3 | H15: Qtr 4 | I15: Qtr 5 | N15: Other | P15: =OR(AND(G20<F20,D10>0),AND(H20<G20,H20>0),AND(I20<H20,I20>0),AND(J20<I20,J20>0),AND(H21>G21, G21>0),AND(I21>H21, H21>0),AND(J21<I21, J21>0)) -> TRUE | Q15: 7 | T15: Dade | U15: =IF(P16=TRUE,A23,"") -> CGE CQ4-16
C16: C = Cumulative Collections | E16: =LOOKUP($U$11,Lookup!$C$3:$C$672,Lookup!S$3:S$672) -> 73697.96 | F16: =LOOKUP($U$11,Lookup!$C$3:$C$672,Lookup!T$3:T$672) -> 113163.62 | G16: =LOOKUP($U$11,Lookup!$C$3:$C$672,Lookup!U$3:U$672) -> 149463.4 | H16: 172202.38 | I16: 193150 | N16: Procedural | P16: =OR(AND(H24<G24, H24>0),AND(I24<H24, I24>0),AND(J24<I24, J24>0),AND(K24<J24, K24>0),AND(I25>H25, H25>0),AND(J25>I25, I25>0),AND(K25<J25, J25>0)) -> TRUE | Q16: 8 | T16: Desoto | U16: =IF(P17=TRUE,A27,"") -> 
C17: A = Amount Assessed - Adjusted | E17: =LOOKUP($U$11,Lookup!$C$3:$C$672,Lookup!N$3:N$672) -> 453592.65 | F17: =LOOKUP($U$11,Lookup!$C$3:$C$672,Lookup!O$3:O$672) -> 448043.65 | G17: =LOOKUP($U$11,Lookup!$C$3:$C$672,Lookup!P$3:P$672) -> 446698.65 | H17: 446300.65 | I17: 445831.65 | N17: Staffing - Insufficient Personnel | P17: =OR(AND(I28<H28, I28>0),AND(J28<I28, J28>0),AND(K28<J28, K28>0),AND(J29>I29, I29>0),AND(K29>J29, J29>0)) -> FALSE | Q17: 9 | T17: Dixie | U17: =IF(P18=TRUE,A31,"") -> 
C18: CR = Collection Rate | E18: =IF(ISBLANK(E16),"N/A",IF(OR(E16=0,E16="N/A"),0,E16/E17)) -> 0.1624760895 | F18: =IF(ISBLANK(F16),"N/A",IF(OR(F16=0,F16="N/A"),0,F16/F17)) -> 0.2525727571 | G18: =IF(ISBLANK(G16),"N/A",IF(OR(G16=0,G16="N/A"),0,G16/G17)) -> 0.3345955937 | H18: =IF(ISBLANK(H16),"N/A",IF(AND(H16=0,H17=0,NOT(ISBLANK(H16)),NOT(ISBLANK(H17))),1,H16/H17)) -> 0.3858438925 | I18: =IF(ISBLANK(I16),"N/A",IF(AND(I16=0,I17=0,NOT(ISBLANK(I16)),NOT(ISBLANK(I17))),1,I16/I17)) -> 0.4332352806 | N18: Staffing - Training Required | P18: =OR(AND(J32<I32, J32>0),AND(K32<J32, K32>0),AND(K33>J33, J33>0)) -> FALSE | Q18: 10 | T18: Duval | U18: =IF(P19=TRUE,A35,"") -> CGE CQ3-17
A19: =LEFT(B19,3)&" "&RIGHT(B19,6) -> CGE CQ3-16 | B19: CGE CQ3-16 | C19: RPE 06/30/15 | F19: Qtr 1 | G19: Qtr 2 | H19: Qtr 3 | I19: Qtr 4 | J19: Qtr 5 | N19: Systems | P19: =OR(K36<J36) -> TRUE | Q19: 11 | T19: Escambia | U19: =U12&" "&U13&" "&U14&" "&U15&" "&U16&" "&U17&" "&U18 -> CGE CQ1-16 CGE CQ2-16 CGE CQ3-16 CGE CQ4-16 CGE CQ3-17
C20: C = Cumulative Collections | F20: =LOOKUP($U$11,Lookup!$C$3:$C$672,Lookup!AC$3:AC$672) -> 81201.58 | G20: =LOOKUP($U$11,Lookup!$C$3:$C$672,Lookup!AD$3:AD$672) -> 112062.86 | H20: 143014.29 | I20: 167223.05 | J20: 184878.22 | P20: =COUNTIF(P13:P19,"TRUE") -> 5 | Q20: 12 | T20: Flagler
C21: A = Amount Assessed - Adjusted | F21: =LOOKUP($U$11,Lookup!$C$3:$C$672,Lookup!X$3:X$672) -> 429970.2 | G21: =LOOKUP($U$11,Lookup!$C$3:$C$672,Lookup!Y$3:Y$672) -> 422632.7 | H21: 421498.7 | I21: 420762.7 | J21: 420140.7 | T21: Franklin
C22: CR = Collection Rate | F22: =IF(ISBLANK(F20),"N/A",IF(OR(F20=0,F20="N/A"),0,F20/F21)) -> 0.1888539717 | G22: =IF(ISBLANK(G20),"N/A",IF(OR(G20=0,G20="N/A"),0,G20/G21)) -> 0.2651542581 | H22: =IF(ISBLANK(H20),"N/A",IF(AND(H20=0,H21=0,NOT(ISBLANK(H20)),NOT(ISBLANK(H21))),1,H20/H21)) -> 0.3392994806 | I22: =IF(ISBLANK(I20),"N/A",IF(AND(I20=0,I21=0,NOT(ISBLANK(I20)),NOT(ISBLANK(I21))),1,I20/I21)) -> 0.397428408 | J22: =IF(ISBLANK(J20),"N/A",IF(AND(J20=0,J21=0,NOT(ISBLANK(J20)),NOT(ISBLANK(J21))),1,J20/J21)) -> 0.4400388251 | O22: Q1 | P22: Q2 | T22: Gadsden
A23: =LEFT(B23,3)&" "&RIGHT(B23,6) -> CGE CQ4-16 | B23: CGE CQ4-16 | C23: RPE 09/30/15 | G23: Qtr 1 | H23: Qtr 2 | I23: Qtr 3 | J23: Qtr 4 | K23: Qtr 5 | O23: FALSE | P23: FALSE | Q23: =IF(AND(OR(ISBLANK(H12),ISBLANK(H13)),O23=FALSE),"Red","Gray") -> Gray | R23: =IF(AND(OR(ISBLANK(I16),ISBLANK(I17)),P23=FALSE),"Red","Gray") -> Gray | S23: =IF(AND('Circuit Criminal'!D4=1,S36=1),A11,IF(AND('Circuit Criminal'!D4=2,S36=1),A15,IF(AND('Circuit Criminal'!D4=3,S36=1),A19,IF(AND('Circuit Criminal'!D4=4,S36=1),A23,"")))) ->  | T23: Gilchrist
C24: C = Cumulative Collections | G24: =LOOKUP($U$11,Lookup!$C$3:$C$672,Lookup!AM$3:AM$672) -> 80615.1 | H24: 114056.79 | I24: 152033.42 | J24: 171081.33 | O24: FALSE | P24: FALSE | Q24: =IF(AND(OR(ISBLANK(H16),ISBLANK(H17)),O24=FALSE),"Red","Gray") -> Gray | R24: =IF(AND(OR(ISBLANK(I20),ISBLANK(I21)),P24=FALSE),"Red","Gray") -> Gray | S24: =IF(AND('Circuit Criminal'!D4=1,S37=1),A15,IF(AND('Circuit Criminal'!D4=2,S37=1),A19,IF(AND('Circuit Criminal'!D4=3,S37=1),A23,IF(AND('Circuit Criminal'!D4=4,S37=1),A27,"")))) ->  | T24: Glades
C25: A = Amount Assessed - Adjusted | G25: =LOOKUP($U$11,Lookup!$C$3:$C$672,Lookup!AH$3:AH$672) -> 459854.04 | H25: 454533.04 | I25: 452474.04 | J25: 449912.04 | O25: FALSE | P25: FALSE | Q25: =IF(AND(OR(ISBLANK(H20),ISBLANK(H21)),O25=FALSE),"Red","Gray") -> Gray | R25: =IF(AND(OR(ISBLANK(I24),ISBLANK(I25)),P25=FALSE),"Red","Gray") -> Gray | S25: =IF(AND('Circuit Criminal'!D4=1,S38=1),A19,IF(AND('Circuit Criminal'!D4=2,S38=1),A23,IF(AND('Circuit Criminal'!D4=3,S38=1),A27,IF(AND('Circuit Criminal'!D4=4,S38=1),A31,"")))) ->  | T25: Gulf
C26: CR = Collection Rate | G26: =IF(ISBLANK(G24),"N/A",IF(OR(G24=0,G24="N/A"),0,G24/G25)) -> 0.1753058427 | H26: =IF(ISBLANK(H24),"N/A",IF(AND(H24=0,H25=0,NOT(ISBLANK(H24)),NOT(ISBLANK(H25))),1,H24/H25)) -> 0.2509317914 | I26: =IF(ISBLANK(I24),"N/A",IF(AND(I24=0,I25=0,NOT(ISBLANK(I24)),NOT(ISBLANK(I25))),1,I24/I25)) -> 0.3360047352 | J26: =IF(ISBLANK(J24),"N/A",IF(AND(J24=0,J25=0,NOT(ISBLANK(J24)),NOT(ISBLANK(J25))),1,J24/J25)) -> 0.3802550605 | K26: =IF(ISBLANK(K24),"N/A",IF(AND(K24=0,K25=0,NOT(ISBLANK(K24)),NOT(ISBLANK(K25))),1,K24/K25)) -> N/A | O26: FALSE | P26: FALSE | Q26: =IF(AND(OR(ISBLANK(H24),ISBLANK(H25)),O26=FALSE),"Red","Gray") -> Gray | R26: =IF(AND(OR(ISBLANK(I28),ISBLANK(I29)),P26=FALSE),"Red","Gray") -> Gray | S26: =IF(AND('Circuit Criminal'!D4=1,S39=1),A23,IF(AND('Circuit Criminal'!D4=2,S39=1),A27,IF(AND('Circuit Criminal'!D4=3,S39=1),A31,IF(AND('Circuit Criminal'!D4=4,S39=1),A35,"")))) ->  | T26: Hamilton
A27: =LEFT(B27,3)&" "&RIGHT(B27,6) -> CGE CQ1-17 | B27: CGE CQ1-17 | C27: RPE 12/31/15 | H27: Qtr 1 | I27: Qtr 2 | J27: Qtr 3 | K27: Qtr 4 | O27: FALSE | P27: FALSE | Q27: =IF(AND(OR(ISBLANK(H28),ISBLANK(H29)),O27=FALSE),"Red","Gray") -> Gray | R27: =IF(AND(OR(ISBLANK(I32),ISBLANK(I33)),P27=FALSE),"Red","Gray") -> Gray | S27: =IF(AND('Circuit Criminal'!D4=1,S40=1),A27,IF(AND('Circuit Criminal'!D4=2,S40=1),A31,IF(AND('Circuit Criminal'!D4=3,S40=1),A35,IF(AND('Circuit Criminal'!D4=4,S40=1),A39,"")))) ->  | T27: Hardee
C28: C = Cumulative Collections | H28: 68907.64 | I28: 100770.07 | J28: 125321.91 | T28: Hendry
C29: A = Amount Assessed - Adjusted | H29: 412342.25 | I29: 405775.25 | J29: 402343.75 | O29: Q3 | P29: Q4 | T29: Hernando
C30: CR = Collection Rate | H30: =IF(ISBLANK(H28),"N/A",IF(AND(H28=0,H29=0,NOT(ISBLANK(H28)),NOT(ISBLANK(H29))),1,H28/H29)) -> 0.1671127322 | I30: =IF(ISBLANK(I28),"N/A",IF(AND(I28=0,I29=0,NOT(ISBLANK(I28)),NOT(ISBLANK(I29))),1,I28/I29)) -> 0.2483396166 | J30: =IF(ISBLANK(J28),"N/A",IF(AND(J28=0,J29=0,NOT(ISBLANK(J28)),NOT(ISBLANK(J29))),1,J28/J29)) -> 0.3114796986 | K30: =IF(ISBLANK(K28),"N/A",IF(AND(K28=0,K29=0,NOT(ISBLANK(K28)),NOT(ISBLANK(K29))),1,K28/K29)) -> N/A | O30: FALSE | P30: FALSE | Q30: =IF(AND(OR(ISBLANK(J20),ISBLANK(J21)),O30=FALSE),"Red","Gray") -> Gray | R30: =IF(AND(OR(ISBLANK(K24),ISBLANK(K25)),P30=FALSE),"Red","Gray") -> Red | T30: Highlands
A31: =LEFT(B31,3)&" "&RIGHT(B31,6) -> CGE CQ2-17 | B31: CGE CQ2-17 | C31: RPE 03/31/16 | I31: Qtr 1 | J31: Qtr 2 | K31: Qtr 3 | L31: Additional Notes Related to Collection Issues | O31: FALSE | P31: FALSE | Q31: =IF(AND(OR(ISBLANK(J24),ISBLANK(J25)),O31=FALSE),"Red","Gray") -> Gray | R31: =IF(AND(OR(ISBLANK(K28),ISBLANK(K29)),P31=FALSE),"Red","Gray") -> Red | T31: Hillsborough
C32: C = Cumulative Collections | I32: 73063.27 | J32: 106302.53 | O32: FALSE | P32: FALSE | Q32: =IF(AND(OR(ISBLANK(J28),ISBLANK(J29)),O32=FALSE),"Red","Gray") -> Gray | R32: =IF(AND(OR(ISBLANK(K32),ISBLANK(K33)),P32=FALSE),"Red","Gray") -> Red | T32: Holmes
C33: A = Amount Assessed - Adjusted | I33: 468820 | J33: 464906 | O33: FALSE | P33: FALSE | Q33: =IF(AND(OR(ISBLANK(J32),ISBLANK(J33)),O33=FALSE),"Red","Gray") -> Gray | R33: =IF(AND(OR(ISBLANK(K36),ISBLANK(K37)),P33=FALSE),"Red","Gray") -> Red | T33: Indian River
C34: CR = Collection Rate | I34: =IF(ISBLANK(I32),"N/A",IF(AND(I32=0,I33=0,NOT(ISBLANK(I32)),NOT(ISBLANK(I33))),1,I32/I33)) -> 0.1558450365 | J34: =IF(ISBLANK(J32),"N/A",IF(AND(J32=0,J33=0,NOT(ISBLANK(J32)),NOT(ISBLANK(J33))),1,J32/J33)) -> 0.2286538139 | K34: =IF(ISBLANK(K32),"N/A",IF(AND(K32=0,K33=0,NOT(ISBLANK(K32)),NOT(ISBLANK(K33))),1,K32/K33)) -> N/A | O34: FALSE | P34: FALSE | Q34: =IF(AND(OR(ISBLANK(J36),ISBLANK(J37)),O34=FALSE),"Red","Gray") -> Gray | R34: =IF(AND(OR(ISBLANK(K40),ISBLANK(K41)),P34=FALSE),"Red","Gray") -> Red | T34: Jackson
A35: =LEFT(B35,3)&" "&RIGHT(B35,6) -> CGE CQ3-17 | B35: CGE CQ3-17 | C35: RPE 06/30/16 | J35: Qtr 1 | K35: Qtr 2 | T35: Jefferson
C36: C = Cumulative Collections | J36: 65637.37 | O36: =IF(AND('Circuit Criminal'!$D$4=1,Q23="Red"),"Red","Gray") -> Gray | P36: =IF(AND('Circuit Criminal'!$D$4=2,R23="Red"),"Red","Gray") -> Gray | Q36: =IF(AND('Circuit Criminal'!$D$4=3,Q30="Red"),"Red","Gray") -> Gray | R36: =IF(AND('Circuit Criminal'!$D$4=4,R30="Red"),"Red","Gray") -> Gray | S36: =COUNTIF(O36:R36,"Red") -> 0 | T36: Lafayette
C37: A = Amount Assessed - Adjusted | J37: 465510.05 | O37: =IF(AND('Circuit Criminal'!$D$4=1,Q24="Red"),"Red","Gray") -> Gray | P37: =IF(AND('Circuit Criminal'!$D$4=2,R24="Red"),"Red","Gray") -> Gray | Q37: =IF(AND('Circuit Criminal'!$D$4=3,Q31="Red"),"Red","Gray") -> Gray | R37: =IF(AND('Circuit Criminal'!$D$4=4,R31="Red"),"Red","Gray") -> Gray | S37: =COUNTIF(O37:R37,"Red") -> 0 | T37: Lake
C38: CR = Collection Rate | J38: =IF(ISBLANK(J36),"N/A",IF(AND(J36=0,J37=0,NOT(ISBLANK(J36)),NOT(ISBLANK(J37))),1,J36/J37)) -> 0.141000973 | K38: =IF(ISBLANK(K36),"N/A",IF(AND(K36=0,K37=0,NOT(ISBLANK(K36)),NOT(ISBLANK(K37))),1,K36/K37)) -> N/A | O38: =IF(AND('Circuit Criminal'!$D$4=1,Q25="Red"),"Red","Gray") -> Gray | P38: =IF(AND('Circuit Criminal'!$D$4=2,R25="Red"),"Red","Gray") -> Gray | Q38: =IF(AND('Circuit Criminal'!$D$4=3,Q32="Red"),"Red","Gray") -> Gray | R38: =IF(AND('Circuit Criminal'!$D$4=4,R32="Red"),"Red","Gray") -> Gray | S38: =COUNTIF(O38:R38,"Red") -> 0 | T38: Lee
A39: =LEFT(B39,3)&" "&RIGHT(B39,6) -> CGE CQ4-17 | B39: CGE CQ4-17 | C39: RPE 09/30/16 | K39: Qtr 1 | O39: =IF(AND('Circuit Criminal'!$D$4=1,Q26="Red"),"Red","Gray") -> Gray | P39: =IF(AND('Circuit Criminal'!$D$4=2,R26="Red"),"Red","Gray") -> Gray | Q39: =IF(AND('Circuit Criminal'!$D$4=3,Q33="Red"),"Red","Gray") -> Gray | R39: =IF(AND('Circuit Criminal'!$D$4=4,R33="Red"),"Red","Gray") -> Gray | S39: =COUNTIF(O39:R39,"Red") -> 0 | T39: Leon
C40: C = Cumulative Collections | O40: =IF(AND('Circuit Criminal'!$D$4=1,Q27="Red"),"Red","Gray") -> Gray | P40: =IF(AND('Circuit Criminal'!$D$4=2,R27="Red"),"Red","Gray") -> Gray | Q40: =IF(AND('Circuit Criminal'!$D$4=3,Q34="Red"),"Red","Gray") -> Gray | R40: =IF(AND('Circuit Criminal'!$D$4=4,R34="Red"),"Red","Gray") -> Gray | S40: =COUNTIF(O40:R40,"Red") -> 0 | T40: Levy
C41: A = Amount Assessed - Adjusted | O41: =COUNTIF(O36:O40,"Red") -> 0 | P41: =COUNTIF(P36:P40,"Red") -> 0 | Q41: =COUNTIF(Q36:Q40,"Red") -> 0 | R41: =COUNTIF(R36:R40,"Red") -> 0 | T41: Liberty
C42: CR = Collection Rate | K42: =IF(ISBLANK(K40),"N/A",IF(OR(K40=0,K40="N/A"),0,K40/K41)) -> N/A | O42: =SUM(O41:R41) -> 0 | T42: Madison
C43: Business Rules | D43: Purpose of Report: The CCOC Collection Rate Performance Measure report tracks dollars in the quarter they are assessed and then how well those assessed dollars have been collected over the next five quarters. | H43: Adjustments to Assessments: The amount assessed in a given assessment control group should be adjusted in the reporting period when assessments are later adjusted by the Court or other provisions of law. | T43: Manatee
C44: NOTES: | D44: The following conditions will alert when performance standards are not met and/or established business rules within the control group are not followed. | T44: Martin
D45: 1.) Action Plan: If the 5th quarter Collection Rate is below Standard (red numbers on rose background), select a "Reason Code" and write a brief statement in "Current Action to Improve" in the green area ONLY. | T45: Nassau
D46: 2.) Additional Notes Related to Collection Issues: Include a brief explaination when either of the following conditions not consistant with the Collection Report Business Rules. | T46: Okaloosa
E47: a.) Cumulative Collection amount has Decreased from the previous quarter in the same Control Group (font color for amount will change to RED) | T47: Okeechobee
E48: b.) The Amount Assessed - Adjusted has Increased from the previous quarter in the same Control Group (font color for amount will change to RED) | T48: Orange
T49: Nassau
T50: Okaloosa
T51: Okeechobee
T52: Orange
T53: Pasco
T54: Pinellas
T55: Polk
B56: =MAX('Circuit Criminal'!B51:B98) -> 0 | D56: Issue | F56: Calc 1 Needed | G56: Calc 2 Needed | H56: Calc 3 Needed | I56: Calc 4 Needed | J56: Standard | T56: Putnam
A57: =D$8 -> County Criminal | B57: =IF(E57="YES",MAX(B56)+1,0) -> 0 | C57: =A$11 -> CGE CQ1-16 | D57: ="After 3rd Q, Collections went up by more than set percentage of: "&TEXT(J57,"#0%") -> After 3rd Q, Collections went up by more than set percentage of: 500% | E57: =IF(MAX(F57:G57)>V$10,"YES","NO") -> NO | F57: =IFERROR(IF(NOT(ISBLANK(G12)),(G12-F12)/F12,0),0) -> 0.1310075962 | G57: =IFERROR(IF(NOT(ISBLANK(H12)),(H12-G12)/G12,0),0) -> 0.1368588894 | J57: =V$10 -> 5 | T57: Santa Rosa
A58: =D$8 -> County Criminal | B58: =IF(E58="YES",MAX(B$56:B57)+1,0) -> 0 | C58: =A$11 -> CGE CQ1-16 | D58: ="Assessments dropped by more than set percentage of: "&TEXT(J58,"#0%") -> Assessments dropped by more than set percentage of: 15% | E58: =IF(MIN(F58:I58)<(-1*V$11),"YES","NO") -> NO | F58: =IFERROR(IF(NOT(ISBLANK(E13)),(E13-D13)/D13,0),0) -> -0.01630703844 | G58: =IFERROR(IF(NOT(ISBLANK(F13)),(F13-E13)/E13,0),0) -> -0.005350906972 | H58: =IFERROR(IF(NOT(ISBLANK(G13)),(G13-F13)/F13,0),0) -> -0.0008353560884 | I58: =IFERROR(IF(NOT(ISBLANK(H13)),(H13-G13)/G13,0),0) -> -0.0003583090678 | J58: =V$11 -> 0.15 | T58: Sumter
A59: County Criminal | B59: =IF(E59="YES",MAX(B$56:B58)+1,0) -> 1 | C59: =A$11 -> CGE CQ1-16 | D59: ="The 5th Quarter Collection Rate did not meet the established performance measure standard of: "&TEXT(J59,"#0%") -> The 5th Quarter Collection Rate did not meet the established performance measure standard of: 40% | E59: =IF(F59="N/A","NO",IF(F59<H$8,"YES","NO")) -> YES | F59: =H14 -> 0.3890858888 | J59: =H$8 -> 0.4 | T59: Washington
A60: County Criminal | B60: =IF(E60="YES",MAX(B$56:B59)+1,0) -> 0 | C60: =A$11 -> CGE CQ1-16 | D60: Collections amount decreased from prior quarter | E60: =IF(MIN(F60:I60)<0,"YES","NO") -> NO | F60: =IFERROR(IF(NOT(ISBLANK(E12)),(E12-D12)/D12,0),0) -> 0.5663514491 | G60: 0.3131264049 | H60: 0.1310075962 | I60: 0.1368588894
A61: County Criminal | B61: =IF(E61="YES",MAX(B$56:B60)+1,0) -> 0 | C61: =A$11 -> CGE CQ1-16 | D61: Assessment amount increased from prior quarter | E61: =IF(MAX(F61:I61)>0,"YES","NO") -> NO | F61: -0.01630703844 | G61: -0.005350906972 | H61: -0.0008353560884 | I61: -0.0003583090678
A62: County Criminal | B62: =IF(E62="YES",MAX(B$56:B61)+1,0) -> 0 | C62: =A$15 -> CGE CQ2-16 | D62: ="After 3rd Q, Collections went up by more than set percentage of: "&TEXT(J62,"#0%") -> After 3rd Q, Collections went up by more than set percentage of: 500% | E62: =IF(MAX(F62:G62)>V$10,"YES","NO") -> NO | F62: =IFERROR(IF(NOT(ISBLANK(H16)),(H16-G16)/G16,0),0) -> 0.1521374464 | G62: =IFERROR(IF(NOT(ISBLANK(I16)),(I16-H16)/H16,0),0) -> 0.1216453571 | J62: =V$10 -> 5 | T62: Sarasota
A63: County Criminal | B63: =IF(E63="YES",MAX(B$56:B62)+1,0) -> 0 | C63: =A$15 -> CGE CQ2-16 | D63: ="Assessments dropped by more than set percentage of: "&TEXT(J63,"#0%") -> Assessments dropped by more than set percentage of: 15% | E63: =IF(MIN(F63:I63)<(-1*V$11),"YES","NO") -> NO | F63: =IFERROR(IF(NOT(ISBLANK(F17)),(F17-E17)/E17,0),0) -> -0.01223344338 | G63: =IFERROR(IF(NOT(ISBLANK(G17)),(G17-F17)/F17,0),0) -> -0.003001939655 | H63: =IFERROR(IF(NOT(ISBLANK(H17)),(H17-G17)/G17,0),0) -> -0.0008909809779 | I63: =IFERROR(IF(NOT(ISBLANK(I17)),(I17-H17)/H17,0),0) -> -0.001050861118 | J63: =V$11 -> 0.15 | T63: Suwannee
A64: County Criminal | B64: =IF(E64="YES",MAX(B$56:B63)+1,0) -> 0 | C64: =A$15 -> CGE CQ2-16 | D64: Collections amount decreased from prior quarter | E64: =IF(MIN(F64:I64)<0,"YES","NO") -> NO | F64: =IFERROR(IF(NOT(ISBLANK(F16)),(F16-E16)/E16,0),0) -> 0.5355054604 | G64: 0.3207725239 | H64: 0.1521374464 | I64: 0.1216453571
A65: County Criminal | B65: =IF(E65="YES",MAX(B$56:B64)+1,0) -> 0 | C65: =A$15 -> CGE CQ2-16 | D65: Assessment amount increased from prior quarter | E65: =IF(MAX(F65:I65)>0,"YES","NO") -> NO | F65: -0.01223344338 | G65: -0.003001939655 | H65: -0.0008909809779 | I65: -0.001050861118
A66: County Criminal | B66: =IF(E66="YES",MAX(B$56:B65)+1,0) -> 0 | C66: =A$15 -> CGE CQ2-16 | D66: ="The 5th Quarter Collection Rate did not meet the established performance measure standard of: "&TEXT(J66,"#0%") -> The 5th Quarter Collection Rate did not meet the established performance measure standard of: 40% | E66: =IF(F66="N/A","NO",IF(F66<H$8,"YES","NO")) -> NO | F66: =I18 -> 0.4332352806 | J66: =H$8 -> 0.4
A67: County Criminal | B67: =IF(E67="YES",MAX(B$56:B66)+1,0) -> 0 | C67: =A$19 -> CGE CQ3-16 | D67: ="After 3rd Q, Collections went up by more than set percentage of: "&TEXT(J67,"#0%") -> After 3rd Q, Collections went up by more than set percentage of: 500% | E67: =IF(MAX(F67:G67)>V$10,"YES","NO") -> NO | F67: =IFERROR(IF(NOT(ISBLANK(I20)),(I20-H20)/H20,0),0) -> 0.1692751123 | G67: =IFERROR(IF(NOT(ISBLANK(J20)),(J20-I20)/I20,0),0) -> 0.1055785671 | J67: =V$10 -> 5 | T67: Seminole
A68: County Criminal | B68: =IF(E68="YES",MAX(B$56:B67)+1,0) -> 0 | C68: =A$19 -> CGE CQ3-16 | D68: ="Assessments dropped by more than set percentage of: "&TEXT(J68,"#0%") -> Assessments dropped by more than set percentage of: 15% | E68: =IF(MIN(F68:I68)<(-1*V$11),"YES","NO") -> NO | F68: =IFERROR(IF(NOT(ISBLANK(G21)),(G21-F21)/F21,0),0) -> -0.01706513614 | G68: =IFERROR(IF(NOT(ISBLANK(H21)),(H21-G21)/G21,0),0) -> -0.002683180928 | H68: =IFERROR(IF(NOT(ISBLANK(I21)),(I21-H21)/H21,0),0) -> -0.001746150107 | I68: =IFERROR(IF(NOT(ISBLANK(J21)),(J21-I21)/I21,0),0) -> -0.001478267917 | J68: =V$11 -> 0.15 | T68: Taylor
A69: County Criminal | B69: =IF(E69="YES",MAX(B$56:B68)+1,0) -> 0 | C69: =A$19 -> CGE CQ3-16 | D69: Collections amount decreased from prior quarter | E69: =IF(MIN(F69:I69)<0,"YES","NO") -> NO | F69: =IFERROR(IF(NOT(ISBLANK(G20)),(G20-F20)/F20,0),0) -> 0.3800576294 | G69: 0.276197038 | H69: 0.1692751123 | I69: 0.1055785671
A70: County Criminal | B70: =IF(E70="YES",MAX(B$56:B69)+1,0) -> 0 | C70: =A$19 -> CGE CQ3-16 | D70: Assessment amount increased from prior quarter | E70: =IF(MAX(F70:I70)>0,"YES","NO") -> NO | F70: -0.01706513614 | G70: -0.002683180928 | H70: -0.001746150107 | I70: -0.001478267917
A71: County Criminal | B71: =IF(E71="YES",MAX(B$56:B70)+1,0) -> 0 | C71: =A$19 -> CGE CQ3-16 | D71: ="The 5th Quarter Collection Rate did not meet the established performance measure standard of: "&TEXT(J71,"#0%") -> The 5th Quarter Collection Rate did not meet the established performance measure standard of: 40% | E71: =IF(F71="N/A","NO",IF(F71<H$8,"YES","NO")) -> NO | F71: =J22 -> 0.4400388251 | J71: =H$8 -> 0.4
A72: County Criminal | B72: =IF(E72="YES",MAX(B$56:B71)+1,0) -> 0 | C72: =A$23 -> CGE CQ4-16 | D72: ="After 3rd Q, Collections went up by more than set percentage of: "&TEXT(J72,"#0%") -> After 3rd Q, Collections went up by more than set percentage of: 500% | E72: =IF(MAX(F72:G72)>V$10,"YES","NO") -> NO | F72: =IFERROR(IF(NOT(ISBLANK(J24)),(J24-I24)/I24,0),0) -> 0.1252876506 | G72: =IFERROR(IF(NOT(ISBLANK(K24)),(K24-J24)/J24,0),0) -> 0 | J72: =V$10 -> 5 | T72: St. Johns
A73: County Criminal | B73: =IF(E73="YES",MAX(B$56:B72)+1,0) -> 0 | C73: =A$23 -> CGE CQ4-16 | D73: ="Assessments dropped by more than set percentage of: "&TEXT(J73,"#0%") -> Assessments dropped by more than set percentage of: 15% | E73: =IF(MIN(F73:I73)<(-1*V$11),"YES","NO") -> NO | F73: =IFERROR(IF(NOT(ISBLANK(H25)),(H25-G25)/G25,0),0) -> -0.01157106285 | G73: =IFERROR(IF(NOT(ISBLANK(I25)),(I25-H25)/H25,0),0) -> -0.004529923721 | H73: =IFERROR(IF(NOT(ISBLANK(J25)),(J25-I25)/I25,0),0) -> -0.005662203295 | I73: =IFERROR(IF(NOT(ISBLANK(K25)),(K25-J25)/J25,0),0) -> 0 | J73: =V$11 -> 0.15 | T73: Union
A74: County Criminal | B74: =IF(E74="YES",MAX(B$56:B73)+1,0) -> 0 | C74: =A$23 -> CGE CQ4-16 | D74: Collections amount decreased from prior quarter | E74: =IF(MIN(F74:I74)<0,"YES","NO") -> NO | F74: =IFERROR(IF(NOT(ISBLANK(H24)),(H24-G24)/G24,0),0) -> 0.4148315886 | G74: 0.3329624655 | H74: 0.1252876506 | I74: 0
A75: County Criminal | B75: =IF(E75="YES",MAX(B$56:B74)+1,0) -> 0 | C75: =A$23 -> CGE CQ4-16 | D75: Assessment amount increased from prior quarter | E75: =IF(MAX(F75:I75)>0,"YES","NO") -> NO | F75: -0.01157106285 | G75: -0.004529923721 | H75: -0.005662203295 | I75: 0
A76: County Criminal | B76: =IF(E76="YES",MAX(B$56:B75)+1,0) -> 0 | C76: =A$23 -> CGE CQ4-16 | D76: ="The 5th Quarter Collection Rate did not meet the established performance measure standard of: "&TEXT(J76,"#0%") -> The 5th Quarter Collection Rate did not meet the established performance measure standard of: 40% | E76: =IF(F76="N/A","NO",IF(F76<H$8,"YES","NO")) -> NO | F76: =K26 -> N/A | J76: =H$8 -> 0.4
A77: County Criminal | B77: =IF(E77="YES",MAX(B$56:B76)+1,0) -> 0 | C77: =A$27 -> CGE CQ1-17 | D77: ="After 3rd Q, Collections went up by more than set percentage of: "&TEXT(J77,"#0%") -> After 3rd Q, Collections went up by more than set percentage of: 500% | E77: =IF(MAX(F77)>V$10,"YES","NO") -> NO | F77: =IFERROR(IF(NOT(ISBLANK(K28)),(K28-J28)/J28,0),0) -> 0 | J77: =V$10 -> 5 | T77: St. Lucie
A78: County Criminal | B78: =IF(E78="YES",MAX(B$56:B77)+1,0) -> 0 | C78: =A$27 -> CGE CQ1-17 | D78: ="Assessments dropped by more than set percentage of: "&TEXT(J78,"#0%") -> Assessments dropped by more than set percentage of: 15% | E78: =IF(MIN(F78:H78)<(-1*V$11),"YES","NO") -> NO | F78: =IFERROR(IF(NOT(ISBLANK(I29)),(I29-H29)/H29,0),0) -> -0.01592609052 | G78: =IFERROR(IF(NOT(ISBLANK(J29)),(J29-I29)/I29,0),0) -> -0.008456651804 | H78: =IFERROR(IF(NOT(ISBLANK(K29)),(K29-J29)/J29,0),0) -> 0 | J78: =V$11 -> 0.15 | T78: Volusia
A79: County Criminal | B79: =IF(E79="YES",MAX(B$56:B78)+1,0) -> 0 | C79: =A$27 -> CGE CQ1-17 | D79: Collections amount decreased from prior quarter | E79: =IF(MIN(F79:H79)<0,"YES","NO") -> NO | F79: =IFERROR(IF(NOT(ISBLANK(I28)),(I28-H28)/H28,0),0) -> 0.4623932847 | G79: 0.2436421846 | H79: 0
A80: County Criminal | B80: =IF(E80="YES",MAX(B$56:B79)+1,0) -> 0 | C80: =A$27 -> CGE CQ1-17 | D80: Assessment amount increased from prior quarter | E80: =IF(MAX(F80:H80)>0,"YES","NO") -> NO | F80: -0.01592609052 | G80: -0.008456651804 | H80: 0
A81: County Criminal | B81: =IF(E81="YES",MAX(B$56:B80)+1,0) -> 0 | C81: =A$31 -> CGE CQ2-17 | D81: ="Assessments dropped by more than set percentage of: "&TEXT(J81,"#0%") -> Assessments dropped by more than set percentage of: 15% | E81: =IF(MIN(F81:G81)<(-1*V$11),"YES","NO") -> NO | F81: =IFERROR(IF(NOT(ISBLANK(J33)),(J33-I33)/I33,0),0) -> -0.008348619939 | G81: =IFERROR(IF(NOT(ISBLANK(K33)),(K33-J33)/J33,0),0) -> 0 | J81: =V$11 -> 0.15 | T81: Wakulla
A82: County Criminal | B82: =IF(E82="YES",MAX(B$56:B81)+1,0) -> 0 | C82: =A$31 -> CGE CQ2-17 | D82: Collections amount decreased from prior quarter | E82: =IF(MIN(F82:G82)<0,"YES","NO") -> NO | F82: =IFERROR(IF(NOT(ISBLANK(J32)),(J32-I32)/I32,0),0) -> 0.4549380284 | G82: =IFERROR(IF(NOT(ISBLANK(K32)),(K32-J32)/J32,0),0) -> 0
A83: County Criminal | B83: =IF(E83="YES",MAX(B$56:B82)+1,0) -> 0 | C83: =A$31 -> CGE CQ2-17 | D83: Assessment amount increased from prior quarter | E83: =IF(MAX(F83:G83)>0,"YES","NO") -> NO | F83: =IFERROR(IF(NOT(ISBLANK(J33)),(J33-I33)/I33,0),0) -> -0.008348619939 | G83: =IFERROR(IF(NOT(ISBLANK(K33)),(K33-J33)/J33,0),0) -> 0
A84: County Criminal | B84: =IF(E84="YES",MAX(B$56:B83)+1,0) -> 0 | C84: =A$35 -> CGE CQ3-17 | D84: ="Assessments dropped by more than set percentage of: "&TEXT(J84,"#0%") -> Assessments dropped by more than set percentage of: 15% | E84: =IF(MIN(F84)<(-1*V$11),"YES","NO") -> NO | F84: =IFERROR(IF(NOT(ISBLANK(K37)),(K37-J37)/J37,0),0) -> 0 | J84: =V$11 -> 0.15 | T84: Walton
A85: County Criminal | B85: =IF(E85="YES",MAX(B$56:B84)+1,0) -> 0 | C85: =A$35 -> CGE CQ3-17 | D85: Collections amount decreased from prior quarter | E85: =IF(MIN(F85)<0,"YES","NO") -> NO | F85: =IFERROR(IF(NOT(ISBLANK(K36)),(K36-J36)/J36,0),0) -> 0
A86: County Criminal | B86: =IF(E86="YES",MAX(B$56:B85)+1,0) -> 0 | C86: =A$35 -> CGE CQ3-17 | D86: Assessment amount increased from prior quarter | E86: =IF(MAX(F86)>0,"YES","NO") -> NO | F86: =IFERROR(IF(NOT(ISBLANK(K37)),(K37-J37)/J37,0),0) -> 0

Sheet Juvenile Delinquency
M2: County Fiscal Year 2015-2016 | T2: CountyNames
M3: Collections Quarterly Report Form for CCOC | T3: Alachua
C4: Report for Quarter Ending: | D4: ='Circuit Criminal'!D4 -> June 2016 | I4: REQUIRED: Reason Codes AND Action to Improve / Descriptions Required if Measure(s) Not Met | T4: Baker
C5: Version #: | D5: ='Circuit Criminal'!$D$5 -> 1 | J5: Internal: Must clarify reason AND expected duration internal reason will be resolved | T5: Bay
C6: County: | D6: ='Circuit Criminal'!D6 -> Brevard | J6: External: Detailed explanation of external reason the measure wasn't met | T6: Bradford
T7: Brevard
C8: Court/Case Type: | D8: Juvenile Delinquency | G8: Performance Measure Standard: | H8: 0.09 | T8: Broward
L9: Action Plan | N9: 1 | O9: version #1 | P9: Qtr1 - December | Q9: 1 | T9: Calhoun
C10: Control Groups | D10: 10/01/14 - 12/31/14 | E10: 01/01/15 - 03/31/15 | F10: 04/01/15 - 06/30/15 | G10: 07/01/15 - 09/30/15 | H10: 10/01/15 - 12/31/15 | I10: 01/01/16 - 03/31/16 | J10: 04/01/16 - 06/30/16 | K10: 07/01/16 - 09/30/16 | L10: Reason Code | M10: Current Actions to Improve | O10: ='Circuit Criminal'!O10 -> 2 | P10: ='Circuit Criminal'!P10 -> March 2016 | Q10: ='Circuit Criminal'!Q10 -> 0 | R10: ='Circuit Criminal'!R10 -> 0 | S10: ='Circuit Criminal'!S10 -> 0 | T10: ='Circuit Criminal'!T10 -> Charlotte | U10: ='Circuit Criminal'!U10 -> 0 | V10: ='Circuit Criminal'!V10 -> 5
A11: =LEFT(B11,3)&" "&RIGHT(B11,6) -> CGE CQ1-16 | B11: CGE CQ1-16 | C11: RPE 12/31/14 | D11: Qtr 1 | E11: Qtr 2 | F11: Qtr 3 | G11: Qtr 4 | H11: Qtr 5 | N11: Economy | O11: version #3 | P11: Qtr 3 - June | Q11: 3 | T11: Citrus | U11: =D6&" "&D8 -> Brevard Juvenile Delinquency | V11: 0.15
C12: C = Cumulative Collections | D12: =LOOKUP($U$11,Lookup!$C$3:$C$672,Lookup!I$3:I$672) -> 1981 | E12: =LOOKUP($U$11,Lookup!$C$3:$C$672,Lookup!J$3:J$672) -> 2387 | F12: =LOOKUP($U$11,Lookup!$C$3:$C$672,Lookup!K$3:K$672) -> 2632 | G12: =LOOKUP($U$11,Lookup!$C$3:$C$672,Lookup!L$3:L$672) -> 2850 | H12: 3088 | N12: Incarcerations | O12: version #4 | P12: Qtr 4 - September | Q12: 4 | T12: Clay | U12: =IF(P13=TRUE,A11,"") -> 
C13: A = Amount Assessed - Adjusted | D13: =LOOKUP($U$11,Lookup!$C$3:$C$672,Lookup!D$3:D$672) -> 29074 | E13: =LOOKUP($U$11,Lookup!$C$3:$C$672,Lookup!E$3:E$672) -> 28724 | F13: =LOOKUP($U$11,Lookup!$C$3:$C$672,Lookup!F$3:F$672) -> 27686 | G13: =LOOKUP($U$11,Lookup!$C$3:$C$672,Lookup!G$3:G$672) -> 27686 | H13: 27686 | N13: Late/Non-pay/Pay Plans | O13: version #5 | P13: =OR(AND(E12<D12,E12>0),AND(F12<E12,F12>0),AND(G12<F12,G12>0),AND(H12<G12,H12>0),AND(F13>E13,E13>0),AND(G13>F13,F13>0),AND(H13<G13,G13>0)) -> FALSE | Q13: 5 | T13: Collier | U13: =IF(P14=TRUE,A15,"") -> CGE CQ2-16
C14: CR = Collection Rate | D14: =IF(ISBLANK(D12),"N/A",IF(OR(D12=0,D12="N/A"),0,D12/D13)) -> 0.06813647933 | E14: =IF(ISBLANK(E12),"N/A",IF(OR(E12=0,E12="N/A"),0,E12/E13)) -> 0.08310123938 | F14: =IF(ISBLANK(F12),"N/A",IF(OR(F12=0,F12="N/A"),0,F12/F13)) -> 0.09506609839 | G14: =IF(ISBLANK(G12),"N/A",IF(OR(G12=0,G12="N/A"),0,G12/G13)) -> 0.1029401141 | H14: =IF(ISBLANK(H12),"N/A",IF(AND(H12=0,H13=0,NOT(ISBLANK(H12)),NOT(ISBLANK(H13))),1,H12/H13)) -> 0.1115365167 | N14: Mandatory Assessment | O14: version #6 | P14: =OR(AND(F16<E16,F16>0),AND(G16<F16,G16>0),AND(H16<G16,H16>0),AND(I16<H16,I16>0),AND(G17>F17, F17>0),AND(H17>G17, G17>0),AND(I17<H17,I17>0)) -> TRUE | Q14: 6 | T14: Columbia | U14: =IF(P15=TRUE,A19,"") -> 
A15: =LEFT(B15,3)&" "&RIGHT(B15,6) -> CGE CQ2-16 | B15: CGE CQ2-16 | C15: RPE 03/31/15 | E15: Qtr 1 | F15: Qtr 2 | G15: Qtr 3 | H15: Qtr 4 | I15: Qtr 5 | N15: Other | O15: version #7 | P15: =OR(AND(G20<F20,D10>0),AND(H20<G20,H20>0),AND(I20<H20,I20>0),AND(J20<I20,J20>0),AND(H21>G21, G21>0),AND(I21>H21, H21>0),AND(J21<I21, J21>0)) -> FALSE | Q15: 7 | T15: Dade | U15: =IF(P16=TRUE,A23,"") -> CGE CQ4-16
C16: C = Cumulative Collections | E16: =LOOKUP($U$11,Lookup!$C$3:$C$672,Lookup!S$3:S$672) -> 1348 | F16: =LOOKUP($U$11,Lookup!$C$3:$C$672,Lookup!T$3:T$672) -> 1892 | G16: =LOOKUP($U$11,Lookup!$C$3:$C$672,Lookup!U$3:U$672) -> 2228 | H16: 2272 | I16: 2962 | N16: Procedural | O16: version #8 | P16: =OR(AND(H24<G24, H24>0),AND(I24<H24, I24>0),AND(J24<I24, J24>0),AND(K24<J24, K24>0),AND(I25>H25, H25>0),AND(J25>I25, I25>0),AND(K25<J25, J25>0)) -> TRUE | Q16: 8 | T16: Desoto | U16: =IF(P17=TRUE,A27,"") -> 
C17: A = Amount Assessed - Adjusted | E17: =LOOKUP($U$11,Lookup!$C$3:$C$672,Lookup!N$3:N$672) -> 34978 | F17: =LOOKUP($U$11,Lookup!$C$3:$C$672,Lookup!O$3:O$672) -> 34528 | G17: =LOOKUP($U$11,Lookup!$C$3:$C$672,Lookup!P$3:P$672) -> 34478 | H17: 34428 | I17: 34240 | N17: Staffing - Insufficient Personnel | O17: version #9 | P17: =OR(AND(I28<H28, I28>0),AND(J28<I28, J28>0),AND(K28<J28, K28>0),AND(J29>I29, I29>0),AND(K29>J29, J29>0)) -> FALSE | Q17: 9 | T17: Dixie | U17: =IF(P18=TRUE,A31,"") -> 
C18: CR = Collection Rate | E18: =IF(ISBLANK(E16),"N/A",IF(OR(E16=0,E16="N/A"),0,E16/E17)) -> 0.03853850992 | F18: =IF(ISBLANK(F16),"N/A",IF(OR(F16=0,F16="N/A"),0,F16/F17)) -> 0.05479610751 | G18: =IF(ISBLANK(G16),"N/A",IF(OR(G16=0,G16="N/A"),0,G16/G17)) -> 0.06462091769 | H18: =IF(ISBLANK(H16),"N/A",IF(AND(H16=0,H17=0,NOT(ISBLANK(H16)),NOT(ISBLANK(H17))),1,H16/H17)) -> 0.06599279656 | I18: =IF(ISBLANK(I16),"N/A",IF(AND(I16=0,I17=0,NOT(ISBLANK(I16)),NOT(ISBLANK(I17))),1,I16/I17)) -> 0.08650700935 | N18: Staffing - Training Required | O18: version #10 | P18: =OR(AND(J32<I32, J32>0),AND(K32<J32, K32>0),AND(K33>J33, J33>0)) -> FALSE | Q18: 10 | T18: Duval | U18: =IF(P19=TRUE,A35,"") -> CGE CQ3-17
A19: =LEFT(B19,3)&" "&RIGHT(B19,6) -> CGE CQ3-16 | B19: CGE CQ3-16 | C19: RPE 06/30/15 | F19: Qtr 1 | G19: Qtr 2 | H19: Qtr 3 | I19: Qtr 4 | J19: Qtr 5 | N19: Systems | O19: version #11 | P19: =OR(K36<J36) -> TRUE | Q19: 11 | T19: Escambia | U19: =U12&" "&U13&" "&U14&" "&U15&" "&U16&" "&U17&" "&U18 -> CGE CQ2-16 CGE CQ4-16 CGE CQ3-17
C20: C = Cumulative Collections | F20: =LOOKUP($U$11,Lookup!$C$3:$C$672,Lookup!AC$3:AC$672) -> 1866.35 | G20: =LOOKUP($U$11,Lookup!$C$3:$C$672,Lookup!AD$3:AD$672) -> 2325.85 | H20: 2501.35 | I20: 2975.35 | J20: 3374.35 | O20: version #12 | P20: =COUNTIF(P13:P19,"TRUE") -> 3 | Q20: 12 | T20: Flagler
C21: A = Amount Assessed - Adjusted | F21: =LOOKUP($U$11,Lookup!$C$3:$C$672,Lookup!X$3:X$672) -> 37466.85 | G21: =LOOKUP($U$11,Lookup!$C$3:$C$672,Lookup!Y$3:Y$672) -> 36916.85 | H21: 36916.85 | I21: 36916.85 | J21: 36916.85 | T21: Franklin
C22: CR = Collection Rate | F22: =IF(ISBLANK(F20),"N/A",IF(OR(F20=0,F20="N/A"),0,F20/F21)) -> 0.04981336835 | G22: =IF(ISBLANK(G20),"N/A",IF(OR(G20=0,G20="N/A"),0,G20/G21)) -> 0.06300239592 | H22: =IF(ISBLANK(H20),"N/A",IF(AND(H20=0,H21=0,NOT(ISBLANK(H20)),NOT(ISBLANK(H21))),1,H20/H21)) -> 0.06775632265 | I22: =IF(ISBLANK(I20),"N/A",IF(AND(I20=0,I21=0,NOT(ISBLANK(I20)),NOT(ISBLANK(I21))),1,I20/I21)) -> 0.08059598801 | J22: =IF(ISBLANK(J20),"N/A",IF(AND(J20=0,J21=0,NOT(ISBLANK(J20)),NOT(ISBLANK(J21))),1,J20/J21)) -> 0.09140406075 | O22: Q1 | P22: Q2 | T22: Gadsden
A23: =LEFT(B23,3)&" "&RIGHT(B23,6) -> CGE CQ4-16 | B23: CGE CQ4-16 | C23: RPE 09/30/15 | G23: Qtr 1 | H23: Qtr 2 | I23: Qtr 3 | J23: Qtr 4 | K23: Qtr 5 | O23: FALSE | P23: FALSE | Q23: =IF(AND(OR(ISBLANK(H12),ISBLANK(H13)),O23=FALSE),"Red","Gray") -> Gray | R23: =IF(AND(OR(ISBLANK(I16),ISBLANK(I17)),P23=FALSE),"Red","Gray") -> Gray | S23: =IF(AND('Circuit Criminal'!D4=1,S36=1),A11,IF(AND('Circuit Criminal'!D4=2,S36=1),A15,IF(AND('Circuit Criminal'!D4=3,S36=1),A19,IF(AND('Circuit Criminal'!D4=4,S36=1),A23,"")))) ->  | T23: Gilchrist
C24: C = Cumulative Collections | G24: =LOOKUP($U$11,Lookup!$C$3:$C$672,Lookup!AM$3:AM$672) -> 969.7 | H24: 1911.7 | I24: 2583.7 | J24: 3039.7 | O24: FALSE | P24: FALSE | Q24: =IF(AND(OR(ISBLANK(H16),ISBLANK(H17)),O24=FALSE),"Red","Gray") -> Gray | R24: =IF(AND(OR(ISBLANK(I20),ISBLANK(I21)),P24=FALSE),"Red","Gray") -> Gray | S24: =IF(AND('Circuit Criminal'!D4=1,S37=1),A15,IF(AND('Circuit Criminal'!D4=2,S37=1),A19,IF(AND('Circuit Criminal'!D4=3,S37=1),A23,IF(AND('Circuit Criminal'!D4=4,S37=1),A27,"")))) ->  | T24: Glades
C25: A = Amount Assessed - Adjusted | G25: =LOOKUP($U$11,Lookup!$C$3:$C$672,Lookup!AH$3:AH$672) -> 26564.7 | H25: 26364.7 | I25: 26306.2 | J25: 26256.2 | O25: FALSE | P25: FALSE | Q25: =IF(AND(OR(ISBLANK(H20),ISBLANK(H21)),O25=FALSE),"Red","Gray") -> Gray | R25: =IF(AND(OR(ISBLANK(I24),ISBLANK(I25)),P25=FALSE),"Red","Gray") -> Gray | S25: =IF(AND('Circuit Criminal'!D4=1,S38=1),A19,IF(AND('Circuit Criminal'!D4=2,S38=1),A23,IF(AND('Circuit Criminal'!D4=3,S38=1),A27,IF(AND('Circuit Criminal'!D4=4,S38=1),A31,"")))) ->  | T25: Gulf
C26: CR = Collection Rate | G26: =IF(ISBLANK(G24),"N/A",IF(OR(G24=0,G24="N/A"),0,G24/G25)) -> 0.03650332961 | H26: =IF(ISBLANK(H24),"N/A",IF(AND(H24=0,H25=0,NOT(ISBLANK(H24)),NOT(ISBLANK(H25))),1,H24/H25)) -> 0.07250983322 | I26: =IF(ISBLANK(I24),"N/A",IF(AND(I24=0,I25=0,NOT(ISBLANK(I24)),NOT(ISBLANK(I25))),1,I24/I25)) -> 0.09821639005 | J26: =IF(ISBLANK(J24),"N/A",IF(AND(J24=0,J25=0,NOT(ISBLANK(J24)),NOT(ISBLANK(J25))),1,J24/J25)) -> 0.1157707513 | K26: =IF(ISBLANK(K24),"N/A",IF(AND(K24=0,K25=0,NOT(ISBLANK(K24)),NOT(ISBLANK(K25))),1,K24/K25)) -> N/A | O26: FALSE | P26: FALSE | Q26: =IF(AND(OR(ISBLANK(H24),ISBLANK(H25)),O26=FALSE),"Red","Gray") -> Gray | R26: =IF(AND(OR(ISBLANK(I28),ISBLANK(I29)),P26=FALSE),"Red","Gray") -> Gray | S26: =IF(AND('Circuit Criminal'!D4=1,S39=1),A23,IF(AND('Circuit Criminal'!D4=2,S39=1),A27,IF(AND('Circuit Criminal'!D4=3,S39=1),A31,IF(AND('Circuit Criminal'!D4=4,S39=1),A35,"")))) ->  | T26: Hamilton
A27: =LEFT(B27,3)&" "&RIGHT(B27,6) -> CGE CQ1-17 | B27: CGE CQ1-17 | C27: RPE 12/31/15 | H27: Qtr 1 | I27: Qtr 2 | J27: Qtr 3 | K27: Qtr 4 | O27: FALSE | P27: FALSE | Q27: =IF(AND(OR(ISBLANK(H28),ISBLANK(H29)),O27=FALSE),"Red","Gray") -> Gray | R27: =IF(AND(OR(ISBLANK(I32),ISBLANK(I33)),P27=FALSE),"Red","Gray") -> Gray | S27: =IF(AND('Circuit Criminal'!D4=1,S40=1),A27,IF(AND('Circuit Criminal'!D4=2,S40=1),A31,IF(AND('Circuit Criminal'!D4=3,S40=1),A35,IF(AND('Circuit Criminal'!D4=4,S40=1),A39,"")))) ->  | T27: Hardee
C28: C = Cumulative Collections | H28: 1346.1 | I28: 2452.4 | J28: 2778.4 | T28: Hendry
C29: A = Amount Assessed - Adjusted | H29: 28388.4 | I29: 28122.9 | J29: 27788.6 | O29: Q3 | P29: Q4 | T29: Hernando
C30: CR = Collection Rate | H30: =IF(ISBLANK(H28),"N/A",IF(AND(H28=0,H29=0,NOT(ISBLANK(H28)),NOT(ISBLANK(H29))),1,H28/H29)) -> 0.04741725494 | I30: =IF(ISBLANK(I28),"N/A",IF(AND(I28=0,I29=0,NOT(ISBLANK(I28)),NOT(ISBLANK(I29))),1,I28/I29)) -> 0.0872029556 | J30: =IF(ISBLANK(J28),"N/A",IF(AND(J28=0,J29=0,NOT(ISBLANK(J28)),NOT(ISBLANK(J29))),1,J28/J29)) -> 0.09998344645 | K30: =IF(ISBLANK(K28),"N/A",IF(AND(K28=0,K29=0,NOT(ISBLANK(K28)),NOT(ISBLANK(K29))),1,K28/K29)) -> N/A | O30: FALSE | P30: FALSE | Q30: =IF(AND(OR(ISBLANK(J20),ISBLANK(J21)),O30=FALSE),"Red","Gray") -> Gray | R30: =IF(AND(OR(ISBLANK(K24),ISBLANK(K25)),P30=FALSE),"Red","Gray") -> Red | T30: Highlands
A31: =LEFT(B31,3)&" "&RIGHT(B31,6) -> CGE CQ2-17 | B31: CGE CQ2-17 | C31: RPE 03/31/16 | I31: Qtr 1 | J31: Qtr 2 | K31: Qtr 3 | L31: Additional Notes Related to Collection Issues | O31: FALSE | P31: FALSE | Q31: =IF(AND(OR(ISBLANK(J24),ISBLANK(J25)),O31=FALSE),"Red","Gray") -> Gray | R31: =IF(AND(OR(ISBLANK(K28),ISBLANK(K29)),P31=FALSE),"Red","Gray") -> Red | T31: Hillsborough
C32: C = Cumulative Collections | I32: 1341.75 | J32: 1995.25 | O32: FALSE | P32: FALSE | Q32: =IF(AND(OR(ISBLANK(J28),ISBLANK(J29)),O32=FALSE),"Red","Gray") -> Gray | R32: =IF(AND(OR(ISBLANK(K32),ISBLANK(K33)),P32=FALSE),"Red","Gray") -> Red | T32: Holmes
C33: A = Amount Assessed - Adjusted | I33: 41790.75 | J33: 41290.75 | O33: FALSE | P33: FALSE | Q33: =IF(AND(OR(ISBLANK(J32),ISBLANK(J33)),O33=FALSE),"Red","Gray") -> Gray | R33: =IF(AND(OR(ISBLANK(K36),ISBLANK(K37)),P33=FALSE),"Red","Gray") -> Red | T33: Indian River
C34: CR = Collection Rate | I34: =IF(ISBLANK(I32),"N/A",IF(AND(I32=0,I33=0,NOT(ISBLANK(I32)),NOT(ISBLANK(I33))),1,I32/I33)) -> 0.03210638718 | J34: =IF(ISBLANK(J32),"N/A",IF(AND(J32=0,J33=0,NOT(ISBLANK(J32)),NOT(ISBLANK(J33))),1,J32/J33)) -> 0.04832196073 | K34: =IF(ISBLANK(K32),"N/A",IF(AND(K32=0,K33=0,NOT(ISBLANK(K32)),NOT(ISBLANK(K33))),1,K32/K33)) -> N/A | O34: FALSE | P34: FALSE | Q34: =IF(AND(OR(ISBLANK(J36),ISBLANK(J37)),O34=FALSE),"Red","Gray") -> Gray | R34: =IF(AND(OR(ISBLANK(K40),ISBLANK(K41)),P34=FALSE),"Red","Gray") -> Red | T34: Jackson
A35: =LEFT(B35,3)&" "&RIGHT(B35,6) -> CGE CQ3-17 | B35: CGE CQ3-17 | C35: RPE 06/30/16 | J35: Qtr 1 | K35: Qtr 2 | T35: Jefferson
C36: C = Cumulative Collections | J36: 844.25 | O36: =IF(AND('Circuit Criminal'!$D$4=1,Q23="Red"),"Red","Gray") -> Gray | P36: =IF(AND('Circuit Criminal'!$D$4=2,R23="Red"),"Red","Gray") -> Gray | Q36: =IF(AND('Circuit Criminal'!$D$4=3,Q30="Red"),"Red","Gray") -> Gray | R36: =IF(AND('Circuit Criminal'!$D$4=4,R30="Red"),"Red","Gray") -> Gray | S36: =COUNTIF(O36:R36,"Red") -> 0 | T36: Lafayette
C37: A = Amount Assessed - Adjusted | J37: 42424.25 | O37: =IF(AND('Circuit Criminal'!$D$4=1,Q24="Red"),"Red","Gray") -> Gray | P37: =IF(AND('Circuit Criminal'!$D$4=2,R24="Red"),"Red","Gray") -> Gray | Q37: =IF(AND('Circuit Criminal'!$D$4=3,Q31="Red"),"Red","Gray") -> Gray | R37: =IF(AND('Circuit Criminal'!$D$4=4,R31="Red"),"Red","Gray") -> Gray | S37: =COUNTIF(O37:R37,"Red") -> 0 | T37: Lake
C38: CR = Collection Rate | J38: =IF(ISBLANK(J36),"N/A",IF(AND(J36=0,J37=0,NOT(ISBLANK(J36)),NOT(ISBLANK(J37))),1,J36/J37)) -> 0.01990017502 | K38: =IF(ISBLANK(K36),"N/A",IF(AND(K36=0,K37=0,NOT(ISBLANK(K36)),NOT(ISBLANK(K37))),1,K36/K37)) -> N/A | O38: =IF(AND('Circuit Criminal'!$D$4=1,Q25="Red"),"Red","Gray") -> Gray | P38: =IF(AND('Circuit Criminal'!$D$4=2,R25="Red"),"Red","Gray") -> Gray | Q38: =IF(AND('Circuit Criminal'!$D$4=3,Q32="Red"),"Red","Gray") -> Gray | R38: =IF(AND('Circuit Criminal'!$D$4=4,R32="Red"),"Red","Gray") -> Gray | S38: =COUNTIF(O38:R38,"Red") -> 0 | T38: Lee
A39: =LEFT(B39,3)&" "&RIGHT(B39,6) -> CGE CQ4-17 | B39: CGE CQ4-17 | C39: RPE 09/30/16 | K39: Qtr 1 | O39: =IF(AND('Circuit Criminal'!$D$4=1,Q26="Red"),"Red","Gray") -> Gray | P39: =IF(AND('Circuit Criminal'!$D$4=2,R26="Red"),"Red","Gray") -> Gray | Q39: =IF(AND('Circuit Criminal'!$D$4=3,Q33="Red"),"Red","Gray") -> Gray | R39: =IF(AND('Circuit Criminal'!$D$4=4,R33="Red"),"Red","Gray") -> Gray | S39: =COUNTIF(O39:R39,"Red") -> 0 | T39: Leon
C40: C = Cumulative Collections | O40: =IF(AND('Circuit Criminal'!$D$4=1,Q27="Red"),"Red","Gray") -> Gray | P40: =IF(AND('Circuit Criminal'!$D$4=2,R27="Red"),"Red","Gray") -> Gray | Q40: =IF(AND('Circuit Criminal'!$D$4=3,Q34="Red"),"Red","Gray") -> Gray | R40: =IF(AND('Circuit Criminal'!$D$4=4,R34="Red"),"Red","Gray") -> Gray | S40: =COUNTIF(O40:R40,"Red") -> 0 | T40: Levy
C41: A = Amount Assessed - Adjusted | O41: =COUNTIF(O36:O40,"Red") -> 0 | P41: =COUNTIF(P36:P40,"Red") -> 0 | Q41: =COUNTIF(Q36:Q40,"Red") -> 0 | R41: =COUNTIF(R36:R40,"Red") -> 0 | T41: Liberty
C42: CR = Collection Rate | K42: =IF(ISBLANK(K40),"N/A",IF(OR(K40=0,K40="N/A"),0,K40/K41)) -> N/A | O42: =SUM(O41:R41) -> 0 | T42: Madison
C43: Business Rules | D43: Purpose of Report: The CCOC Collection Rate Performance Measure report tracks dollars in the quarter they are assessed and then how well those assessed dollars have been collected over the next five quarters. | H43: Adjustments to Assessments: The amount assessed in a given assessment control group should be adjusted in the reporting period when assessments are later adjusted by the Court or other provisions of law. | T43: Manatee
C44: NOTES: | D44: The following conditions will alert when performance standards are not met and/or established business rules within the control group are not followed. | T44: Martin
D45: 1.) Action Plan: If the 5th quarter Collection Rate is below Standard (red numbers on rose background), select a "Reason Code" and write a brief statement in "Current Action to Improve" in the green area ONLY. | T45: Nassau
D46: 2.) Additional Notes Related to Collection Issues: Include a brief explaination when either of the following conditions not consistant with the Collection Report Business Rules. | T46: Okaloosa
E47: a.) Cumulative Collection amount has Decreased from the previous quarter in the same Control Group (font color for amount will change to RED) | T47: Okeechobee
E48: b.) The Amount Assessed - Adjusted has Increased from the previous quarter in the same Control Group (font color for amount will change to RED) | T48: Orange
T49: Nassau
T50: Okaloosa
T51: Okeechobee
T52: Orange
T53: Pasco
T54: Pinellas
T55: Polk
B56: =MAX('County Criminal'!B56:B99) -> 1 | D56: Issue | F56: Calc 1 Needed | G56: Calc 2 Needed | H56: Calc 3 Needed | I56: Calc 4 Needed | J56: Standard | T56: Putnam
A57: =D$8 -> Juvenile Delinquency | B57: =IF(E57="YES",MAX(B56)+1,0) -> 0 | C57: =A$11 -> CGE CQ1-16 | D57: ="After 3rd Q, Collections went up by more than set percentage of: "&TEXT(J57,"#0%") -> After 3rd Q, Collections went up by more than set percentage of: 500% | E57: =IF(MAX(F57:G57)>V$10,"YES","NO") -> NO | F57: =IFERROR(IF(NOT(ISBLANK(G12)),(G12-F12)/F12,0),0) -> 0.08282674772 | G57: =IFERROR(IF(NOT(ISBLANK(H12)),(H12-G12)/G12,0),0) -> 0.08350877193 | J57: =V$10 -> 5 | T57: Santa Rosa
A58: =D$8 -> Juvenile Delinquency | B58: =IF(E58="YES",MAX(B$56:B57)+1,0) -> 0 | C58: =A$11 -> CGE CQ1-16 | D58: ="Assessments dropped by more than set percentage of: "&TEXT(J58,"#0%") -> Assessments dropped by more than set percentage of: 15% | E58: =IF(MIN(F58:I58)<(-1*V$11),"YES","NO") -> NO | F58: =IFERROR(IF(NOT(ISBLANK(E13)),(E13-D13)/D13,0),0) -> -0.01203824723 | G58: =IFERROR(IF(NOT(ISBLANK(F13)),(F13-E13)/E13,0),0) -> -0.03613702827 | H58: =IFERROR(IF(NOT(ISBLANK(G13)),(G13-F13)/F13,0),0) -> 0 | I58: =IFERROR(IF(NOT(ISBLANK(H13)),(H13-G13)/G13,0),0) -> 0 | J58: =V$11 -> 0.15 | T58: Sumter
A59: Juvenile Delinquency | B59: =IF(E59="YES",MAX(B$56:B58)+1,0) -> 0 | C59: =A$11 -> CGE CQ1-16 | D59: ="The 5th Quarter Collection Rate did not meet the established performance measure standard of: "&TEXT(J59,"#0%") -> The 5th Quarter Collection Rate did not meet the established performance measure standard of: 9% | E59: =IF(F59="N/A","NO",IF(F59<H$8,"YES","NO")) -> NO | F59: =H14 -> 0.1115365167 | J59: =H$8 -> 0.09 | T59: Washington
A60: Juvenile Delinquency | B60: =IF(E60="YES",MAX(B$56:B59)+1,0) -> 0 | C60: =A$11 -> CGE CQ1-16 | D60: Collections amount decreased from prior quarter | E60: =IF(MIN(F60:I60)<0,"YES","NO") -> NO | F60: =IFERROR(IF(NOT(ISBLANK(E12)),(E12-D12)/D12,0),0) -> 0.2049469965 | G60: 0.1026392962 | H60: 0.08282674772 | I60: 0.08350877193
A61: Juvenile Delinquency | B61: =IF(E61="YES",MAX(B$56:B60)+1,0) -> 0 | C61: =A$11 -> CGE CQ1-16 | D61: Assessment amount increased from prior quarter | E61: =IF(MAX(F61:I61)>0,"YES","NO") -> NO | F61: -0.01203824723 | G61: -0.03613702827 | H61: 0 | I61: 0
A62: Juvenile Delinquency | B62: =IF(E62="YES",MAX(B$56:B61)+1,0) -> 0 | C62: =A$15 -> CGE CQ2-16 | D62: ="After 3rd Q, Collections went up by more than set percentage of: "&TEXT(J62,"#0%") -> After 3rd Q, Collections went up by more than set percentage of: 500% | E62: =IF(MAX(F62:G62)>V$10,"YES","NO") -> NO | F62: =IFERROR(IF(NOT(ISBLANK(H16)),(H16-G16)/G16,0),0) -> 0.0197486535 | G62: =IFERROR(IF(NOT(ISBLANK(I16)),(I16-H16)/H16,0),0) -> 0.3036971831 | J62: =V$10 -> 5 | T62: Sarasota
A63: Juvenile Delinquency | B63: =IF(E63="YES",MAX(B$56:B62)+1,0) -> 0 | C63: =A$15 -> CGE CQ2-16 | D63: ="Assessments dropped by more than set percentage of: "&TEXT(J63,"#0%") -> Assessments dropped by more than set percentage of: 15% | E63: =IF(MIN(F63:I63)<(-1*V$11),"YES","NO") -> NO | F63: =IFERROR(IF(NOT(ISBLANK(F17)),(F17-E17)/E17,0),0) -> -0.01286522957 | G63: =IFERROR(IF(NOT(ISBLANK(G17)),(G17-F17)/F17,0),0) -> -0.001448100093 | H63: =IFERROR(IF(NOT(ISBLANK(H17)),(H17-G17)/G17,0),0) -> -0.001450200128 | I63: =IFERROR(IF(NOT(ISBLANK(I17)),(I17-H17)/H17,0),0) -> -0.005460671546 | J63: =V$11 -> 0.15 | T63: Suwannee
A64: Juvenile Delinquency | B64: =IF(E64="YES",MAX(B$56:B63)+1,0) -> 0 | C64: =A$15 -> CGE CQ2-16 | D64: Collections amount decreased from prior quarter | E64: =IF(MIN(F64:I64)<0,"YES","NO") -> NO | F64: =IFERROR(IF(NOT(ISBLANK(F16)),(F16-E16)/E16,0),0) -> 0.4035608309 | G64: 0.177589852 | H64: 0.0197486535 | I64: 0.3036971831
A65: Juvenile Delinquency | B65: =IF(E65="YES",MAX(B$56:B64)+1,0) -> 0 | C65: =A$15 -> CGE CQ2-16 | D65: Assessment amount increased from prior quarter | E65: =IF(MAX(F65:I65)>0,"YES","NO") -> NO | F65: -0.01286522957 | G65: -0.001448100093 | H65: -0.001450200128 | I65: -0.005460671546
A66: Juvenile Delinquency | B66: =IF(E66="YES",MAX(B$56:B65)+1,0) -> 2 | C66: =A$15 -> CGE CQ2-16 | D66: ="The 5th Quarter Collection Rate did not meet the established performance measure standard of: "&TEXT(J66,"#0%") -> The 5th Quarter Collection Rate did not meet the established performance measure standard of: 9% | E66: =IF(F66="N/A","NO",IF(F66<H$8,"YES","NO")) -> YES | F66: =I18 -> 0.08650700935 | J66: =H$8 -> 0.09
A67: Juvenile Delinquency | B67: =IF(E67="YES",MAX(B$56:B66)+1,0) -> 0 | C67: =A$19 -> CGE CQ3-16 | D67: ="After 3rd Q, Collections went up by more than set percentage of: "&TEXT(J67,"#0%") -> After 3rd Q, Collections went up by more than set percentage of: 500% | E67: =IF(MAX(F67:G67)>V$10,"YES","NO") -> NO | F67: =IFERROR(IF(NOT(ISBLANK(I20)),(I20-H20)/H20,0),0) -> 0.1894976713 | G67: =IFERROR(IF(NOT(ISBLANK(J20)),(J20-I20)/I20,0),0) -> 0.1341018704 | J67: =V$10 -> 5 | T67: Seminole
A68: Juvenile Delinquency | B68: =IF(E68="YES",MAX(B$56:B67)+1,0) -> 0 | C68: =A$19 -> CGE CQ3-16 | D68: ="Assessments dropped by more than set percentage of: "&TEXT(J68,"#0%") -> Assessments dropped by more than set percentage of: 15% | E68: =IF(MIN(F68:I68)<(-1*V$11),"YES","NO") -> NO | F68: =IFERROR(IF(NOT(ISBLANK(G21)),(G21-F21)/F21,0),0) -> -0.01467964347 | G68: =IFERROR(IF(NOT(ISBLANK(H21)),(H21-G21)/G21,0),0) -> 0 | H68: =IFERROR(IF(NOT(ISBLANK(I21)),(I21-H21)/H21,0),0) -> 0 | I68: =IFERROR(IF(NOT(ISBLANK(J21)),(J21-I21)/I21,0),0) -> 0 | J68: =V$11 -> 0.15 | T68: Taylor
A69: Juvenile Delinquency | B69: =IF(E69="YES",MAX(B$56:B68)+1,0) -> 0 | C69: =A$19 -> CGE CQ3-16 | D69: Collections amount decreased from prior quarter | E69: =IF(MIN(F69:I69)<0,"YES","NO") -> NO | F69: =IFERROR(IF(NOT(ISBLANK(G20)),(G20-F20)/F20,0),0) -> 0.2462024808 | G69: 0.0754562848 | H69: 0.1894976713 | I69: 0.1341018704
A70: Juvenile Delinquency | B70: =IF(E70="YES",MAX(B$56:B69)+1,0) -> 0 | C70: =A$19 -> CGE CQ3-16 | D70: Assessment amount increased from prior quarter | E70: =IF(MAX(F70:I70)>0,"YES","NO") -> NO | F70: -0.01467964347 | G70: 0 | H70: 0 | I70: 0
A71: Juvenile Delinquency | B71: =IF(E71="YES",MAX(B$56:B70)+1,0) -> 0 | C71: =A$19 -> CGE CQ3-16 | D71: ="The 5th Quarter Collection Rate did not meet the established performance measure standard of: "&TEXT(J71,"#0%") -> The 5th Quarter Collection Rate did not meet the established performance measure standard of: 9% | E71: =IF(F71="N/A","NO",IF(F71<H$8,"YES","NO")) -> NO | F71: =J22 -> 0.09140406075 | J71: =H$8 -> 0.09
A72: Juvenile Delinquency | B72: =IF(E72="YES",MAX(B$56:B71)+1,0) -> 0 | C72: =A$23 -> CGE CQ4-16 | D72: ="After 3rd Q, Collections went up by more than set percentage of: "&TEXT(J72,"#0%") -> After 3rd Q, Collections went up by more than set percentage of: 500% | E72: =IF(MAX(F72:G72)>V$10,"YES","NO") -> NO | F72: =IFERROR(IF(NOT(ISBLANK(J24)),(J24-I24)/I24,0),0) -> 0.1764910787 | G72: =IFERROR(IF(NOT(ISBLANK(K24)),(K24-J24)/J24,0),0) -> 0 | J72: =V$10 -> 5 | T72: St. Johns
A73: Juvenile Delinquency | B73: =IF(E73="YES",MAX(B$56:B72)+1,0) -> 0 | C73: =A$23 -> CGE CQ4-16 | D73: ="Assessments dropped by more than set percentage of: "&TEXT(J73,"#0%") -> Assessments dropped by more than set percentage of: 15% | E73: =IF(MIN(F73:I73)<(-1*V$11),"YES","NO") -> NO | F73: =IFERROR(IF(NOT(ISBLANK(H25)),(H25-G25)/G25,0),0) -> -0.007528788204 | G73: =IFERROR(IF(NOT(ISBLANK(I25)),(I25-H25)/H25,0),0) -> -0.002218875997 | H73: =IFERROR(IF(NOT(ISBLANK(J25)),(J25-I25)/I25,0),0) -> -0.001900692612 | I73: =IFERROR(IF(NOT(ISBLANK(K25)),(K25-J25)/J25,0),0) -> 0 | J73: =V$11 -> 0.15 | T73: Union
A74: Juvenile Delinquency | B74: =IF(E74="YES",MAX(B$56:B73)+1,0) -> 0 | C74: =A$23 -> CGE CQ4-16 | D74: Collections amount decreased from prior quarter | E74: =IF(MIN(F74:I74)<0,"YES","NO") -> NO | F74: =IFERROR(IF(NOT(ISBLANK(H24)),(H24-G24)/G24,0),0) -> 0.9714344643 | G74: 0.3515195899 | H74: 0.1764910787 | I74: 0
A75: Juvenile Delinquency | B75: =IF(E75="YES",MAX(B$56:B74)+1,0) -> 0 | C75: =A$23 -> CGE CQ4-16 | D75: Assessment amount increased from prior quarter | E75: =IF(MAX(F75:I75)>0,"YES","NO") -> NO | F75: -0.007528788204 | G75: -0.002218875997 | H75: -0.001900692612 | I75: 0
A76: Juvenile Delinquency | B76: =IF(E76="YES",MAX(B$56:B75)+1,0) -> 0 | C76: =A$23 -> CGE CQ4-16 | D76: ="The 5th Quarter Collection Rate did not meet the established performance measure standard of: "&TEXT(J76,"#0%") -> The 5th Quarter Collection Rate did not meet the established performance measure standard of: 9% | E76: =IF(F76="N/A","NO",IF(F76<H$8,"YES","NO")) -> NO | F76: =K26 -> N/A | J76: =H$8 -> 0.09
A77: Juvenile Delinquency | B77: =IF(E77="YES",MAX(B$56:B76)+1,0) -> 0 | C77: =A$27 -> CGE CQ1-17 | D77: ="After 3rd Q, Collections went up by more than set percentage of: "&TEXT(J77,"#0%") -> After 3rd Q, Collections went up by more than set percentage of: 500% | E77: =IF(MAX(F77)>V$10,"YES","NO") -> NO | F77: =IFERROR(IF(NOT(ISBLANK(K28)),(K28-J28)/J28,0),0) -> 0 | J77: =V$10 -> 5 | T77: St. Lucie
A78: Juvenile Delinquency | B78: =IF(E78="YES",MAX(B$56:B77)+1,0) -> 0 | C78: =A$27 -> CGE CQ1-17 | D78: ="Assessments dropped by more than set percentage of: "&TEXT(J78,"#0%") -> Assessments dropped by more than set percentage of: 15% | E78: =IF(MIN(F78:H78)<(-1*V$11),"YES","NO") -> NO | F78: =IFERROR(IF(NOT(ISBLANK(I29)),(I29-H29)/H29,0),0) -> -0.009352411548 | G78: =IFERROR(IF(NOT(ISBLANK(J29)),(J29-I29)/I29,0),0) -> -0.01188710979 | H78: =IFERROR(IF(NOT(ISBLANK(K29)),(K29-J29)/J29,0),0) -> 0 | J78: =V$11 -> 0.15 | T78: Volusia
A79: Juvenile Delinquency | B79: =IF(E79="YES",MAX(B$56:B78)+1,0) -> 0 | C79: =A$27 -> CGE CQ1-17 | D79: Collections amount decreased from prior quarter | E79: =IF(MIN(F79:H79)<0,"YES","NO") -> NO | F79: =IFERROR(IF(NOT(ISBLANK(I28)),(I28-H28)/H28,0),0) -> 0.8218557314 | G79: 0.1329310064 | H79: 0
A80: Juvenile Delinquency | B80: =IF(E80="YES",MAX(B$56:B79)+1,0) -> 0 | C80: =A$27 -> CGE CQ1-17 | D80: Assessment amount increased from prior quarter | E80: =IF(MAX(F80:H80)>0,"YES","NO") -> NO | F80: -0.009352411548 | G80: -0.01188710979 | H80: 0
A81: Juvenile Delinquency | B81: =IF(E81="YES",MAX(B$56:B80)+1,0) -> 0 | C81: =A$31 -> CGE CQ2-17 | D81: ="Assessments dropped by more than set percentage of: "&TEXT(J81,"#0%") -> Assessments dropped by more than set percentage of: 15% | E81: =IF(MIN(F81:G81)<(-1*V$11),"YES","NO") -> NO | F81: =IFERROR(IF(NOT(ISBLANK(J33)),(J33-I33)/I33,0),0) -> -0.01196437011 | G81: =IFERROR(IF(NOT(ISBLANK(K33)),(K33-J33)/J33,0),0) -> 0 | J81: =V$11 -> 0.15 | T81: Wakulla
A82: Juvenile Delinquency | B82: =IF(E82="YES",MAX(B$56:B81)+1,0) -> 0 | C82: =A$31 -> CGE CQ2-17 | D82: Collections amount decreased from prior quarter | E82: =IF(MIN(F82:G82)<0,"YES","NO") -> NO | F82: =IFERROR(IF(NOT(ISBLANK(J32)),(J32-I32)/I32,0),0) -> 0.4870504938 | G82: =IFERROR(IF(NOT(ISBLANK(K32)),(K32-J32)/J32,0),0) -> 0
A83: Juvenile Delinquency | B83: =IF(E83="YES",MAX(B$56:B82)+1,0) -> 0 | C83: =A$31 -> CGE CQ2-17 | D83: Assessment amount increased from prior quarter | E83: =IF(MAX(F83:G83)>0,"YES","NO") -> NO | F83: =IFERROR(IF(NOT(ISBLANK(J33)),(J33-I33)/I33,0),0) -> -0.01196437011 | G83: =IFERROR(IF(NOT(ISBLANK(K33)),(K33-J33)/J33,0),0) -> 0
A84: Juvenile Delinquency | B84: =IF(E84="YES",MAX(B$56:B83)+1,0) -> 0 | C84: =A$35 -> CGE CQ3-17 | D84: ="Assessments dropped by more than set percentage of: "&TEXT(J84,"#0%") -> Assessments dropped by more than set percentage of: 15% | E84: =IF(MIN(F84)<(-1*V$11),"YES","NO") -> NO | F84: =IFERROR(IF(NOT(ISBLANK(K37)),(K37-J37)/J37,0),0) -> 0 | J84: =V$11 -> 0.15 | T84: Walton
A85: Juvenile Delinquency | B85: =IF(E85="YES",MAX(B$56:B84)+1,0) -> 0 | C85: =A$35 -> CGE CQ3-17 | D85: Collections amount decreased from prior quarter | E85: =IF(MIN(F85)<0,"YES","NO") -> NO | F85: =IFERROR(IF(NOT(ISBLANK(K36)),(K36-J36)/J36,0),0) -> 0
A86: Juvenile Delinquency | B86: =IF(E86="YES",MAX(B$56:B85)+1,0) -> 0 | C86: =A$35 -> CGE CQ3-17 | D86: Assessment amount increased from prior quarter | E86: =IF(MAX(F86)>0,"YES","NO") -> NO | F86: =IFERROR(IF(NOT(ISBLANK(K37)),(K37-J37)/J37,0),0) -> 0

Sheet Criminal Traffic
M2: County Fiscal Year 2015-2016 | T2: CountyNames
M3: Collections Quarterly Report Form for CCOC | T3: Alachua
C4: Report for Quarter Ending: | D4: ='Circuit Criminal'!D4 -> June 2016 | I4: REQUIRED: Reason Codes AND Action to Improve / Descriptions Required if Measure(s) Not Met | T4: Baker
C5: Version #: | D5: ='Circuit Criminal'!$D$5 -> 1 | J5: Internal: Must clarify reason AND expected duration internal reason will be resolved | T5: Bay
C6: County: | D6: ='Circuit Criminal'!D6 -> Brevard | J6: External: Detailed explanation of external reason the measure wasn't met | T6: Bradford
T7: Brevard
C8: Court/Case Type: | D8: Criminal Traffic | G8: Performance Measure Standard: | H8: 0.4 | T8: Broward
L9: Action Plan | N9: 1 | O9: version #1 | P9: Qtr1 - December | Q9: 1 | T9: Calhoun
C10: Control Groups | D10: 10/01/14 - 12/31/14 | E10: 01/01/15 - 03/31/15 | F10: 04/01/15 - 06/30/15 | G10: 07/01/15 - 09/30/15 | H10: 10/01/15 - 12/31/15 | I10: 01/01/16 - 03/31/16 | J10: 04/01/16 - 06/30/16 | K10: 07/01/16 - 09/30/16 | L10: Reason Code | M10: Current Actions to Improve | O10: version #2 | P10: Qtr 2 - March | T10: Charlotte | V10: 5
A11: =LEFT(B11,3)&" "&RIGHT(B11,6) -> CGE CQ1-16 | B11: CGE CQ1-16 | C11: RPE 12/31/14 | D11: Qtr 1 | E11: Qtr 2 | F11: Qtr 3 | G11: Qtr 4 | H11: Qtr 5 | N11: Economy | O11: version #3 | P11: Qtr 3 - June | Q11: 3 | T11: Citrus | U11: =D6&" "&D8 -> Brevard Criminal Traffic | V11: 0.15
C12: C = Cumulative Collections | D12: =LOOKUP($U$11,Lookup!$C$3:$C$672,Lookup!I$3:I$672) -> 138135.35 | E12: =LOOKUP($U$11,Lookup!$C$3:$C$672,Lookup!J$3:J$672) -> 221739.81 | F12: =LOOKUP($U$11,Lookup!$C$3:$C$672,Lookup!K$3:K$672) -> 277898.52 | G12: =LOOKUP($U$11,Lookup!$C$3:$C$672,Lookup!L$3:L$672) -> 336176.86 | H12: 372042.39 | N12: Incarcerations | O12: version #4 | P12: Qtr 4 - September | Q12: 4 | T12: Clay | U12: =IF(P13=TRUE,A11,"") -> CGE CQ1-16
C13: A = Amount Assessed - Adjusted | D13: =LOOKUP($U$11,Lookup!$C$3:$C$672,Lookup!D$3:D$672) -> 700495.4 | E13: =LOOKUP($U$11,Lookup!$C$3:$C$672,Lookup!E$3:E$672) -> 693315.9 | F13: =LOOKUP($U$11,Lookup!$C$3:$C$672,Lookup!F$3:F$672) -> 687422.9 | G13: =LOOKUP($U$11,Lookup!$C$3:$C$672,Lookup!G$3:G$672) -> 685723.9 | H13: 684130.4 | N13: Late/Non-pay/Pay Plans | O13: version #5 | P13: =OR(AND(E12<D12,E12>0),AND(F12<E12,F12>0),AND(G12<F12,G12>0),AND(H12<G12,H12>0),AND(F13>E13,E13>0),AND(G13>F13,F13>0),AND(H13<G13,G13>0)) -> TRUE | Q13: 5 | T13: Collier | U13: =IF(P14=TRUE,A15,"") -> CGE CQ2-16
C14: CR = Collection Rate | D14: =IF(ISBLANK(D12),"N/A",IF(OR(D12=0,D12="N/A"),0,D12/D13)) -> 0.1971966554 | E14: =IF(ISBLANK(E12),"N/A",IF(OR(E12=0,E12="N/A"),0,E12/E13)) -> 0.3198250754 | F14: =IF(ISBLANK(F12),"N/A",IF(OR(F12=0,F12="N/A"),0,F12/F13)) -> 0.4042613652 | G14: =IF(ISBLANK(G12),"N/A",IF(OR(G12=0,G12="N/A"),0,G12/G13)) -> 0.4902510471 | H14: =IF(ISBLANK(H12),"N/A",IF(AND(H12=0,H13=0,NOT(ISBLANK(H12)),NOT(ISBLANK(H13))),1,H12/H13)) -> 0.5438179476 | N14: Mandatory Assessment | O14: version #6 | P14: =OR(AND(F16<E16,F16>0),AND(G16<F16,G16>0),AND(H16<G16,H16>0),AND(I16<H16,I16>0),AND(G17>F17, F17>0),AND(H17>G17, G17>0),AND(I17<H17,I17>0)) -> TRUE | Q14: 6 | T14: Columbia | U14: =IF(P15=TRUE,A19,"") -> CGE CQ3-16
A15: =LEFT(B15,3)&" "&RIGHT(B15,6) -> CGE CQ2-16 | B15: CGE CQ2-16 | C15: RPE 03/31/15 | E15: Qtr 1 | F15: Qtr 2 | G15: Qtr 3 | H15: Qtr 4 | I15: Qtr 5 | N15: Other | O15: version #7 | P15: =OR(AND(G20<F20,D10>0),AND(H20<G20,H20>0),AND(I20<H20,I20>0),AND(J20<I20,J20>0),AND(H21>G21, G21>0),AND(I21>H21, H21>0),AND(J21<I21, J21>0)) -> TRUE | Q15: 7 | T15: Dade | U15: =IF(P16=TRUE,A23,"") -> CGE CQ4-16
C16: C = Cumulative Collections | E16: =LOOKUP($U$11,Lookup!$C$3:$C$672,Lookup!S$3:S$672) -> 165186.85 | F16: =LOOKUP($U$11,Lookup!$C$3:$C$672,Lookup!T$3:T$672) -> 246922.76 | G16: =LOOKUP($U$11,Lookup!$C$3:$C$672,Lookup!U$3:U$672) -> 317072.25 | H16: 369846.43 | I16: 425943.43 | N16: Procedural | O16: version #8 | P16: =OR(AND(H24<G24, H24>0),AND(I24<H24, I24>0),AND(J24<I24, J24>0),AND(K24<J24, K24>0),AND(I25>H25, H25>0),AND(J25>I25, I25>0),AND(K25<J25, J25>0)) -> TRUE | Q16: 8 | T16: Desoto | U16: =IF(P17=TRUE,A27,"") -> 
C17: A = Amount Assessed - Adjusted | E17: =LOOKUP($U$11,Lookup!$C$3:$C$672,Lookup!N$3:N$672) -> 748089.87 | F17: =LOOKUP($U$11,Lookup!$C$3:$C$672,Lookup!O$3:O$672) -> 740863.37 | G17: =LOOKUP($U$11,Lookup!$C$3:$C$672,Lookup!P$3:P$672) -> 736735.23 | H17: 734758.23 | I17: 733130.23 | N17: Staffing - Insufficient Personnel | O17: version #9 | P17: =OR(AND(I28<H28, I28>0),AND(J28<I28, J28>0),AND(K28<J28, K28>0),AND(J29>I29, I29>0),AND(K29>J29, J29>0)) -> FALSE | Q17: 9 | T17: Dixie | U17: =IF(P18=TRUE,A31,"") -> 
C18: CR = Collection Rate | E18: =IF(ISBLANK(E16),"N/A",IF(OR(E16=0,E16="N/A"),0,E16/E17)) -> 0.2208115049 | F18: =IF(ISBLANK(F16),"N/A",IF(OR(F16=0,F16="N/A"),0,F16/F17)) -> 0.3332905499 | G18: =IF(ISBLANK(G16),"N/A",IF(OR(G16=0,G16="N/A"),0,G16/G17)) -> 0.430374763 | H18: =IF(ISBLANK(H16),"N/A",IF(AND(H16=0,H17=0,NOT(ISBLANK(H16)),NOT(ISBLANK(H17))),1,H16/H17)) -> 0.5033579957 | I18: =IF(ISBLANK(I16),"N/A",IF(AND(I16=0,I17=0,NOT(ISBLANK(I16)),NOT(ISBLANK(I17))),1,I16/I17)) -> 0.5809928613 | N18: Staffing - Training Required | O18: version #10 | P18: =OR(AND(J32<I32, J32>0),AND(K32<J32, K32>0),AND(K33>J33, J33>0)) -> FALSE | Q18: 10 | T18: Duval | U18: =IF(P19=TRUE,A35,"") -> CGE CQ3-17
A19: =LEFT(B19,3)&" "&RIGHT(B19,6) -> CGE CQ3-16 | B19: CGE CQ3-16 | C19: RPE 06/30/15 | F19: Qtr 1 | G19: Qtr 2 | H19: Qtr 3 | I19: Qtr 4 | J19: Qtr 5 | N19: Systems | O19: version #11 | P19: =OR(K36<J36) -> TRUE | Q19: 11 | T19: Escambia | U19: =U12&" "&U13&" "&U14&" "&U15&" "&U16&" "&U17&" "&U18 -> CGE CQ1-16 CGE CQ2-16 CGE CQ3-16 CGE CQ4-16 CGE CQ3-17
C20: C = Cumulative Collections | F20: =LOOKUP($U$11,Lookup!$C$3:$C$672,Lookup!AC$3:AC$672) -> 159917.99 | G20: =LOOKUP($U$11,Lookup!$C$3:$C$672,Lookup!AD$3:AD$672) -> 229539.28 | H20: 283255.81 | I20: 346155.56 | J20: 385005.7 | O20: version #12 | P20: =COUNTIF(P13:P19,"TRUE") -> 5 | Q20: 12 | T20: Flagler
C21: A = Amount Assessed - Adjusted | F21: =LOOKUP($U$11,Lookup!$C$3:$C$672,Lookup!X$3:X$672) -> 676812.54 | G21: =LOOKUP($U$11,Lookup!$C$3:$C$672,Lookup!Y$3:Y$672) -> 670213.29 | H21: 667908.16 | I21: 665731.16 | J21: 662763.66 | T21: Franklin
C22: CR = Collection Rate | F22: =IF(ISBLANK(F20),"N/A",IF(OR(F20=0,F20="N/A"),0,F20/F21)) -> 0.2362810683 | G22: =IF(ISBLANK(G20),"N/A",IF(OR(G20=0,G20="N/A"),0,G20/G21)) -> 0.3424869119 | H22: =IF(ISBLANK(H20),"N/A",IF(AND(H20=0,H21=0,NOT(ISBLANK(H20)),NOT(ISBLANK(H21))),1,H20/H21)) -> 0.4240939503 | I22: =IF(ISBLANK(I20),"N/A",IF(AND(I20=0,I21=0,NOT(ISBLANK(I20)),NOT(ISBLANK(I21))),1,I20/I21)) -> 0.5199629833 | J22: =IF(ISBLANK(J20),"N/A",IF(AND(J20=0,J21=0,NOT(ISBLANK(J20)),NOT(ISBLANK(J21))),1,J20/J21)) -> 0.5809094904 | O22: Q1 | P22: Q2 | T22: Gadsden
A23: =LEFT(B23,3)&" "&RIGHT(B23,6) -> CGE CQ4-16 | B23: CGE CQ4-16 | C23: RPE 09/30/15 | G23: Qtr 1 | H23: Qtr 2 | I23: Qtr 3 | J23: Qtr 4 | K23: Qtr 5 | O23: FALSE | P23: FALSE | Q23: =IF(AND(OR(ISBLANK(H12),ISBLANK(H13)),O23=FALSE),"Red","Gray") -> Gray | R23: =IF(AND(OR(ISBLANK(I16),ISBLANK(I17)),P23=FALSE),"Red","Gray") -> Gray | S23: =IF(AND('Circuit Criminal'!D4=1,S36=1),A11,IF(AND('Circuit Criminal'!D4=2,S36=1),A15,IF(AND('Circuit Criminal'!D4=3,S36=1),A19,IF(AND('Circuit Criminal'!D4=4,S36=1),A23,"")))) ->  | T23: Gilchrist
C24: C = Cumulative Collections | G24: =LOOKUP($U$11,Lookup!$C$3:$C$672,Lookup!AM$3:AM$672) -> 142075.03 | H24: 205580.98 | I24: 270817.49 | J24: 313382.17 | O24: FALSE | P24: FALSE | Q24: =IF(AND(OR(ISBLANK(H16),ISBLANK(H17)),O24=FALSE),"Red","Gray") -> Gray | R24: =IF(AND(OR(ISBLANK(I20),ISBLANK(I21)),P24=FALSE),"Red","Gray") -> Gray | S24: =IF(AND('Circuit Criminal'!D4=1,S37=1),A15,IF(AND('Circuit Criminal'!D4=2,S37=1),A19,IF(AND('Circuit Criminal'!D4=3,S37=1),A23,IF(AND('Circuit Criminal'!D4=4,S37=1),A27,"")))) ->  | T24: Glades
C25: A = Amount Assessed - Adjusted | G25: =LOOKUP($U$11,Lookup!$C$3:$C$672,Lookup!AH$3:AH$672) -> 599072.1 | H25: 591529.6 | I25: 585848.6 | J25: 584901.6 | O25: FALSE | P25: FALSE | Q25: =IF(AND(OR(ISBLANK(H20),ISBLANK(H21)),O25=FALSE),"Red","Gray") -> Gray | R25: =IF(AND(OR(ISBLANK(I24),ISBLANK(I25)),P25=FALSE),"Red","Gray") -> Gray | S25: =IF(AND('Circuit Criminal'!D4=1,S38=1),A19,IF(AND('Circuit Criminal'!D4=2,S38=1),A23,IF(AND('Circuit Criminal'!D4=3,S38=1),A27,IF(AND('Circuit Criminal'!D4=4,S38=1),A31,"")))) ->  | T25: Gulf
C26: CR = Collection Rate | G26: =IF(ISBLANK(G24),"N/A",IF(OR(G24=0,G24="N/A"),0,G24/G25)) -> 0.2371584823 | H26: =IF(ISBLANK(H24),"N/A",IF(AND(H24=0,H25=0,NOT(ISBLANK(H24)),NOT(ISBLANK(H25))),1,H24/H25)) -> 0.3475413234 | I26: =IF(ISBLANK(I24),"N/A",IF(AND(I24=0,I25=0,NOT(ISBLANK(I24)),NOT(ISBLANK(I25))),1,I24/I25)) -> 0.4622653191 | J26: =IF(ISBLANK(J24),"N/A",IF(AND(J24=0,J25=0,NOT(ISBLANK(J24)),NOT(ISBLANK(J25))),1,J24/J25)) -> 0.5357861391 | K26: =IF(ISBLANK(K24),"N/A",IF(AND(K24=0,K25=0,NOT(ISBLANK(K24)),NOT(ISBLANK(K25))),1,K24/K25)) -> N/A | O26: FALSE | P26: FALSE | Q26: =IF(AND(OR(ISBLANK(H24),ISBLANK(H25)),O26=FALSE),"Red","Gray") -> Gray | R26: =IF(AND(OR(ISBLANK(I28),ISBLANK(I29)),P26=FALSE),"Red","Gray") -> Gray | S26: =IF(AND('Circuit Criminal'!D4=1,S39=1),A23,IF(AND('Circuit Criminal'!D4=2,S39=1),A27,IF(AND('Circuit Criminal'!D4=3,S39=1),A31,IF(AND('Circuit Criminal'!D4=4,S39=1),A35,"")))) ->  | T26: Hamilton
A27: =LEFT(B27,3)&" "&RIGHT(B27,6) -> CGE CQ1-17 | B27: CGE CQ1-17 | C27: RPE 12/31/15 | H27: Qtr 1 | I27: Qtr 2 | J27: Qtr 3 | K27: Qtr 4 | O27: FALSE | P27: FALSE | Q27: =IF(AND(OR(ISBLANK(H28),ISBLANK(H29)),O27=FALSE),"Red","Gray") -> Gray | R27: =IF(AND(OR(ISBLANK(I32),ISBLANK(I33)),P27=FALSE),"Red","Gray") -> Gray | S27: =IF(AND('Circuit Criminal'!D4=1,S40=1),A27,IF(AND('Circuit Criminal'!D4=2,S40=1),A31,IF(AND('Circuit Criminal'!D4=3,S40=1),A35,IF(AND('Circuit Criminal'!D4=4,S40=1),A39,"")))) ->  | T27: Hardee
C28: C = Cumulative Collections | H28: 107888.21 | I28: 181939.71 | J28: 236375.04 | T28: Hendry
C29: A = Amount Assessed - Adjusted | H29: 522208.05 | I29: 518822.05 | J29: 515890.05 | O29: Q3 | P29: Q4 | T29: Hernando
C30: CR = Collection Rate | H30: =IF(ISBLANK(H28),"N/A",IF(AND(H28=0,H29=0,NOT(ISBLANK(H28)),NOT(ISBLANK(H29))),1,H28/H29)) -> 0.2066000515 | I30: =IF(ISBLANK(I28),"N/A",IF(AND(I28=0,I29=0,NOT(ISBLANK(I28)),NOT(ISBLANK(I29))),1,I28/I29)) -> 0.3506784455 | J30: =IF(ISBLANK(J28),"N/A",IF(AND(J28=0,J29=0,NOT(ISBLANK(J28)),NOT(ISBLANK(J29))),1,J28/J29)) -> 0.4581887943 | K30: =IF(ISBLANK(K28),"N/A",IF(AND(K28=0,K29=0,NOT(ISBLANK(K28)),NOT(ISBLANK(K29))),1,K28/K29)) -> N/A | O30: FALSE | P30: FALSE | Q30: =IF(AND(OR(ISBLANK(J20),ISBLANK(J21)),O30=FALSE),"Red","Gray") -> Gray | R30: =IF(AND(OR(ISBLANK(K24),ISBLANK(K25)),P30=FALSE),"Red","Gray") -> Red | T30: Highlands
A31: =LEFT(B31,3)&" "&RIGHT(B31,6) -> CGE CQ2-17 | B31: CGE CQ2-17 | C31: RPE 03/31/16 | I31: Qtr 1 | J31: Qtr 2 | K31: Qtr 3 | L31: Additional Notes Related to Collection Issues | O31: FALSE | P31: FALSE | Q31: =IF(AND(OR(ISBLANK(J24),ISBLANK(J25)),O31=FALSE),"Red","Gray") -> Gray | R31: =IF(AND(OR(ISBLANK(K28),ISBLANK(K29)),P31=FALSE),"Red","Gray") -> Red | T31: Hillsborough
C32: C = Cumulative Collections | I32: 139399.06 | J32: 200933.17 | O32: FALSE | P32: FALSE | Q32: =IF(AND(OR(ISBLANK(J28),ISBLANK(J29)),O32=FALSE),"Red","Gray") -> Gray | R32: =IF(AND(OR(ISBLANK(K32),ISBLANK(K33)),P32=FALSE),"Red","Gray") -> Red | T32: Holmes
C33: A = Amount Assessed - Adjusted | I33: 620836.3 | J33: 614418.55 | O33: FALSE | P33: FALSE | Q33: =IF(AND(OR(ISBLANK(J32),ISBLANK(J33)),O33=FALSE),"Red","Gray") -> Gray | R33: =IF(AND(OR(ISBLANK(K36),ISBLANK(K37)),P33=FALSE),"Red","Gray") -> Red | T33: Indian River
C34: CR = Collection Rate | I34: =IF(ISBLANK(I32),"N/A",IF(AND(I32=0,I33=0,NOT(ISBLANK(I32)),NOT(ISBLANK(I33))),1,I32/I33)) -> 0.2245343257 | J34: =IF(ISBLANK(J32),"N/A",IF(AND(J32=0,J33=0,NOT(ISBLANK(J32)),NOT(ISBLANK(J33))),1,J32/J33)) -> 0.327029791 | K34: =IF(ISBLANK(K32),"N/A",IF(AND(K32=0,K33=0,NOT(ISBLANK(K32)),NOT(ISBLANK(K33))),1,K32/K33)) -> N/A | O34: FALSE | P34: FALSE | Q34: =IF(AND(OR(ISBLANK(J36),ISBLANK(J37)),O34=FALSE),"Red","Gray") -> Gray | R34: =IF(AND(OR(ISBLANK(K40),ISBLANK(K41)),P34=FALSE),"Red","Gray") -> Red | T34: Jackson
A35: =LEFT(B35,3)&" "&RIGHT(B35,6) -> CGE CQ3-17 | B35: CGE CQ3-17 | C35: RPE 06/30/16 | J35: Qtr 1 | K35: Qtr 2 | T35: Jefferson
C36: C = Cumulative Collections | J36: 121289.89 | O36: =IF(AND('Circuit Criminal'!$D$4=1,Q23="Red"),"Red","Gray") -> Gray | P36: =IF(AND('Circuit Criminal'!$D$4=2,R23="Red"),"Red","Gray") -> Gray | Q36: =IF(AND('Circuit Criminal'!$D$4=3,Q30="Red"),"Red","Gray") -> Gray | R36: =IF(AND('Circuit Criminal'!$D$4=4,R30="Red"),"Red","Gray") -> Gray | S36: =COUNTIF(O36:R36,"Red") -> 0 | T36: Lafayette
C37: A = Amount Assessed - Adjusted | J37: 659083.78 | O37: =IF(AND('Circuit Criminal'!$D$4=1,Q24="Red"),"Red","Gray") -> Gray | P37: =IF(AND('Circuit Criminal'!$D$4=2,R24="Red"),"Red","Gray") -> Gray | Q37: =IF(AND('Circuit Criminal'!$D$4=3,Q31="Red"),"Red","Gray") -> Gray | R37: =IF(AND('Circuit Criminal'!$D$4=4,R31="Red"),"Red","Gray") -> Gray | S37: =COUNTIF(O37:R37,"Red") -> 0 | T37: Lake
C38: CR = Collection Rate | J38: =IF(ISBLANK(J36),"N/A",IF(AND(J36=0,J37=0,NOT(ISBLANK(J36)),NOT(ISBLANK(J37))),1,J36/J37)) -> 0.1840280305 | K38: =IF(ISBLANK(K36),"N/A",IF(AND(K36=0,K37=0,NOT(ISBLANK(K36)),NOT(ISBLANK(K37))),1,K36/K37)) -> N/A | O38: =IF(AND('Circuit Criminal'!$D$4=1,Q25="Red"),"Red","Gray") -> Gray | P38: =IF(AND('Circuit Criminal'!$D$4=2,R25="Red"),"Red","Gray") -> Gray | Q38: =IF(AND('Circuit Criminal'!$D$4=3,Q32="Red"),"Red","Gray") -> Gray | R38: =IF(AND('Circuit Criminal'!$D$4=4,R32="Red"),"Red","Gray") -> Gray | S38: =COUNTIF(O38:R38,"Red") -> 0 | T38: Lee
A39: =LEFT(B39,3)&" "&RIGHT(B39,6) -> CGE CQ4-17 | B39: CGE CQ4-17 | C39: RPE 09/30/16 | K39: Qtr 1 | O39: =IF(AND('Circuit Criminal'!$D$4=1,Q26="Red"),"Red","Gray") -> Gray | P39: =IF(AND('Circuit Criminal'!$D$4=2,R26="Red"),"Red","Gray") -> Gray | Q39: =IF(AND('Circuit Criminal'!$D$4=3,Q33="Red"),"Red","Gray") -> Gray | R39: =IF(AND('Circuit Criminal'!$D$4=4,R33="Red"),"Red","Gray") -> Gray | S39: =COUNTIF(O39:R39,"Red") -> 0 | T39: Leon
C40: C = Cumulative Collections | O40: =IF(AND('Circuit Criminal'!$D$4=1,Q27="Red"),"Red","Gray") -> Gray | P40: =IF(AND('Circuit Criminal'!$D$4=2,R27="Red"),"Red","Gray") -> Gray | Q40: =IF(AND('Circuit Criminal'!$D$4=3,Q34="Red"),"Red","Gray") -> Gray | R40: =IF(AND('Circuit Criminal'!$D$4=4,R34="Red"),"Red","Gray") -> Gray | S40: =COUNTIF(O40:R40,"Red") -> 0 | T40: Levy
C41: A = Amount Assessed - Adjusted | O41: =COUNTIF(O36:O40,"Red") -> 0 | P41: =COUNTIF(P36:P40,"Red") -> 0 | Q41: =COUNTIF(Q36:Q40,"Red") -> 0 | R41: =COUNTIF(R36:R40,"Red") -> 0 | T41: Liberty
C42: CR = Collection Rate | K42: =IF(ISBLANK(K40),"N/A",IF(OR(K40=0,K40="N/A"),0,K40/K41)) -> N/A | O42: =SUM(O41:R41) -> 0 | T42: Madison
C43: Business Rules | D43: Purpose of Report: The CCOC Collection Rate Performance Measure report tracks dollars in the quarter they are assessed and then how well those assessed dollars have been collected over the next five quarters. | H43: Adjustments to Assessments: The amount assessed in a given assessment control group should be adjusted in the reporting period when assessments are later adjusted by the Court or other provisions of law. | T43: Manatee
C44: NOTES: | D44: The following conditions will alert when performance standards are not met and/or established business rules within the control group are not followed. | T44: Martin
D45: 1.) Action Plan: If the 5th quarter Collection Rate is below Standard (red numbers on rose background), select a "Reason Code" and write a brief statement in "Current Action to Improve" in the green area ONLY. | T45: Nassau
D46: 2.) Additional Notes Related to Collection Issues: Include a brief explaination when either of the following conditions not consistant with the Collection Report Business Rules. | T46: Okaloosa
E47: a.) Cumulative Collection amount has Decreased from the previous quarter in the same Control Group (font color for amount will change to RED) | T47: Okeechobee
E48: b.) The Amount Assessed - Adjusted has Increased from the previous quarter in the same Control Group (font color for amount will change to RED) | T48: Orange
C49: =CELL("filename",B49) -> S:\REPORTS\Article V Performance Measure\CCOC Collections Rate FY Oct 2015 - Sept 2016\[County FY1516 Collections Quarterly V1 June 2016.xlsm]Criminal Traffic | T49: Nassau
C50: =SEARCH("\[",C49) -> 87 | T50: Okaloosa
C51: =SEARCH(".xls]",C49) ->  | T51: Okeechobee
T52: Orange
T53: Pasco
T54: Pinellas
T55: Polk
B56: =MAX('Juvenile Delinquency'!B56:B99) -> 2 | D56: Issue | F56: Calc 1 Needed | G56: Calc 2 Needed | H56: Calc 3 Needed | I56: Calc 4 Needed | J56: Standard | T56: Putnam
A57: =D$8 -> Criminal Traffic | B57: =IF(E57="YES",MAX(B56)+1,0) -> 0 | C57: =A$11 -> CGE CQ1-16 | D57: ="After 3rd Q, Collections went up by more than set percentage of: "&TEXT(J57,"#0%") -> After 3rd Q, Collections went up by more than set percentage of: 500% | E57: =IF(MAX(F57:G57)>V$10,"YES","NO") -> NO | F57: =IFERROR(IF(NOT(ISBLANK(G12)),(G12-F12)/F12,0),0) -> 0.2097108686 | G57: =IFERROR(IF(NOT(ISBLANK(H12)),(H12-G12)/G12,0),0) -> 0.1066864923 | J57: =V$10 -> 5 | T57: Santa Rosa
A58: =D$8 -> Criminal Traffic | B58: =IF(E58="YES",MAX(B$56:B57)+1,0) -> 0 | C58: =A$11 -> CGE CQ1-16 | D58: ="Assessments dropped by more than set percentage of: "&TEXT(J58,"#0%") -> Assessments dropped by more than set percentage of: 15% | E58: =IF(MIN(F58:I58)<(-1*V$11),"YES","NO") -> NO | F58: =IFERROR(IF(NOT(ISBLANK(E13)),(E13-D13)/D13,0),0) -> -0.01024917508 | G58: =IFERROR(IF(NOT(ISBLANK(F13)),(F13-E13)/E13,0),0) -> -0.00849973295 | H58: =IFERROR(IF(NOT(ISBLANK(G13)),(G13-F13)/F13,0),0) -> -0.0024715499 | I58: =IFERROR(IF(NOT(ISBLANK(H13)),(H13-G13)/G13,0),0) -> -0.002323821585 | J58: =V$11 -> 0.15 | T58: Sumter
A59: Criminal Traffic | B59: =IF(E59="YES",MAX(B$56:B58)+1,0) -> 0 | C59: =A$11 -> CGE CQ1-16 | D59: ="The 5th Quarter Collection Rate did not meet the established performance measure standard of: "&TEXT(J59,"#0%") -> The 5th Quarter Collection Rate did not meet the established performance measure standard of: 40% | E59: =IF(F59="N/A","NO",IF(F59<H$8,"YES","NO")) -> NO | F59: =H14 -> 0.5438179476 | J59: =H$8 -> 0.4 | T59: Washington
A60: Criminal Traffic | B60: =IF(E60="YES",MAX(B$56:B59)+1,0) -> 0 | C60: =A$11 -> CGE CQ1-16 | D60: Collections amount decreased from prior quarter | E60: =IF(MIN(F60:I60)<0,"YES","NO") -> NO | F60: =IFERROR(IF(NOT(ISBLANK(E12)),(E12-D12)/D12,0),0) -> 0.6052358068 | G60: 0.2532639944 | H60: 0.2097108686 | I60: 0.1066864923
A61: Criminal Traffic | B61: =IF(E61="YES",MAX(B$56:B60)+1,0) -> 0 | C61: =A$11 -> CGE CQ1-16 | D61: Assessment amount increased from prior quarter | E61: =IF(MAX(F61:I61)>0,"YES","NO") -> NO | F61: -0.01024917508 | G61: -0.00849973295 | H61: -0.0024715499 | I61: -0.002323821585
A62: Criminal Traffic | B62: =IF(E62="YES",MAX(B$56:B61)+1,0) -> 0 | C62: =A$15 -> CGE CQ2-16 | D62: ="After 3rd Q, Collections went up by more than set percentage of: "&TEXT(J62,"#0%") -> After 3rd Q, Collections went up by more than set percentage of: 500% | E62: =IF(MAX(F62:G62)>V$10,"YES","NO") -> NO | F62: =IFERROR(IF(NOT(ISBLANK(H16)),(H16-G16)/G16,0),0) -> 0.1664421279 | G62: =IFERROR(IF(NOT(ISBLANK(I16)),(I16-H16)/H16,0),0) -> 0.1516764674 | J62: =V$10 -> 5 | T62: Sarasota
A63: Criminal Traffic | B63: =IF(E63="YES",MAX(B$56:B62)+1,0) -> 0 | C63: =A$15 -> CGE CQ2-16 | D63: ="Assessments dropped by more than set percentage of: "&TEXT(J63,"#0%") -> Assessments dropped by more than set percentage of: 15% | E63: =IF(MIN(F63:I63)<(-1*V$11),"YES","NO") -> NO | F63: =IFERROR(IF(NOT(ISBLANK(F17)),(F17-E17)/E17,0),0) -> -0.009659935644 | G63: =IFERROR(IF(NOT(ISBLANK(G17)),(G17-F17)/F17,0),0) -> -0.005572066547 | H63: =IFERROR(IF(NOT(ISBLANK(H17)),(H17-G17)/G17,0),0) -> -0.002683460651 | I63: =IFERROR(IF(NOT(ISBLANK(I17)),(I17-H17)/H17,0),0) -> -0.002215694814 | J63: =V$11 -> 0.15 | T63: Suwannee
A64: Criminal Traffic | B64: =IF(E64="YES",MAX(B$56:B63)+1,0) -> 0 | C64: =A$15 -> CGE CQ2-16 | D64: Collections amount decreased from prior quarter | E64: =IF(MIN(F64:I64)<0,"YES","NO") -> NO | F64: =IFERROR(IF(NOT(ISBLANK(F16)),(F16-E16)/E16,0),0) -> 0.494808818 | G64: 0.2840948724 | H64: 0.1664421279 | I64: 0.1516764674
A65: Criminal Traffic | B65: =IF(E65="YES",MAX(B$56:B64)+1,0) -> 0 | C65: =A$15 -> CGE CQ2-16 | D65: Assessment amount increased from prior quarter | E65: =IF(MAX(F65:I65)>0,"YES","NO") -> NO | F65: -0.009659935644 | G65: -0.005572066547 | H65: -0.002683460651 | I65: -0.002215694814
A66: Criminal Traffic | B66: =IF(E66="YES",MAX(B$56:B65)+1,0) -> 0 | C66: =A$15 -> CGE CQ2-16 | D66: ="The 5th Quarter Collection Rate did not meet the established performance measure standard of: "&TEXT(J66,"#0%") -> The 5th Quarter Collection Rate did not meet the established performance measure standard of: 40% | E66: =IF(F66="N/A","NO",IF(F66<H$8,"YES","NO")) -> NO | F66: =I18 -> 0.5809928613 | J66: =H$8 -> 0.4
A67: Criminal Traffic | B67: =IF(E67="YES",MAX(B$56:B66)+1,0) -> 0 | C67: =A$19 -> CGE CQ3-16 | D67: ="After 3rd Q, Collections went up by more than set percentage of: "&TEXT(J67,"#0%") -> After 3rd Q, Collections went up by more than set percentage of: 500% | E67: =IF(MAX(F67:G67)>V$10,"YES","NO") -> NO | F67: =IFERROR(IF(NOT(ISBLANK(I20)),(I20-H20)/H20,0),0) -> 0.2220598758 | G67: =IFERROR(IF(NOT(ISBLANK(J20)),(J20-I20)/I20,0),0) -> 0.1122331821 | J67: =V$10 -> 5 | T67: Seminole
A68: Criminal Traffic | B68: =IF(E68="YES",MAX(B$56:B67)+1,0) -> 0 | C68: =A$19 -> CGE CQ3-16 | D68: ="Assessments dropped by more than set percentage of: "&TEXT(J68,"#0%") -> Assessments dropped by more than set percentage of: 15% | E68: =IF(MIN(F68:I68)<(-1*V$11),"YES","NO") -> NO | F68: =IFERROR(IF(NOT(ISBLANK(G21)),(G21-F21)/F21,0),0) -> -0.009750484233 | G68: =IFERROR(IF(NOT(ISBLANK(H21)),(H21-G21)/G21,0),0) -> -0.003439397628 | H68: =IFERROR(IF(NOT(ISBLANK(I21)),(I21-H21)/H21,0),0) -> -0.003259430159 | I68: =IFERROR(IF(NOT(ISBLANK(J21)),(J21-I21)/I21,0),0) -> -0.004457505039 | J68: =V$11 -> 0.15 | T68: Taylor
A69: Criminal Traffic | B69: =IF(E69="YES",MAX(B$56:B68)+1,0) -> 0 | C69: =A$19 -> CGE CQ3-16 | D69: Collections amount decreased from prior quarter | E69: =IF(MIN(F69:I69)<0,"YES","NO") -> NO | F69: =IFERROR(IF(NOT(ISBLANK(G20)),(G20-F20)/F20,0),0) -> 0.4353562098 | G69: 0.2340189008 | H69: 0.2220598758 | I69: 0.1122331821
A70: Criminal Traffic | B70: =IF(E70="YES",MAX(B$56:B69)+1,0) -> 0 | C70: =A$19 -> CGE CQ3-16 | D70: Assessment amount increased from prior quarter | E70: =IF(MAX(F70:I70)>0,"YES","NO") -> NO | F70: -0.009750484233 | G70: -0.003439397628 | H70: -0.003259430159 | I70: -0.004457505039
A71: Criminal Traffic | B71: =IF(E71="YES",MAX(B$56:B70)+1,0) -> 0 | C71: =A$19 -> CGE CQ3-16 | D71: ="The 5th Quarter Collection Rate did not meet the established performance measure standard of: "&TEXT(J71,"#0%") -> The 5th Quarter Collection Rate did not meet the established performance measure standard of: 40% | E71: =IF(F71="N/A","NO",IF(F71<H$8,"YES","NO")) -> NO | F71: =J22 -> 0.5809094904 | J71: =H$8 -> 0.4
A72: Criminal Traffic | B72: =IF(E72="YES",MAX(B$56:B71)+1,0) -> 0 | C72: =A$23 -> CGE CQ4-16 | D72: ="After 3rd Q, Collections went up by more than set percentage of: "&TEXT(J72,"#0%") -> After 3rd Q, Collections went up by more than set percentage of: 500% | E72: =IF(MAX(F72:G72)>V$10,"YES","NO") -> NO | F72: =IFERROR(IF(NOT(ISBLANK(J24)),(J24-I24)/I24,0),0) -> 0.1571710897 | G72: =IFERROR(IF(NOT(ISBLANK(K24)),(K24-J24)/J24,0),0) -> 0 | J72: =V$10 -> 5 | T72: St. Johns
A73: Criminal Traffic | B73: =IF(E73="YES",MAX(B$56:B72)+1,0) -> 0 | C73: =A$23 -> CGE CQ4-16 | D73: ="Assessments dropped by more than set percentage of: "&TEXT(J73,"#0%") -> Assessments dropped by more than set percentage of: 15% | E73: =IF(MIN(F73:I73)<(-1*V$11),"YES","NO") -> NO | F73: =IFERROR(IF(NOT(ISBLANK(H25)),(H25-G25)/G25,0),0) -> -0.01259030424 | G73: =IFERROR(IF(NOT(ISBLANK(I25)),(I25-H25)/H25,0),0) -> -0.009603915003 | H73: =IFERROR(IF(NOT(ISBLANK(J25)),(J25-I25)/I25,0),0) -> -0.001616458587 | I73: =IFERROR(IF(NOT(ISBLANK(K25)),(K25-J25)/J25,0),0) -> 0 | J73: =V$11 -> 0.15 | T73: Union
A74: Criminal Traffic | B74: =IF(E74="YES",MAX(B$56:B73)+1,0) -> 0 | C74: =A$23 -> CGE CQ4-16 | D74: Collections amount decreased from prior quarter | E74: =IF(MIN(F74:I74)<0,"YES","NO") -> NO | F74: =IFERROR(IF(NOT(ISBLANK(H24)),(H24-G24)/G24,0),0) -> 0.4469888199 | G74: 0.3173275563 | H74: 0.1571710897 | I74: 0
A75: Criminal Traffic | B75: =IF(E75="YES",MAX(B$56:B74)+1,0) -> 0 | C75: =A$23 -> CGE CQ4-16 | D75: Assessment amount increased from prior quarter | E75: =IF(MAX(F75:I75)>0,"YES","NO") -> NO | F75: -0.01259030424 | G75: -0.009603915003 | H75: -0.001616458587 | I75: 0
A76: Criminal Traffic | B76: =IF(E76="YES",MAX(B$56:B75)+1,0) -> 0 | C76: =A$23 -> CGE CQ4-16 | D76: ="The 5th Quarter Collection Rate did not meet the established performance measure standard of: "&TEXT(J76,"#0%") -> The 5th Quarter Collection Rate did not meet the established performance measure standard of: 40% | E76: =IF(F76="N/A","NO",IF(F76<H$8,"YES","NO")) -> NO | F76: =K26 -> N/A | J76: =H$8 -> 0.4
A77: Criminal Traffic | B77: =IF(E77="YES",MAX(B$56:B76)+1,0) -> 0 | C77: =A$27 -> CGE CQ1-17 | D77: ="After 3rd Q, Collections went up by more than set percentage of: "&TEXT(J77,"#0%") -> After 3rd Q, Collections went up by more than set percentage of: 500% | E77: =IF(MAX(F77)>V$10,"YES","NO") -> NO | F77: =IFERROR(IF(NOT(ISBLANK(K28)),(K28-J28)/J28,0),0) -> 0 | J77: =V$10 -> 5 | T77: St. Lucie
A78: Criminal Traffic | B78: =IF(E78="YES",MAX(B$56:B77)+1,0) -> 0 | C78: =A$27 -> CGE CQ1-17 | D78: ="Assessments dropped by more than set percentage of: "&TEXT(J78,"#0%") -> Assessments dropped by more than set percentage of: 15% | E78: =IF(MIN(F78:H78)<(-1*V$11),"YES","NO") -> NO | F78: =IFERROR(IF(NOT(ISBLANK(I29)),(I29-H29)/H29,0),0) -> -0.006484005752 | G78: =IFERROR(IF(NOT(ISBLANK(J29)),(J29-I29)/I29,0),0) -> -0.00565126328 | H78: =IFERROR(IF(NOT(ISBLANK(K29)),(K29-J29)/J29,0),0) -> 0 | J78: =V$11 -> 0.15 | T78: Volusia
A79: Criminal Traffic | B79: =IF(E79="YES",MAX(B$56:B78)+1,0) -> 0 | C79: =A$27 -> CGE CQ1-17 | D79: Collections amount decreased from prior quarter | E79: =IF(MIN(F79:H79)<0,"YES","NO") -> NO | F79: =IFERROR(IF(NOT(ISBLANK(I28)),(I28-H28)/H28,0),0) -> 0.6863724961 | G79: 0.299194332 | H79: 0
A80: Criminal Traffic | B80: =IF(E80="YES",MAX(B$56:B79)+1,0) -> 0 | C80: =A$27 -> CGE CQ1-17 | D80: Assessment amount increased from prior quarter | E80: =IF(MAX(F80:H80)>0,"YES","NO") -> NO | F80: -0.006484005752 | G80: -0.00565126328 | H80: 0
A81: Criminal Traffic | B81: =IF(E81="YES",MAX(B$56:B80)+1,0) -> 0 | C81: =A$31 -> CGE CQ2-17 | D81: ="Assessments dropped by more than set percentage of: "&TEXT(J81,"#0%") -> Assessments dropped by more than set percentage of: 15% | E81: =IF(MIN(F81:G81)<(-1*V$11),"YES","NO") -> NO | F81: =IFERROR(IF(NOT(ISBLANK(J33)),(J33-I33)/I33,0),0) -> -0.01033726604 | G81: =IFERROR(IF(NOT(ISBLANK(K33)),(K33-J33)/J33,0),0) -> 0 | J81: =V$11 -> 0.15 | T81: Wakulla
A82: Criminal Traffic | B82: =IF(E82="YES",MAX(B$56:B81)+1,0) -> 0 | C82: =A$31 -> CGE CQ2-17 | D82: Collections amount decreased from prior quarter | E82: =IF(MIN(F82:G82)<0,"YES","NO") -> NO | F82: =IFERROR(IF(NOT(ISBLANK(J32)),(J32-I32)/I32,0),0) -> 0.4414241387 | G82: =IFERROR(IF(NOT(ISBLANK(K32)),(K32-J32)/J32,0),0) -> 0
A83: Criminal Traffic | B83: =IF(E83="YES",MAX(B$56:B82)+1,0) -> 0 | C83: =A$31 -> CGE CQ2-17 | D83: Assessment amount increased from prior quarter | E83: =IF(MAX(F83:G83)>0,"YES","NO") -> NO | F83: =IFERROR(IF(NOT(ISBLANK(J33)),(J33-I33)/I33,0),0) -> -0.01033726604 | G83: =IFERROR(IF(NOT(ISBLANK(K33)),(K33-J33)/J33,0),0) -> 0
A84: Criminal Traffic | B84: =IF(E84="YES",MAX(B$56:B83)+1,0) -> 0 | C84: =A$35 -> CGE CQ3-17 | D84: ="Assessments dropped by more than set percentage of: "&TEXT(J84,"#0%") -> Assessments dropped by more than set percentage of: 15% | E84: =IF(MIN(F84)<(-1*V$11),"YES","NO") -> NO | F84: =IFERROR(IF(NOT(ISBLANK(K37)),(K37-J37)/J37,0),0) -> 0 | J84: =V$11 -> 0.15 | T84: Walton
A85: Criminal Traffic | B85: =IF(E85="YES",MAX(B$56:B84)+1,0) -> 0 | C85: =A$35 -> CGE CQ3-17 | D85: Collections amount decreased from prior quarter | E85: =IF(MIN(F85)<0,"YES","NO") -> NO | F85: =IFERROR(IF(NOT(ISBLANK(K36)),(K36-J36)/J36,0),0) -> 0
A86: Criminal Traffic | B86: =IF(E86="YES",MAX(B$56:B85)+1,0) -> 0 | C86: =A$35 -> CGE CQ3-17 | D86: Assessment amount increased from prior quarter | E86: =IF(MAX(F86)>0,"YES","NO") -> NO | F86: =IFERROR(IF(NOT(ISBLANK(K37)),(K37-J37)/J37,0),0) -> 0

Sheet Circuit Civil
M2: County Fiscal Year 2015-2016 | T2: CountyNames
M3: Collections Quarterly Report Form for CCOC | T3: Alachua
C4: Report for Quarter Ending: | D4: ='Circuit Criminal'!D4 -> June 2016 | I4: REQUIRED: Reason Codes AND Action to Improve / Descriptions Required if Measure(s) Not Met | T4: Baker
C5: Version #: | D5: ='Circuit Criminal'!$D$5 -> 1 | J5: Internal: Must clarify reason AND expected duration internal reason will be resolved | T5: Bay
C6: County: | D6: ='Circuit Criminal'!D6 -> Brevard | J6: External: Detailed explanation of external reason the measure wasn't met | T6: Bradford
T7: Brevard
C8: Court/Case Type: | D8: Circuit Civil | G8: Performance Measure Standard: | H8: 0.9 | T8: Broward
L9: Action Plan | N9: 1 | O9: version #1 | P9: Qtr1 - December | Q9: 1 | T9: Calhoun
C10: Control Groups | D10: 10/01/14 - 12/31/14 | E10: 01/01/15 - 03/31/15 | F10: 04/01/15 - 06/30/15 | G10: 07/01/15 - 09/30/15 | H10: 10/01/15 - 12/31/15 | I10: 01/01/16 - 03/31/16 | J10: 04/01/16 - 06/30/16 | K10: 07/01/16 - 09/30/16 | L10: Reason Code | M10: Current Actions to Improve | O10: version #2 | P10: Qtr 2 - March | T10: Charlotte | V10: 5
A11: =LEFT(B11,3)&" "&RIGHT(B11,6) -> CGE CQ1-16 | B11: CGE CQ1-16 | C11: RPE 12/31/14 | D11: Qtr 1 | E11: Qtr 2 | F11: Qtr 3 | G11: Qtr 4 | H11: Qtr 5 | N11: Economy | O11: version #3 | P11: Qtr 3 - June | Q11: 3 | T11: Citrus | U11: =D6&" "&D8 -> Brevard Circuit Civil | V11: 0.15
C12: C = Cumulative Collections | D12: =LOOKUP($U$11,Lookup!$C$3:$C$672,Lookup!I$3:I$672) -> 790725.48 | E12: =LOOKUP($U$11,Lookup!$C$3:$C$672,Lookup!J$3:J$672) -> 838792.47 | F12: =LOOKUP($U$11,Lookup!$C$3:$C$672,Lookup!K$3:K$672) -> 839265.79 | G12: =LOOKUP($U$11,Lookup!$C$3:$C$672,Lookup!L$3:L$672) -> 837928.1 | H12: 836441.57 | N12: Incarcerations | O12: version #4 | P12: Qtr 4 - September | Q12: 4 | T12: Clay | U12: =IF(P13=TRUE,A11,"") -> CGE CQ1-16
C13: A = Amount Assessed - Adjusted | D13: =LOOKUP($U$11,Lookup!$C$3:$C$672,Lookup!D$3:D$672) -> 856517.27 | E13: =LOOKUP($U$11,Lookup!$C$3:$C$672,Lookup!E$3:E$672) -> 856517.27 | F13: =LOOKUP($U$11,Lookup!$C$3:$C$672,Lookup!F$3:F$672) -> 856503.27 | G13: =LOOKUP($U$11,Lookup!$C$3:$C$672,Lookup!G$3:G$672) -> 856503.27 | H13: 856503.27 | N13: Late/Non-pay/Pay Plans | O13: version #5 | P13: =OR(AND(E12<D12,E12>0),AND(F12<E12,F12>0),AND(G12<F12,G12>0),AND(H12<G12,H12>0),AND(F13>E13,E13>0),AND(G13>F13,F13>0),AND(H13<G13,G13>0)) -> TRUE | Q13: 5 | T13: Collier | U13: =IF(P14=TRUE,A15,"") -> CGE CQ2-16
C14: CR = Collection Rate | D14: =IF(ISBLANK(D12),"N/A",IF(OR(D12=0,D12="N/A"),0,D12/D13)) -> 0.9231868495 | E14: =IF(ISBLANK(E12),"N/A",IF(OR(E12=0,E12="N/A"),0,E12/E13)) -> 0.9793059631 | F14: =IF(ISBLANK(F12),"N/A",IF(OR(F12=0,F12="N/A"),0,F12/F13)) -> 0.9798745894 | G14: =IF(ISBLANK(G12),"N/A",IF(OR(G12=0,G12="N/A"),0,G12/G13)) -> 0.9783127857 | H14: =IF(ISBLANK(H12),"N/A",IF(AND(H12=0,H13=0,NOT(ISBLANK(H12)),NOT(ISBLANK(H13))),1,H12/H13)) -> 0.9765772056 | N14: Mandatory Assessment | O14: version #6 | P14: =OR(AND(F16<E16,F16>0),AND(G16<F16,G16>0),AND(H16<G16,H16>0),AND(I16<H16,I16>0),AND(G17>F17, F17>0),AND(H17>G17, G17>0),AND(I17<H17,I17>0)) -> TRUE | Q14: 6 | T14: Columbia | U14: =IF(P15=TRUE,A19,"") -> CGE CQ3-16
A15: =LEFT(B15,3)&" "&RIGHT(B15,6) -> CGE CQ2-16 | B15: CGE CQ2-16 | C15: RPE 03/31/15 | E15: Qtr 1 | F15: Qtr 2 | G15: Qtr 3 | H15: Qtr 4 | I15: Qtr 5 | N15: Other | O15: version #7 | P15: =OR(AND(G20<F20,D10>0),AND(H20<G20,H20>0),AND(I20<H20,I20>0),AND(J20<I20,J20>0),AND(H21>G21, G21>0),AND(I21>H21, H21>0),AND(J21<I21, J21>0)) -> TRUE | Q15: 7 | T15: Dade | U15: =IF(P16=TRUE,A23,"") -> CGE CQ4-16
C16: C = Cumulative Collections | E16: =LOOKUP($U$11,Lookup!$C$3:$C$672,Lookup!S$3:S$672) -> 824060.58 | F16: =LOOKUP($U$11,Lookup!$C$3:$C$672,Lookup!T$3:T$672) -> 873134 | G16: =LOOKUP($U$11,Lookup!$C$3:$C$672,Lookup!U$3:U$672) -> 870183.99 | H16: 869396.91 | I16: 866784.93 | N16: Procedural | O16: version #8 | P16: =OR(AND(H24<G24, H24>0),AND(I24<H24, I24>0),AND(J24<I24, J24>0),AND(K24<J24, K24>0),AND(I25>H25, H25>0),AND(J25>I25, I25>0),AND(K25<J25, J25>0)) -> TRUE | Q16: 8 | T16: Desoto | U16: =IF(P17=TRUE,A27,"") -> CGE CQ1-17
C17: A = Amount Assessed - Adjusted | E17: =LOOKUP($U$11,Lookup!$C$3:$C$672,Lookup!N$3:N$672) -> 886179.28 | F17: =LOOKUP($U$11,Lookup!$C$3:$C$672,Lookup!O$3:O$672) -> 884858.28 | G17: =LOOKUP($U$11,Lookup!$C$3:$C$672,Lookup!P$3:P$672) -> 882749.28 | H17: 882749.28 | I17: 881947.28 | N17: Staffing - Insufficient Personnel | O17: version #9 | P17: =OR(AND(I28<H28, I28>0),AND(J28<I28, J28>0),AND(K28<J28, K28>0),AND(J29>I29, I29>0),AND(K29>J29, J29>0)) -> TRUE | Q17: 9 | T17: Dixie | U17: =IF(P18=TRUE,A31,"") -> 
C18: CR = Collection Rate | E18: =IF(ISBLANK(E16),"N/A",IF(OR(E16=0,E16="N/A"),0,E16/E17)) -> 0.9299027845 | F18: =IF(ISBLANK(F16),"N/A",IF(OR(F16=0,F16="N/A"),0,F16/F17)) -> 0.9867501042 | G18: =IF(ISBLANK(G16),"N/A",IF(OR(G16=0,G16="N/A"),0,G16/G17)) -> 0.9857657318 | H18: =IF(ISBLANK(H16),"N/A",IF(AND(H16=0,H17=0,NOT(ISBLANK(H16)),NOT(ISBLANK(H17))),1,H16/H17)) -> 0.9848741083 | I18: =IF(ISBLANK(I16),"N/A",IF(AND(I16=0,I17=0,NOT(ISBLANK(I16)),NOT(ISBLANK(I17))),1,I16/I17)) -> 0.9828080994 | N18: Staffing - Training Required | O18: version #10 | P18: =OR(AND(J32<I32, J32>0),AND(K32<J32, K32>0),AND(K33>J33, J33>0)) -> FALSE | Q18: 10 | T18: Duval | U18: =IF(P19=TRUE,A35,"") -> CGE CQ3-17
A19: =LEFT(B19,3)&" "&RIGHT(B19,6) -> CGE CQ3-16 | B19: CGE CQ3-16 | C19: RPE 06/30/15 | F19: Qtr 1 | G19: Qtr 2 | H19: Qtr 3 | I19: Qtr 4 | J19: Qtr 5 | L19: Internal | M19: Balance Adjustments | N19: Systems | O19: version #11 | P19: =OR(K36<J36) -> TRUE | Q19: 11 | T19: Escambia | U19: =U12&" "&U13&" "&U14&" "&U15&" "&U16&" "&U17&" "&U18 -> CGE CQ1-16 CGE CQ2-16 CGE CQ3-16 CGE CQ4-16 CGE CQ1-17 CGE CQ3-17
C20: C = Cumulative Collections | F20: =LOOKUP($U$11,Lookup!$C$3:$C$672,Lookup!AC$3:AC$672) -> 804230.19 | G20: =LOOKUP($U$11,Lookup!$C$3:$C$672,Lookup!AD$3:AD$672) -> 851527.95 | H20: 851126.02 | I20: 843603.84 | J20: 840653.85 | O20: version #12 | P20: =COUNTIF(P13:P19,"TRUE") -> 6 | Q20: 12 | T20: Flagler
C21: A = Amount Assessed - Adjusted | F21: =LOOKUP($U$11,Lookup!$C$3:$C$672,Lookup!X$3:X$672) -> 873388.72 | G21: =LOOKUP($U$11,Lookup!$C$3:$C$672,Lookup!Y$3:Y$672) -> 872941.72 | H21: 869525.72 | I21: 867312.72 | J21: 865604.72 | T21: Franklin
C22: CR = Collection Rate | F22: =IF(ISBLANK(F20),"N/A",IF(OR(F20=0,F20="N/A"),0,F20/F21)) -> 0.9208158654 | G22: =IF(ISBLANK(G20),"N/A",IF(OR(G20=0,G20="N/A"),0,G20/G21)) -> 0.9754694162 | H22: =IF(ISBLANK(H20),"N/A",IF(AND(H20=0,H21=0,NOT(ISBLANK(H20)),NOT(ISBLANK(H21))),1,H20/H21)) -> 0.9788393838 | I22: =IF(ISBLANK(I20),"N/A",IF(AND(I20=0,I21=0,NOT(ISBLANK(I20)),NOT(ISBLANK(I21))),1,I20/I21)) -> 0.9726639775 | J22: =IF(ISBLANK(J20),"N/A",IF(AND(J20=0,J21=0,NOT(ISBLANK(J20)),NOT(ISBLANK(J21))),1,J20/J21)) -> 0.9711752149 | O22: Q1 | P22: Q2 | T22: Gadsden
A23: =LEFT(B23,3)&" "&RIGHT(B23,6) -> CGE CQ4-16 | B23: CGE CQ4-16 | C23: RPE 09/30/15 | G23: Qtr 1 | H23: Qtr 2 | I23: Qtr 3 | J23: Qtr 4 | K23: Qtr 5 | L23: Internal | M23: Balance Adjustments | O23: FALSE | P23: FALSE | Q23: =IF(AND(OR(ISBLANK(H12),ISBLANK(H13)),O23=FALSE),"Red","Gray") -> Gray | R23: =IF(AND(OR(ISBLANK(I16),ISBLANK(I17)),P23=FALSE),"Red","Gray") -> Gray | S23: =IF(AND('Circuit Criminal'!D4=1,S36=1),A11,IF(AND('Circuit Criminal'!D4=2,S36=1),A15,IF(AND('Circuit Criminal'!D4=3,S36=1),A19,IF(AND('Circuit Criminal'!D4=4,S36=1),A23,"")))) ->  | T23: Gilchrist
C24: C = Cumulative Collections | G24: =LOOKUP($U$11,Lookup!$C$3:$C$672,Lookup!AM$3:AM$672) -> 1180053.94 | H24: 1222686.53 | I24: 1218705.88 | J24: 1214340.49 | O24: FALSE | P24: FALSE | Q24: =IF(AND(OR(ISBLANK(H16),ISBLANK(H17)),O24=FALSE),"Red","Gray") -> Gray | R24: =IF(AND(OR(ISBLANK(I20),ISBLANK(I21)),P24=FALSE),"Red","Gray") -> Gray | S24: =IF(AND('Circuit Criminal'!D4=1,S37=1),A15,IF(AND('Circuit Criminal'!D4=2,S37=1),A19,IF(AND('Circuit Criminal'!D4=3,S37=1),A23,IF(AND('Circuit Criminal'!D4=4,S37=1),A27,"")))) ->  | T24: Glades
C25: A = Amount Assessed - Adjusted | G25: =LOOKUP($U$11,Lookup!$C$3:$C$672,Lookup!AH$3:AH$672) -> 1235738.98 | H25: 1235267.98 | I25: 1233455.98 | J25: 1229430.98 | O25: FALSE | P25: FALSE | Q25: =IF(AND(OR(ISBLANK(H20),ISBLANK(H21)),O25=FALSE),"Red","Gray") -> Gray | R25: =IF(AND(OR(ISBLANK(I24),ISBLANK(I25)),P25=FALSE),"Red","Gray") -> Gray | S25: =IF(AND('Circuit Criminal'!D4=1,S38=1),A19,IF(AND('Circuit Criminal'!D4=2,S38=1),A23,IF(AND('Circuit Criminal'!D4=3,S38=1),A27,IF(AND('Circuit Criminal'!D4=4,S38=1),A31,"")))) ->  | T25: Gulf
C26: CR = Collection Rate | G26: =IF(ISBLANK(G24),"N/A",IF(OR(G24=0,G24="N/A"),0,G24/G25)) -> 0.9549378624 | H26: =IF(ISBLANK(H24),"N/A",IF(AND(H24=0,H25=0,NOT(ISBLANK(H24)),NOT(ISBLANK(H25))),1,H24/H25)) -> 0.9898148012 | I26: =IF(ISBLANK(I24),"N/A",IF(AND(I24=0,I25=0,NOT(ISBLANK(I24)),NOT(ISBLANK(I25))),1,I24/I25)) -> 0.9880416486 | J26: =IF(ISBLANK(J24),"N/A",IF(AND(J24=0,J25=0,NOT(ISBLANK(J24)),NOT(ISBLANK(J25))),1,J24/J25)) -> 0.9877256306 | K26: =IF(ISBLANK(K24),"N/A",IF(AND(K24=0,K25=0,NOT(ISBLANK(K24)),NOT(ISBLANK(K25))),1,K24/K25)) -> N/A | O26: FALSE | P26: FALSE | Q26: =IF(AND(OR(ISBLANK(H24),ISBLANK(H25)),O26=FALSE),"Red","Gray") -> Gray | R26: =IF(AND(OR(ISBLANK(I28),ISBLANK(I29)),P26=FALSE),"Red","Gray") -> Gray | S26: =IF(AND('Circuit Criminal'!D4=1,S39=1),A23,IF(AND('Circuit Criminal'!D4=2,S39=1),A27,IF(AND('Circuit Criminal'!D4=3,S39=1),A31,IF(AND('Circuit Criminal'!D4=4,S39=1),A35,"")))) ->  | T26: Hamilton
A27: =LEFT(B27,3)&" "&RIGHT(B27,6) -> CGE CQ1-17 | B27: CGE CQ1-17 | C27: RPE 12/31/15 | H27: Qtr 1 | I27: Qtr 2 | J27: Qtr 3 | K27: Qtr 4 | O27: FALSE | P27: FALSE | Q27: =IF(AND(OR(ISBLANK(H28),ISBLANK(H29)),O27=FALSE),"Red","Gray") -> Gray | R27: =IF(AND(OR(ISBLANK(I32),ISBLANK(I33)),P27=FALSE),"Red","Gray") -> Gray | S27: =IF(AND('Circuit Criminal'!D4=1,S40=1),A27,IF(AND('Circuit Criminal'!D4=2,S40=1),A31,IF(AND('Circuit Criminal'!D4=3,S40=1),A35,IF(AND('Circuit Criminal'!D4=4,S40=1),A39,"")))) ->  | T27: Hardee
C28: C = Cumulative Collections | H28: 763884.34 | I28: 824144.15 | J28: 823374.76 | T28: Hendry
C29: A = Amount Assessed - Adjusted | H29: 834675.06 | I29: 834224.06 | J29: 833318.06 | O29: Q3 | P29: Q4 | T29: Hernando
C30: CR = Collection Rate | H30: =IF(ISBLANK(H28),"N/A",IF(AND(H28=0,H29=0,NOT(ISBLANK(H28)),NOT(ISBLANK(H29))),1,H28/H29)) -> 0.9151876899 | I30: =IF(ISBLANK(I28),"N/A",IF(AND(I28=0,I29=0,NOT(ISBLANK(I28)),NOT(ISBLANK(I29))),1,I28/I29)) -> 0.9879170232 | J30: =IF(ISBLANK(J28),"N/A",IF(AND(J28=0,J29=0,NOT(ISBLANK(J28)),NOT(ISBLANK(J29))),1,J28/J29)) -> 0.9880678213 | K30: =IF(ISBLANK(K28),"N/A",IF(AND(K28=0,K29=0,NOT(ISBLANK(K28)),NOT(ISBLANK(K29))),1,K28/K29)) -> N/A | O30: FALSE | P30: FALSE | Q30: =IF(AND(OR(ISBLANK(J20),ISBLANK(J21)),O30=FALSE),"Red","Gray") -> Gray | R30: =IF(AND(OR(ISBLANK(K24),ISBLANK(K25)),P30=FALSE),"Red","Gray") -> Red | T30: Highlands
A31: =LEFT(B31,3)&" "&RIGHT(B31,6) -> CGE CQ2-17 | B31: CGE CQ2-17 | C31: RPE 03/31/16 | I31: Qtr 1 | J31: Qtr 2 | K31: Qtr 3 | L31: Additional Notes Related to Collection Issues | O31: FALSE | P31: FALSE | Q31: =IF(AND(OR(ISBLANK(J24),ISBLANK(J25)),O31=FALSE),"Red","Gray") -> Gray | R31: =IF(AND(OR(ISBLANK(K28),ISBLANK(K29)),P31=FALSE),"Red","Gray") -> Red | T31: Hillsborough
C32: C = Cumulative Collections | I32: 887414.34 | J32: 910777.87 | L32: Balance Adjustments | O32: FALSE | P32: FALSE | Q32: =IF(AND(OR(ISBLANK(J28),ISBLANK(J29)),O32=FALSE),"Red","Gray") -> Gray | R32: =IF(AND(OR(ISBLANK(K32),ISBLANK(K33)),P32=FALSE),"Red","Gray") -> Red | T32: Holmes
C33: A = Amount Assessed - Adjusted | I33: 918122.82 | J33: 917216.82 | O33: FALSE | P33: FALSE | Q33: =IF(AND(OR(ISBLANK(J32),ISBLANK(J33)),O33=FALSE),"Red","Gray") -> Gray | R33: =IF(AND(OR(ISBLANK(K36),ISBLANK(K37)),P33=FALSE),"Red","Gray") -> Red | T33: Indian River
C34: CR = Collection Rate | I34: =IF(ISBLANK(I32),"N/A",IF(AND(I32=0,I33=0,NOT(ISBLANK(I32)),NOT(ISBLANK(I33))),1,I32/I33)) -> 0.9665529716 | J34: =IF(ISBLANK(J32),"N/A",IF(AND(J32=0,J33=0,NOT(ISBLANK(J32)),NOT(ISBLANK(J33))),1,J32/J33)) -> 0.9929799041 | K34: =IF(ISBLANK(K32),"N/A",IF(AND(K32=0,K33=0,NOT(ISBLANK(K32)),NOT(ISBLANK(K33))),1,K32/K33)) -> N/A | O34: FALSE | P34: FALSE | Q34: =IF(AND(OR(ISBLANK(J36),ISBLANK(J37)),O34=FALSE),"Red","Gray") -> Gray | R34: =IF(AND(OR(ISBLANK(K40),ISBLANK(K41)),P34=FALSE),"Red","Gray") -> Red | T34: Jackson
A35: =LEFT(B35,3)&" "&RIGHT(B35,6) -> CGE CQ3-17 | B35: CGE CQ3-17 | C35: RPE 06/30/16 | J35: Qtr 1 | K35: Qtr 2 | T35: Jefferson
C36: C = Cumulative Collections | J36: 759269.57 | O36: =IF(AND('Circuit Criminal'!$D$4=1,Q23="Red"),"Red","Gray") -> Gray | P36: =IF(AND('Circuit Criminal'!$D$4=2,R23="Red"),"Red","Gray") -> Gray | Q36: =IF(AND('Circuit Criminal'!$D$4=3,Q30="Red"),"Red","Gray") -> Gray | R36: =IF(AND('Circuit Criminal'!$D$4=4,R30="Red"),"Red","Gray") -> Gray | S36: =COUNTIF(O36:R36,"Red") -> 0 | T36: Lafayette
C37: A = Amount Assessed - Adjusted | J37: 805449.73 | O37: =IF(AND('Circuit Criminal'!$D$4=1,Q24="Red"),"Red","Gray") -> Gray | P37: =IF(AND('Circuit Criminal'!$D$4=2,R24="Red"),"Red","Gray") -> Gray | Q37: =IF(AND('Circuit Criminal'!$D$4=3,Q31="Red"),"Red","Gray") -> Gray | R37: =IF(AND('Circuit Criminal'!$D$4=4,R31="Red"),"Red","Gray") -> Gray | S37: =COUNTIF(O37:R37,"Red") -> 0 | T37: Lake
C38: CR = Collection Rate | J38: =IF(ISBLANK(J36),"N/A",IF(AND(J36=0,J37=0,NOT(ISBLANK(J36)),NOT(ISBLANK(J37))),1,J36/J37)) -> 0.9426653728 | K38: =IF(ISBLANK(K36),"N/A",IF(AND(K36=0,K37=0,NOT(ISBLANK(K36)),NOT(ISBLANK(K37))),1,K36/K37)) -> N/A | O38: =IF(AND('Circuit Criminal'!$D$4=1,Q25="Red"),"Red","Gray") -> Gray | P38: =IF(AND('Circuit Criminal'!$D$4=2,R25="Red"),"Red","Gray") -> Gray | Q38: =IF(AND('Circuit Criminal'!$D$4=3,Q32="Red"),"Red","Gray") -> Gray | R38: =IF(AND('Circuit Criminal'!$D$4=4,R32="Red"),"Red","Gray") -> Gray | S38: =COUNTIF(O38:R38,"Red") -> 0 | T38: Lee
A39: =LEFT(B39,3)&" "&RIGHT(B39,6) -> CGE CQ4-17 | B39: CGE CQ4-17 | C39: RPE 09/30/16 | K39: Qtr 1 | O39: =IF(AND('Circuit Criminal'!$D$4=1,Q26="Red"),"Red","Gray") -> Gray | P39: =IF(AND('Circuit Criminal'!$D$4=2,R26="Red"),"Red","Gray") -> Gray | Q39: =IF(AND('Circuit Criminal'!$D$4=3,Q33="Red"),"Red","Gray") -> Gray | R39: =IF(AND('Circuit Criminal'!$D$4=4,R33="Red"),"Red","Gray") -> Gray | S39: =COUNTIF(O39:R39,"Red") -> 0 | T39: Leon
C40: C = Cumulative Collections | O40: =IF(AND('Circuit Criminal'!$D$4=1,Q27="Red"),"Red","Gray") -> Gray | P40: =IF(AND('Circuit Criminal'!$D$4=2,R27="Red"),"Red","Gray") -> Gray | Q40: =IF(AND('Circuit Criminal'!$D$4=3,Q34="Red"),"Red","Gray") -> Gray | R40: =IF(AND('Circuit Criminal'!$D$4=4,R34="Red"),"Red","Gray") -> Gray | S40: =COUNTIF(O40:R40,"Red") -> 0 | T40: Levy
C41: A = Amount Assessed - Adjusted | O41: =COUNTIF(O36:O40,"Red") -> 0 | P41: =COUNTIF(P36:P40,"Red") -> 0 | Q41: =COUNTIF(Q36:Q40,"Red") -> 0 | R41: =COUNTIF(R36:R40,"Red") -> 0 | T41: Liberty
C42: CR = Collection Rate | K42: =IF(ISBLANK(K40),"N/A",IF(OR(K40=0,K40="N/A"),0,K40/K41)) -> N/A | O42: =SUM(O41:R41) -> 0 | T42: Madison
C43: Business Rules | D43: Purpose of Report: The CCOC Collection Rate Performance Measure report tracks dollars in the quarter they are assessed and then how well those assessed dollars have been collected over the next five quarters. | H43: Adjustments to Assessments: The amount assessed in a given assessment control group should be adjusted in the reporting period when assessments are later adjusted by the Court or other provisions of law. | T43: Manatee
C44: NOTES: | D44: The following conditions will alert when performance standards are not met and/or established business rules within the control group are not followed. | T44: Martin
D45: 1.) Action Plan: If the 5th quarter Collection Rate is below Standard (red numbers on rose background), select a "Reason Code" and write a brief statement in "Current Action to Improve" in the green area ONLY. | T45: Nassau
D46: 2.) Additional Notes Related to Collection Issues: Include a brief explaination when either of the following conditions not consistant with the Collection Report Business Rules. | T46: Okaloosa
E47: a.) Cumulative Collection amount has Decreased from the previous quarter in the same Control Group (font color for amount will change to RED) | T47: Okeechobee
E48: b.) The Amount Assessed - Adjusted has Increased from the previous quarter in the same Control Group (font color for amount will change to RED) | T48: Orange
T49: Nassau
T50: Okaloosa
T51: Okeechobee
T52: Orange
T53: Pasco
T54: Pinellas
T55: Polk
B56: =MAX('Criminal Traffic'!B56:B99) -> 2 | D56: Issue | F56: Calc 1 Needed | G56: Calc 2 Needed | H56: Calc 3 Needed | I56: Calc 4 Needed | J56: Standard | T56: Putnam
A57: =D$8 -> Circuit Civil | B57: =IF(E57="YES",MAX(B56)+1,0) -> 0 | C57: =A$11 -> CGE CQ1-16 | D57: ="After 3rd Q, Collections went up by more than set percentage of: "&TEXT(J57,"#0%") -> After 3rd Q, Collections went up by more than set percentage of: 500% | E57: =IF(MAX(F57:G57)>V$10,"YES","NO") -> NO | F57: =IFERROR(IF(NOT(ISBLANK(G12)),(G12-F12)/F12,0),0) -> -0.001593881242 | G57: =IFERROR(IF(NOT(ISBLANK(H12)),(H12-G12)/G12,0),0) -> -0.001774054361 | J57: =V$10 -> 5 | T57: Santa Rosa
A58: =D$8 -> Circuit Civil | B58: =IF(E58="YES",MAX(B$56:B57)+1,0) -> 0 | C58: =A$11 -> CGE CQ1-16 | D58: ="Assessments dropped by more than set percentage of: "&TEXT(J58,"#0%") -> Assessments dropped by more than set percentage of: 15% | E58: =IF(MIN(F58:I58)<(-1*V$11),"YES","NO") -> NO | F58: =IFERROR(IF(NOT(ISBLANK(E13)),(E13-D13)/D13,0),0) -> 0 | G58: =IFERROR(IF(NOT(ISBLANK(F13)),(F13-E13)/E13,0),0) -> -1.634526295e-05 | H58: =IFERROR(IF(NOT(ISBLANK(G13)),(G13-F13)/F13,0),0) -> 0 | I58: =IFERROR(IF(NOT(ISBLANK(H13)),(H13-G13)/G13,0),0) -> 0 | J58: =V$11 -> 0.15 | T58: Sumter
A59: Circuit Civil | B59: =IF(E59="YES",MAX(B$56:B58)+1,0) -> 0 | C59: =A$11 -> CGE CQ1-16 | D59: ="The 5th Quarter Collection Rate did not meet the established performance measure standard of: "&TEXT(J59,"#0%") -> The 5th Quarter Collection Rate did not meet the established performance measure standard of: 90% | E59: =IF(F59="N/A","NO",IF(F59<H$8,"YES","NO")) -> NO | F59: =H14 -> 0.9765772056 | J59: =H$8 -> 0.9 | T59: Washington
A60: Circuit Civil | B60: =IF(E60="YES",MAX(B$56:B59)+1,0) -> 3 | C60: =A$11 -> CGE CQ1-16 | D60: Collections amount decreased from prior quarter | E60: =IF(MIN(F60:I60)<0,"YES","NO") -> YES | F60: =IFERROR(IF(NOT(ISBLANK(E12)),(E12-D12)/D12,0),0) -> 0.06078846732 | G60: 0.0005642873737 | H60: -0.001593881242 | I60: -0.001774054361
A61: Circuit Civil | B61: =IF(E61="YES",MAX(B$56:B60)+1,0) -> 0 | C61: =A$11 -> CGE CQ1-16 | D61: Assessment amount increased from prior quarter | E61: =IF(MAX(F61:I61)>0,"YES","NO") -> NO | F61: 0 | G61: -1.634526295e-05 | H61: 0 | I61: 0
A62: Circuit Civil | B62: =IF(E62="YES",MAX(B$56:B61)+1,0) -> 0 | C62: =A$15 -> CGE CQ2-16 | D62: ="After 3rd Q, Collections went up by more than set percentage of: "&TEXT(J62,"#0%") -> After 3rd Q, Collections went up by more than set percentage of: 500% | E62: =IF(MAX(F62:G62)>V$10,"YES","NO") -> NO | F62: =IFERROR(IF(NOT(ISBLANK(H16)),(H16-G16)/G16,0),0) -> -0.0009044983694 | G62: =IFERROR(IF(NOT(ISBLANK(I16)),(I16-H16)/H16,0),0) -> -0.003004358504 | J62: =V$10 -> 5 | T62: Sarasota
A63: Circuit Civil | B63: =IF(E63="YES",MAX(B$56:B62)+1,0) -> 0 | C63: =A$15 -> CGE CQ2-16 | D63: ="Assessments dropped by more than set percentage of: "&TEXT(J63,"#0%") -> Assessments dropped by more than set percentage of: 15% | E63: =IF(MIN(F63:I63)<(-1*V$11),"YES","NO") -> NO | F63: =IFERROR(IF(NOT(ISBLANK(F17)),(F17-E17)/E17,0),0) -> -0.001490669021 | G63: =IFERROR(IF(NOT(ISBLANK(G17)),(G17-F17)/F17,0),0) -> -0.00238343252 | H63: =IFERROR(IF(NOT(ISBLANK(H17)),(H17-G17)/G17,0),0) -> 0 | I63: =IFERROR(IF(NOT(ISBLANK(I17)),(I17-H17)/H17,0),0) -> -0.0009085252383 | J63: =V$11 -> 0.15 | T63: Suwannee
A64: Circuit Civil | B64: =IF(E64="YES",MAX(B$56:B63)+1,0) -> 4 | C64: =A$15 -> CGE CQ2-16 | D64: Collections amount decreased from prior quarter | E64: =IF(MIN(F64:I64)<0,"YES","NO") -> YES | F64: =IFERROR(IF(NOT(ISBLANK(F16)),(F16-E16)/E16,0),0) -> 0.05955074322 | G64: -0.003378645202 | H64: -0.0009044983694 | I64: -0.003004358504
A65: Circuit Civil | B65: =IF(E65="YES",MAX(B$56:B64)+1,0) -> 0 | C65: =A$15 -> CGE CQ2-16 | D65: Assessment amount increased from prior quarter | E65: =IF(MAX(F65:I65)>0,"YES","NO") -> NO | F65: -0.001490669021 | G65: -0.00238343252 | H65: 0 | I65: -0.0009085252383
A66: Circuit Civil | B66: =IF(E66="YES",MAX(B$56:B65)+1,0) -> 0 | C66: =A$15 -> CGE CQ2-16 | D66: ="The 5th Quarter Collection Rate did not meet the established performance measure standard of: "&TEXT(J66,"#0%") -> The 5th Quarter Collection Rate did not meet the established performance measure standard of: 90% | E66: =IF(F66="N/A","NO",IF(F66<H$8,"YES","NO")) -> NO | F66: =I18 -> 0.9828080994 | J66: =H$8 -> 0.9
A67: Circuit Civil | B67: =IF(E67="YES",MAX(B$56:B66)+1,0) -> 0 | C67: =A$19 -> CGE CQ3-16 | D67: ="After 3rd Q, Collections went up by more than set percentage of: "&TEXT(J67,"#0%") -> After 3rd Q, Collections went up by more than set percentage of: 500% | E67: =IF(MAX(F67:G67)>V$10,"YES","NO") -> NO | F67: =IFERROR(IF(NOT(ISBLANK(I20)),(I20-H20)/H20,0),0) -> -0.008837915683 | G67: =IFERROR(IF(NOT(ISBLANK(J20)),(J20-I20)/I20,0),0) -> -0.003496890199 | J67: =V$10 -> 5 | T67: Seminole
A68: Circuit Civil | B68: =IF(E68="YES",MAX(B$56:B67)+1,0) -> 0 | C68: =A$19 -> CGE CQ3-16 | D68: ="Assessments dropped by more than set percentage of: "&TEXT(J68,"#0%") -> Assessments dropped by more than set percentage of: 15% | E68: =IF(MIN(F68:I68)<(-1*V$11),"YES","NO") -> NO | F68: =IFERROR(IF(NOT(ISBLANK(G21)),(G21-F21)/F21,0),0) -> -0.0005117996028 | G68: =IFERROR(IF(NOT(ISBLANK(H21)),(H21-G21)/G21,0),0) -> -0.003913205111 | H68: =IFERROR(IF(NOT(ISBLANK(I21)),(I21-H21)/H21,0),0) -> -0.002545065602 | I68: =IFERROR(IF(NOT(ISBLANK(J21)),(J21-I21)/I21,0),0) -> -0.001969301223 | J68: =V$11 -> 0.15 | T68: Taylor
A69: Circuit Civil | B69: =IF(E69="YES",MAX(B$56:B68)+1,0) -> 5 | C69: =A$19 -> CGE CQ3-16 | D69: Collections amount decreased from prior quarter | E69: =IF(MIN(F69:I69)<0,"YES","NO") -> YES | F69: =IFERROR(IF(NOT(ISBLANK(G20)),(G20-F20)/F20,0),0) -> 0.0588112217 | G69: -0.0004720103433 | H69: -0.008837915683 | I69: -0.003496890199
A70: Circuit Civil | B70: =IF(E70="YES",MAX(B$56:B69)+1,0) -> 0 | C70: =A$19 -> CGE CQ3-16 | D70: Assessment amount increased from prior quarter | E70: =IF(MAX(F70:I70)>0,"YES","NO") -> NO | F70: -0.0005117996028 | G70: -0.003913205111 | H70: -0.002545065602 | I70: -0.001969301223
A71: Circuit Civil | B71: =IF(E71="YES",MAX(B$56:B70)+1,0) -> 0 | C71: =A$19 -> CGE CQ3-16 | D71: ="The 5th Quarter Collection Rate did not meet the established performance measure standard of: "&TEXT(J71,"#0%") -> The 5th Quarter Collection Rate did not meet the established performance measure standard of: 90% | E71: =IF(F71="N/A","NO",IF(F71<H$8,"YES","NO")) -> NO | F71: =J22 -> 0.9711752149 | J71: =H$8 -> 0.9
A72: Circuit Civil | B72: =IF(E72="YES",MAX(B$56:B71)+1,0) -> 0 | C72: =A$23 -> CGE CQ4-16 | D72: ="After 3rd Q, Collections went up by more than set percentage of: "&TEXT(J72,"#0%") -> After 3rd Q, Collections went up by more than set percentage of: 500% | E72: =IF(MAX(F72:G72)>V$10,"YES","NO") -> NO | F72: =IFERROR(IF(NOT(ISBLANK(J24)),(J24-I24)/I24,0),0) -> -0.003581988133 | G72: =IFERROR(IF(NOT(ISBLANK(K24)),(K24-J24)/J24,0),0) -> 0 | J72: =V$10 -> 5 | T72: St. Johns
A73: Circuit Civil | B73: =IF(E73="YES",MAX(B$56:B72)+1,0) -> 0 | C73: =A$23 -> CGE CQ4-16 | D73: ="Assessments dropped by more than set percentage of: "&TEXT(J73,"#0%") -> Assessments dropped by more than set percentage of: 15% | E73: =IF(MIN(F73:I73)<(-1*V$11),"YES","NO") -> NO | F73: =IFERROR(IF(NOT(ISBLANK(H25)),(H25-G25)/G25,0),0) -> -0.0003811484526 | G73: =IFERROR(IF(NOT(ISBLANK(I25)),(I25-H25)/H25,0),0) -> -0.001466888181 | H73: =IFERROR(IF(NOT(ISBLANK(J25)),(J25-I25)/I25,0),0) -> -0.003263189011 | I73: =IFERROR(IF(NOT(ISBLANK(K25)),(K25-J25)/J25,0),0) -> 0 | J73: =V$11 -> 0.15 | T73: Union
A74: Circuit Civil | B74: =IF(E74="YES",MAX(B$56:B73)+1,0) -> 6 | C74: =A$23 -> CGE CQ4-16 | D74: Collections amount decreased from prior quarter | E74: =IF(MIN(F74:I74)<0,"YES","NO") -> YES | F74: =IFERROR(IF(NOT(ISBLANK(H24)),(H24-G24)/G24,0),0) -> 0.0361276621 | G74: -0.003255658668 | H74: -0.003581988133 | I74: 0
A75: Circuit Civil | B75: =IF(E75="YES",MAX(B$56:B74)+1,0) -> 0 | C75: =A$23 -> CGE CQ4-16 | D75: Assessment amount increased from prior quarter | E75: =IF(MAX(F75:I75)>0,"YES","NO") -> NO | F75: -0.0003811484526 | G75: -0.001466888181 | H75: -0.003263189011 | I75: 0
A76: Circuit Civil | B76: =IF(E76="YES",MAX(B$56:B75)+1,0) -> 0 | C76: =A$23 -> CGE CQ4-16 | D76: ="The 5th Quarter Collection Rate did not meet the established performance measure standard of: "&TEXT(J76,"#0%") -> The 5th Quarter Collection Rate did not meet the established performance measure standard of: 90% | E76: =IF(F76="N/A","NO",IF(F76<H$8,"YES","NO")) -> NO | F76: =K26 -> N/A | J76: =H$8 -> 0.9
A77: Circuit Civil | B77: =IF(E77="YES",MAX(B$56:B76)+1,0) -> 0 | C77: =A$27 -> CGE CQ1-17 | D77: ="After 3rd Q, Collections went up by more than set percentage of: "&TEXT(J77,"#0%") -> After 3rd Q, Collections went up by more than set percentage of: 500% | E77: =IF(MAX(F77)>V$10,"YES","NO") -> NO | F77: =IFERROR(IF(NOT(ISBLANK(K28)),(K28-J28)/J28,0),0) -> 0 | J77: =V$10 -> 5 | T77: St. Lucie
A78: Circuit Civil | B78: =IF(E78="YES",MAX(B$56:B77)+1,0) -> 0 | C78: =A$27 -> CGE CQ1-17 | D78: ="Assessments dropped by more than set percentage of: "&TEXT(J78,"#0%") -> Assessments dropped by more than set percentage of: 15% | E78: =IF(MIN(F78:H78)<(-1*V$11),"YES","NO") -> NO | F78: =IFERROR(IF(NOT(ISBLANK(I29)),(I29-H29)/H29,0),0) -> -0.0005403300297 | G78: =IFERROR(IF(NOT(ISBLANK(J29)),(J29-I29)/I29,0),0) -> -0.001086039163 | H78: =IFERROR(IF(NOT(ISBLANK(K29)),(K29-J29)/J29,0),0) -> 0 | J78: =V$11 -> 0.15 | T78: Volusia
A79: Circuit Civil | B79: =IF(E79="YES",MAX(B$56:B78)+1,0) -> 7 | C79: =A$27 -> CGE CQ1-17 | D79: Collections amount decreased from prior quarter | E79: =IF(MIN(F79:H79)<0,"YES","NO") -> YES | F79: =IFERROR(IF(NOT(ISBLANK(I28)),(I28-H28)/H28,0),0) -> 0.07888603921 | G79: -0.0009335624114 | H79: 0
A80: Circuit Civil | B80: =IF(E80="YES",MAX(B$56:B79)+1,0) -> 0 | C80: =A$27 -> CGE CQ1-17 | D80: Assessment amount increased from prior quarter | E80: =IF(MAX(F80:H80)>0,"YES","NO") -> NO | F80: -0.0005403300297 | G80: -0.001086039163 | H80: 0
A81: Circuit Civil | B81: =IF(E81="YES",MAX(B$56:B80)+1,0) -> 0 | C81: =A$31 -> CGE CQ2-17 | D81: ="Assessments dropped by more than set percentage of: "&TEXT(J81,"#0%") -> Assessments dropped by more than set percentage of: 15% | E81: =IF(MIN(F81:G81)<(-1*V$11),"YES","NO") -> NO | F81: =IFERROR(IF(NOT(ISBLANK(J33)),(J33-I33)/I33,0),0) -> -0.0009867960803 | G81: =IFERROR(IF(NOT(ISBLANK(K33)),(K33-J33)/J33,0),0) -> 0 | J81: =V$11 -> 0.15 | T81: Wakulla
A82: Circuit Civil | B82: =IF(E82="YES",MAX(B$56:B81)+1,0) -> 0 | C82: =A$31 -> CGE CQ2-17 | D82: Collections amount decreased from prior quarter | E82: =IF(MIN(F82:G82)<0,"YES","NO") -> NO | F82: =IFERROR(IF(NOT(ISBLANK(J32)),(J32-I32)/I32,0),0) -> 0.02632764533 | G82: =IFERROR(IF(NOT(ISBLANK(K32)),(K32-J32)/J32,0),0) -> 0
A83: Circuit Civil | B83: =IF(E83="YES",MAX(B$56:B82)+1,0) -> 0 | C83: =A$31 -> CGE CQ2-17 | D83: Assessment amount increased from prior quarter | E83: =IF(MAX(F83:G83)>0,"YES","NO") -> NO | F83: =IFERROR(IF(NOT(ISBLANK(J33)),(J33-I33)/I33,0),0) -> -0.0009867960803 | G83: =IFERROR(IF(NOT(ISBLANK(K33)),(K33-J33)/J33,0),0) -> 0
A84: Circuit Civil | B84: =IF(E84="YES",MAX(B$56:B83)+1,0) -> 0 | C84: =A$35 -> CGE CQ3-17 | D84: ="Assessments dropped by more than set percentage of: "&TEXT(J84,"#0%") -> Assessments dropped by more than set percentage of: 15% | E84: =IF(MIN(F84)<(-1*V$11),"YES","NO") -> NO | F84: =IFERROR(IF(NOT(ISBLANK(K37)),(K37-J37)/J37,0),0) -> 0 | J84: =V$11 -> 0.15 | T84: Walton
A85: Circuit Civil | B85: =IF(E85="YES",MAX(B$56:B84)+1,0) -> 0 | C85: =A$35 -> CGE CQ3-17 | D85: Collections amount decreased from prior quarter | E85: =IF(MIN(F85)<0,"YES","NO") -> NO | F85: =IFERROR(IF(NOT(ISBLANK(K36)),(K36-J36)/J36,0),0) -> 0
A86: Circuit Civil | B86: =IF(E86="YES",MAX(B$56:B85)+1,0) -> 0 | C86: =A$35 -> CGE CQ3-17 | D86: Assessment amount increased from prior quarter | E86: =IF(MAX(F86)>0,"YES","NO") -> NO | F86: =IFERROR(IF(NOT(ISBLANK(K37)),(K37-J37)/J37,0),0) -> 0

Sheet County Civil
M2: County Fiscal Year 2015-2016 | T2: CountyNames
M3: Collections Quarterly Report Form for CCOC | T3: Alachua
C4: Report for Quarter Ending: | D4: ='Circuit Criminal'!D4 -> June 2016 | I4: REQUIRED: Reason Codes AND Action to Improve / Descriptions Required if Measure(s) Not Met | T4: Baker
C5: Version #: | D5: ='Circuit Criminal'!$D$5 -> 1 | J5: Internal: Must clarify reason AND expected duration internal reason will be resolved | T5: Bay
C6: County: | D6: ='Circuit Criminal'!D6 -> Brevard | J6: External: Detailed explanation of external reason the measure wasn't met | T6: Bradford
T7: Brevard
C8: Court/Case Type: | D8: County Civil | G8: Performance Measure Standard: | H8: 0.9 | T8: Broward
L9: Action Plan | N9: 1 | O9: version #1 | P9: Qtr1 - December | Q9: 1 | T9: Calhoun
C10: Control Groups | D10: 10/01/14 - 12/31/14 | E10: 01/01/15 - 03/31/15 | F10: 04/01/15 - 06/30/15 | G10: 07/01/15 - 09/30/15 | H10: 10/01/15 - 12/31/15 | I10: 01/01/16 - 03/31/16 | J10: 04/01/16 - 06/30/16 | K10: 07/01/16 - 09/30/16 | L10: Reason Code | M10: Current Actions to Improve | O10: version #2 | P10: Qtr 2 - March | T10: Charlotte | V10: 5
A11: =LEFT(B11,3)&" "&RIGHT(B11,6) -> CGE CQ1-16 | B11: CGE CQ1-16 | C11: RPE 12/31/14 | D11: Qtr 1 | E11: Qtr 2 | F11: Qtr 3 | G11: Qtr 4 | H11: Qtr 5 | N11: Economy | O11: version #3 | P11: Qtr 3 - June | Q11: 3 | T11: Citrus | U11: =D6&" "&D8 -> Brevard County Civil | V11: 0.15
C12: C = Cumulative Collections | D12: =LOOKUP($U$11,Lookup!$C$3:$C$672,Lookup!I$3:I$672) -> 423305.53 | E12: =LOOKUP($U$11,Lookup!$C$3:$C$672,Lookup!J$3:J$672) -> 431937.42 | F12: =LOOKUP($U$11,Lookup!$C$3:$C$672,Lookup!K$3:K$672) -> 431937.42 | G12: =LOOKUP($U$11,Lookup!$C$3:$C$672,Lookup!L$3:L$672) -> 431942.42 | H12: 431942.42 | N12: Incarcerations | O12: version #4 | P12: Qtr 4 - September | Q12: 4 | T12: Clay | U12: =IF(P13=TRUE,A11,"") -> 
C13: A = Amount Assessed - Adjusted | D13: =LOOKUP($U$11,Lookup!$C$3:$C$672,Lookup!D$3:D$672) -> 432588.49 | E13: =LOOKUP($U$11,Lookup!$C$3:$C$672,Lookup!E$3:E$672) -> 432493.49 | F13: =LOOKUP($U$11,Lookup!$C$3:$C$672,Lookup!F$3:F$672) -> 432408.49 | G13: =LOOKUP($U$11,Lookup!$C$3:$C$672,Lookup!G$3:G$672) -> 432408.49 | H13: 432408.49 | N13: Late/Non-pay/Pay Plans | O13: version #5 | P13: =OR(AND(E12<D12,E12>0),AND(F12<E12,F12>0),AND(G12<F12,G12>0),AND(H12<G12,H12>0),AND(F13>E13,E13>0),AND(G13>F13,F13>0),AND(H13<G13,G13>0)) -> FALSE | Q13: 5 | T13: Collier | U13: =IF(P14=TRUE,A15,"") -> CGE CQ2-16
C14: CR = Collection Rate | D14: =IF(ISBLANK(D12),"N/A",IF(OR(D12=0,D12="N/A"),0,D12/D13)) -> 0.9785408992 | E14: =IF(ISBLANK(E12),"N/A",IF(OR(E12=0,E12="N/A"),0,E12/E13)) -> 0.9987142697 | F14: =IF(ISBLANK(F12),"N/A",IF(OR(F12=0,F12="N/A"),0,F12/F13)) -> 0.9989105903 | G14: =IF(ISBLANK(G12),"N/A",IF(OR(G12=0,G12="N/A"),0,G12/G13)) -> 0.9989221534 | H14: =IF(ISBLANK(H12),"N/A",IF(AND(H12=0,H13=0,NOT(ISBLANK(H12)),NOT(ISBLANK(H13))),1,H12/H13)) -> 0.9989221534 | N14: Mandatory Assessment | O14: version #6 | P14: =OR(AND(F16<E16,F16>0),AND(G16<F16,G16>0),AND(H16<G16,H16>0),AND(I16<H16,I16>0),AND(G17>F17, F17>0),AND(H17>G17, G17>0),AND(I17<H17,I17>0)) -> TRUE | Q14: 6 | T14: Columbia | U14: =IF(P15=TRUE,A19,"") -> 
A15: =LEFT(B15,3)&" "&RIGHT(B15,6) -> CGE CQ2-16 | B15: CGE CQ2-16 | C15: RPE 03/31/15 | E15: Qtr 1 | F15: Qtr 2 | G15: Qtr 3 | H15: Qtr 4 | I15: Qtr 5 | N15: Other | O15: version #7 | P15: =OR(AND(G20<F20,D10>0),AND(H20<G20,H20>0),AND(I20<H20,I20>0),AND(J20<I20,J20>0),AND(H21>G21, G21>0),AND(I21>H21, H21>0),AND(J21<I21, J21>0)) -> FALSE | Q15: 7 | T15: Dade | U15: =IF(P16=TRUE,A23,"") -> CGE CQ4-16
C16: C = Cumulative Collections | E16: =LOOKUP($U$11,Lookup!$C$3:$C$672,Lookup!S$3:S$672) -> 492109.86 | F16: =LOOKUP($U$11,Lookup!$C$3:$C$672,Lookup!T$3:T$672) -> 503948.86 | G16: =LOOKUP($U$11,Lookup!$C$3:$C$672,Lookup!U$3:U$672) -> 503898.86 | H16: 504240.86 | I16: 504240.86 | N16: Procedural | O16: version #8 | P16: =OR(AND(H24<G24, H24>0),AND(I24<H24, I24>0),AND(J24<I24, J24>0),AND(K24<J24, K24>0),AND(I25>H25, H25>0),AND(J25>I25, I25>0),AND(K25<J25, J25>0)) -> TRUE | Q16: 8 | T16: Desoto | U16: =IF(P17=TRUE,A27,"") -> 
C17: A = Amount Assessed - Adjusted | E17: =LOOKUP($U$11,Lookup!$C$3:$C$672,Lookup!N$3:N$672) -> 505201.86 | F17: =LOOKUP($U$11,Lookup!$C$3:$C$672,Lookup!O$3:O$672) -> 505193.86 | G17: =LOOKUP($U$11,Lookup!$C$3:$C$672,Lookup!P$3:P$672) -> 505193.86 | H17: 505193.86 | I17: 505193.86 | N17: Staffing - Insufficient Personnel | O17: version #9 | P17: =OR(AND(I28<H28, I28>0),AND(J28<I28, J28>0),AND(K28<J28, K28>0),AND(J29>I29, I29>0),AND(K29>J29, J29>0)) -> FALSE | Q17: 9 | T17: Dixie | U17: =IF(P18=TRUE,A31,"") -> 
C18: CR = Collection Rate | E18: =IF(ISBLANK(E16),"N/A",IF(OR(E16=0,E16="N/A"),0,E16/E17)) -> 0.9740856061 | F18: =IF(ISBLANK(F16),"N/A",IF(OR(F16=0,F16="N/A"),0,F16/F17)) -> 0.9975355995 | G18: =IF(ISBLANK(G16),"N/A",IF(OR(G16=0,G16="N/A"),0,G16/G17)) -> 0.9974366276 | H18: =IF(ISBLANK(H16),"N/A",IF(AND(H16=0,H17=0,NOT(ISBLANK(H16)),NOT(ISBLANK(H17))),1,H16/H17)) -> 0.9981135954 | I18: =IF(ISBLANK(I16),"N/A",IF(AND(I16=0,I17=0,NOT(ISBLANK(I16)),NOT(ISBLANK(I17))),1,I16/I17)) -> 0.9981135954 | N18: Staffing - Training Required | O18: version #10 | P18: =OR(AND(J32<I32, J32>0),AND(K32<J32, K32>0),AND(K33>J33, J33>0)) -> FALSE | Q18: 10 | T18: Duval | U18: =IF(P19=TRUE,A35,"") -> CGE CQ3-17
A19: =LEFT(B19,3)&" "&RIGHT(B19,6) -> CGE CQ3-16 | B19: CGE CQ3-16 | C19: RPE 06/30/15 | F19: Qtr 1 | G19: Qtr 2 | H19: Qtr 3 | I19: Qtr 4 | J19: Qtr 5 | N19: Systems | O19: version #11 | P19: =OR(K36<J36) -> TRUE | Q19: 11 | T19: Escambia | U19: =U12&" "&U13&" "&U14&" "&U15&" "&U16&" "&U17&" "&U18 -> CGE CQ2-16 CGE CQ4-16 CGE CQ3-17
C20: C = Cumulative Collections | F20: =LOOKUP($U$11,Lookup!$C$3:$C$672,Lookup!AC$3:AC$672) -> 504157.79 | G20: =LOOKUP($U$11,Lookup!$C$3:$C$672,Lookup!AD$3:AD$672) -> 527913.02 | H20: 527969.05 | I20: 528139.73 | J20: 528139.73 | O20: version #12 | P20: =COUNTIF(P13:P19,"TRUE") -> 3 | Q20: 12 | T20: Flagler
C21: A = Amount Assessed - Adjusted | F21: =LOOKUP($U$11,Lookup!$C$3:$C$672,Lookup!X$3:X$672) -> 531302.88 | G21: =LOOKUP($U$11,Lookup!$C$3:$C$672,Lookup!Y$3:Y$672) -> 531302.88 | H21: 531302.88 | I21: 531302.88 | J21: 531302.88 | T21: Franklin
C22: CR = Collection Rate | F22: =IF(ISBLANK(F20),"N/A",IF(OR(F20=0,F20="N/A"),0,F20/F21)) -> 0.9489084456 | G22: =IF(ISBLANK(G20),"N/A",IF(OR(G20=0,G20="N/A"),0,G20/G21)) -> 0.9936197221 | H22: =IF(ISBLANK(H20),"N/A",IF(AND(H20=0,H21=0,NOT(ISBLANK(H20)),NOT(ISBLANK(H21))),1,H20/H21)) -> 0.9937251799 | I22: =IF(ISBLANK(I20),"N/A",IF(AND(I20=0,I21=0,NOT(ISBLANK(I20)),NOT(ISBLANK(I21))),1,I20/I21)) -> 0.9940464279 | J22: =IF(ISBLANK(J20),"N/A",IF(AND(J20=0,J21=0,NOT(ISBLANK(J20)),NOT(ISBLANK(J21))),1,J20/J21)) -> 0.9940464279 | O22: Q1 | P22: Q2 | T22: Gadsden
A23: =LEFT(B23,3)&" "&RIGHT(B23,6) -> CGE CQ4-16 | B23: CGE CQ4-16 | C23: RPE 09/30/15 | G23: Qtr 1 | H23: Qtr 2 | I23: Qtr 3 | J23: Qtr 4 | K23: Qtr 5 | O23: FALSE | P23: FALSE | Q23: =IF(AND(OR(ISBLANK(H12),ISBLANK(H13)),O23=FALSE),"Red","Gray") -> Gray | R23: =IF(AND(OR(ISBLANK(I16),ISBLANK(I17)),P23=FALSE),"Red","Gray") -> Gray | S23: =IF(AND('Circuit Criminal'!D4=1,S36=1),A11,IF(AND('Circuit Criminal'!D4=2,S36=1),A15,IF(AND('Circuit Criminal'!D4=3,S36=1),A19,IF(AND('Circuit Criminal'!D4=4,S36=1),A23,"")))) ->  | T23: Gilchrist
C24: C = Cumulative Collections | G24: =LOOKUP($U$11,Lookup!$C$3:$C$672,Lookup!AM$3:AM$672) -> 448149.09 | H24: 466999.59 | I24: 467060.59 | J24: 467060.59 | O24: FALSE | P24: FALSE | Q24: =IF(AND(OR(ISBLANK(H16),ISBLANK(H17)),O24=FALSE),"Red","Gray") -> Gray | R24: =IF(AND(OR(ISBLANK(I20),ISBLANK(I21)),P24=FALSE),"Red","Gray") -> Gray | S24: =IF(AND('Circuit Criminal'!D4=1,S37=1),A15,IF(AND('Circuit Criminal'!D4=2,S37=1),A19,IF(AND('Circuit Criminal'!D4=3,S37=1),A23,IF(AND('Circuit Criminal'!D4=4,S37=1),A27,"")))) ->  | T24: Glades
C25: A = Amount Assessed - Adjusted | G25: =LOOKUP($U$11,Lookup!$C$3:$C$672,Lookup!AH$3:AH$672) -> 470250.32 | H25: 470250.32 | I25: 470250.32 | J25: 470175.32 | O25: FALSE | P25: FALSE | Q25: =IF(AND(OR(ISBLANK(H20),ISBLANK(H21)),O25=FALSE),"Red","Gray") -> Gray | R25: =IF(AND(OR(ISBLANK(I24),ISBLANK(I25)),P25=FALSE),"Red","Gray") -> Gray | S25: =IF(AND('Circuit Criminal'!D4=1,S38=1),A19,IF(AND('Circuit Criminal'!D4=2,S38=1),A23,IF(AND('Circuit Criminal'!D4=3,S38=1),A27,IF(AND('Circuit Criminal'!D4=4,S38=1),A31,"")))) ->  | T25: Gulf
C26: CR = Collection Rate | G26: =IF(ISBLANK(G24),"N/A",IF(OR(G24=0,G24="N/A"),0,G24/G25)) -> 0.9530011378 | H26: =IF(ISBLANK(H24),"N/A",IF(AND(H24=0,H25=0,NOT(ISBLANK(H24)),NOT(ISBLANK(H25))),1,H24/H25)) -> 0.9930872349 | I26: =IF(ISBLANK(I24),"N/A",IF(AND(I24=0,I25=0,NOT(ISBLANK(I24)),NOT(ISBLANK(I25))),1,I24/I25)) -> 0.993216953 | J26: =IF(ISBLANK(J24),"N/A",IF(AND(J24=0,J25=0,NOT(ISBLANK(J24)),NOT(ISBLANK(J25))),1,J24/J25)) -> 0.993375386 | K26: =IF(ISBLANK(K24),"N/A",IF(AND(K24=0,K25=0,NOT(ISBLANK(K24)),NOT(ISBLANK(K25))),1,K24/K25)) -> N/A | O26: FALSE | P26: FALSE | Q26: =IF(AND(OR(ISBLANK(H24),ISBLANK(H25)),O26=FALSE),"Red","Gray") -> Gray | R26: =IF(AND(OR(ISBLANK(I28),ISBLANK(I29)),P26=FALSE),"Red","Gray") -> Gray | S26: =IF(AND('Circuit Criminal'!D4=1,S39=1),A23,IF(AND('Circuit Criminal'!D4=2,S39=1),A27,IF(AND('Circuit Criminal'!D4=3,S39=1),A31,IF(AND('Circuit Criminal'!D4=4,S39=1),A35,"")))) ->  | T26: Hamilton
A27: =LEFT(B27,3)&" "&RIGHT(B27,6) -> CGE CQ1-17 | B27: CGE CQ1-17 | C27: RPE 12/31/15 | H27: Qtr 1 | I27: Qtr 2 | J27: Qtr 3 | K27: Qtr 4 | O27: FALSE | P27: FALSE | Q27: =IF(AND(OR(ISBLANK(H28),ISBLANK(H29)),O27=FALSE),"Red","Gray") -> Gray | R27: =IF(AND(OR(ISBLANK(I32),ISBLANK(I33)),P27=FALSE),"Red","Gray") -> Gray | S27: =IF(AND('Circuit Criminal'!D4=1,S40=1),A27,IF(AND('Circuit Criminal'!D4=2,S40=1),A31,IF(AND('Circuit Criminal'!D4=3,S40=1),A35,IF(AND('Circuit Criminal'!D4=4,S40=1),A39,"")))) ->  | T27: Hardee
C28: C = Cumulative Collections | H28: 474778.08 | I28: 483042.08 | J28: 483042.08 | T28: Hendry
C29: A = Amount Assessed - Adjusted | H29: 486738.08 | I29: 486738.08 | J29: 486543.08 | O29: Q3 | P29: Q4 | T29: Hernando
C30: CR = Collection Rate | H30: =IF(ISBLANK(H28),"N/A",IF(AND(H28=0,H29=0,NOT(ISBLANK(H28)),NOT(ISBLANK(H29))),1,H28/H29)) -> 0.9754282632 | I30: =IF(ISBLANK(I28),"N/A",IF(AND(I28=0,I29=0,NOT(ISBLANK(I28)),NOT(ISBLANK(I29))),1,I28/I29)) -> 0.9924065937 | J30: =IF(ISBLANK(J28),"N/A",IF(AND(J28=0,J29=0,NOT(ISBLANK(J28)),NOT(ISBLANK(J29))),1,J28/J29)) -> 0.9928043371 | K30: =IF(ISBLANK(K28),"N/A",IF(AND(K28=0,K29=0,NOT(ISBLANK(K28)),NOT(ISBLANK(K29))),1,K28/K29)) -> N/A | O30: FALSE | P30: FALSE | Q30: =IF(AND(OR(ISBLANK(J20),ISBLANK(J21)),O30=FALSE),"Red","Gray") -> Gray | R30: =IF(AND(OR(ISBLANK(K24),ISBLANK(K25)),P30=FALSE),"Red","Gray") -> Red | T30: Highlands
A31: =LEFT(B31,3)&" "&RIGHT(B31,6) -> CGE CQ2-17 | B31: CGE CQ2-17 | C31: RPE 03/31/16 | I31: Qtr 1 | J31: Qtr 2 | K31: Qtr 3 | L31: Additional Notes Related to Collection Issues | O31: FALSE | P31: FALSE | Q31: =IF(AND(OR(ISBLANK(J24),ISBLANK(J25)),O31=FALSE),"Red","Gray") -> Gray | R31: =IF(AND(OR(ISBLANK(K28),ISBLANK(K29)),P31=FALSE),"Red","Gray") -> Red | T31: Hillsborough
C32: C = Cumulative Collections | I32: 477367.87 | J32: 487108.87 | O32: FALSE | P32: FALSE | Q32: =IF(AND(OR(ISBLANK(J28),ISBLANK(J29)),O32=FALSE),"Red","Gray") -> Gray | R32: =IF(AND(OR(ISBLANK(K32),ISBLANK(K33)),P32=FALSE),"Red","Gray") -> Red | T32: Holmes
C33: A = Amount Assessed - Adjusted | I33: 490168.86 | J33: 490168.86 | O33: FALSE | P33: FALSE | Q33: =IF(AND(OR(ISBLANK(J32),ISBLANK(J33)),O33=FALSE),"Red","Gray") -> Gray | R33: =IF(AND(OR(ISBLANK(K36),ISBLANK(K37)),P33=FALSE),"Red","Gray") -> Red | T33: Indian River
C34: CR = Collection Rate | I34: =IF(ISBLANK(I32),"N/A",IF(AND(I32=0,I33=0,NOT(ISBLANK(I32)),NOT(ISBLANK(I33))),1,I32/I33)) -> 0.9738845303 | J34: =IF(ISBLANK(J32),"N/A",IF(AND(J32=0,J33=0,NOT(ISBLANK(J32)),NOT(ISBLANK(J33))),1,J32/J33)) -> 0.9937572738 | K34: =IF(ISBLANK(K32),"N/A",IF(AND(K32=0,K33=0,NOT(ISBLANK(K32)),NOT(ISBLANK(K33))),1,K32/K33)) -> N/A | O34: FALSE | P34: FALSE | Q34: =IF(AND(OR(ISBLANK(J36),ISBLANK(J37)),O34=FALSE),"Red","Gray") -> Gray | R34: =IF(AND(OR(ISBLANK(K40),ISBLANK(K41)),P34=FALSE),"Red","Gray") -> Red | T34: Jackson
A35: =LEFT(B35,3)&" "&RIGHT(B35,6) -> CGE CQ3-17 | B35: CGE CQ3-17 | C35: RPE 06/30/16 | J35: Qtr 1 | K35: Qtr 2 | T35: Jefferson
C36: C = Cumulative Collections | J36: 467669.3 | O36: =IF(AND('Circuit Criminal'!$D$4=1,Q23="Red"),"Red","Gray") -> Gray | P36: =IF(AND('Circuit Criminal'!$D$4=2,R23="Red"),"Red","Gray") -> Gray | Q36: =IF(AND('Circuit Criminal'!$D$4=3,Q30="Red"),"Red","Gray") -> Gray | R36: =IF(AND('Circuit Criminal'!$D$4=4,R30="Red"),"Red","Gray") -> Gray | S36: =COUNTIF(O36:R36,"Red") -> 0 | T36: Lafayette
C37: A = Amount Assessed - Adjusted | J37: 484686.28 | O37: =IF(AND('Circuit Criminal'!$D$4=1,Q24="Red"),"Red","Gray") -> Gray | P37: =IF(AND('Circuit Criminal'!$D$4=2,R24="Red"),"Red","Gray") -> Gray | Q37: =IF(AND('Circuit Criminal'!$D$4=3,Q31="Red"),"Red","Gray") -> Gray | R37: =IF(AND('Circuit Criminal'!$D$4=4,R31="Red"),"Red","Gray") -> Gray | S37: =COUNTIF(O37:R37,"Red") -> 0 | T37: Lake
C38: CR = Collection Rate | J38: =IF(ISBLANK(J36),"N/A",IF(AND(J36=0,J37=0,NOT(ISBLANK(J36)),NOT(ISBLANK(J37))),1,J36/J37)) -> 0.964890733 | K38: =IF(ISBLANK(K36),"N/A",IF(AND(K36=0,K37=0,NOT(ISBLANK(K36)),NOT(ISBLANK(K37))),1,K36/K37)) -> N/A | O38: =IF(AND('Circuit Criminal'!$D$4=1,Q25="Red"),"Red","Gray") -> Gray | P38: =IF(AND('Circuit Criminal'!$D$4=2,R25="Red"),"Red","Gray") -> Gray | Q38: =IF(AND('Circuit Criminal'!$D$4=3,Q32="Red"),"Red","Gray") -> Gray | R38: =IF(AND('Circuit Criminal'!$D$4=4,R32="Red"),"Red","Gray") -> Gray | S38: =COUNTIF(O38:R38,"Red") -> 0 | T38: Lee
A39: =LEFT(B39,3)&" "&RIGHT(B39,6) -> CGE CQ4-17 | B39: CGE CQ4-17 | C39: RPE 09/30/16 | K39: Qtr 1 | O39: =IF(AND('Circuit Criminal'!$D$4=1,Q26="Red"),"Red","Gray") -> Gray | P39: =IF(AND('Circuit Criminal'!$D$4=2,R26="Red"),"Red","Gray") -> Gray | Q39: =IF(AND('Circuit Criminal'!$D$4=3,Q33="Red"),"Red","Gray") -> Gray | R39: =IF(AND('Circuit Criminal'!$D$4=4,R33="Red"),"Red","Gray") -> Gray | S39: =COUNTIF(O39:R39,"Red") -> 0 | T39: Leon
C40: C = Cumulative Collections | O40: =IF(AND('Circuit Criminal'!$D$4=1,Q27="Red"),"Red","Gray") -> Gray | P40: =IF(AND('Circuit Criminal'!$D$4=2,R27="Red"),"Red","Gray") -> Gray | Q40: =IF(AND('Circuit Criminal'!$D$4=3,Q34="Red"),"Red","Gray") -> Gray | R40: =IF(AND('Circuit Criminal'!$D$4=4,R34="Red"),"Red","Gray") -> Gray | S40: =COUNTIF(O40:R40,"Red") -> 0 | T40: Levy
C41: A = Amount Assessed - Adjusted | O41: =COUNTIF(O36:O40,"Red") -> 0 | P41: =COUNTIF(P36:P40,"Red") -> 0 | Q41: =COUNTIF(Q36:Q40,"Red") -> 0 | R41: =COUNTIF(R36:R40,"Red") -> 0 | T41: Liberty
C42: CR = Collection Rate | K42: =IF(ISBLANK(K40),"N/A",IF(OR(K40=0,K40="N/A"),0,K40/K41)) -> N/A | O42: =SUM(O41:R41) -> 0 | T42: Madison
C43: Business Rules | D43: Purpose of Report: The CCOC Collection Rate Performance Measure report tracks dollars in the quarter they are assessed and then how well those assessed dollars have been collected over the next five quarters. | H43: Adjustments to Assessments: The amount assessed in a given assessment control group should be adjusted in the reporting period when assessments are later adjusted by the Court or other provisions of law. | T43: Manatee
C44: NOTES: | D44: The following conditions will alert when performance standards are not met and/or established business rules within the control group are not followed. | T44: Martin
D45: 1.) Action Plan: If the 5th quarter Collection Rate is below Standard (red numbers on rose background), select a "Reason Code" and write a brief statement in "Current Action to Improve" in the green area ONLY. | T45: Nassau
D46: 2.) Additional Notes Related to Collection Issues: Include a brief explaination when either of the following conditions not consistant with the Collection Report Business Rules. | T46: Okaloosa
E47: a.) Cumulative Collection amount has Decreased from the previous quarter in the same Control Group (font color for amount will change to RED) | T47: Okeechobee
E48: b.) The Amount Assessed - Adjusted has Increased from the previous quarter in the same Control Group (font color for amount will change to RED) | T48: Orange
T49: Nassau
T50: Okaloosa
T51: Okeechobee
T52: Orange
T53: Pasco
T54: Pinellas
T55: Polk
B56: =MAX('Circuit Civil'!B56:B99) -> 7 | D56: Issue | F56: Calc 1 Needed | G56: Calc 2 Needed | H56: Calc 3 Needed | I56: Calc 4 Needed | J56: Standard | T56: Putnam
A57: =D$8 -> County Civil | B57: =IF(E57="YES",MAX(B56)+1,0) -> 0 | C57: =A$11 -> CGE CQ1-16 | D57: ="After 3rd Q, Collections went up by more than set percentage of: "&TEXT(J57,"#0%") -> After 3rd Q, Collections went up by more than set percentage of: 500% | E57: =IF(MAX(F57:G57)>V$10,"YES","NO") -> NO | F57: =IFERROR(IF(NOT(ISBLANK(G12)),(G12-F12)/F12,0),0) -> 1.157575095e-05 | G57: =IFERROR(IF(NOT(ISBLANK(H12)),(H12-G12)/G12,0),0) -> 0 | J57: =V$10 -> 5 | T57: Santa Rosa
A58: =D$8 -> County Civil | B58: =IF(E58="YES",MAX(B$56:B57)+1,0) -> 0 | C58: =A$11 -> CGE CQ1-16 | D58: ="Assessments dropped by more than set percentage of: "&TEXT(J58,"#0%") -> Assessments dropped by more than set percentage of: 15% | E58: =IF(MIN(F58:I58)<(-1*V$11),"YES","NO") -> NO | F58: =IFERROR(IF(NOT(ISBLANK(E13)),(E13-D13)/D13,0),0) -> -0.0002196082471 | G58: =IFERROR(IF(NOT(ISBLANK(F13)),(F13-E13)/E13,0),0) -> -0.0001965347502 | H58: =IFERROR(IF(NOT(ISBLANK(G13)),(G13-F13)/F13,0),0) -> 0 | I58: =IFERROR(IF(NOT(ISBLANK(H13)),(H13-G13)/G13,0),0) -> 0 | J58: =V$11 -> 0.15 | T58: Sumter
A59: County Civil | B59: =IF(E59="YES",MAX(B$56:B58)+1,0) -> 0 | C59: =A$11 -> CGE CQ1-16 | D59: ="The 5th Quarter Collection Rate did not meet the established performance measure standard of: "&TEXT(J59,"#0%") -> The 5th Quarter Collection Rate did not meet the established performance measure standard of: 90% | E59: =IF(F59="N/A","NO",IF(F59<H$8,"YES","NO")) -> NO | F59: =H14 -> 0.9989221534 | J59: =H$8 -> 0.9 | T59: Washington
A60: County Civil | B60: =IF(E60="YES",MAX(B$56:B59)+1,0) -> 0 | C60: =A$11 -> CGE CQ1-16 | D60: Collections amount decreased from prior quarter | E60: =IF(MIN(F60:I60)<0,"YES","NO") -> NO | F60: =IFERROR(IF(NOT(ISBLANK(E12)),(E12-D12)/D12,0),0) -> 0.0203916306 | G60: 0 | H60: 1.157575095e-05 | I60: 0
A61: County Civil | B61: =IF(E61="YES",MAX(B$56:B60)+1,0) -> 0 | C61: =A$11 -> CGE CQ1-16 | D61: Assessment amount increased from prior quarter | E61: =IF(MAX(F61:I61)>0,"YES","NO") -> NO | F61: -0.0002196082471 | G61: -0.0001965347502 | H61: 0 | I61: 0
A62: County Civil | B62: =IF(E62="YES",MAX(B$56:B61)+1,0) -> 0 | C62: =A$15 -> CGE CQ2-16 | D62: ="After 3rd Q, Collections went up by more than set percentage of: "&TEXT(J62,"#0%") -> After 3rd Q, Collections went up by more than set percentage of: 500% | E62: =IF(MAX(F62:G62)>V$10,"YES","NO") -> NO | F62: =IFERROR(IF(NOT(ISBLANK(H16)),(H16-G16)/G16,0),0) -> 0.000678707628 | G62: =IFERROR(IF(NOT(ISBLANK(I16)),(I16-H16)/H16,0),0) -> 0 | J62: =V$10 -> 5 | T62: Sarasota
A63: County Civil | B63: =IF(E63="YES",MAX(B$56:B62)+1,0) -> 0 | C63: =A$15 -> CGE CQ2-16 | D63: ="Assessments dropped by more than set percentage of: "&TEXT(J63,"#0%") -> Assessments dropped by more than set percentage of: 15% | E63: =IF(MIN(F63:I63)<(-1*V$11),"YES","NO") -> NO | F63: =IFERROR(IF(NOT(ISBLANK(F17)),(F17-E17)/E17,0),0) -> -1.583525445e-05 | G63: =IFERROR(IF(NOT(ISBLANK(G17)),(G17-F17)/F17,0),0) -> 0 | H63: =IFERROR(IF(NOT(ISBLANK(H17)),(H17-G17)/G17,0),0) -> 0 | I63: =IFERROR(IF(NOT(ISBLANK(I17)),(I17-H17)/H17,0),0) -> 0 | J63: =V$11 -> 0.15 | T63: Suwannee
A64: County Civil | B64: =IF(E64="YES",MAX(B$56:B63)+1,0) -> 8 | C64: =A$15 -> CGE CQ2-16 | D64: Collections amount decreased from prior quarter | E64: =IF(MIN(F64:I64)<0,"YES","NO") -> YES | F64: =IFERROR(IF(NOT(ISBLANK(F16)),(F16-E16)/E16,0),0) -> 0.02405763624 | G64: -9.921641652e-05 | H64: 0.000678707628 | I64: 0
A65: County Civil | B65: =IF(E65="YES",MAX(B$56:B64)+1,0) -> 0 | C65: =A$15 -> CGE CQ2-16 | D65: Assessment amount increased from prior quarter | E65: =IF(MAX(F65:I65)>0,"YES","NO") -> NO | F65: -1.583525445e-05 | G65: 0 | H65: 0 | I65: 0
A66: County Civil | B66: =IF(E66="YES",MAX(B$56:B65)+1,0) -> 0 | C66: =A$15 -> CGE CQ2-16 | D66: ="The 5th Quarter Collection Rate did not meet the established performance measure standard of: "&TEXT(J66,"#0%") -> The 5th Quarter Collection Rate did not meet the established performance measure standard of: 90% | E66: =IF(F66="N/A","NO",IF(F66<H$8,"YES","NO")) -> NO | F66: =I18 -> 0.9981135954 | J66: =H$8 -> 0.9
A67: County Civil | B67: =IF(E67="YES",MAX(B$56:B66)+1,0) -> 0 | C67: =A$19 -> CGE CQ3-16 | D67: ="After 3rd Q, Collections went up by more than set percentage of: "&TEXT(J67,"#0%") -> After 3rd Q, Collections went up by more than set percentage of: 500% | E67: =IF(MAX(F67:G67)>V$10,"YES","NO") -> NO | F67: =IFERROR(IF(NOT(ISBLANK(I20)),(I20-H20)/H20,0),0) -> 0.0003232765254 | G67: =IFERROR(IF(NOT(ISBLANK(J20)),(J20-I20)/I20,0),0) -> 0 | J67: =V$10 -> 5 | T67: Seminole
A68: County Civil | B68: =IF(E68="YES",MAX(B$56:B67)+1,0) -> 0 | C68: =A$19 -> CGE CQ3-16 | D68: ="Assessments dropped by more than set percentage of: "&TEXT(J68,"#0%") -> Assessments dropped by more than set percentage of: 15% | E68: =IF(MIN(F68:I68)<(-1*V$11),"YES","NO") -> NO | F68: =IFERROR(IF(NOT(ISBLANK(G21)),(G21-F21)/F21,0),0) -> 0 | G68: =IFERROR(IF(NOT(ISBLANK(H21)),(H21-G21)/G21,0),0) -> 0 | H68: =IFERROR(IF(NOT(ISBLANK(I21)),(I21-H21)/H21,0),0) -> 0 | I68: =IFERROR(IF(NOT(ISBLANK(J21)),(J21-I21)/I21,0),0) -> 0 | J68: =V$11 -> 0.15 | T68: Taylor
A69: County Civil | B69: =IF(E69="YES",MAX(B$56:B68)+1,0) -> 0 | C69: =A$19 -> CGE CQ3-16 | D69: Collections amount decreased from prior quarter | E69: =IF(MIN(F69:I69)<0,"YES","NO") -> NO | F69: =IFERROR(IF(NOT(ISBLANK(G20)),(G20-F20)/F20,0),0) -> 0.04711864117 | G69: 0.0001061349084 | H69: 0.0003232765254 | I69: 0
A70: County Civil | B70: =IF(E70="YES",MAX(B$56:B69)+1,0) -> 0 | C70: =A$19 -> CGE CQ3-16 | D70: Assessment amount increased from prior quarter | E70: =IF(MAX(F70:I70)>0,"YES","NO") -> NO | F70: 0 | G70: 0 | H70: 0 | I70: 0
A71: County Civil | B71: =IF(E71="YES",MAX(B$56:B70)+1,0) -> 0 | C71: =A$19 -> CGE CQ3-16 | D71: ="The 5th Quarter Collection Rate did not meet the established performance measure standard of: "&TEXT(J71,"#0%") -> The 5th Quarter Collection Rate did not meet the established performance measure standard of: 90% | E71: =IF(F71="N/A","NO",IF(F71<H$8,"YES","NO")) -> NO | F71: =J22 -> 0.9940464279 | J71: =H$8 -> 0.9
A72: County Civil | B72: =IF(E72="YES",MAX(B$56:B71)+1,0) -> 0 | C72: =A$23 -> CGE CQ4-16 | D72: ="After 3rd Q, Collections went up by more than set percentage of: "&TEXT(J72,"#0%") -> After 3rd Q, Collections went up by more than set percentage of: 500% | E72: =IF(MAX(F72:G72)>V$10,"YES","NO") -> NO | F72: =IFERROR(IF(NOT(ISBLANK(J24)),(J24-I24)/I24,0),0) -> 0 | G72: =IFERROR(IF(NOT(ISBLANK(K24)),(K24-J24)/J24,0),0) -> 0 | J72: =V$10 -> 5 | T72: St. Johns
A73: County Civil | B73: =IF(E73="YES",MAX(B$56:B72)+1,0) -> 0 | C73: =A$23 -> CGE CQ4-16 | D73: ="Assessments dropped by more than set percentage of: "&TEXT(J73,"#0%") -> Assessments dropped by more than set percentage of: 15% | E73: =IF(MIN(F73:I73)<(-1*V$11),"YES","NO") -> NO | F73: =IFERROR(IF(NOT(ISBLANK(H25)),(H25-G25)/G25,0),0) -> 0 | G73: =IFERROR(IF(NOT(ISBLANK(I25)),(I25-H25)/H25,0),0) -> 0 | H73: =IFERROR(IF(NOT(ISBLANK(J25)),(J25-I25)/I25,0),0) -> -0.0001594895246 | I73: =IFERROR(IF(NOT(ISBLANK(K25)),(K25-J25)/J25,0),0) -> 0 | J73: =V$11 -> 0.15 | T73: Union
A74: County Civil | B74: =IF(E74="YES",MAX(B$56:B73)+1,0) -> 0 | C74: =A$23 -> CGE CQ4-16 | D74: Collections amount decreased from prior quarter | E74: =IF(MIN(F74:I74)<0,"YES","NO") -> NO | F74: =IFERROR(IF(NOT(ISBLANK(H24)),(H24-G24)/G24,0),0) -> 0.04206301077 | G74: 0.0001306210997 | H74: 0 | I74: 0
A75: County Civil | B75: =IF(E75="YES",MAX(B$56:B74)+1,0) -> 0 | C75: =A$23 -> CGE CQ4-16 | D75: Assessment amount increased from prior quarter | E75: =IF(MAX(F75:I75)>0,"YES","NO") -> NO | F75: 0 | G75: 0 | H75: -0.0001594895246 | I75: 0
A76: County Civil | B76: =IF(E76="YES",MAX(B$56:B75)+1,0) -> 0 | C76: =A$23 -> CGE CQ4-16 | D76: ="The 5th Quarter Collection Rate did not meet the established performance measure standard of: "&TEXT(J76,"#0%") -> The 5th Quarter Collection Rate did not meet the established performance measure standard of: 90% | E76: =IF(F76="N/A","NO",IF(F76<H$8,"YES","NO")) -> NO | F76: =K26 -> N/A | J76: =H$8 -> 0.9
A77: County Civil | B77: =IF(E77="YES",MAX(B$56:B76)+1,0) -> 0 | C77: =A$27 -> CGE CQ1-17 | D77: ="After 3rd Q, Collections went up by more than set percentage of: "&TEXT(J77,"#0%") -> After 3rd Q, Collections went up by more than set percentage of: 500% | E77: =IF(MAX(F77)>V$10,"YES","NO") -> NO | F77: =IFERROR(IF(NOT(ISBLANK(K28)),(K28-J28)/J28,0),0) -> 0 | J77: =V$10 -> 5 | T77: St. Lucie
A78: County Civil | B78: =IF(E78="YES",MAX(B$56:B77)+1,0) -> 0 | C78: =A$27 -> CGE CQ1-17 | D78: ="Assessments dropped by more than set percentage of: "&TEXT(J78,"#0%") -> Assessments dropped by more than set percentage of: 15% | E78: =IF(MIN(F78:H78)<(-1*V$11),"YES","NO") -> NO | F78: =IFERROR(IF(NOT(ISBLANK(I29)),(I29-H29)/H29,0),0) -> 0 | G78: =IFERROR(IF(NOT(ISBLANK(J29)),(J29-I29)/I29,0),0) -> -0.0004006261437 | H78: =IFERROR(IF(NOT(ISBLANK(K29)),(K29-J29)/J29,0),0) -> 0 | J78: =V$11 -> 0.15 | T78: Volusia
A79: County Civil | B79: =IF(E79="YES",MAX(B$56:B78)+1,0) -> 0 | C79: =A$27 -> CGE CQ1-17 | D79: Collections amount decreased from prior quarter | E79: =IF(MIN(F79:H79)<0,"YES","NO") -> NO | F79: =IFERROR(IF(NOT(ISBLANK(I28)),(I28-H28)/H28,0),0) -> 0.01740602683 | G79: 0 | H79: 0
A80: County Civil | B80: =IF(E80="YES",MAX(B$56:B79)+1,0) -> 0 | C80: =A$27 -> CGE CQ1-17 | D80: Assessment amount increased from prior quarter | E80: =IF(MAX(F80:H80)>0,"YES","NO") -> NO | F80: 0 | G80: -0.0004006261437 | H80: 0
A81: County Civil | B81: =IF(E81="YES",MAX(B$56:B80)+1,0) -> 0 | C81: =A$31 -> CGE CQ2-17 | D81: ="Assessments dropped by more than set percentage of: "&TEXT(J81,"#0%") -> Assessments dropped by more than set percentage of: 15% | E81: =IF(MIN(F81:G81)<(-1*V$11),"YES","NO") -> NO | F81: =IFERROR(IF(NOT(ISBLANK(J33)),(J33-I33)/I33,0),0) -> 0 | G81: =IFERROR(IF(NOT(ISBLANK(K33)),(K33-J33)/J33,0),0) -> 0 | J81: =V$11 -> 0.15 | T81: Wakulla
A82: County Civil | B82: =IF(E82="YES",MAX(B$56:B81)+1,0) -> 0 | C82: =A$31 -> CGE CQ2-17 | D82: Collections amount decreased from prior quarter | E82: =IF(MIN(F82:G82)<0,"YES","NO") -> NO | F82: =IFERROR(IF(NOT(ISBLANK(J32)),(J32-I32)/I32,0),0) -> 0.02040564649 | G82: =IFERROR(IF(NOT(ISBLANK(K32)),(K32-J32)/J32,0),0) -> 0
A83: County Civil | B83: =IF(E83="YES",MAX(B$56:B82)+1,0) -> 0 | C83: =A$31 -> CGE CQ2-17 | D83: Assessment amount increased from prior quarter | E83: =IF(MAX(F83:G83)>0,"YES","NO") -> NO | F83: =IFERROR(IF(NOT(ISBLANK(J33)),(J33-I33)/I33,0),0) -> 0 | G83: =IFERROR(IF(NOT(ISBLANK(K33)),(K33-J33)/J33,0),0) -> 0
A84: County Civil | B84: =IF(E84="YES",MAX(B$56:B83)+1,0) -> 0 | C84: =A$35 -> CGE CQ3-17 | D84: ="Assessments dropped by more than set percentage of: "&TEXT(J84,"#0%") -> Assessments dropped by more than set percentage of: 15% | E84: =IF(MIN(F84)<(-1*V$11),"YES","NO") -> NO | F84: =IFERROR(IF(NOT(ISBLANK(K37)),(K37-J37)/J37,0),0) -> 0 | J84: =V$11 -> 0.15 | T84: Walton
A85: County Civil | B85: =IF(E85="YES",MAX(B$56:B84)+1,0) -> 0 | C85: =A$35 -> CGE CQ3-17 | D85: Collections amount decreased from prior quarter | E85: =IF(MIN(F85)<0,"YES","NO") -> NO | F85: =IFERROR(IF(NOT(ISBLANK(K36)),(K36-J36)/J36,0),0) -> 0
A86: County Civil | B86: =IF(E86="YES",MAX(B$56:B85)+1,0) -> 0 | C86: =A$35 -> CGE CQ3-17 | D86: Assessment amount increased from prior quarter | E86: =IF(MAX(F86)>0,"YES","NO") -> NO | F86: =IFERROR(IF(NOT(ISBLANK(K37)),(K37-J37)/J37,0),0) -> 0

Sheet Civil Traffic
M2: County Fiscal Year 2015-2016 | T2: CountyNames
M3: Collections Quarterly Report Form for CCOC | T3: Alachua
C4: Report for Quarter Ending: | D4: ='Circuit Criminal'!D4 -> June 2016 | I4: REQUIRED: Reason Codes AND Action to Improve / Descriptions Required if Measure(s) Not Met | T4: Baker
C5: Version #: | D5: ='Circuit Criminal'!$D$5 -> 1 | J5: Internal: Must clarify reason AND expected duration internal reason will be resolved | T5: Bay
C6: County: | D6: ='Circuit Criminal'!D6 -> Brevard | J6: External: Detailed explanation of external reason the measure wasn't met | T6: Bradford
T7: Brevard
C8: Court/Case Type: | D8: Civil Traffic | G8: Performance Measure Standard: | H8: 0.9 | T8: Broward
L9: Action Plan | N9: 1 | O9: version #1 | P9: Qtr1 - December | Q9: 1 | T9: Calhoun
C10: Control Groups | D10: 10/01/14 - 12/31/14 | E10: 01/01/15 - 03/31/15 | F10: 04/01/15 - 06/30/15 | G10: 07/01/15 - 09/30/15 | H10: 10/01/15 - 12/31/15 | I10: 01/01/16 - 03/31/16 | J10: 04/01/16 - 06/30/16 | K10: 07/01/16 - 09/30/16 | L10: Reason Code | M10: Current Actions to Improve | O10: version #2 | P10: Qtr 2 - March | T10: Charlotte | V10: 5
A11: =LEFT(B11,3)&" "&RIGHT(B11,6) -> CGE CQ1-16 | B11: CGE CQ1-16 | C11: RPE 12/31/14 | D11: Qtr 1 | E11: Qtr 2 | F11: Qtr 3 | G11: Qtr 4 | H11: Qtr 5 | L11: External | M11: The standard was not met despite pursuit of all collection efforts within the control the Clerk. By the end of this fiscal year, we anticipate a change by the judiciary which will require payment on the day of sentencing with direction to either pay in full or enroll in a payment plan. | N11: Economy | O11: version #3 | P11: Qtr 3 - June | Q11: 3 | T11: Citrus | U11: =D6&" "&D8 -> Brevard Civil Traffic | V11: 0.15
C12: C = Cumulative Collections | D12: =LOOKUP($U$11,Lookup!$C$3:$C$672,Lookup!I$3:I$672) -> 809749.26 | E12: =LOOKUP($U$11,Lookup!$C$3:$C$672,Lookup!J$3:J$672) -> 1230519.72 | F12: =LOOKUP($U$11,Lookup!$C$3:$C$672,Lookup!K$3:K$672) -> 1314145.38 | G12: =LOOKUP($U$11,Lookup!$C$3:$C$672,Lookup!L$3:L$672) -> 1345937.69 | H12: 1360245.99 | N12: Incarcerations | O12: version #4 | P12: Qtr 4 - September | Q12: 4 | T12: Clay | U12: =IF(P13=TRUE,A11,"") -> CGE CQ1-16
C13: A = Amount Assessed - Adjusted | D13: =LOOKUP($U$11,Lookup!$C$3:$C$672,Lookup!D$3:D$672) -> 1624356.45 | E13: =LOOKUP($U$11,Lookup!$C$3:$C$672,Lookup!E$3:E$672) -> 1528661.3 | F13: =LOOKUP($U$11,Lookup!$C$3:$C$672,Lookup!F$3:F$672) -> 1519829.3 | G13: =LOOKUP($U$11,Lookup!$C$3:$C$672,Lookup!G$3:G$672) -> 1519034.03 | H13: 1518582.03 | N13: Late/Non-pay/Pay Plans | O13: version #5 | P13: =OR(AND(E12<D12,E12>0),AND(F12<E12,F12>0),AND(G12<F12,G12>0),AND(H12<G12,H12>0),AND(F13>E13,E13>0),AND(G13>F13,F13>0),AND(H13<G13,G13>0)) -> TRUE | Q13: 5 | T13: Collier | U13: =IF(P14=TRUE,A15,"") -> CGE CQ2-16
C14: CR = Collection Rate | D14: =IF(ISBLANK(D12),"N/A",IF(OR(D12=0,D12="N/A"),0,D12/D13)) -> 0.4985046601 | E14: =IF(ISBLANK(E12),"N/A",IF(OR(E12=0,E12="N/A"),0,E12/E13)) -> 0.8049655735 | F14: =IF(ISBLANK(F12),"N/A",IF(OR(F12=0,F12="N/A"),0,F12/F13)) -> 0.8646664333 | G14: =IF(ISBLANK(G12),"N/A",IF(OR(G12=0,G12="N/A"),0,G12/G13)) -> 0.886048412 | H14: =IF(ISBLANK(H12),"N/A",IF(AND(H12=0,H13=0,NOT(ISBLANK(H12)),NOT(ISBLANK(H13))),1,H12/H13)) -> 0.8957342858 | N14: Mandatory Assessment | O14: version #6 | P14: =OR(AND(F16<E16,F16>0),AND(G16<F16,G16>0),AND(H16<G16,H16>0),AND(I16<H16,I16>0),AND(G17>F17, F17>0),AND(H17>G17, G17>0),AND(I17<H17,I17>0)) -> TRUE | Q14: 6 | T14: Columbia | U14: =IF(P15=TRUE,A19,"") -> CGE CQ3-16
A15: =LEFT(B15,3)&" "&RIGHT(B15,6) -> CGE CQ2-16 | B15: CGE CQ2-16 | C15: RPE 03/31/15 | E15: Qtr 1 | F15: Qtr 2 | G15: Qtr 3 | H15: Qtr 4 | I15: Qtr 5 | N15: Out of State | O15: version #7 | P15: =OR(AND(G20<F20,D10>0),AND(H20<G20,H20>0),AND(I20<H20,I20>0),AND(J20<I20,J20>0),AND(H21>G21, G21>0),AND(I21>H21, H21>0),AND(J21<I21, J21>0)) -> TRUE | Q15: 7 | T15: Dade | U15: =IF(P16=TRUE,A23,"") -> CGE CQ4-16
C16: C = Cumulative Collections | E16: =LOOKUP($U$11,Lookup!$C$3:$C$672,Lookup!S$3:S$672) -> 840928.05 | F16: =LOOKUP($U$11,Lookup!$C$3:$C$672,Lookup!T$3:T$672) -> 1212667.91 | G16: =LOOKUP($U$11,Lookup!$C$3:$C$672,Lookup!U$3:U$672) -> 1295296.43 | H16: 1323210.89 | I16: 1347720.84 | N16: Procedural | O16: version #8 | P16: =OR(AND(H24<G24, H24>0),AND(I24<H24, I24>0),AND(J24<I24, J24>0),AND(K24<J24, K24>0),AND(I25>H25, H25>0),AND(J25>I25, I25>0),AND(K25<J25, J25>0)) -> TRUE | Q16: 8 | T16: Desoto | U16: =IF(P17=TRUE,A27,"") -> 
C17: A = Amount Assessed - Adjusted | E17: =LOOKUP($U$11,Lookup!$C$3:$C$672,Lookup!N$3:N$672) -> 1583874.7 | F17: =LOOKUP($U$11,Lookup!$C$3:$C$672,Lookup!O$3:O$672) -> 1503688.54 | G17: =LOOKUP($U$11,Lookup!$C$3:$C$672,Lookup!P$3:P$672) -> 1500816.54 | H17: 1499468.82 | I17: 1498997.98 | N17: Staffing - Insufficient Personnel | O17: version #9 | P17: =OR(AND(I28<H28, I28>0),AND(J28<I28, J28>0),AND(K28<J28, K28>0),AND(J29>I29, I29>0),AND(K29>J29, J29>0)) -> FALSE | Q17: 9 | T17: Dixie | U17: =IF(P18=TRUE,A31,"") -> 
C18: CR = Collection Rate | E18: =IF(ISBLANK(E16),"N/A",IF(OR(E16=0,E16="N/A"),0,E16/E17)) -> 0.530930919 | F18: =IF(ISBLANK(F16),"N/A",IF(OR(F16=0,F16="N/A"),0,F16/F17)) -> 0.8064621614 | G18: =IF(ISBLANK(G16),"N/A",IF(OR(G16=0,G16="N/A"),0,G16/G17)) -> 0.8630611374 | H18: =IF(ISBLANK(H16),"N/A",IF(AND(H16=0,H17=0,NOT(ISBLANK(H16)),NOT(ISBLANK(H17))),1,H16/H17)) -> 0.8824530876 | I18: =IF(ISBLANK(I16),"N/A",IF(AND(I16=0,I17=0,NOT(ISBLANK(I16)),NOT(ISBLANK(I17))),1,I16/I17)) -> 0.8990811582 | N18: Staffing - Training Required | O18: version #10 | P18: =OR(AND(J32<I32, J32>0),AND(K32<J32, K32>0),AND(K33>J33, J33>0)) -> FALSE | Q18: 10 | T18: Duval | U18: =IF(P19=TRUE,A35,"") -> CGE CQ3-17
A19: =LEFT(B19,3)&" "&RIGHT(B19,6) -> CGE CQ3-16 | B19: CGE CQ3-16 | C19: RPE 06/30/15 | F19: Qtr 1 | G19: Qtr 2 | H19: Qtr 3 | I19: Qtr 4 | J19: Qtr 5 | L19: Internal | M19: Balance Adjustment | N19: Systems | O19: version #11 | P19: =OR(K36<J36) -> TRUE | Q19: 11 | T19: Escambia | U19: =U12&" "&U13&" "&U14&" "&U15&" "&U16&" "&U17&" "&U18 -> CGE CQ1-16 CGE CQ2-16 CGE CQ3-16 CGE CQ4-16 CGE CQ3-17
C20: C = Cumulative Collections | F20: =LOOKUP($U$11,Lookup!$C$3:$C$672,Lookup!AC$3:AC$672) -> 799282.8 | G20: =LOOKUP($U$11,Lookup!$C$3:$C$672,Lookup!AD$3:AD$672) -> 1167318.78 | H20: 1260471.48 | I20: 1310192.57 | J20: 1325096.89 | N20: Other | O20: version #12 | P20: =COUNTIF(P13:P19,"TRUE") -> 5 | Q20: 12 | T20: Flagler
C21: A = Amount Assessed - Adjusted | F21: =LOOKUP($U$11,Lookup!$C$3:$C$672,Lookup!X$3:X$672) -> 1554541.1 | G21: =LOOKUP($U$11,Lookup!$C$3:$C$672,Lookup!Y$3:Y$672) -> 1483449.63 | H21: 1476708.13 | I21: 1474795.04 | J21: 1474319.54 | T21: Franklin
C22: CR = Collection Rate | F22: =IF(ISBLANK(F20),"N/A",IF(OR(F20=0,F20="N/A"),0,F20/F21)) -> 0.5141599666 | G22: =IF(ISBLANK(G20),"N/A",IF(OR(G20=0,G20="N/A"),0,G20/G21)) -> 0.7868947866 | H22: =IF(ISBLANK(H20),"N/A",IF(AND(H20=0,H21=0,NOT(ISBLANK(H20)),NOT(ISBLANK(H21))),1,H20/H21)) -> 0.853568457 | I22: =IF(ISBLANK(I20),"N/A",IF(AND(I20=0,I21=0,NOT(ISBLANK(I20)),NOT(ISBLANK(I21))),1,I20/I21)) -> 0.8883895962 | J22: =IF(ISBLANK(J20),"N/A",IF(AND(J20=0,J21=0,NOT(ISBLANK(J20)),NOT(ISBLANK(J21))),1,J20/J21)) -> 0.8987854085 | O22: Q1 | P22: Q2 | T22: Gadsden
A23: =LEFT(B23,3)&" "&RIGHT(B23,6) -> CGE CQ4-16 | B23: CGE CQ4-16 | C23: RPE 09/30/15 | G23: Qtr 1 | H23: Qtr 2 | I23: Qtr 3 | J23: Qtr 4 | K23: Qtr 5 | O23: FALSE | P23: FALSE | Q23: =IF(AND(OR(ISBLANK(H12),ISBLANK(H13)),O23=FALSE),"Red","Gray") -> Gray | R23: =IF(AND(OR(ISBLANK(I16),ISBLANK(I17)),P23=FALSE),"Red","Gray") -> Gray | S23: =IF(AND('Circuit Criminal'!D4=1,S36=1),A11,IF(AND('Circuit Criminal'!D4=2,S36=1),A15,IF(AND('Circuit Criminal'!D4=3,S36=1),A19,IF(AND('Circuit Criminal'!D4=4,S36=1),A23,"")))) ->  | T23: Gilchrist
C24: C = Cumulative Collections | G24: =LOOKUP($U$11,Lookup!$C$3:$C$672,Lookup!AM$3:AM$672) -> 726811.93 | H24: 1046404.86 | I24: 1160248.86 | J24: 1191985.91 | O24: FALSE | P24: FALSE | Q24: =IF(AND(OR(ISBLANK(H16),ISBLANK(H17)),O24=FALSE),"Red","Gray") -> Gray | R24: =IF(AND(OR(ISBLANK(I20),ISBLANK(I21)),P24=FALSE),"Red","Gray") -> Gray | S24: =IF(AND('Circuit Criminal'!D4=1,S37=1),A15,IF(AND('Circuit Criminal'!D4=2,S37=1),A19,IF(AND('Circuit Criminal'!D4=3,S37=1),A23,IF(AND('Circuit Criminal'!D4=4,S37=1),A27,"")))) ->  | T24: Glades
C25: A = Amount Assessed - Adjusted | G25: =LOOKUP($U$11,Lookup!$C$3:$C$672,Lookup!AH$3:AH$672) -> 1387136.4 | H25: 1327502.68 | I25: 1323582 | J25: 1322961.68 | O25: FALSE | P25: FALSE | Q25: =IF(AND(OR(ISBLANK(H20),ISBLANK(H21)),O25=FALSE),"Red","Gray") -> Gray | R25: =IF(AND(OR(ISBLANK(I24),ISBLANK(I25)),P25=FALSE),"Red","Gray") -> Gray | S25: =IF(AND('Circuit Criminal'!D4=1,S38=1),A19,IF(AND('Circuit Criminal'!D4=2,S38=1),A23,IF(AND('Circuit Criminal'!D4=3,S38=1),A27,IF(AND('Circuit Criminal'!D4=4,S38=1),A31,"")))) ->  | T25: Gulf
C26: CR = Collection Rate | G26: =IF(ISBLANK(G24),"N/A",IF(OR(G24=0,G24="N/A"),0,G24/G25)) -> 0.5239657254 | H26: =IF(ISBLANK(H24),"N/A",IF(AND(H24=0,H25=0,NOT(ISBLANK(H24)),NOT(ISBLANK(H25))),1,H24/H25)) -> 0.7882506572 | I26: =IF(ISBLANK(I24),"N/A",IF(AND(I24=0,I25=0,NOT(ISBLANK(I24)),NOT(ISBLANK(I25))),1,I24/I25)) -> 0.8765976419 | J26: =IF(ISBLANK(J24),"N/A",IF(AND(J24=0,J25=0,NOT(ISBLANK(J24)),NOT(ISBLANK(J25))),1,J24/J25)) -> 0.9009980622 | K26: =IF(ISBLANK(K24),"N/A",IF(AND(K24=0,K25=0,NOT(ISBLANK(K24)),NOT(ISBLANK(K25))),1,K24/K25)) -> N/A | O26: FALSE | P26: FALSE | Q26: =IF(AND(OR(ISBLANK(H24),ISBLANK(H25)),O26=FALSE),"Red","Gray") -> Gray | R26: =IF(AND(OR(ISBLANK(I28),ISBLANK(I29)),P26=FALSE),"Red","Gray") -> Gray | S26: =IF(AND('Circuit Criminal'!D4=1,S39=1),A23,IF(AND('Circuit Criminal'!D4=2,S39=1),A27,IF(AND('Circuit Criminal'!D4=3,S39=1),A31,IF(AND('Circuit Criminal'!D4=4,S39=1),A35,"")))) ->  | T26: Hamilton
A27: =LEFT(B27,3)&" "&RIGHT(B27,6) -> CGE CQ1-17 | B27: CGE CQ1-17 | C27: RPE 12/31/15 | H27: Qtr 1 | I27: Qtr 2 | J27: Qtr 3 | K27: Qtr 4 | O27: FALSE | P27: FALSE | Q27: =IF(AND(OR(ISBLANK(H28),ISBLANK(H29)),O27=FALSE),"Red","Gray") -> Gray | R27: =IF(AND(OR(ISBLANK(I32),ISBLANK(I33)),P27=FALSE),"Red","Gray") -> Gray | S27: =IF(AND('Circuit Criminal'!D4=1,S40=1),A27,IF(AND('Circuit Criminal'!D4=2,S40=1),A31,IF(AND('Circuit Criminal'!D4=3,S40=1),A35,IF(AND('Circuit Criminal'!D4=4,S40=1),A39,"")))) ->  | T27: Hardee
C28: C = Cumulative Collections | H28: 753746.82 | I28: 1096736.53 | J28: 1161086.08 | T28: Hendry
C29: A = Amount Assessed - Adjusted | H29: 1367103.7 | I29: 1306025.75 | J29: 1302154 | O29: Q3 | P29: Q4 | T29: Hernando
C30: CR = Collection Rate | H30: =IF(ISBLANK(H28),"N/A",IF(AND(H28=0,H29=0,NOT(ISBLANK(H28)),NOT(ISBLANK(H29))),1,H28/H29)) -> 0.5513457538 | I30: =IF(ISBLANK(I28),"N/A",IF(AND(I28=0,I29=0,NOT(ISBLANK(I28)),NOT(ISBLANK(I29))),1,I28/I29)) -> 0.8397510769 | J30: =IF(ISBLANK(J28),"N/A",IF(AND(J28=0,J29=0,NOT(ISBLANK(J28)),NOT(ISBLANK(J29))),1,J28/J29)) -> 0.891665717 | K30: =IF(ISBLANK(K28),"N/A",IF(AND(K28=0,K29=0,NOT(ISBLANK(K28)),NOT(ISBLANK(K29))),1,K28/K29)) -> N/A | O30: FALSE | P30: FALSE | Q30: =IF(AND(OR(ISBLANK(J20),ISBLANK(J21)),O30=FALSE),"Red","Gray") -> Gray | R30: =IF(AND(OR(ISBLANK(K24),ISBLANK(K25)),P30=FALSE),"Red","Gray") -> Red | T30: Highlands
A31: =LEFT(B31,3)&" "&RIGHT(B31,6) -> CGE CQ2-17 | B31: CGE CQ2-17 | C31: RPE 03/31/16 | I31: Qtr 1 | J31: Qtr 2 | K31: Qtr 3 | L31: Additional Notes Related to Collection Issues | O31: FALSE | P31: FALSE | Q31: =IF(AND(OR(ISBLANK(J24),ISBLANK(J25)),O31=FALSE),"Red","Gray") -> Gray | R31: =IF(AND(OR(ISBLANK(K28),ISBLANK(K29)),P31=FALSE),"Red","Gray") -> Red | T31: Hillsborough
C32: C = Cumulative Collections | I32: 843113.9 | J32: 851008.9 | O32: FALSE | P32: FALSE | Q32: =IF(AND(OR(ISBLANK(J28),ISBLANK(J29)),O32=FALSE),"Red","Gray") -> Gray | R32: =IF(AND(OR(ISBLANK(K32),ISBLANK(K33)),P32=FALSE),"Red","Gray") -> Red | T32: Holmes
C33: A = Amount Assessed - Adjusted | I33: 1557605.4 | J33: 1492934.05 | O33: FALSE | P33: FALSE | Q33: =IF(AND(OR(ISBLANK(J32),ISBLANK(J33)),O33=FALSE),"Red","Gray") -> Gray | R33: =IF(AND(OR(ISBLANK(K36),ISBLANK(K37)),P33=FALSE),"Red","Gray") -> Red | T33: Indian River
C34: CR = Collection Rate | I34: =IF(ISBLANK(I32),"N/A",IF(AND(I32=0,I33=0,NOT(ISBLANK(I32)),NOT(ISBLANK(I33))),1,I32/I33)) -> 0.5412885061 | J34: =IF(ISBLANK(J32),"N/A",IF(AND(J32=0,J33=0,NOT(ISBLANK(J32)),NOT(ISBLANK(J33))),1,J32/J33)) -> 0.5700244428 | K34: =IF(ISBLANK(K32),"N/A",IF(AND(K32=0,K33=0,NOT(ISBLANK(K32)),NOT(ISBLANK(K33))),1,K32/K33)) -> N/A | O34: FALSE | P34: FALSE | Q34: =IF(AND(OR(ISBLANK(J36),ISBLANK(J37)),O34=FALSE),"Red","Gray") -> Gray | R34: =IF(AND(OR(ISBLANK(K40),ISBLANK(K41)),P34=FALSE),"Red","Gray") -> Red | T34: Jackson
A35: =LEFT(B35,3)&" "&RIGHT(B35,6) -> CGE CQ3-17 | B35: CGE CQ3-17 | C35: RPE 06/30/16 | J35: Qtr 1 | K35: Qtr 2 | T35: Jefferson
C36: C = Cumulative Collections | J36: 773028.58 | O36: =IF(AND('Circuit Criminal'!$D$4=1,Q23="Red"),"Red","Gray") -> Gray | P36: =IF(AND('Circuit Criminal'!$D$4=2,R23="Red"),"Red","Gray") -> Gray | Q36: =IF(AND('Circuit Criminal'!$D$4=3,Q30="Red"),"Red","Gray") -> Gray | R36: =IF(AND('Circuit Criminal'!$D$4=4,R30="Red"),"Red","Gray") -> Gray | S36: =COUNTIF(O36:R36,"Red") -> 0 | T36: Lafayette
C37: A = Amount Assessed - Adjusted | J37: 1442106.93 | O37: =IF(AND('Circuit Criminal'!$D$4=1,Q24="Red"),"Red","Gray") -> Gray | P37: =IF(AND('Circuit Criminal'!$D$4=2,R24="Red"),"Red","Gray") -> Gray | Q37: =IF(AND('Circuit Criminal'!$D$4=3,Q31="Red"),"Red","Gray") -> Gray | R37: =IF(AND('Circuit Criminal'!$D$4=4,R31="Red"),"Red","Gray") -> Gray | S37: =COUNTIF(O37:R37,"Red") -> 0 | T37: Lake
C38: CR = Collection Rate | J38: =IF(ISBLANK(J36),"N/A",IF(AND(J36=0,J37=0,NOT(ISBLANK(J36)),NOT(ISBLANK(J37))),1,J36/J37)) -> 0.5360410965 | K38: =IF(ISBLANK(K36),"N/A",IF(AND(K36=0,K37=0,NOT(ISBLANK(K36)),NOT(ISBLANK(K37))),1,K36/K37)) -> N/A | O38: =IF(AND('Circuit Criminal'!$D$4=1,Q25="Red"),"Red","Gray") -> Gray | P38: =IF(AND('Circuit Criminal'!$D$4=2,R25="Red"),"Red","Gray") -> Gray | Q38: =IF(AND('Circuit Criminal'!$D$4=3,Q32="Red"),"Red","Gray") -> Gray | R38: =IF(AND('Circuit Criminal'!$D$4=4,R32="Red"),"Red","Gray") -> Gray | S38: =COUNTIF(O38:R38,"Red") -> 0 | T38: Lee
A39: =LEFT(B39,3)&" "&RIGHT(B39,6) -> CGE CQ4-17 | B39: CGE CQ4-17 | C39: RPE 09/30/16 | K39: Qtr 1 | O39: =IF(AND('Circuit Criminal'!$D$4=1,Q26="Red"),"Red","Gray") -> Gray | P39: =IF(AND('Circuit Criminal'!$D$4=2,R26="Red"),"Red","Gray") -> Gray | Q39: =IF(AND('Circuit Criminal'!$D$4=3,Q33="Red"),"Red","Gray") -> Gray | R39: =IF(AND('Circuit Criminal'!$D$4=4,R33="Red"),"Red","Gray") -> Gray | S39: =COUNTIF(O39:R39,"Red") -> 0 | T39: Leon
C40: C = Cumulative Collections | O40: =IF(AND('Circuit Criminal'!$D$4=1,Q27="Red"),"Red","Gray") -> Gray | P40: =IF(AND('Circuit Criminal'!$D$4=2,R27="Red"),"Red","Gray") -> Gray | Q40: =IF(AND('Circuit Criminal'!$D$4=3,Q34="Red"),"Red","Gray") -> Gray | R40: =IF(AND('Circuit Criminal'!$D$4=4,R34="Red"),"Red","Gray") -> Gray | S40: =COUNTIF(O40:R40,"Red") -> 0 | T40: Levy
C41: A = Amount Assessed - Adjusted | O41: =COUNTIF(O36:O40,"Red") -> 0 | P41: =COUNTIF(P36:P40,"Red") -> 0 | Q41: =COUNTIF(Q36:Q40,"Red") -> 0 | R41: =COUNTIF(R36:R40,"Red") -> 0 | T41: Liberty
C42: CR = Collection Rate | K42: =IF(ISBLANK(K40),"N/A",IF(OR(K40=0,K40="N/A"),0,K40/K41)) -> N/A | O42: =SUM(O41:R41) -> 0 | T42: Madison
C43: Business Rules | D43: Purpose of Report: The CCOC Collection Rate Performance Measure report tracks dollars in the quarter they are assessed and then how well those assessed dollars have been collected over the next five quarters. | H43: Adjustments to Assessments: The amount assessed in a given assessment control group should be adjusted in the reporting period when assessments are later adjusted by the Court or other provisions of law. | T43: Manatee
C44: NOTES: | D44: The following conditions will alert when performance standards are not met and/or established business rules within the control group are not followed. | T44: Martin
D45: 1.) Action Plan: If the 5th quarter Collection Rate is below Standard (red numbers on rose background), select a "Reason Code" and write a brief statement in "Current Action to Improve" in the green area ONLY. | T45: Nassau
D46: 2.) Additional Notes Related to Collection Issues: Include a brief explaination when either of the following conditions not consistant with the Collection Report Business Rules. | T46: Okaloosa
E47: a.) Cumulative Collection amount has Decreased from the previous quarter in the same Control Group (font color for amount will change to RED) | T47: Okeechobee
E48: b.) The Amount Assessed - Adjusted has Increased from the previous quarter in the same Control Group (font color for amount will change to RED) | T48: Orange
T49: Nassau
T50: Okaloosa
T51: Okeechobee
T52: Orange
T53: Pasco
T54: Pinellas
T55: Polk
B56: =MAX('County Civil'!B56:B99) -> 8 | D56: Issue | F56: Calc 1 Needed | G56: Calc 2 Needed | H56: Calc 3 Needed | I56: Calc 4 Needed | J56: Standard | T56: Putnam
A57: =D$8 -> Civil Traffic | B57: =IF(E57="YES",MAX(B56)+1,0) -> 0 | C57: =A$11 -> CGE CQ1-16 | D57: ="After 3rd Q, Collections went up by more than set percentage of: "&TEXT(J57,"#0%") -> After 3rd Q, Collections went up by more than set percentage of: 500% | E57: =IF(MAX(F57:G57)>V$10,"YES","NO") -> NO | F57: =IFERROR(IF(NOT(ISBLANK(G12)),(G12-F12)/F12,0),0) -> 0.02419238426 | G57: =IFERROR(IF(NOT(ISBLANK(H12)),(H12-G12)/G12,0),0) -> 0.01063072987 | J57: =V$10 -> 5 | T57: Santa Rosa
A58: =D$8 -> Civil Traffic | B58: =IF(E58="YES",MAX(B$56:B57)+1,0) -> 0 | C58: =A$11 -> CGE CQ1-16 | D58: ="Assessments dropped by more than set percentage of: "&TEXT(J58,"#0%") -> Assessments dropped by more than set percentage of: 15% | E58: =IF(MIN(F58:I58)<(-1*V$11),"YES","NO") -> NO | F58: =IFERROR(IF(NOT(ISBLANK(E13)),(E13-D13)/D13,0),0) -> -0.0589126543 | G58: =IFERROR(IF(NOT(ISBLANK(F13)),(F13-E13)/E13,0),0) -> -0.005777604235 | H58: =IFERROR(IF(NOT(ISBLANK(G13)),(G13-F13)/F13,0),0) -> -0.0005232627111 | I58: =IFERROR(IF(NOT(ISBLANK(H13)),(H13-G13)/G13,0),0) -> -0.0002975575208 | J58: =V$11 -> 0.15 | T58: Sumter
A59: Civil Traffic | B59: =IF(E59="YES",MAX(B$56:B58)+1,0) -> 9 | C59: =A$11 -> CGE CQ1-16 | D59: ="The 5th Quarter Collection Rate did not meet the established performance measure standard of: "&TEXT(J59,"#0%") -> The 5th Quarter Collection Rate did not meet the established performance measure standard of: 90% | E59: =IF(F59="N/A","NO",IF(F59<H$8,"YES","NO")) -> YES | F59: =H14 -> 0.8957342858 | J59: =H$8 -> 0.9 | T59: Washington
A60: Civil Traffic | B60: =IF(E60="YES",MAX(B$56:B59)+1,0) -> 0 | C60: =A$11 -> CGE CQ1-16 | D60: Collections amount decreased from prior quarter | E60: =IF(MIN(F60:I60)<0,"YES","NO") -> NO | F60: =IFERROR(IF(NOT(ISBLANK(E12)),(E12-D12)/D12,0),0) -> 0.5196305582 | G60: 0.06795962604 | H60: 0.02419238426 | I60: 0.01063072987
A61: Civil Traffic | B61: =IF(E61="YES",MAX(B$56:B60)+1,0) -> 0 | C61: =A$11 -> CGE CQ1-16 | D61: Assessment amount increased from prior quarter | E61: =IF(MAX(F61:I61)>0,"YES","NO") -> NO | F61: -0.0589126543 | G61: -0.005777604235 | H61: -0.0005232627111 | I61: -0.0002975575208
A62: Civil Traffic | B62: =IF(E62="YES",MAX(B$56:B61)+1,0) -> 0 | C62: =A$15 -> CGE CQ2-16 | D62: ="After 3rd Q, Collections went up by more than set percentage of: "&TEXT(J62,"#0%") -> After 3rd Q, Collections went up by more than set percentage of: 500% | E62: =IF(MAX(F62:G62)>V$10,"YES","NO") -> NO | F62: =IFERROR(IF(NOT(ISBLANK(H16)),(H16-G16)/G16,0),0) -> 0.02155063455 | G62: =IFERROR(IF(NOT(ISBLANK(I16)),(I16-H16)/H16,0),0) -> 0.01852308667 | J62: =V$10 -> 5 | T62: Sarasota
A63: Civil Traffic | B63: =IF(E63="YES",MAX(B$56:B62)+1,0) -> 0 | C63: =A$15 -> CGE CQ2-16 | D63: ="Assessments dropped by more than set percentage of: "&TEXT(J63,"#0%") -> Assessments dropped by more than set percentage of: 15% | E63: =IF(MIN(F63:I63)<(-1*V$11),"YES","NO") -> NO | F63: =IFERROR(IF(NOT(ISBLANK(F17)),(F17-E17)/E17,0),0) -> -0.0506265805 | G63: =IFERROR(IF(NOT(ISBLANK(G17)),(G17-F17)/F17,0),0) -> -0.00190997 | H63: =IFERROR(IF(NOT(ISBLANK(H17)),(H17-G17)/G17,0),0) -> -0.0008979911695 | I63: =IFERROR(IF(NOT(ISBLANK(I17)),(I17-H17)/H17,0),0) -> -0.0003140045286 | J63: =V$11 -> 0.15 | T63: Suwannee
A64: Civil Traffic | B64: =IF(E64="YES",MAX(B$56:B63)+1,0) -> 0 | C64: =A$15 -> CGE CQ2-16 | D64: Collections amount decreased from prior quarter | E64: =IF(MIN(F64:I64)<0,"YES","NO") -> NO | F64: =IFERROR(IF(NOT(ISBLANK(F16)),(F16-E16)/E16,0),0) -> 0.4420590561 | G64: 0.0681377971 | H64: 0.02155063455 | I64: 0.01852308667
A65: Civil Traffic | B65: =IF(E65="YES",MAX(B$56:B64)+1,0) -> 0 | C65: =A$15 -> CGE CQ2-16 | D65: Assessment amount increased from prior quarter | E65: =IF(MAX(F65:I65)>0,"YES","NO") -> NO | F65: -0.0506265805 | G65: -0.00190997 | H65: -0.0008979911695 | I65: -0.0003140045286
A66: Civil Traffic | B66: =IF(E66="YES",MAX(B$56:B65)+1,0) -> 10 | C66: =A$15 -> CGE CQ2-16 | D66: ="The 5th Quarter Collection Rate did not meet the established performance measure standard of: "&TEXT(J66,"#0%") -> The 5th Quarter Collection Rate did not meet the established performance measure standard of: 90% | E66: =IF(F66="N/A","NO",IF(F66<H$8,"YES","NO")) -> YES | F66: =I18 -> 0.8990811582 | J66: =H$8 -> 0.9
A67: Civil Traffic | B67: =IF(E67="YES",MAX(B$56:B66)+1,0) -> 0 | C67: =A$19 -> CGE CQ3-16 | D67: ="After 3rd Q, Collections went up by more than set percentage of: "&TEXT(J67,"#0%") -> After 3rd Q, Collections went up by more than set percentage of: 500% | E67: =IF(MAX(F67:G67)>V$10,"YES","NO") -> NO | F67: =IFERROR(IF(NOT(ISBLANK(I20)),(I20-H20)/H20,0),0) -> 0.03944642206 | G67: =IFERROR(IF(NOT(ISBLANK(J20)),(J20-I20)/I20,0),0) -> 0.01137567129 | J67: =V$10 -> 5 | T67: Seminole
A68: Civil Traffic | B68: =IF(E68="YES",MAX(B$56:B67)+1,0) -> 0 | C68: =A$19 -> CGE CQ3-16 | D68: ="Assessments dropped by more than set percentage of: "&TEXT(J68,"#0%") -> Assessments dropped by more than set percentage of: 15% | E68: =IF(MIN(F68:I68)<(-1*V$11),"YES","NO") -> NO | F68: =IFERROR(IF(NOT(ISBLANK(G21)),(G21-F21)/F21,0),0) -> -0.04573148307 | G68: =IFERROR(IF(NOT(ISBLANK(H21)),(H21-G21)/G21,0),0) -> -0.004544475164 | H68: =IFERROR(IF(NOT(ISBLANK(I21)),(I21-H21)/H21,0),0) -> -0.001295509899 | I68: =IFERROR(IF(NOT(ISBLANK(J21)),(J21-I21)/I21,0),0) -> -0.0003224176832 | J68: =V$11 -> 0.15 | T68: Taylor
A69: Civil Traffic | B69: =IF(E69="YES",MAX(B$56:B68)+1,0) -> 0 | C69: =A$19 -> CGE CQ3-16 | D69: Collections amount decreased from prior quarter | E69: =IF(MIN(F69:I69)<0,"YES","NO") -> NO | F69: =IFERROR(IF(NOT(ISBLANK(G20)),(G20-F20)/F20,0),0) -> 0.4604577754 | G69: 0.07980056656 | H69: 0.03944642206 | I69: 0.01137567129
A70: Civil Traffic | B70: =IF(E70="YES",MAX(B$56:B69)+1,0) -> 0 | C70: =A$19 -> CGE CQ3-16 | D70: Assessment amount increased from prior quarter | E70: =IF(MAX(F70:I70)>0,"YES","NO") -> NO | F70: -0.04573148307 | G70: -0.004544475164 | H70: -0.001295509899 | I70: -0.0003224176832
A71: Civil Traffic | B71: =IF(E71="YES",MAX(B$56:B70)+1,0) -> 11 | C71: =A$19 -> CGE CQ3-16 | D71: ="The 5th Quarter Collection Rate did not meet the established performance measure standard of: "&TEXT(J71,"#0%") -> The 5th Quarter Collection Rate did not meet the established performance measure standard of: 90% | E71: =IF(F71="N/A","NO",IF(F71<H$8,"YES","NO")) -> YES | F71: =J22 -> 0.8987854085 | J71: =H$8 -> 0.9
A72: Civil Traffic | B72: =IF(E72="YES",MAX(B$56:B71)+1,0) -> 0 | C72: =A$23 -> CGE CQ4-16 | D72: ="After 3rd Q, Collections went up by more than set percentage of: "&TEXT(J72,"#0%") -> After 3rd Q, Collections went up by more than set percentage of: 500% | E72: =IF(MAX(F72:G72)>V$10,"YES","NO") -> NO | F72: =IFERROR(IF(NOT(ISBLANK(J24)),(J24-I24)/I24,0),0) -> 0.02735365756 | G72: =IFERROR(IF(NOT(ISBLANK(K24)),(K24-J24)/J24,0),0) -> 0 | J72: =V$10 -> 5 | T72: St. Johns
A73: Civil Traffic | B73: =IF(E73="YES",MAX(B$56:B72)+1,0) -> 0 | C73: =A$23 -> CGE CQ4-16 | D73: ="Assessments dropped by more than set percentage of: "&TEXT(J73,"#0%") -> Assessments dropped by more than set percentage of: 15% | E73: =IF(MIN(F73:I73)<(-1*V$11),"YES","NO") -> NO | F73: =IFERROR(IF(NOT(ISBLANK(H25)),(H25-G25)/G25,0),0) -> -0.0429905235 | G73: =IFERROR(IF(NOT(ISBLANK(I25)),(I25-H25)/H25,0),0) -> -0.002953425299 | H73: =IFERROR(IF(NOT(ISBLANK(J25)),(J25-I25)/I25,0),0) -> -0.0004686676005 | I73: =IFERROR(IF(NOT(ISBLANK(K25)),(K25-J25)/J25,0),0) -> 0 | J73: =V$11 -> 0.15 | T73: Union
A74: Civil Traffic | B74: =IF(E74="YES",MAX(B$56:B73)+1,0) -> 0 | C74: =A$23 -> CGE CQ4-16 | D74: Collections amount decreased from prior quarter | E74: =IF(MIN(F74:I74)<0,"YES","NO") -> NO | F74: =IFERROR(IF(NOT(ISBLANK(H24)),(H24-G24)/G24,0),0) -> 0.439718883 | G74: 0.1087953663 | H74: 0.02735365756 | I74: 0
A75: Civil Traffic | B75: =IF(E75="YES",MAX(B$56:B74)+1,0) -> 0 | C75: =A$23 -> CGE CQ4-16 | D75: Assessment amount increased from prior quarter | E75: =IF(MAX(F75:I75)>0,"YES","NO") -> NO | F75: -0.0429905235 | G75: -0.002953425299 | H75: -0.0004686676005 | I75: 0
A76: Civil Traffic | B76: =IF(E76="YES",MAX(B$56:B75)+1,0) -> 0 | C76: =A$23 -> CGE CQ4-16 | D76: ="The 5th Quarter Collection Rate did not meet the established performance measure standard of: "&TEXT(J76,"#0%") -> The 5th Quarter Collection Rate did not meet the established performance measure standard of: 90% | E76: =IF(F76="N/A","NO",IF(F76<H$8,"YES","NO")) -> NO | F76: =K26 -> N/A | J76: =H$8 -> 0.9
A77: Civil Traffic | B77: =IF(E77="YES",MAX(B$56:B76)+1,0) -> 0 | C77: =A$27 -> CGE CQ1-17 | D77: ="After 3rd Q, Collections went up by more than set percentage of: "&TEXT(J77,"#0%") -> After 3rd Q, Collections went up by more than set percentage of: 500% | E77: =IF(MAX(F77)>V$10,"YES","NO") -> NO | F77: =IFERROR(IF(NOT(ISBLANK(K28)),(K28-J28)/J28,0),0) -> 0 | J77: =V$10 -> 5 | T77: St. Lucie
A78: Civil Traffic | B78: =IF(E78="YES",MAX(B$56:B77)+1,0) -> 0 | C78: =A$27 -> CGE CQ1-17 | D78: ="Assessments dropped by more than set percentage of: "&TEXT(J78,"#0%") -> Assessments dropped by more than set percentage of: 15% | E78: =IF(MIN(F78:H78)<(-1*V$11),"YES","NO") -> NO | F78: =IFERROR(IF(NOT(ISBLANK(I29)),(I29-H29)/H29,0),0) -> -0.04467689613 | G78: =IFERROR(IF(NOT(ISBLANK(J29)),(J29-I29)/I29,0),0) -> -0.002964528073 | H78: =IFERROR(IF(NOT(ISBLANK(K29)),(K29-J29)/J29,0),0) -> 0 | J78: =V$11 -> 0.15 | T78: Volusia
A79: Civil Traffic | B79: =IF(E79="YES",MAX(B$56:B78)+1,0) -> 0 | C79: =A$27 -> CGE CQ1-17 | D79: Collections amount decreased from prior quarter | E79: =IF(MIN(F79:H79)<0,"YES","NO") -> NO | F79: =IFERROR(IF(NOT(ISBLANK(I28)),(I28-H28)/H28,0),0) -> 0.4550463112 | G79: 0.0586736634 | H79: 0
A80: Civil Traffic | B80: =IF(E80="YES",MAX(B$56:B79)+1,0) -> 0 | C80: =A$27 -> CGE CQ1-17 | D80: Assessment amount increased from prior quarter | E80: =IF(MAX(F80:H80)>0,"YES","NO") -> NO | F80: -0.04467689613 | G80: -0.002964528073 | H80: 0
A81: Civil Traffic | B81: =IF(E81="YES",MAX(B$56:B80)+1,0) -> 0 | C81: =A$31 -> CGE CQ2-17 | D81: ="Assessments dropped by more than set percentage of: "&TEXT(J81,"#0%") -> Assessments dropped by more than set percentage of: 15% | E81: =IF(MIN(F81:G81)<(-1*V$11),"YES","NO") -> NO | F81: =IFERROR(IF(NOT(ISBLANK(J33)),(J33-I33)/I33,0),0) -> -0.04151972637 | G81: =IFERROR(IF(NOT(ISBLANK(K33)),(K33-J33)/J33,0),0) -> 0 | J81: =V$11 -> 0.15 | T81: Wakulla
A82: Civil Traffic | B82: =IF(E82="YES",MAX(B$56:B81)+1,0) -> 0 | C82: =A$31 -> CGE CQ2-17 | D82: Collections amount decreased from prior quarter | E82: =IF(MIN(F82:G82)<0,"YES","NO") -> NO | F82: =IFERROR(IF(NOT(ISBLANK(J32)),(J32-I32)/I32,0),0) -> 0.009364096595 | G82: =IFERROR(IF(NOT(ISBLANK(K32)),(K32-J32)/J32,0),0) -> 0
A83: Civil Traffic | B83: =IF(E83="YES",MAX(B$56:B82)+1,0) -> 0 | C83: =A$31 -> CGE CQ2-17 | D83: Assessment amount increased from prior quarter | E83: =IF(MAX(F83:G83)>0,"YES","NO") -> NO | F83: =IFERROR(IF(NOT(ISBLANK(J33)),(J33-I33)/I33,0),0) -> -0.04151972637 | G83: =IFERROR(IF(NOT(ISBLANK(K33)),(K33-J33)/J33,0),0) -> 0
A84: Civil Traffic | B84: =IF(E84="YES",MAX(B$56:B83)+1,0) -> 0 | C84: =A$35 -> CGE CQ3-17 | D84: ="Assessments dropped by more than set percentage of: "&TEXT(J84,"#0%") -> Assessments dropped by more than set percentage of: 15% | E84: =IF(MIN(F84)<(-1*V$11),"YES","NO") -> NO | F84: =IFERROR(IF(NOT(ISBLANK(K37)),(K37-J37)/J37,0),0) -> 0 | J84: =V$11 -> 0.15 | T84: Walton
A85: Civil Traffic | B85: =IF(E85="YES",MAX(B$56:B84)+1,0) -> 0 | C85: =A$35 -> CGE CQ3-17 | D85: Collections amount decreased from prior quarter | E85: =IF(MIN(F85)<0,"YES","NO") -> NO | F85: =IFERROR(IF(NOT(ISBLANK(K36)),(K36-J36)/J36,0),0) -> 0
A86: Civil Traffic | B86: =IF(E86="YES",MAX(B$56:B85)+1,0) -> 0 | C86: =A$35 -> CGE CQ3-17 | D86: Assessment amount increased from prior quarter | E86: =IF(MAX(F86)>0,"YES","NO") -> NO | F86: =IFERROR(IF(NOT(ISBLANK(K37)),(K37-J37)/J37,0),0) -> 0

Sheet Probate
M2: County Fiscal Year 2015-2016 | T2: CountyNames
M3: Collections Quarterly Report Form for CCOC | T3: Alachua
C4: Report for Quarter Ending: | D4: ='Circuit Criminal'!D4 -> June 2016 | I4: REQUIRED: Reason Codes AND Action to Improve / Descriptions Required if Measure(s) Not Met | T4: Baker
C5: Version #: | D5: ='Circuit Criminal'!$D$5 -> 1 | J5: Internal: Must clarify reason AND expected duration internal reason will be resolved | T5: Bay
C6: County: | D6: ='Circuit Criminal'!D6 -> Brevard | J6: External: Detailed explanation of external reason the measure wasn't met | T6: Bradford
T7: Brevard
C8: Court/Case Type: | D8: Probate | G8: Performance Measure Standard: | H8: 0.9 | T8: Broward
L9: Action Plan | N9: 1 | O9: version #1 | P9: Qtr1 - December | Q9: 1 | T9: Calhoun
C10: Control Groups | D10: 10/01/14 - 12/31/14 | E10: 01/01/15 - 03/31/15 | F10: 04/01/15 - 06/30/15 | G10: 07/01/15 - 09/30/15 | H10: 10/01/15 - 12/31/15 | I10: 01/01/16 - 03/31/16 | J10: 04/01/16 - 06/30/16 | K10: 07/01/16 - 09/30/16 | L10: Reason Code | M10: Current Actions to Improve | O10: version #2 | P10: Qtr 2 - March | T10: Charlotte | V10: 5
A11: =LEFT(B11,3)&" "&RIGHT(B11,6) -> CGE CQ1-16 | B11: CGE CQ1-16 | C11: RPE 12/31/14 | D11: Qtr 1 | E11: Qtr 2 | F11: Qtr 3 | G11: Qtr 4 | H11: Qtr 5 | N11: Economy | O11: version #3 | P11: Qtr 3 - June | Q11: 3 | T11: Citrus | U11: =D6&" "&D8 -> Brevard Probate | V11: 0.15
C12: C = Cumulative Collections | D12: =LOOKUP($U$11,Lookup!$C$3:$C$672,Lookup!I$3:I$672) -> 188761.82 | E12: =LOOKUP($U$11,Lookup!$C$3:$C$672,Lookup!J$3:J$672) -> 190840.5 | F12: =LOOKUP($U$11,Lookup!$C$3:$C$672,Lookup!K$3:K$672) -> 190986.5 | G12: =LOOKUP($U$11,Lookup!$C$3:$C$672,Lookup!L$3:L$672) -> 190965.5 | H12: 190986.5 | N12: Incarcerations | O12: version #4 | P12: Qtr 4 - September | Q12: 4 | T12: Clay | U12: =IF(P13=TRUE,A11,"") -> CGE CQ1-16
C13: A = Amount Assessed - Adjusted | D13: =LOOKUP($U$11,Lookup!$C$3:$C$672,Lookup!D$3:D$672) -> 192352.5 | E13: =LOOKUP($U$11,Lookup!$C$3:$C$672,Lookup!E$3:E$672) -> 192352.5 | F13: =LOOKUP($U$11,Lookup!$C$3:$C$672,Lookup!F$3:F$672) -> 192352.5 | G13: =LOOKUP($U$11,Lookup!$C$3:$C$672,Lookup!G$3:G$672) -> 192352.5 | H13: 192352.5 | N13: Late/Non-pay/Pay Plans | O13: version #5 | P13: =OR(AND(E12<D12,E12>0),AND(F12<E12,F12>0),AND(G12<F12,G12>0),AND(H12<G12,H12>0),AND(F13>E13,E13>0),AND(G13>F13,F13>0),AND(H13<G13,G13>0)) -> TRUE | Q13: 5 | T13: Collier | U13: =IF(P14=TRUE,A15,"") -> CGE CQ2-16
C14: CR = Collection Rate | D14: =IF(ISBLANK(D12),"N/A",IF(OR(D12=0,D12="N/A"),0,D12/D13)) -> 0.9813328135 | E14: =IF(ISBLANK(E12),"N/A",IF(OR(E12=0,E12="N/A"),0,E12/E13)) -> 0.9921394315 | F14: =IF(ISBLANK(F12),"N/A",IF(OR(F12=0,F12="N/A"),0,F12/F13)) -> 0.9928984547 | G14: =IF(ISBLANK(G12),"N/A",IF(OR(G12=0,G12="N/A"),0,G12/G13)) -> 0.9927892801 | H14: =IF(ISBLANK(H12),"N/A",IF(AND(H12=0,H13=0,NOT(ISBLANK(H12)),NOT(ISBLANK(H13))),1,H12/H13)) -> 0.9928984547 | N14: Mandatory Assessment | O14: version #6 | P14: =OR(AND(F16<E16,F16>0),AND(G16<F16,G16>0),AND(H16<G16,H16>0),AND(I16<H16,I16>0),AND(G17>F17, F17>0),AND(H17>G17, G17>0),AND(I17<H17,I17>0)) -> TRUE | Q14: 6 | T14: Columbia | U14: =IF(P15=TRUE,A19,"") -> CGE CQ3-16
A15: =LEFT(B15,3)&" "&RIGHT(B15,6) -> CGE CQ2-16 | B15: CGE CQ2-16 | C15: RPE 03/31/15 | E15: Qtr 1 | F15: Qtr 2 | G15: Qtr 3 | H15: Qtr 4 | I15: Qtr 5 | N15: Other | O15: version #7 | P15: =OR(AND(G20<F20,D10>0),AND(H20<G20,H20>0),AND(I20<H20,I20>0),AND(J20<I20,J20>0),AND(H21>G21, G21>0),AND(I21>H21, H21>0),AND(J21<I21, J21>0)) -> TRUE | Q15: 7 | T15: Dade | U15: =IF(P16=TRUE,A23,"") -> CGE CQ4-16
C16: C = Cumulative Collections | E16: =LOOKUP($U$11,Lookup!$C$3:$C$672,Lookup!S$3:S$672) -> 217557.25 | F16: =LOOKUP($U$11,Lookup!$C$3:$C$672,Lookup!T$3:T$672) -> 223046.25 | G16: =LOOKUP($U$11,Lookup!$C$3:$C$672,Lookup!U$3:U$672) -> 222815.78 | H16: 222815.78 | I16: 222875.25 | N16: Procedural | O16: version #8 | P16: =OR(AND(H24<G24, H24>0),AND(I24<H24, I24>0),AND(J24<I24, J24>0),AND(K24<J24, K24>0),AND(I25>H25, H25>0),AND(J25>I25, I25>0),AND(K25<J25, J25>0)) -> TRUE | Q16: 8 | T16: Desoto | U16: =IF(P17=TRUE,A27,"") -> 
C17: A = Amount Assessed - Adjusted | E17: =LOOKUP($U$11,Lookup!$C$3:$C$672,Lookup!N$3:N$672) -> 223989 | F17: =LOOKUP($U$11,Lookup!$C$3:$C$672,Lookup!O$3:O$672) -> 223989 | G17: =LOOKUP($U$11,Lookup!$C$3:$C$672,Lookup!P$3:P$672) -> 223989 | H17: 223989 | I17: 223989 | N17: Staffing - Insufficient Personnel | O17: version #9 | P17: =OR(AND(I28<H28, I28>0),AND(J28<I28, J28>0),AND(K28<J28, K28>0),AND(J29>I29, I29>0),AND(K29>J29, J29>0)) -> FALSE | Q17: 9 | T17: Dixie | U17: =IF(P18=TRUE,A31,"") -> 
C18: CR = Collection Rate | E18: =IF(ISBLANK(E16),"N/A",IF(OR(E16=0,E16="N/A"),0,E16/E17)) -> 0.9712854203 | F18: =IF(ISBLANK(F16),"N/A",IF(OR(F16=0,F16="N/A"),0,F16/F17)) -> 0.995791088 | G18: =IF(ISBLANK(G16),"N/A",IF(OR(G16=0,G16="N/A"),0,G16/G17)) -> 0.9947621535 | H18: =IF(ISBLANK(H16),"N/A",IF(AND(H16=0,H17=0,NOT(ISBLANK(H16)),NOT(ISBLANK(H17))),1,H16/H17)) -> 0.9947621535 | I18: =IF(ISBLANK(I16),"N/A",IF(AND(I16=0,I17=0,NOT(ISBLANK(I16)),NOT(ISBLANK(I17))),1,I16/I17)) -> 0.9950276576 | N18: Staffing - Training Required | O18: version #10 | P18: =OR(AND(J32<I32, J32>0),AND(K32<J32, K32>0),AND(K33>J33, J33>0)) -> FALSE | Q18: 10 | T18: Duval | U18: =IF(P19=TRUE,A35,"") -> CGE CQ3-17
A19: =LEFT(B19,3)&" "&RIGHT(B19,6) -> CGE CQ3-16 | B19: CGE CQ3-16 | C19: RPE 06/30/15 | F19: Qtr 1 | G19: Qtr 2 | H19: Qtr 3 | I19: Qtr 4 | J19: Qtr 5 | L19: Internal | M19: Balance Adjustments | N19: Systems | O19: version #11 | P19: =OR(K36<J36) -> TRUE | Q19: 11 | T19: Escambia | U19: =U12&" "&U13&" "&U14&" "&U15&" "&U16&" "&U17&" "&U18 -> CGE CQ1-16 CGE CQ2-16 CGE CQ3-16 CGE CQ4-16 CGE CQ3-17
C20: C = Cumulative Collections | F20: =LOOKUP($U$11,Lookup!$C$3:$C$672,Lookup!AC$3:AC$672) -> 222888.9 | G20: =LOOKUP($U$11,Lookup!$C$3:$C$672,Lookup!AD$3:AD$672) -> 234835.9 | H20: 234883.34 | I20: 234883.34 | J20: 234633.34 | O20: version #12 | P20: =COUNTIF(P13:P19,"TRUE") -> 5 | Q20: 12 | T20: Flagler
C21: A = Amount Assessed - Adjusted | F21: =LOOKUP($U$11,Lookup!$C$3:$C$672,Lookup!X$3:X$672) -> 237024.9 | G21: =LOOKUP($U$11,Lookup!$C$3:$C$672,Lookup!Y$3:Y$672) -> 236624.9 | H21: 236624.9 | I21: 236624.9 | J21: 236624.9 | T21: Franklin
C22: CR = Collection Rate | F22: =IF(ISBLANK(F20),"N/A",IF(OR(F20=0,F20="N/A"),0,F20/F21)) -> 0.9403606963 | G22: =IF(ISBLANK(G20),"N/A",IF(OR(G20=0,G20="N/A"),0,G20/G21)) -> 0.9924395108 | H22: =IF(ISBLANK(H20),"N/A",IF(AND(H20=0,H21=0,NOT(ISBLANK(H20)),NOT(ISBLANK(H21))),1,H20/H21)) -> 0.9926399969 | I22: =IF(ISBLANK(I20),"N/A",IF(AND(I20=0,I21=0,NOT(ISBLANK(I20)),NOT(ISBLANK(I21))),1,I20/I21)) -> 0.9926399969 | J22: =IF(ISBLANK(J20),"N/A",IF(AND(J20=0,J21=0,NOT(ISBLANK(J20)),NOT(ISBLANK(J21))),1,J20/J21)) -> 0.9915834724 | O22: Q1 | P22: Q2 | T22: Gadsden
A23: =LEFT(B23,3)&" "&RIGHT(B23,6) -> CGE CQ4-16 | B23: CGE CQ4-16 | C23: RPE 09/30/15 | G23: Qtr 1 | H23: Qtr 2 | I23: Qtr 3 | J23: Qtr 4 | K23: Qtr 5 | O23: FALSE | P23: FALSE | Q23: =IF(AND(OR(ISBLANK(H12),ISBLANK(H13)),O23=FALSE),"Red","Gray") -> Gray | R23: =IF(AND(OR(ISBLANK(I16),ISBLANK(I17)),P23=FALSE),"Red","Gray") -> Gray | S23: =IF(AND('Circuit Criminal'!D4=1,S36=1),A11,IF(AND('Circuit Criminal'!D4=2,S36=1),A15,IF(AND('Circuit Criminal'!D4=3,S36=1),A19,IF(AND('Circuit Criminal'!D4=4,S36=1),A23,"")))) ->  | T23: Gilchrist
C24: C = Cumulative Collections | G24: =LOOKUP($U$11,Lookup!$C$3:$C$672,Lookup!AM$3:AM$672) -> 218002.14 | H24: 222435.14 | I24: 222435.17 | J24: 222435.17 | O24: FALSE | P24: FALSE | Q24: =IF(AND(OR(ISBLANK(H16),ISBLANK(H17)),O24=FALSE),"Red","Gray") -> Gray | R24: =IF(AND(OR(ISBLANK(I20),ISBLANK(I21)),P24=FALSE),"Red","Gray") -> Gray | S24: =IF(AND('Circuit Criminal'!D4=1,S37=1),A15,IF(AND('Circuit Criminal'!D4=2,S37=1),A19,IF(AND('Circuit Criminal'!D4=3,S37=1),A23,IF(AND('Circuit Criminal'!D4=4,S37=1),A27,"")))) ->  | T24: Glades
C25: A = Amount Assessed - Adjusted | G25: =LOOKUP($U$11,Lookup!$C$3:$C$672,Lookup!AH$3:AH$672) -> 223842.05 | H25: 223842.05 | I25: 223842.05 | J25: 223842.05 | O25: FALSE | P25: FALSE | Q25: =IF(AND(OR(ISBLANK(H20),ISBLANK(H21)),O25=FALSE),"Red","Gray") -> Gray | R25: =IF(AND(OR(ISBLANK(I24),ISBLANK(I25)),P25=FALSE),"Red","Gray") -> Gray | S25: =IF(AND('Circuit Criminal'!D4=1,S38=1),A19,IF(AND('Circuit Criminal'!D4=2,S38=1),A23,IF(AND('Circuit Criminal'!D4=3,S38=1),A27,IF(AND('Circuit Criminal'!D4=4,S38=1),A31,"")))) ->  | T25: Gulf
C26: CR = Collection Rate | G26: =IF(ISBLANK(G24),"N/A",IF(OR(G24=0,G24="N/A"),0,G24/G25)) -> 0.9739105767 | H26: =IF(ISBLANK(H24),"N/A",IF(AND(H24=0,H25=0,NOT(ISBLANK(H24)),NOT(ISBLANK(H25))),1,H24/H25)) -> 0.9937147198 | I26: =IF(ISBLANK(I24),"N/A",IF(AND(I24=0,I25=0,NOT(ISBLANK(I24)),NOT(ISBLANK(I25))),1,I24/I25)) -> 0.9937148538 | J26: =IF(ISBLANK(J24),"N/A",IF(AND(J24=0,J25=0,NOT(ISBLANK(J24)),NOT(ISBLANK(J25))),1,J24/J25)) -> 0.9937148538 | K26: =IF(ISBLANK(K24),"N/A",IF(AND(K24=0,K25=0,NOT(ISBLANK(K24)),NOT(ISBLANK(K25))),1,K24/K25)) -> N/A | O26: FALSE | P26: FALSE | Q26: =IF(AND(OR(ISBLANK(H24),ISBLANK(H25)),O26=FALSE),"Red","Gray") -> Gray | R26: =IF(AND(OR(ISBLANK(I28),ISBLANK(I29)),P26=FALSE),"Red","Gray") -> Gray | S26: =IF(AND('Circuit Criminal'!D4=1,S39=1),A23,IF(AND('Circuit Criminal'!D4=2,S39=1),A27,IF(AND('Circuit Criminal'!D4=3,S39=1),A31,IF(AND('Circuit Criminal'!D4=4,S39=1),A35,"")))) ->  | T26: Hamilton
A27: =LEFT(B27,3)&" "&RIGHT(B27,6) -> CGE CQ1-17 | B27: CGE CQ1-17 | C27: RPE 12/31/15 | H27: Qtr 1 | I27: Qtr 2 | J27: Qtr 3 | K27: Qtr 4 | O27: FALSE | P27: FALSE | Q27: =IF(AND(OR(ISBLANK(H28),ISBLANK(H29)),O27=FALSE),"Red","Gray") -> Gray | R27: =IF(AND(OR(ISBLANK(I32),ISBLANK(I33)),P27=FALSE),"Red","Gray") -> Gray | S27: =IF(AND('Circuit Criminal'!D4=1,S40=1),A27,IF(AND('Circuit Criminal'!D4=2,S40=1),A31,IF(AND('Circuit Criminal'!D4=3,S40=1),A35,IF(AND('Circuit Criminal'!D4=4,S40=1),A39,"")))) ->  | T27: Hardee
C28: C = Cumulative Collections | H28: 196189.85 | I28: 197488.85 | J28: 197659.85 | T28: Hendry
C29: A = Amount Assessed - Adjusted | H29: 198583.85 | I29: 198583.85 | J29: 198583.85 | O29: Q3 | P29: Q4 | T29: Hernando
C30: CR = Collection Rate | H30: =IF(ISBLANK(H28),"N/A",IF(AND(H28=0,H29=0,NOT(ISBLANK(H28)),NOT(ISBLANK(H29))),1,H28/H29)) -> 0.987944639 | I30: =IF(ISBLANK(I28),"N/A",IF(AND(I28=0,I29=0,NOT(ISBLANK(I28)),NOT(ISBLANK(I29))),1,I28/I29)) -> 0.9944859564 | J30: =IF(ISBLANK(J28),"N/A",IF(AND(J28=0,J29=0,NOT(ISBLANK(J28)),NOT(ISBLANK(J29))),1,J28/J29)) -> 0.9953470537 | K30: =IF(ISBLANK(K28),"N/A",IF(AND(K28=0,K29=0,NOT(ISBLANK(K28)),NOT(ISBLANK(K29))),1,K28/K29)) -> N/A | O30: FALSE | P30: FALSE | Q30: =IF(AND(OR(ISBLANK(J20),ISBLANK(J21)),O30=FALSE),"Red","Gray") -> Gray | R30: =IF(AND(OR(ISBLANK(K24),ISBLANK(K25)),P30=FALSE),"Red","Gray") -> Red | T30: Highlands
A31: =LEFT(B31,3)&" "&RIGHT(B31,6) -> CGE CQ2-17 | B31: CGE CQ2-17 | C31: RPE 03/31/16 | I31: Qtr 1 | J31: Qtr 2 | K31: Qtr 3 | L31: Additional Notes Related to Collection Issues | O31: FALSE | P31: FALSE | Q31: =IF(AND(OR(ISBLANK(J24),ISBLANK(J25)),O31=FALSE),"Red","Gray") -> Gray | R31: =IF(AND(OR(ISBLANK(K28),ISBLANK(K29)),P31=FALSE),"Red","Gray") -> Red | T31: Hillsborough
C32: C = Cumulative Collections | I32: 231727 | J32: 238930 | O32: FALSE | P32: FALSE | Q32: =IF(AND(OR(ISBLANK(J28),ISBLANK(J29)),O32=FALSE),"Red","Gray") -> Gray | R32: =IF(AND(OR(ISBLANK(K32),ISBLANK(K33)),P32=FALSE),"Red","Gray") -> Red | T32: Holmes
C33: A = Amount Assessed - Adjusted | I33: 240099.2 | J33: 240099.2 | O33: FALSE | P33: FALSE | Q33: =IF(AND(OR(ISBLANK(J32),ISBLANK(J33)),O33=FALSE),"Red","Gray") -> Gray | R33: =IF(AND(OR(ISBLANK(K36),ISBLANK(K37)),P33=FALSE),"Red","Gray") -> Red | T33: Indian River
C34: CR = Collection Rate | I34: =IF(ISBLANK(I32),"N/A",IF(AND(I32=0,I33=0,NOT(ISBLANK(I32)),NOT(ISBLANK(I33))),1,I32/I33)) -> 0.9651302462 | J34: =IF(ISBLANK(J32),"N/A",IF(AND(J32=0,J33=0,NOT(ISBLANK(J32)),NOT(ISBLANK(J33))),1,J32/J33)) -> 0.9951303461 | K34: =IF(ISBLANK(K32),"N/A",IF(AND(K32=0,K33=0,NOT(ISBLANK(K32)),NOT(ISBLANK(K33))),1,K32/K33)) -> N/A | O34: FALSE | P34: FALSE | Q34: =IF(AND(OR(ISBLANK(J36),ISBLANK(J37)),O34=FALSE),"Red","Gray") -> Gray | R34: =IF(AND(OR(ISBLANK(K40),ISBLANK(K41)),P34=FALSE),"Red","Gray") -> Red | T34: Jackson
A35: =LEFT(B35,3)&" "&RIGHT(B35,6) -> CGE CQ3-17 | B35: CGE CQ3-17 | C35: RPE 06/30/16 | J35: Qtr 1 | K35: Qtr 2 | T35: Jefferson
C36: C = Cumulative Collections | J36: 227672.75 | O36: =IF(AND('Circuit Criminal'!$D$4=1,Q23="Red"),"Red","Gray") -> Gray | P36: =IF(AND('Circuit Criminal'!$D$4=2,R23="Red"),"Red","Gray") -> Gray | Q36: =IF(AND('Circuit Criminal'!$D$4=3,Q30="Red"),"Red","Gray") -> Gray | R36: =IF(AND('Circuit Criminal'!$D$4=4,R30="Red"),"Red","Gray") -> Gray | S36: =COUNTIF(O36:R36,"Red") -> 0 | T36: Lafayette
C37: A = Amount Assessed - Adjusted | J37: 237509.6 | O37: =IF(AND('Circuit Criminal'!$D$4=1,Q24="Red"),"Red","Gray") -> Gray | P37: =IF(AND('Circuit Criminal'!$D$4=2,R24="Red"),"Red","Gray") -> Gray | Q37: =IF(AND('Circuit Criminal'!$D$4=3,Q31="Red"),"Red","Gray") -> Gray | R37: =IF(AND('Circuit Criminal'!$D$4=4,R31="Red"),"Red","Gray") -> Gray | S37: =COUNTIF(O37:R37,"Red") -> 0 | T37: Lake
C38: CR = Collection Rate | J38: =IF(ISBLANK(J36),"N/A",IF(AND(J36=0,J37=0,NOT(ISBLANK(J36)),NOT(ISBLANK(J37))),1,J36/J37)) -> 0.9585833583 | K38: =IF(ISBLANK(K36),"N/A",IF(AND(K36=0,K37=0,NOT(ISBLANK(K36)),NOT(ISBLANK(K37))),1,K36/K37)) -> N/A | O38: =IF(AND('Circuit Criminal'!$D$4=1,Q25="Red"),"Red","Gray") -> Gray | P38: =IF(AND('Circuit Criminal'!$D$4=2,R25="Red"),"Red","Gray") -> Gray | Q38: =IF(AND('Circuit Criminal'!$D$4=3,Q32="Red"),"Red","Gray") -> Gray | R38: =IF(AND('Circuit Criminal'!$D$4=4,R32="Red"),"Red","Gray") -> Gray | S38: =COUNTIF(O38:R38,"Red") -> 0 | T38: Lee
A39: =LEFT(B39,3)&" "&RIGHT(B39,6) -> CGE CQ4-17 | B39: CGE CQ4-17 | C39: RPE 09/30/16 | K39: Qtr 1 | O39: =IF(AND('Circuit Criminal'!$D$4=1,Q26="Red"),"Red","Gray") -> Gray | P39: =IF(AND('Circuit Criminal'!$D$4=2,R26="Red"),"Red","Gray") -> Gray | Q39: =IF(AND('Circuit Criminal'!$D$4=3,Q33="Red"),"Red","Gray") -> Gray | R39: =IF(AND('Circuit Criminal'!$D$4=4,R33="Red"),"Red","Gray") -> Gray | S39: =COUNTIF(O39:R39,"Red") -> 0 | T39: Leon
C40: C = Cumulative Collections | O40: =IF(AND('Circuit Criminal'!$D$4=1,Q27="Red"),"Red","Gray") -> Gray | P40: =IF(AND('Circuit Criminal'!$D$4=2,R27="Red"),"Red","Gray") -> Gray | Q40: =IF(AND('Circuit Criminal'!$D$4=3,Q34="Red"),"Red","Gray") -> Gray | R40: =IF(AND('Circuit Criminal'!$D$4=4,R34="Red"),"Red","Gray") -> Gray | S40: =COUNTIF(O40:R40,"Red") -> 0 | T40: Levy
C41: A = Amount Assessed - Adjusted | O41: =COUNTIF(O36:O40,"Red") -> 0 | P41: =COUNTIF(P36:P40,"Red") -> 0 | Q41: =COUNTIF(Q36:Q40,"Red") -> 0 | R41: =COUNTIF(R36:R40,"Red") -> 0 | T41: Liberty
C42: CR = Collection Rate | K42: =IF(ISBLANK(K40),"N/A",IF(OR(K40=0,K40="N/A"),0,K40/K41)) -> N/A | O42: =SUM(O41:R41) -> 0 | T42: Madison
C43: Business Rules | D43: Purpose of Report: The CCOC Collection Rate Performance Measure report tracks dollars in the quarter they are assessed and then how well those assessed dollars have been collected over the next five quarters. | H43: Adjustments to Assessments: The amount assessed in a given assessment control group should be adjusted in the reporting period when assessments are later adjusted by the Court or other provisions of law. | T43: Manatee
C44: NOTES: | D44: The following conditions will alert when performance standards are not met and/or established business rules within the control group are not followed. | T44: Martin
D45: 1.) Action Plan: If the 5th quarter Collection Rate is below Standard (red numbers on rose background), select a "Reason Code" and write a brief statement in "Current Action to Improve" in the green area ONLY. | T45: Nassau
D46: 2.) Additional Notes Related to Collection Issues: Include a brief explaination when either of the following conditions not consistant with the Collection Report Business Rules. | T46: Okaloosa
E47: a.) Cumulative Collection amount has Decreased from the previous quarter in the same Control Group (font color for amount will change to RED) | T47: Okeechobee
E48: b.) The Amount Assessed - Adjusted has Increased from the previous quarter in the same Control Group (font color for amount will change to RED) | T48: Orange
T49: Nassau
T50: Okaloosa
T51: Okeechobee
T52: Orange
T53: Pasco
T54: Nassau
T55: Okaloosa
T56: Okeechobee
T57: Orange
T58: Pasco
T59: Pinellas
T60: Polk
B61: =MAX('Civil Traffic'!B56:B99) -> 11 | D61: Issue | F61: Calc 1 Needed | G61: Calc 2 Needed | H61: Calc 3 Needed | I61: Calc 4 Needed | J61: Standard | T61: Putnam
A62: =D$8 -> Probate | B62: =IF(E62="YES",MAX(B61)+1,0) -> 0 | C62: =A$11 -> CGE CQ1-16 | D62: ="After 3rd Q, Collections went up by more than set percentage of: "&TEXT(J62,"#0%") -> After 3rd Q, Collections went up by more than set percentage of: 500% | E62: =IF(MAX(F62:G62)>V$10,"YES","NO") -> NO | F62: =IFERROR(IF(NOT(ISBLANK(G12)),(G12-F12)/F12,0),0) -> -0.0001099554157 | G62: =IFERROR(IF(NOT(ISBLANK(H12)),(H12-G12)/G12,0),0) -> 0.0001099675072 | J62: =V$10 -> 5 | T62: Santa Rosa
A63: =D$8 -> Probate | B63: =IF(E63="YES",MAX(B$61:B62)+1,0) -> 0 | C63: =A$11 -> CGE CQ1-16 | D63: ="Assessments dropped by more than set percentage of: "&TEXT(J63,"#0%") -> Assessments dropped by more than set percentage of: 15% | E63: =IF(MIN(F63:I63)<(-1*V$11),"YES","NO") -> NO | F63: =IFERROR(IF(NOT(ISBLANK(E13)),(E13-D13)/D13,0),0) -> 0 | G63: =IFERROR(IF(NOT(ISBLANK(F13)),(F13-E13)/E13,0),0) -> 0 | H63: =IFERROR(IF(NOT(ISBLANK(G13)),(G13-F13)/F13,0),0) -> 0 | I63: =IFERROR(IF(NOT(ISBLANK(H13)),(H13-G13)/G13,0),0) -> 0 | J63: =V$11 -> 0.15 | T63: Sumter
A64: Probate | B64: =IF(E64="YES",MAX(B$61:B63)+1,0) -> 0 | C64: =A$11 -> CGE CQ1-16 | D64: ="The 5th Quarter Collection Rate did not meet the established performance measure standard of: "&TEXT(J64,"#0%") -> The 5th Quarter Collection Rate did not meet the established performance measure standard of: 90% | E64: =IF(F64="N/A","NO",IF(F64<H$8,"YES","NO")) -> NO | F64: =H14 -> 0.9928984547 | J64: =H$8 -> 0.9 | T64: Washington
A65: Probate | B65: =IF(E65="YES",MAX(B$61:B64)+1,0) -> 12 | C65: =A$11 -> CGE CQ1-16 | D65: Collections amount decreased from prior quarter | E65: =IF(MIN(F65:I65)<0,"YES","NO") -> YES | F65: =IFERROR(IF(NOT(ISBLANK(E12)),(E12-D12)/D12,0),0) -> 0.01101218456 | G65: 0.0007650367715 | H65: -0.0001099554157 | I65: 0.0001099675072
A66: Probate | B66: =IF(E66="YES",MAX(B$61:B65)+1,0) -> 0 | C66: =A$11 -> CGE CQ1-16 | D66: Assessment amount increased from prior quarter | E66: =IF(MAX(F66:I66)>0,"YES","NO") -> NO | F66: 0 | G66: 0 | H66: 0 | I66: 0
A67: Probate | B67: =IF(E67="YES",MAX(B$61:B66)+1,0) -> 0 | C67: =A$15 -> CGE CQ2-16 | D67: ="After 3rd Q, Collections went up by more than set percentage of: "&TEXT(J67,"#0%") -> After 3rd Q, Collections went up by more than set percentage of: 500% | E67: =IF(MAX(F67:G67)>V$10,"YES","NO") -> NO | F67: =IFERROR(IF(NOT(ISBLANK(H16)),(H16-G16)/G16,0),0) -> 0 | G67: =IFERROR(IF(NOT(ISBLANK(I16)),(I16-H16)/H16,0),0) -> 0.0002669021018 | J67: =V$10 -> 5 | T67: Sarasota
A68: Probate | B68: =IF(E68="YES",MAX(B$61:B67)+1,0) -> 0 | C68: =A$15 -> CGE CQ2-16 | D68: ="Assessments dropped by more than set percentage of: "&TEXT(J68,"#0%") -> Assessments dropped by more than set percentage of: 15% | E68: =IF(MIN(F68:I68)<(-1*V$11),"YES","NO") -> NO | F68: =IFERROR(IF(NOT(ISBLANK(F17)),(F17-E17)/E17,0),0) -> 0 | G68: =IFERROR(IF(NOT(ISBLANK(G17)),(G17-F17)/F17,0),0) -> 0 | H68: =IFERROR(IF(NOT(ISBLANK(H17)),(H17-G17)/G17,0),0) -> 0 | I68: =IFERROR(IF(NOT(ISBLANK(I17)),(I17-H17)/H17,0),0) -> 0 | J68: =V$11 -> 0.15 | T68: Suwannee
A69: Probate | B69: =IF(E69="YES",MAX(B$61:B68)+1,0) -> 13 | C69: =A$15 -> CGE CQ2-16 | D69: Collections amount decreased from prior quarter | E69: =IF(MIN(F69:I69)<0,"YES","NO") -> YES | F69: =IFERROR(IF(NOT(ISBLANK(F16)),(F16-E16)/E16,0),0) -> 0.02523014057 | G69: -0.001033283456 | H69: 0 | I69: 0.0002669021018
A70: Probate | B70: =IF(E70="YES",MAX(B$61:B69)+1,0) -> 0 | C70: =A$15 -> CGE CQ2-16 | D70: Assessment amount increased from prior quarter | E70: =IF(MAX(F70:I70)>0,"YES","NO") -> NO | F70: 0 | G70: 0 | H70: 0 | I70: 0
A71: Probate | B71: =IF(E71="YES",MAX(B$61:B70)+1,0) -> 0 | C71: =A$15 -> CGE CQ2-16 | D71: ="The 5th Quarter Collection Rate did not meet the established performance measure standard of: "&TEXT(J71,"#0%") -> The 5th Quarter Collection Rate did not meet the established performance measure standard of: 90% | E71: =IF(F71="N/A","NO",IF(F71<H$8,"YES","NO")) -> NO | F71: =I18 -> 0.9950276576 | J71: =H$8 -> 0.9
A72: Probate | B72: =IF(E72="YES",MAX(B$61:B71)+1,0) -> 0 | C72: =A$19 -> CGE CQ3-16 | D72: ="After 3rd Q, Collections went up by more than set percentage of: "&TEXT(J72,"#0%") -> After 3rd Q, Collections went up by more than set percentage of: 500% | E72: =IF(MAX(F72:G72)>V$10,"YES","NO") -> NO | F72: =IFERROR(IF(NOT(ISBLANK(I20)),(I20-H20)/H20,0),0) -> 0 | G72: =IFERROR(IF(NOT(ISBLANK(J20)),(J20-I20)/I20,0),0) -> -0.001064358162 | J72: =V$10 -> 5 | T72: Seminole
A73: Probate | B73: =IF(E73="YES",MAX(B$61:B72)+1,0) -> 0 | C73: =A$19 -> CGE CQ3-16 | D73: ="Assessments dropped by more than set percentage of: "&TEXT(J73,"#0%") -> Assessments dropped by more than set percentage of: 15% | E73: =IF(MIN(F73:I73)<(-1*V$11),"YES","NO") -> NO | F73: =IFERROR(IF(NOT(ISBLANK(G21)),(G21-F21)/F21,0),0) -> -0.00168758641 | G73: =IFERROR(IF(NOT(ISBLANK(H21)),(H21-G21)/G21,0),0) -> 0 | H73: =IFERROR(IF(NOT(ISBLANK(I21)),(I21-H21)/H21,0),0) -> 0 | I73: =IFERROR(IF(NOT(ISBLANK(J21)),(J21-I21)/I21,0),0) -> 0 | J73: =V$11 -> 0.15 | T73: Taylor
A74: Probate | B74: =IF(E74="YES",MAX(B$61:B73)+1,0) -> 14 | C74: =A$19 -> CGE CQ3-16 | D74: Collections amount decreased from prior quarter | E74: =IF(MIN(F74:I74)<0,"YES","NO") -> YES | F74: =IFERROR(IF(NOT(ISBLANK(G20)),(G20-F20)/F20,0),0) -> 0.05360069523 | G74: 0.000202013406 | H74: 0 | I74: -0.001064358162
A75: Probate | B75: =IF(E75="YES",MAX(B$61:B74)+1,0) -> 0 | C75: =A$19 -> CGE CQ3-16 | D75: Assessment amount increased from prior quarter | E75: =IF(MAX(F75:I75)>0,"YES","NO") -> NO | F75: -0.00168758641 | G75: 0 | H75: 0 | I75: 0
A76: Probate | B76: =IF(E76="YES",MAX(B$61:B75)+1,0) -> 0 | C76: =A$19 -> CGE CQ3-16 | D76: ="The 5th Quarter Collection Rate did not meet the established performance measure standard of: "&TEXT(J76,"#0%") -> The 5th Quarter Collection Rate did not meet the established performance measure standard of: 90% | E76: =IF(F76="N/A","NO",IF(F76<H$8,"YES","NO")) -> NO | F76: =J22 -> 0.9915834724 | J76: =H$8 -> 0.9
A77: Probate | B77: =IF(E77="YES",MAX(B$61:B76)+1,0) -> 0 | C77: =A$23 -> CGE CQ4-16 | D77: ="After 3rd Q, Collections went up by more than set percentage of: "&TEXT(J77,"#0%") -> After 3rd Q, Collections went up by more than set percentage of: 500% | E77: =IF(MAX(F77:G77)>V$10,"YES","NO") -> NO | F77: =IFERROR(IF(NOT(ISBLANK(J24)),(J24-I24)/I24,0),0) -> 0 | G77: =IFERROR(IF(NOT(ISBLANK(K24)),(K24-J24)/J24,0),0) -> 0 | J77: =V$10 -> 5 | T77: St. Johns
A78: Probate | B78: =IF(E78="YES",MAX(B$61:B77)+1,0) -> 0 | C78: =A$23 -> CGE CQ4-16 | D78: ="Assessments dropped by more than set percentage of: "&TEXT(J78,"#0%") -> Assessments dropped by more than set percentage of: 15% | E78: =IF(MIN(F78:I78)<(-1*V$11),"YES","NO") -> NO | F78: =IFERROR(IF(NOT(ISBLANK(H25)),(H25-G25)/G25,0),0) -> 0 | G78: =IFERROR(IF(NOT(ISBLANK(I25)),(I25-H25)/H25,0),0) -> 0 | H78: =IFERROR(IF(NOT(ISBLANK(J25)),(J25-I25)/I25,0),0) -> 0 | I78: =IFERROR(IF(NOT(ISBLANK(K25)),(K25-J25)/J25,0),0) -> 0 | J78: =V$11 -> 0.15 | T78: Union
A79: Probate | B79: =IF(E79="YES",MAX(B$61:B78)+1,0) -> 0 | C79: =A$23 -> CGE CQ4-16 | D79: Collections amount decreased from prior quarter | E79: =IF(MIN(F79:I79)<0,"YES","NO") -> NO | F79: =IFERROR(IF(NOT(ISBLANK(H24)),(H24-G24)/G24,0),0) -> 0.02033466277 | G79: 1.348707763e-07 | H79: 0 | I79: 0
A80: Probate | B80: =IF(E80="YES",MAX(B$61:B79)+1,0) -> 0 | C80: =A$23 -> CGE CQ4-16 | D80: Assessment amount increased from prior quarter | E80: =IF(MAX(F80:I80)>0,"YES","NO") -> NO | F80: 0 | G80: 0 | H80: 0 | I80: 0
A81: Probate | B81: =IF(E81="YES",MAX(B$61:B80)+1,0) -> 0 | C81: =A$23 -> CGE CQ4-16 | D81: ="The 5th Quarter Collection Rate did not meet the established performance measure standard of: "&TEXT(J81,"#0%") -> The 5th Quarter Collection Rate did not meet the established performance measure standard of: 90% | E81: =IF(F81="N/A","NO",IF(F81<H$8,"YES","NO")) -> NO | F81: =K26 -> N/A | J81: =H$8 -> 0.9
A82: Probate | B82: =IF(E82="YES",MAX(B$61:B81)+1,0) -> 0 | C82: =A$27 -> CGE CQ1-17 | D82: ="After 3rd Q, Collections went up by more than set percentage of: "&TEXT(J82,"#0%") -> After 3rd Q, Collections went up by more than set percentage of: 500% | E82: =IF(MAX(F82)>V$10,"YES","NO") -> NO | F82: =IFERROR(IF(NOT(ISBLANK(K28)),(K28-J28)/J28,0),0) -> 0 | J82: =V$10 -> 5 | T82: St. Lucie
A83: Probate | B83: =IF(E83="YES",MAX(B$61:B82)+1,0) -> 0 | C83: =A$27 -> CGE CQ1-17 | D83: ="Assessments dropped by more than set percentage of: "&TEXT(J83,"#0%") -> Assessments dropped by more than set percentage of: 15% | E83: =IF(MIN(F83:H83)<(-1*V$11),"YES","NO") -> NO | F83: =IFERROR(IF(NOT(ISBLANK(I29)),(I29-H29)/H29,0),0) -> 0 | G83: =IFERROR(IF(NOT(ISBLANK(J29)),(J29-I29)/I29,0),0) -> 0 | H83: =IFERROR(IF(NOT(ISBLANK(K29)),(K29-J29)/J29,0),0) -> 0 | J83: =V$11 -> 0.15 | T83: Volusia
A84: Probate | B84: =IF(E84="YES",MAX(B$61:B83)+1,0) -> 0 | C84: =A$27 -> CGE CQ1-17 | D84: Collections amount decreased from prior quarter | E84: =IF(MIN(F84:H84)<0,"YES","NO") -> NO | F84: =IFERROR(IF(NOT(ISBLANK(I28)),(I28-H28)/H28,0),0) -> 0.006621137638 | G84: 0.0008658716682 | H84: 0
A85: Probate | B85: =IF(E85="YES",MAX(B$61:B84)+1,0) -> 0 | C85: =A$27 -> CGE CQ1-17 | D85: Assessment amount increased from prior quarter | E85: =IF(MAX(F85:H85)>0,"YES","NO") -> NO | F85: 0 | G85: 0 | H85: 0
A86: Probate | B86: =IF(E86="YES",MAX(B$61:B85)+1,0) -> 0 | C86: =A$31 -> CGE CQ2-17 | D86: ="Assessments dropped by more than set percentage of: "&TEXT(J86,"#0%") -> Assessments dropped by more than set percentage of: 15% | E86: =IF(MIN(F86:G86)<(-1*V$11),"YES","NO") -> NO | F86: =IFERROR(IF(NOT(ISBLANK(J33)),(J33-I33)/I33,0),0) -> 0 | G86: =IFERROR(IF(NOT(ISBLANK(K33)),(K33-J33)/J33,0),0) -> 0 | J86: =V$11 -> 0.15 | T86: Wakulla
A87: Probate | B87: =IF(E87="YES",MAX(B$61:B86)+1,0) -> 0 | C87: =A$31 -> CGE CQ2-17 | D87: Collections amount decreased from prior quarter | E87: =IF(MIN(F87:G87)<0,"YES","NO") -> NO | F87: =IFERROR(IF(NOT(ISBLANK(J32)),(J32-I32)/I32,0),0) -> 0.03108399108 | G87: =IFERROR(IF(NOT(ISBLANK(K32)),(K32-J32)/J32,0),0) -> 0
A88: Probate | B88: =IF(E88="YES",MAX(B$61:B87)+1,0) -> 0 | C88: =A$31 -> CGE CQ2-17 | D88: Assessment amount increased from prior quarter | E88: =IF(MAX(F88:G88)>0,"YES","NO") -> NO | F88: =IFERROR(IF(NOT(ISBLANK(J33)),(J33-I33)/I33,0),0) -> 0 | G88: =IFERROR(IF(NOT(ISBLANK(K33)),(K33-J33)/J33,0),0) -> 0
A89: Probate | B89: =IF(E89="YES",MAX(B$61:B88)+1,0) -> 0 | C89: =A$35 -> CGE CQ3-17 | D89: ="Assessments dropped by more than set percentage of: "&TEXT(J89,"#0%") -> Assessments dropped by more than set percentage of: 15% | E89: =IF(MIN(F89)<(-1*V$11),"YES","NO") -> NO | F89: =IFERROR(IF(NOT(ISBLANK(K37)),(K37-J37)/J37,0),0) -> 0 | J89: =V$11 -> 0.15 | T89: Walton
A90: Probate | B90: =IF(E90="YES",MAX(B$61:B89)+1,0) -> 0 | C90: =A$35 -> CGE CQ3-17 | D90: Collections amount decreased from prior quarter | E90: =IF(MIN(F90)<0,"YES","NO") -> NO | F90: =IFERROR(IF(NOT(ISBLANK(K36)),(K36-J36)/J36,0),0) -> 0
A91: Probate | B91: =IF(E91="YES",MAX(B$61:B90)+1,0) -> 0 | C91: =A$35 -> CGE CQ3-17 | D91: Assessment amount increased from prior quarter | E91: =IF(MAX(F91)>0,"YES","NO") -> NO | F91: =IFERROR(IF(NOT(ISBLANK(K37)),(K37-J37)/J37,0),0) -> 0

Sheet Family
M2: County Fiscal Year 2015-2016 | T2: CountyNames
M3: Collections Quarterly Report Form for CCOC | T3: Alachua
C4: Report for Quarter Ending: | D4: ='Circuit Criminal'!D4 -> June 2016 | I4: REQUIRED: Reason Codes AND Action to Improve / Descriptions Required if Measure(s) Not Met | T4: Baker
C5: Version #: | D5: ='Circuit Criminal'!$D$5 -> 1 | J5: Internal: Must clarify reason AND expected duration internal reason will be resolved | T5: Bay
C6: County: | D6: ='Circuit Criminal'!D6 -> Brevard | J6: External: Detailed explanation of external reason the measure wasn't met | T6: Bradford
T7: Brevard
C8: Court/Case Type: | D8: Family | G8: Performance Measure Standard: | H8: 0.75 | T8: Broward
L9: Action Plan | N9: 1 | O9: version #1 | P9: Qtr1 - December | Q9: 1 | T9: Calhoun
C10: Control Groups | D10: 10/01/14 - 12/31/14 | E10: 01/01/15 - 03/31/15 | F10: 04/01/15 - 06/30/15 | G10: 07/01/15 - 09/30/15 | H10: 10/01/15 - 12/31/15 | I10: 01/01/16 - 03/31/16 | J10: 04/01/16 - 06/30/16 | K10: 07/01/16 - 09/30/16 | L10: Reason Code | M10: Current Actions to Improve | O10: version #2 | P10: Qtr 2 - March | T10: Charlotte | V10: 5
A11: =LEFT(B11,3)&" "&RIGHT(B11,6) -> CGE CQ1-16 | B11: CGE CQ1-16 | C11: RPE 12/31/14 | D11: Qtr 1 | E11: Qtr 2 | F11: Qtr 3 | G11: Qtr 4 | H11: Qtr 5 | N11: Economy | O11: version #3 | P11: Qtr 3 - June | Q11: 3 | T11: Citrus | U11: =D6&" "&D8 -> Brevard Family | V11: 0.15
C12: C = Cumulative Collections | D12: =LOOKUP($U$11,Lookup!$C$3:$C$672,Lookup!I$3:I$672) -> 250309.21 | E12: =LOOKUP($U$11,Lookup!$C$3:$C$672,Lookup!J$3:J$672) -> 257348.46 | F12: =LOOKUP($U$11,Lookup!$C$3:$C$672,Lookup!K$3:K$672) -> 259900.81 | G12: =LOOKUP($U$11,Lookup!$C$3:$C$672,Lookup!L$3:L$672) -> 260261.11 | H12: 260576.31 | N12: Incarcerations | O12: version #4 | P12: Qtr 4 - September | Q12: 4 | T12: Clay | U12: =IF(P13=TRUE,A11,"") -> 
C13: A = Amount Assessed - Adjusted | D13: =LOOKUP($U$11,Lookup!$C$3:$C$672,Lookup!D$3:D$672) -> 275638.5 | E13: =LOOKUP($U$11,Lookup!$C$3:$C$672,Lookup!E$3:E$672) -> 275223.5 | F13: =LOOKUP($U$11,Lookup!$C$3:$C$672,Lookup!F$3:F$672) -> 275223.5 | G13: =LOOKUP($U$11,Lookup!$C$3:$C$672,Lookup!G$3:G$672) -> 275223.5 | H13: 275223.5 | N13: Late/Non-pay/Pay Plans | O13: version #5 | P13: =OR(AND(E12<D12,E12>0),AND(F12<E12,F12>0),AND(G12<F12,G12>0),AND(H12<G12,H12>0),AND(F13>E13,E13>0),AND(G13>F13,F13>0),AND(H13<G13,G13>0)) -> FALSE | Q13: 5 | T13: Collier | U13: =IF(P14=TRUE,A15,"") -> 
C14: CR = Collection Rate | D14: =IF(ISBLANK(D12),"N/A",IF(OR(D12=0,D12="N/A"),0,D12/D13)) -> 0.9081068501 | E14: =IF(ISBLANK(E12),"N/A",IF(OR(E12=0,E12="N/A"),0,E12/E13)) -> 0.935052639 | F14: =IF(ISBLANK(F12),"N/A",IF(OR(F12=0,F12="N/A"),0,F12/F13)) -> 0.9443263747 | G14: =IF(ISBLANK(G12),"N/A",IF(OR(G12=0,G12="N/A"),0,G12/G13)) -> 0.9456354926 | H14: =IF(ISBLANK(H12),"N/A",IF(AND(H12=0,H13=0,NOT(ISBLANK(H12)),NOT(ISBLANK(H13))),1,H12/H13)) -> 0.9467807437 | N14: Mandatory Assessment | O14: version #6 | P14: =OR(AND(F16<E16,F16>0),AND(G16<F16,G16>0),AND(H16<G16,H16>0),AND(I16<H16,I16>0),AND(G17>F17, F17>0),AND(H17>G17, G17>0),AND(I17<H17,I17>0)) -> FALSE | Q14: 6 | T14: Columbia | U14: =IF(P15=TRUE,A19,"") -> 
A15: =LEFT(B15,3)&" "&RIGHT(B15,6) -> CGE CQ2-16 | B15: CGE CQ2-16 | C15: RPE 03/31/15 | E15: Qtr 1 | F15: Qtr 2 | G15: Qtr 3 | H15: Qtr 4 | I15: Qtr 5 | N15: Other | O15: version #7 | P15: =OR(AND(G20<F20,D10>0),AND(H20<G20,H20>0),AND(I20<H20,I20>0),AND(J20<I20,J20>0),AND(H21>G21, G21>0),AND(I21>H21, H21>0),AND(J21<I21, J21>0)) -> FALSE | Q15: 7 | T15: Dade | U15: =IF(P16=TRUE,A23,"") -> CGE CQ4-16
C16: C = Cumulative Collections | E16: =LOOKUP($U$11,Lookup!$C$3:$C$672,Lookup!S$3:S$672) -> 301897.36 | F16: =LOOKUP($U$11,Lookup!$C$3:$C$672,Lookup!T$3:T$672) -> 313130.08 | G16: =LOOKUP($U$11,Lookup!$C$3:$C$672,Lookup!U$3:U$672) -> 315977.92 | H16: 317079.27 | I16: 318582.36 | N16: Procedural | O16: version #8 | P16: =OR(AND(H24<G24, H24>0),AND(I24<H24, I24>0),AND(J24<I24, J24>0),AND(K24<J24, K24>0),AND(I25>H25, H25>0),AND(J25>I25, I25>0),AND(K25<J25, J25>0)) -> TRUE | Q16: 8 | T16: Desoto | U16: =IF(P17=TRUE,A27,"") -> 
C17: A = Amount Assessed - Adjusted | E17: =LOOKUP($U$11,Lookup!$C$3:$C$672,Lookup!N$3:N$672) -> 336510.1 | F17: =LOOKUP($U$11,Lookup!$C$3:$C$672,Lookup!O$3:O$672) -> 336510.1 | G17: =LOOKUP($U$11,Lookup!$C$3:$C$672,Lookup!P$3:P$672) -> 336510.1 | H17: 336510.1 | I17: 336510.1 | N17: Staffing - Insufficient Personnel | O17: version #9 | P17: =OR(AND(I28<H28, I28>0),AND(J28<I28, J28>0),AND(K28<J28, K28>0),AND(J29>I29, I29>0),AND(K29>J29, J29>0)) -> FALSE | Q17: 9 | T17: Dixie | U17: =IF(P18=TRUE,A31,"") -> 
C18: CR = Collection Rate | E18: =IF(ISBLANK(E16),"N/A",IF(OR(E16=0,E16="N/A"),0,E16/E17)) -> 0.8971420471 | F18: =IF(ISBLANK(F16),"N/A",IF(OR(F16=0,F16="N/A"),0,F16/F17)) -> 0.9305220854 | G18: =IF(ISBLANK(G16),"N/A",IF(OR(G16=0,G16="N/A"),0,G16/G17)) -> 0.9389849517 | H18: =IF(ISBLANK(H16),"N/A",IF(AND(H16=0,H17=0,NOT(ISBLANK(H16)),NOT(ISBLANK(H17))),1,H16/H17)) -> 0.9422578104 | I18: =IF(ISBLANK(I16),"N/A",IF(AND(I16=0,I17=0,NOT(ISBLANK(I16)),NOT(ISBLANK(I17))),1,I16/I17)) -> 0.9467245114 | N18: Staffing - Training Required | O18: version #10 | P18: =OR(AND(J32<I32, J32>0),AND(K32<J32, K32>0),AND(K33>J33, J33>0)) -> FALSE | Q18: 10 | T18: Duval | U18: =IF(P19=TRUE,A35,"") -> CGE CQ3-17
A19: =LEFT(B19,3)&" "&RIGHT(B19,6) -> CGE CQ3-16 | B19: CGE CQ3-16 | C19: RPE 06/30/15 | F19: Qtr 1 | G19: Qtr 2 | H19: Qtr 3 | I19: Qtr 4 | J19: Qtr 5 | N19: Systems | O19: version #11 | P19: =OR(K36<J36) -> TRUE | Q19: 11 | T19: Escambia | U19: =U12&" "&U13&" "&U14&" "&U15&" "&U16&" "&U17&" "&U18 -> CGE CQ4-16 CGE CQ3-17
C20: C = Cumulative Collections | F20: =LOOKUP($U$11,Lookup!$C$3:$C$672,Lookup!AC$3:AC$672) -> 306162.81 | G20: =LOOKUP($U$11,Lookup!$C$3:$C$672,Lookup!AD$3:AD$672) -> 325970.41 | H20: 330617.07 | I20: 333886.75 | J20: 334497.75 | O20: version #12 | P20: =COUNTIF(P13:P19,"TRUE") -> 2 | Q20: 12 | T20: Flagler
C21: A = Amount Assessed - Adjusted | F21: =LOOKUP($U$11,Lookup!$C$3:$C$672,Lookup!X$3:X$672) -> 355166.35 | G21: =LOOKUP($U$11,Lookup!$C$3:$C$672,Lookup!Y$3:Y$672) -> 354971.35 | H21: 354811.35 | I21: 354811.35 | J21: 354811.35 | T21: Franklin
C22: CR = Collection Rate | F22: =IF(ISBLANK(F20),"N/A",IF(OR(F20=0,F20="N/A"),0,F20/F21)) -> 0.8620265124 | G22: =IF(ISBLANK(G20),"N/A",IF(OR(G20=0,G20="N/A"),0,G20/G21)) -> 0.9183006178 | H22: =IF(ISBLANK(H20),"N/A",IF(AND(H20=0,H21=0,NOT(ISBLANK(H20)),NOT(ISBLANK(H21))),1,H20/H21)) -> 0.9318108623 | I22: =IF(ISBLANK(I20),"N/A",IF(AND(I20=0,I21=0,NOT(ISBLANK(I20)),NOT(ISBLANK(I21))),1,I20/I21)) -> 0.9410261256 | J22: =IF(ISBLANK(J20),"N/A",IF(AND(J20=0,J21=0,NOT(ISBLANK(J20)),NOT(ISBLANK(J21))),1,J20/J21)) -> 0.9427481674 | O22: Q1 | P22: Q2 | T22: Gadsden
A23: =LEFT(B23,3)&" "&RIGHT(B23,6) -> CGE CQ4-16 | B23: CGE CQ4-16 | C23: RPE 09/30/15 | G23: Qtr 1 | H23: Qtr 2 | I23: Qtr 3 | J23: Qtr 4 | K23: Qtr 5 | O23: FALSE | P23: FALSE | Q23: =IF(AND(OR(ISBLANK(H12),ISBLANK(H13)),O23=FALSE),"Red","Gray") -> Gray | R23: =IF(AND(OR(ISBLANK(I16),ISBLANK(I17)),P23=FALSE),"Red","Gray") -> Gray | S23: =IF(AND('Circuit Criminal'!D4=1,S36=1),A11,IF(AND('Circuit Criminal'!D4=2,S36=1),A15,IF(AND('Circuit Criminal'!D4=3,S36=1),A19,IF(AND('Circuit Criminal'!D4=4,S36=1),A23,"")))) ->  | T23: Gilchrist
C24: C = Cumulative Collections | G24: =LOOKUP($U$11,Lookup!$C$3:$C$672,Lookup!AM$3:AM$672) -> 295002.58 | H24: 306411.96 | I24: 313489.1 | J24: 316182.05 | O24: FALSE | P24: FALSE | Q24: =IF(AND(OR(ISBLANK(H16),ISBLANK(H17)),O24=FALSE),"Red","Gray") -> Gray | R24: =IF(AND(OR(ISBLANK(I20),ISBLANK(I21)),P24=FALSE),"Red","Gray") -> Gray | S24: =IF(AND('Circuit Criminal'!D4=1,S37=1),A15,IF(AND('Circuit Criminal'!D4=2,S37=1),A19,IF(AND('Circuit Criminal'!D4=3,S37=1),A23,IF(AND('Circuit Criminal'!D4=4,S37=1),A27,"")))) ->  | T24: Glades
C25: A = Amount Assessed - Adjusted | G25: =LOOKUP($U$11,Lookup!$C$3:$C$672,Lookup!AH$3:AH$672) -> 357496.5 | H25: 357095.5 | I25: 357095.5 | J25: 357095.5 | O25: FALSE | P25: FALSE | Q25: =IF(AND(OR(ISBLANK(H20),ISBLANK(H21)),O25=FALSE),"Red","Gray") -> Gray | R25: =IF(AND(OR(ISBLANK(I24),ISBLANK(I25)),P25=FALSE),"Red","Gray") -> Gray | S25: =IF(AND('Circuit Criminal'!D4=1,S38=1),A19,IF(AND('Circuit Criminal'!D4=2,S38=1),A23,IF(AND('Circuit Criminal'!D4=3,S38=1),A27,IF(AND('Circuit Criminal'!D4=4,S38=1),A31,"")))) ->  | T25: Gulf
C26: CR = Collection Rate | G26: =IF(ISBLANK(G24),"N/A",IF(OR(G24=0,G24="N/A"),0,G24/G25)) -> 0.8251901207 | H26: =IF(ISBLANK(H24),"N/A",IF(AND(H24=0,H25=0,NOT(ISBLANK(H24)),NOT(ISBLANK(H25))),1,H24/H25)) -> 0.8580672677 | I26: =IF(ISBLANK(I24),"N/A",IF(AND(I24=0,I25=0,NOT(ISBLANK(I24)),NOT(ISBLANK(I25))),1,I24/I25)) -> 0.8778858877 | J26: =IF(ISBLANK(J24),"N/A",IF(AND(J24=0,J25=0,NOT(ISBLANK(J24)),NOT(ISBLANK(J25))),1,J24/J25)) -> 0.8854271476 | K26: =IF(ISBLANK(K24),"N/A",IF(AND(K24=0,K25=0,NOT(ISBLANK(K24)),NOT(ISBLANK(K25))),1,K24/K25)) -> N/A | O26: FALSE | P26: FALSE | Q26: =IF(AND(OR(ISBLANK(H24),ISBLANK(H25)),O26=FALSE),"Red","Gray") -> Gray | R26: =IF(AND(OR(ISBLANK(I28),ISBLANK(I29)),P26=FALSE),"Red","Gray") -> Gray | S26: =IF(AND('Circuit Criminal'!D4=1,S39=1),A23,IF(AND('Circuit Criminal'!D4=2,S39=1),A27,IF(AND('Circuit Criminal'!D4=3,S39=1),A31,IF(AND('Circuit Criminal'!D4=4,S39=1),A35,"")))) ->  | T26: Hamilton
A27: =LEFT(B27,3)&" "&RIGHT(B27,6) -> CGE CQ1-17 | B27: CGE CQ1-17 | C27: RPE 12/31/15 | H27: Qtr 1 | I27: Qtr 2 | J27: Qtr 3 | K27: Qtr 4 | O27: FALSE | P27: FALSE | Q27: =IF(AND(OR(ISBLANK(H28),ISBLANK(H29)),O27=FALSE),"Red","Gray") -> Gray | R27: =IF(AND(OR(ISBLANK(I32),ISBLANK(I33)),P27=FALSE),"Red","Gray") -> Gray | S27: =IF(AND('Circuit Criminal'!D4=1,S40=1),A27,IF(AND('Circuit Criminal'!D4=2,S40=1),A31,IF(AND('Circuit Criminal'!D4=3,S40=1),A35,IF(AND('Circuit Criminal'!D4=4,S40=1),A39,"")))) ->  | T27: Hardee
C28: C = Cumulative Collections | H28: 274043.21 | I28: 285383.98 | J28: 289122.57 | T28: Hendry
C29: A = Amount Assessed - Adjusted | H29: 321813.55 | I29: 321813.55 | J29: 321813.55 | O29: Q3 | P29: Q4 | T29: Hernando
C30: CR = Collection Rate | H30: =IF(ISBLANK(H28),"N/A",IF(AND(H28=0,H29=0,NOT(ISBLANK(H28)),NOT(ISBLANK(H29))),1,H28/H29)) -> 0.8515589539 | I30: =IF(ISBLANK(I28),"N/A",IF(AND(I28=0,I29=0,NOT(ISBLANK(I28)),NOT(ISBLANK(I29))),1,I28/I29)) -> 0.8867991419 | J30: =IF(ISBLANK(J28),"N/A",IF(AND(J28=0,J29=0,NOT(ISBLANK(J28)),NOT(ISBLANK(J29))),1,J28/J29)) -> 0.8984163967 | K30: =IF(ISBLANK(K28),"N/A",IF(AND(K28=0,K29=0,NOT(ISBLANK(K28)),NOT(ISBLANK(K29))),1,K28/K29)) -> N/A | O30: FALSE | P30: FALSE | Q30: =IF(AND(OR(ISBLANK(J20),ISBLANK(J21)),O30=FALSE),"Red","Gray") -> Gray | R30: =IF(AND(OR(ISBLANK(K24),ISBLANK(K25)),P30=FALSE),"Red","Gray") -> Red | T30: Highlands
A31: =LEFT(B31,3)&" "&RIGHT(B31,6) -> CGE CQ2-17 | B31: CGE CQ2-17 | C31: RPE 03/31/16 | I31: Qtr 1 | J31: Qtr 2 | K31: Qtr 3 | L31: Additional Notes Related to Collection Issues | O31: FALSE | P31: FALSE | Q31: =IF(AND(OR(ISBLANK(J24),ISBLANK(J25)),O31=FALSE),"Red","Gray") -> Gray | R31: =IF(AND(OR(ISBLANK(K28),ISBLANK(K29)),P31=FALSE),"Red","Gray") -> Red | T31: Hillsborough
C32: C = Cumulative Collections | I32: 301961.84 | J32: 317341.31 | O32: FALSE | P32: FALSE | Q32: =IF(AND(OR(ISBLANK(J28),ISBLANK(J29)),O32=FALSE),"Red","Gray") -> Gray | R32: =IF(AND(OR(ISBLANK(K32),ISBLANK(K33)),P32=FALSE),"Red","Gray") -> Red | T32: Holmes
C33: A = Amount Assessed - Adjusted | I33: 361179.44 | J33: 361119.44 | O33: FALSE | P33: FALSE | Q33: =IF(AND(OR(ISBLANK(J32),ISBLANK(J33)),O33=FALSE),"Red","Gray") -> Gray | R33: =IF(AND(OR(ISBLANK(K36),ISBLANK(K37)),P33=FALSE),"Red","Gray") -> Red | T33: Indian River
C34: CR = Collection Rate | I34: =IF(ISBLANK(I32),"N/A",IF(AND(I32=0,I33=0,NOT(ISBLANK(I32)),NOT(ISBLANK(I33))),1,I32/I33)) -> 0.8360438235 | J34: =IF(ISBLANK(J32),"N/A",IF(AND(J32=0,J33=0,NOT(ISBLANK(J32)),NOT(ISBLANK(J33))),1,J32/J33)) -> 0.8787710515 | K34: =IF(ISBLANK(K32),"N/A",IF(AND(K32=0,K33=0,NOT(ISBLANK(K32)),NOT(ISBLANK(K33))),1,K32/K33)) -> N/A | O34: FALSE | P34: FALSE | Q34: =IF(AND(OR(ISBLANK(J36),ISBLANK(J37)),O34=FALSE),"Red","Gray") -> Gray | R34: =IF(AND(OR(ISBLANK(K40),ISBLANK(K41)),P34=FALSE),"Red","Gray") -> Red | T34: Jackson
A35: =LEFT(B35,3)&" "&RIGHT(B35,6) -> CGE CQ3-17 | B35: CGE CQ3-17 | C35: RPE 06/30/16 | J35: Qtr 1 | K35: Qtr 2 | T35: Jefferson
C36: C = Cumulative Collections | J36: 313007.9 | O36: =IF(AND('Circuit Criminal'!$D$4=1,Q23="Red"),"Red","Gray") -> Gray | P36: =IF(AND('Circuit Criminal'!$D$4=2,R23="Red"),"Red","Gray") -> Gray | Q36: =IF(AND('Circuit Criminal'!$D$4=3,Q30="Red"),"Red","Gray") -> Gray | R36: =IF(AND('Circuit Criminal'!$D$4=4,R30="Red"),"Red","Gray") -> Gray | S36: =COUNTIF(O36:R36,"Red") -> 0 | T36: Lafayette
C37: A = Amount Assessed - Adjusted | J37: 379513.75 | O37: =IF(AND('Circuit Criminal'!$D$4=1,Q24="Red"),"Red","Gray") -> Gray | P37: =IF(AND('Circuit Criminal'!$D$4=2,R24="Red"),"Red","Gray") -> Gray | Q37: =IF(AND('Circuit Criminal'!$D$4=3,Q31="Red"),"Red","Gray") -> Gray | R37: =IF(AND('Circuit Criminal'!$D$4=4,R31="Red"),"Red","Gray") -> Gray | S37: =COUNTIF(O37:R37,"Red") -> 0 | T37: Lake
C38: CR = Collection Rate | J38: =IF(ISBLANK(J36),"N/A",IF(AND(J36=0,J37=0,NOT(ISBLANK(J36)),NOT(ISBLANK(J37))),1,J36/J37)) -> 0.8247603677 | K38: =IF(ISBLANK(K36),"N/A",IF(AND(K36=0,K37=0,NOT(ISBLANK(K36)),NOT(ISBLANK(K37))),1,K36/K37)) -> N/A | O38: =IF(AND('Circuit Criminal'!$D$4=1,Q25="Red"),"Red","Gray") -> Gray | P38: =IF(AND('Circuit Criminal'!$D$4=2,R25="Red"),"Red","Gray") -> Gray | Q38: =IF(AND('Circuit Criminal'!$D$4=3,Q32="Red"),"Red","Gray") -> Gray | R38: =IF(AND('Circuit Criminal'!$D$4=4,R32="Red"),"Red","Gray") -> Gray | S38: =COUNTIF(O38:R38,"Red") -> 0 | T38: Lee
A39: =LEFT(B39,3)&" "&RIGHT(B39,6) -> CGE CQ4-17 | B39: CGE CQ4-17 | C39: RPE 09/30/16 | K39: Qtr 1 | O39: =IF(AND('Circuit Criminal'!$D$4=1,Q26="Red"),"Red","Gray") -> Gray | P39: =IF(AND('Circuit Criminal'!$D$4=2,R26="Red"),"Red","Gray") -> Gray | Q39: =IF(AND('Circuit Criminal'!$D$4=3,Q33="Red"),"Red","Gray") -> Gray | R39: =IF(AND('Circuit Criminal'!$D$4=4,R33="Red"),"Red","Gray") -> Gray | S39: =COUNTIF(O39:R39,"Red") -> 0 | T39: Leon
C40: C = Cumulative Collections | O40: =IF(AND('Circuit Criminal'!$D$4=1,Q27="Red"),"Red","Gray") -> Gray | P40: =IF(AND('Circuit Criminal'!$D$4=2,R27="Red"),"Red","Gray") -> Gray | Q40: =IF(AND('Circuit Criminal'!$D$4=3,Q34="Red"),"Red","Gray") -> Gray | R40: =IF(AND('Circuit Criminal'!$D$4=4,R34="Red"),"Red","Gray") -> Gray | S40: =COUNTIF(O40:R40,"Red") -> 0 | T40: Levy
C41: A = Amount Assessed - Adjusted | O41: =COUNTIF(O36:O40,"Red") -> 0 | P41: =COUNTIF(P36:P40,"Red") -> 0 | Q41: =COUNTIF(Q36:Q40,"Red") -> 0 | R41: =COUNTIF(R36:R40,"Red") -> 0 | T41: Liberty
C42: CR = Collection Rate | K42: =IF(ISBLANK(K40),"N/A",IF(OR(K40=0,K40="N/A"),0,K40/K41)) -> N/A | O42: =SUM(O41:R41) -> 0 | T42: Madison
C43: Business Rules | D43: Purpose of Report: The CCOC Collection Rate Performance Measure report tracks dollars in the quarter they are assessed and then how well those assessed dollars have been collected over the next five quarters. | H43: Adjustments to Assessments: The amount assessed in a given assessment control group should be adjusted in the reporting period when assessments are later adjusted by the Court or other provisions of law. | T43: Manatee
C44: NOTES: | D44: The following conditions will alert when performance standards are not met and/or established business rules within the control group are not followed. | T44: Martin
D45: 1.) Action Plan: If the 5th quarter Collection Rate is below Standard (red numbers on rose background), select a "Reason Code" and write a brief statement in "Current Action to Improve" in the green area ONLY. | T45: Nassau
D46: 2.) Additional Notes Related to Collection Issues: Include a brief explaination when either of the following conditions not consistant with the Collection Report Business Rules. | T46: Okaloosa
E47: a.) Cumulative Collection amount has Decreased from the previous quarter in the same Control Group (font color for amount will change to RED) | T47: Okeechobee
E48: b.) The Amount Assessed - Adjusted has Increased from the previous quarter in the same Control Group (font color for amount will change to RED) | T48: Orange
T49: Nassau
T50: Okaloosa
T51: Okeechobee
T52: Orange
T53: Pasco
T54: Pinellas
T55: Polk
B56: =MAX(Probate!B61:B104) -> 14 | D56: Issue | F56: Calc 1 Needed | G56: Calc 2 Needed | H56: Calc 3 Needed | I56: Calc 4 Needed | J56: Standard | T56: Putnam
A57: =D$8 -> Family | B57: =IF(E57="YES",MAX(B56)+1,0) -> 0 | C57: =A$11 -> CGE CQ1-16 | D57: ="After 3rd Q, Collections went up by more than set percentage of: "&TEXT(J57,"#0%") -> After 3rd Q, Collections went up by more than set percentage of: 500% | E57: =IF(MAX(F57:G57)>V$10,"YES","NO") -> NO | F57: =IFERROR(IF(NOT(ISBLANK(G12)),(G12-F12)/F12,0),0) -> 0.001386298103 | G57: =IFERROR(IF(NOT(ISBLANK(H12)),(H12-G12)/G12,0),0) -> 0.00121109143 | J57: =V$10 -> 5 | T57: Santa Rosa
A58: =D$8 -> Family | B58: =IF(E58="YES",MAX(B$56:B57)+1,0) -> 0 | C58: =A$11 -> CGE CQ1-16 | D58: ="Assessments dropped by more than set percentage of: "&TEXT(J58,"#0%") -> Assessments dropped by more than set percentage of: 15% | E58: =IF(MIN(F58:I58)<(-1*V$11),"YES","NO") -> NO | F58: =IFERROR(IF(NOT(ISBLANK(E13)),(E13-D13)/D13,0),0) -> -0.001505595191 | G58: =IFERROR(IF(NOT(ISBLANK(F13)),(F13-E13)/E13,0),0) -> 0 | H58: =IFERROR(IF(NOT(ISBLANK(G13)),(G13-F13)/F13,0),0) -> 0 | I58: =IFERROR(IF(NOT(ISBLANK(H13)),(H13-G13)/G13,0),0) -> 0 | J58: =V$11 -> 0.15 | T58: Sumter
A59: Family | B59: =IF(E59="YES",MAX(B$56:B58)+1,0) -> 0 | C59: =A$11 -> CGE CQ1-16 | D59: ="The 5th Quarter Collection Rate did not meet the established performance measure standard of: "&TEXT(J59,"#0%") -> The 5th Quarter Collection Rate did not meet the established performance measure standard of: 75% | E59: =IF(F59="N/A","NO",IF(F59<H$8,"YES","NO")) -> NO | F59: =H14 -> 0.9467807437 | J59: =H$8 -> 0.75 | T59: Washington
A60: Family | B60: =IF(E60="YES",MAX(B$56:B59)+1,0) -> 0 | C60: =A$11 -> CGE CQ1-16 | D60: Collections amount decreased from prior quarter | E60: =IF(MIN(F60:I60)<0,"YES","NO") -> NO | F60: =IFERROR(IF(NOT(ISBLANK(E12)),(E12-D12)/D12,0),0) -> 0.02812221732 | G60: 0.009917875553 | H60: 0.001386298103 | I60: 0.00121109143
A61: Family | B61: =IF(E61="YES",MAX(B$56:B60)+1,0) -> 0 | C61: =A$11 -> CGE CQ1-16 | D61: Assessment amount increased from prior quarter | E61: =IF(MAX(F61:I61)>0,"YES","NO") -> NO | F61: -0.001505595191 | G61: 0 | H61: 0 | I61: 0
A62: Family | B62: =IF(E62="YES",MAX(B$56:B61)+1,0) -> 0 | C62: =A$15 -> CGE CQ2-16 | D62: ="After 3rd Q, Collections went up by more than set percentage of: "&TEXT(J62,"#0%") -> After 3rd Q, Collections went up by more than set percentage of: 500% | E62: =IF(MAX(F62:G62)>V$10,"YES","NO") -> NO | F62: =IFERROR(IF(NOT(ISBLANK(H16)),(H16-G16)/G16,0),0) -> 0.003485528356 | G62: =IFERROR(IF(NOT(ISBLANK(I16)),(I16-H16)/H16,0),0) -> 0.004740423428 | J62: =V$10 -> 5 | T62: Sarasota
A63: Family | B63: =IF(E63="YES",MAX(B$56:B62)+1,0) -> 0 | C63: =A$15 -> CGE CQ2-16 | D63: ="Assessments dropped by more than set percentage of: "&TEXT(J63,"#0%") -> Assessments dropped by more than set percentage of: 15% | E63: =IF(MIN(F63:I63)<(-1*V$11),"YES","NO") -> NO | F63: =IFERROR(IF(NOT(ISBLANK(F17)),(F17-E17)/E17,0),0) -> 0 | G63: =IFERROR(IF(NOT(ISBLANK(G17)),(G17-F17)/F17,0),0) -> 0 | H63: =IFERROR(IF(NOT(ISBLANK(H17)),(H17-G17)/G17,0),0) -> 0 | I63: =IFERROR(IF(NOT(ISBLANK(I17)),(I17-H17)/H17,0),0) -> 0 | J63: =V$11 -> 0.15 | T63: Suwannee
A64: Family | B64: =IF(E64="YES",MAX(B$56:B63)+1,0) -> 0 | C64: =A$15 -> CGE CQ2-16 | D64: Collections amount decreased from prior quarter | E64: =IF(MIN(F64:I64)<0,"YES","NO") -> NO | F64: =IFERROR(IF(NOT(ISBLANK(F16)),(F16-E16)/E16,0),0) -> 0.03720708257 | G64: 0.009094750654 | H64: 0.003485528356 | I64: 0.004740423428
A65: Family | B65: =IF(E65="YES",MAX(B$56:B64)+1,0) -> 0 | C65: =A$15 -> CGE CQ2-16 | D65: Assessment amount increased from prior quarter | E65: =IF(MAX(F65:I65)>0,"YES","NO") -> NO | F65: 0 | G65: 0 | H65: 0 | I65: 0
A66: Family | B66: =IF(E66="YES",MAX(B$56:B65)+1,0) -> 0 | C66: =A$15 -> CGE CQ2-16 | D66: ="The 5th Quarter Collection Rate did not meet the established performance measure standard of: "&TEXT(J66,"#0%") -> The 5th Quarter Collection Rate did not meet the established performance measure standard of: 75% | E66: =IF(F66="N/A","NO",IF(F66<H$8,"YES","NO")) -> NO | F66: =I18 -> 0.9467245114 | J66: =H$8 -> 0.75
A67: Family | B67: =IF(E67="YES",MAX(B$56:B66)+1,0) -> 0 | C67: =A$19 -> CGE CQ3-16 | D67: ="After 3rd Q, Collections went up by more than set percentage of: "&TEXT(J67,"#0%") -> After 3rd Q, Collections went up by more than set percentage of: 500% | E67: =IF(MAX(F67:G67)>V$10,"YES","NO") -> NO | F67: =IFERROR(IF(NOT(ISBLANK(I20)),(I20-H20)/H20,0),0) -> 0.009889628506 | G67: =IFERROR(IF(NOT(ISBLANK(J20)),(J20-I20)/I20,0),0) -> 0.001829961806 | J67: =V$10 -> 5 | T67: Seminole
A68: Family | B68: =IF(E68="YES",MAX(B$56:B67)+1,0) -> 0 | C68: =A$19 -> CGE CQ3-16 | D68: ="Assessments dropped by more than set percentage of: "&TEXT(J68,"#0%") -> Assessments dropped by more than set percentage of: 15% | E68: =IF(MIN(F68:I68)<(-1*V$11),"YES","NO") -> NO | F68: =IFERROR(IF(NOT(ISBLANK(G21)),(G21-F21)/F21,0),0) -> -0.0005490384998 | G68: =IFERROR(IF(NOT(ISBLANK(H21)),(H21-G21)/G21,0),0) -> -0.000450740602 | H68: =IFERROR(IF(NOT(ISBLANK(I21)),(I21-H21)/H21,0),0) -> 0 | I68: =IFERROR(IF(NOT(ISBLANK(J21)),(J21-I21)/I21,0),0) -> 0 | J68: =V$11 -> 0.15 | T68: Taylor
A69: Family | B69: =IF(E69="YES",MAX(B$56:B68)+1,0) -> 0 | C69: =A$19 -> CGE CQ3-16 | D69: Collections amount decreased from prior quarter | E69: =IF(MIN(F69:I69)<0,"YES","NO") -> NO | F69: =IFERROR(IF(NOT(ISBLANK(G20)),(G20-F20)/F20,0),0) -> 0.06469629672 | G69: 0.01425485215 | H69: 0.009889628506 | I69: 0.001829961806
A70: Family | B70: =IF(E70="YES",MAX(B$56:B69)+1,0) -> 0 | C70: =A$19 -> CGE CQ3-16 | D70: Assessment amount increased from prior quarter | E70: =IF(MAX(F70:I70)>0,"YES","NO") -> NO | F70: -0.0005490384998 | G70: -0.000450740602 | H70: 0 | I70: 0
A71: Family | B71: =IF(E71="YES",MAX(B$56:B70)+1,0) -> 0 | C71: =A$19 -> CGE CQ3-16 | D71: ="The 5th Quarter Collection Rate did not meet the established performance measure standard of: "&TEXT(J71,"#0%") -> The 5th Quarter Collection Rate did not meet the established performance measure standard of: 75% | E71: =IF(F71="N/A","NO",IF(F71<H$8,"YES","NO")) -> NO | F71: =J22 -> 0.9427481674 | J71: =H$8 -> 0.75
A72: Family | B72: =IF(E72="YES",MAX(B$56:B71)+1,0) -> 0 | C72: =A$23 -> CGE CQ4-16 | D72: ="After 3rd Q, Collections went up by more than set percentage of: "&TEXT(J72,"#0%") -> After 3rd Q, Collections went up by more than set percentage of: 500% | E72: =IF(MAX(F72:G72)>V$10,"YES","NO") -> NO | F72: =IFERROR(IF(NOT(ISBLANK(J24)),(J24-I24)/I24,0),0) -> 0.008590250825 | G72: =IFERROR(IF(NOT(ISBLANK(K24)),(K24-J24)/J24,0),0) -> 0 | J72: =V$10 -> 5 | T72: St. Johns
A73: Family | B73: =IF(E73="YES",MAX(B$56:B72)+1,0) -> 0 | C73: =A$23 -> CGE CQ4-16 | D73: ="Assessments dropped by more than set percentage of: "&TEXT(J73,"#0%") -> Assessments dropped by more than set percentage of: 15% | E73: =IF(MIN(F73:I73)<(-1*V$11),"YES","NO") -> NO | F73: =IFERROR(IF(NOT(ISBLANK(H25)),(H25-G25)/G25,0),0) -> -0.001121689303 | G73: =IFERROR(IF(NOT(ISBLANK(I25)),(I25-H25)/H25,0),0) -> 0 | H73: =IFERROR(IF(NOT(ISBLANK(J25)),(J25-I25)/I25,0),0) -> 0 | I73: =IFERROR(IF(NOT(ISBLANK(K25)),(K25-J25)/J25,0),0) -> 0 | J73: =V$11 -> 0.15 | T73: Union
A74: Family | B74: =IF(E74="YES",MAX(B$56:B73)+1,0) -> 0 | C74: =A$23 -> CGE CQ4-16 | D74: Collections amount decreased from prior quarter | E74: =IF(MIN(F74:I74)<0,"YES","NO") -> NO | F74: =IFERROR(IF(NOT(ISBLANK(H24)),(H24-G24)/G24,0),0) -> 0.03867552616 | G74: 0.02309681384 | H74: 0.008590250825 | I74: 0
A75: Family | B75: =IF(E75="YES",MAX(B$56:B74)+1,0) -> 0 | C75: =A$23 -> CGE CQ4-16 | D75: Assessment amount increased from prior quarter | E75: =IF(MAX(F75:I75)>0,"YES","NO") -> NO | F75: -0.001121689303 | G75: 0 | H75: 0 | I75: 0
A76: Family | B76: =IF(E76="YES",MAX(B$56:B75)+1,0) -> 0 | C76: =A$23 -> CGE CQ4-16 | D76: ="The 5th Quarter Collection Rate did not meet the established performance measure standard of: "&TEXT(J76,"#0%") -> The 5th Quarter Collection Rate did not meet the established performance measure standard of: 75% | E76: =IF(F76="N/A","NO",IF(F76<H$8,"YES","NO")) -> NO | F76: =K26 -> N/A | J76: =H$8 -> 0.75
A77: Family | B77: =IF(E77="YES",MAX(B$56:B76)+1,0) -> 0 | C77: =A$27 -> CGE CQ1-17 | D77: ="After 3rd Q, Collections went up by more than set percentage of: "&TEXT(J77,"#0%") -> After 3rd Q, Collections went up by more than set percentage of: 500% | E77: =IF(MAX(F77)>V$10,"YES","NO") -> NO | F77: =IFERROR(IF(NOT(ISBLANK(K28)),(K28-J28)/J28,0),0) -> 0 | J77: =V$10 -> 5 | T77: St. Lucie
A78: Family | B78: =IF(E78="YES",MAX(B$56:B77)+1,0) -> 0 | C78: =A$27 -> CGE CQ1-17 | D78: ="Assessments dropped by more than set percentage of: "&TEXT(J78,"#0%") -> Assessments dropped by more than set percentage of: 15% | E78: =IF(MIN(F78:H78)<(-1*V$11),"YES","NO") -> NO | F78: =IFERROR(IF(NOT(ISBLANK(I29)),(I29-H29)/H29,0),0) -> 0 | G78: =IFERROR(IF(NOT(ISBLANK(J29)),(J29-I29)/I29,0),0) -> 0 | H78: =IFERROR(IF(NOT(ISBLANK(K29)),(K29-J29)/J29,0),0) -> 0 | J78: =V$11 -> 0.15 | T78: Volusia
A79: Family | B79: =IF(E79="YES",MAX(B$56:B78)+1,0) -> 0 | C79: =A$27 -> CGE CQ1-17 | D79: Collections amount decreased from prior quarter | E79: =IF(MIN(F79:H79)<0,"YES","NO") -> NO | F79: =IFERROR(IF(NOT(ISBLANK(I28)),(I28-H28)/H28,0),0) -> 0.04138314538 | G79: 0.01310020976 | H79: 0
A80: Family | B80: =IF(E80="YES",MAX(B$56:B79)+1,0) -> 0 | C80: =A$27 -> CGE CQ1-17 | D80: Assessment amount increased from prior quarter | E80: =IF(MAX(F80:H80)>0,"YES","NO") -> NO | F80: 0 | G80: 0 | H80: 0
A81: Family | B81: =IF(E81="YES",MAX(B$56:B80)+1,0) -> 0 | C81: =A$31 -> CGE CQ2-17 | D81: ="Assessments dropped by more than set percentage of: "&TEXT(J81,"#0%") -> Assessments dropped by more than set percentage of: 15% | E81: =IF(MIN(F81:G81)<(-1*V$11),"YES","NO") -> NO | F81: =IFERROR(IF(NOT(ISBLANK(J33)),(J33-I33)/I33,0),0) -> -0.0001661224127 | G81: =IFERROR(IF(NOT(ISBLANK(K33)),(K33-J33)/J33,0),0) -> 0 | J81: =V$11 -> 0.15 | T81: Wakulla
A82: Family | B82: =IF(E82="YES",MAX(B$56:B81)+1,0) -> 0 | C82: =A$31 -> CGE CQ2-17 | D82: Collections amount decreased from prior quarter | E82: =IF(MIN(F82:G82)<0,"YES","NO") -> NO | F82: =IFERROR(IF(NOT(ISBLANK(J32)),(J32-I32)/I32,0),0) -> 0.05093183298 | G82: =IFERROR(IF(NOT(ISBLANK(K32)),(K32-J32)/J32,0),0) -> 0
A83: Family | B83: =IF(E83="YES",MAX(B$56:B82)+1,0) -> 0 | C83: =A$31 -> CGE CQ2-17 | D83: Assessment amount increased from prior quarter | E83: =IF(MAX(F83:G83)>0,"YES","NO") -> NO | F83: =IFERROR(IF(NOT(ISBLANK(J33)),(J33-I33)/I33,0),0) -> -0.0001661224127 | G83: =IFERROR(IF(NOT(ISBLANK(K33)),(K33-J33)/J33,0),0) -> 0
A84: Family | B84: =IF(E84="YES",MAX(B$56:B83)+1,0) -> 0 | C84: =A$35 -> CGE CQ3-17 | D84: ="Assessments dropped by more than set percentage of: "&TEXT(J84,"#0%") -> Assessments dropped by more than set percentage of: 15% | E84: =IF(MIN(F84)<(-1*V$11),"YES","NO") -> NO | F84: =IFERROR(IF(NOT(ISBLANK(K37)),(K37-J37)/J37,0),0) -> 0 | J84: =V$11 -> 0.15 | T84: Walton
A85: Family | B85: =IF(E85="YES",MAX(B$56:B84)+1,0) -> 0 | C85: =A$35 -> CGE CQ3-17 | D85: Collections amount decreased from prior quarter | E85: =IF(MIN(F85)<0,"YES","NO") -> NO | F85: =IFERROR(IF(NOT(ISBLANK(K36)),(K36-J36)/J36,0),0) -> 0
A86: Family | B86: =IF(E86="YES",MAX(B$56:B85)+1,0) -> 0 | C86: =A$35 -> CGE CQ3-17 | D86: Assessment amount increased from prior quarter | E86: =IF(MAX(F86)>0,"YES","NO") -> NO | F86: =IFERROR(IF(NOT(ISBLANK(K37)),(K37-J37)/J37,0),0) -> 0

Sheet Corrective Action Tab (hidden)
K2: State Fiscal Year 2010-11
K3: Collections Quarterly Report Form for CCOC
C4: Report for Quarter Ending: | D4: =Family!D4 -> June 2016 | H4: Corrective Action Tab
C5: Version #: | D5: =Family!D5 -> 1
C6: County: | D6: ='Circuit Criminal'!D6:E6 -> Brevard
A8: Max All | B8: Max 1 | C8: Max 2 | D8: Max 3 | E8: Max 4 | F8: Max 5 | G8: Max 6 | H8: Max 7 | I8: Max 8
A9: =MAX(Family!B56:B99) -> 14 | B9: ='County Criminal'!B56 -> 0 | C9: ='Juvenile Delinquency'!B56 -> 1 | D9: ='Criminal Traffic'!B56 -> 2 | F9: ='County Civil'!B56 -> 7 | G9: ='Civil Traffic'!B56 -> 8 | H9: =Probate!B61 -> 11 | I9: =Family!B56 -> 14
B10: Item # | C10: Court Type | D10: Control Group | E10: Issue | F10: Cause | H10: Corrective Action | J10: Timeframe for Rectification | K10: Notes | L10: 0 | M10: Cause List | N10: Corrective Action List | O10: Timeframe List
A11: 1 | B11: =IF(A$9=0,"No items for this report",IF(A11<=A$9,A11,"")) -> 1 | C11: =IF($B11<>"",VLOOKUP($B11,CATLookup!$A$2:$E$271,2,FALSE),"") -> County Criminal | D11: =IF($B11<>"",VLOOKUP($B11,CATLookup!$A$2:$E$271,3,FALSE),"") -> CGE CQ1-16 | E11: =IF($B11<>"",VLOOKUP($B11,CATLookup!$A$2:$E$271,4,FALSE),"") -> The 5th Quarter Collection Rate did not meet the established performance measure standard of: 40% | L11: =IF(B11<>"",L10+1,1) -> 1 | M11: System Error: Data Entry Error in System | O11: No timeframe needed as issue has resolved itself
A12: 2 | B12: =IF(A$9=0,"No items for this report",IF(A12<=A$9,A12,"")) -> 2 | C12: =IF($B12<>"",VLOOKUP($B12,CATLookup!$A$2:$E$271,2,FALSE),"") -> Circuit Civil | D12: =IF($B12<>"",VLOOKUP($B12,CATLookup!$A$2:$E$271,3,FALSE),"") -> CGE CQ1-16 | E12: =IF($B12<>"",VLOOKUP($B12,CATLookup!$A$2:$E$271,4,FALSE),"") -> Collections amount decreased from prior quarter | L12: =IF(B12<>"",L11+1,1) -> 2 | M12: System Error: System is unable to process according to business rules | O12: 1 month, will revise report
A13: 3 | B13: 3 | C13: =IF($B13<>"",VLOOKUP($B13,CATLookup!$A$2:$E$271,2,FALSE),"") -> Civil Traffic | D13: =IF($B13<>"",VLOOKUP($B13,CATLookup!$A$2:$E$271,3,FALSE),"") -> CGE CQ1-16 | E13: =IF($B13<>"",VLOOKUP($B13,CATLookup!$A$2:$E$271,4,FALSE),"") -> The 5th Quarter Collection Rate did not meet the established performance measure standard of: 90% | L13: 3 | M13: Returned Checks | O13: 1 month, no report revision
A14: 4 | B14: 4 | C14: =IF($B14<>"",VLOOKUP($B14,CATLookup!$A$2:$E$271,2,FALSE),"") -> Probate | D14: =IF($B14<>"",VLOOKUP($B14,CATLookup!$A$2:$E$271,3,FALSE),"") -> CGE CQ1-16 | E14: =IF($B14<>"",VLOOKUP($B14,CATLookup!$A$2:$E$271,4,FALSE),"") -> Collections amount decreased from prior quarter | L14: 4 | M14: Economic Factors: Short-staffed and unable to push collection effort | O14: 3 months, will revise report
A15: 5 | B15: 5 | C15: =IF($B15<>"",VLOOKUP($B15,CATLookup!$A$2:$E$271,2,FALSE),"") -> Juvenile Delinquency | D15: =IF($B15<>"",VLOOKUP($B15,CATLookup!$A$2:$E$271,3,FALSE),"") -> CGE CQ2-16 | E15: =IF($B15<>"",VLOOKUP($B15,CATLookup!$A$2:$E$271,4,FALSE),"") -> The 5th Quarter Collection Rate did not meet the established performance measure standard of: 9% | L15: 5 | M15: Economic Factors: Population Area primarily not able to pay due to current economic status | O15: 3 months, no report revision
A16: 6 | B16: 6 | C16: =IF($B16<>"",VLOOKUP($B16,CATLookup!$A$2:$E$271,2,FALSE),"") -> Circuit Civil | D16: =IF($B16<>"",VLOOKUP($B16,CATLookup!$A$2:$E$271,3,FALSE),"") -> CGE CQ2-16 | E16: =IF($B16<>"",VLOOKUP($B16,CATLookup!$A$2:$E$271,4,FALSE),"") -> Collections amount decreased from prior quarter | L16: 6 | M16: Judicial Waivers were unusually large | O16: 6 months, will revise report
A17: 7 | B17: 7 | C17: =IF($B17<>"",VLOOKUP($B17,CATLookup!$A$2:$E$271,2,FALSE),"") -> County Civil | D17: =IF($B17<>"",VLOOKUP($B17,CATLookup!$A$2:$E$271,3,FALSE),"") -> CGE CQ2-16 | E17: =IF($B17<>"",VLOOKUP($B17,CATLookup!$A$2:$E$271,4,FALSE),"") -> Collections amount decreased from prior quarter | L17: 7 | M17: Large case outside of the norm (generally drug seizure case) | O17: 6 months, no report revision
A18: 8 | B18: 8 | C18: =IF($B18<>"",VLOOKUP($B18,CATLookup!$A$2:$E$271,2,FALSE),"") -> Civil Traffic | D18: =IF($B18<>"",VLOOKUP($B18,CATLookup!$A$2:$E$271,3,FALSE),"") -> CGE CQ2-16 | E18: =IF($B18<>"",VLOOKUP($B18,CATLookup!$A$2:$E$271,4,FALSE),"") -> The 5th Quarter Collection Rate did not meet the established performance measure standard of: 90% | L18: 8 | M18: Payment Plan Extensions causing decrease in Collections | O18: 9 months, will revise report
A19: 9 | B19: 9 | C19: =IF($B19<>"",VLOOKUP($B19,CATLookup!$A$2:$E$271,2,FALSE),"") -> Probate | D19: =IF($B19<>"",VLOOKUP($B19,CATLookup!$A$2:$E$271,3,FALSE),"") -> CGE CQ2-16 | E19: =IF($B19<>"",VLOOKUP($B19,CATLookup!$A$2:$E$271,4,FALSE),"") -> Collections amount decreased from prior quarter | L19: 9 | M19: Other (Detail in Notes) | O19: 9 months, no report revision
A20: 10 | B20: 10 | C20: =IF($B20<>"",VLOOKUP($B20,CATLookup!$A$2:$E$271,2,FALSE),"") -> Circuit Civil | D20: =IF($B20<>"",VLOOKUP($B20,CATLookup!$A$2:$E$271,3,FALSE),"") -> CGE CQ3-16 | E20: =IF($B20<>"",VLOOKUP($B20,CATLookup!$A$2:$E$271,4,FALSE),"") -> Collections amount decreased from prior quarter | L20: 10 | O20: 1 year, will revise report
A21: 11 | B21: 11 | C21: =IF($B21<>"",VLOOKUP($B21,CATLookup!$A$2:$E$271,2,FALSE),"") -> Civil Traffic | D21: =IF($B21<>"",VLOOKUP($B21,CATLookup!$A$2:$E$271,3,FALSE),"") -> CGE CQ3-16 | E21: =IF($B21<>"",VLOOKUP($B21,CATLookup!$A$2:$E$271,4,FALSE),"") -> The 5th Quarter Collection Rate did not meet the established performance measure standard of: 90% | L21: 11 | O21: 1 year, no report revision
A22: 12 | B22: 12 | C22: =IF($B22<>"",VLOOKUP($B22,CATLookup!$A$2:$E$271,2,FALSE),"") -> Probate | D22: =IF($B22<>"",VLOOKUP($B22,CATLookup!$A$2:$E$271,3,FALSE),"") -> CGE CQ3-16 | E22: =IF($B22<>"",VLOOKUP($B22,CATLookup!$A$2:$E$271,4,FALSE),"") -> Collections amount decreased from prior quarter | L22: 12 | O22: 18 months, will revise report
A23: 13 | B23: 13 | C23: =IF($B23<>"",VLOOKUP($B23,CATLookup!$A$2:$E$271,2,FALSE),"") -> Circuit Civil | D23: =IF($B23<>"",VLOOKUP($B23,CATLookup!$A$2:$E$271,3,FALSE),"") -> CGE CQ4-16 | E23: =IF($B23<>"",VLOOKUP($B23,CATLookup!$A$2:$E$271,4,FALSE),"") -> Collections amount decreased from prior quarter | L23: 13 | O23: 18 months, no report revision
A24: 14 | B24: 14 | C24: =IF($B24<>"",VLOOKUP($B24,CATLookup!$A$2:$E$271,2,FALSE),"") -> Circuit Civil | D24: =IF($B24<>"",VLOOKUP($B24,CATLookup!$A$2:$E$271,3,FALSE),"") -> CGE CQ1-17 | E24: =IF($B24<>"",VLOOKUP($B24,CATLookup!$A$2:$E$271,4,FALSE),"") -> Collections amount decreased from prior quarter | L24: 14 | O24: 2+ years, will revise report
A25: 15 | C25: =IF($B25<>"",VLOOKUP($B25,CATLookup!$A$2:$E$271,2,FALSE),"") ->  | D25: =IF($B25<>"",VLOOKUP($B25,CATLookup!$A$2:$E$271,3,FALSE),"") ->  | E25: =IF($B25<>"",VLOOKUP($B25,CATLookup!$A$2:$E$271,4,FALSE),"") ->  | L25: 1 | O25: 2+ years, no report revision
A26: 16 | C26: =IF($B26<>"",VLOOKUP($B26,CATLookup!$A$2:$E$271,2,FALSE),"") ->  | D26: =IF($B26<>"",VLOOKUP($B26,CATLookup!$A$2:$E$271,3,FALSE),"") ->  | E26: =IF($B26<>"",VLOOKUP($B26,CATLookup!$A$2:$E$271,4,FALSE),"") ->  | L26: 1
A27: 17 | C27: =IF($B27<>"",VLOOKUP($B27,CATLookup!$A$2:$E$271,2,FALSE),"") ->  | D27: =IF($B27<>"",VLOOKUP($B27,CATLookup!$A$2:$E$271,3,FALSE),"") ->  | E27: =IF($B27<>"",VLOOKUP($B27,CATLookup!$A$2:$E$271,4,FALSE),"") ->  | L27: 1
A28: 18 | C28: =IF($B28<>"",VLOOKUP($B28,CATLookup!$A$2:$E$271,2,FALSE),"") ->  | D28: =IF($B28<>"",VLOOKUP($B28,CATLookup!$A$2:$E$271,3,FALSE),"") ->  | E28: =IF($B28<>"",VLOOKUP($B28,CATLookup!$A$2:$E$271,4,FALSE),"") ->  | L28: 1
A29: 19 | C29: =IF($B29<>"",VLOOKUP($B29,CATLookup!$A$2:$E$271,2,FALSE),"") ->  | D29: =IF($B29<>"",VLOOKUP($B29,CATLookup!$A$2:$E$271,3,FALSE),"") ->  | E29: =IF($B29<>"",VLOOKUP($B29,CATLookup!$A$2:$E$271,4,FALSE),"") ->  | L29: 1
A30: 20 | C30: =IF($B30<>"",VLOOKUP($B30,CATLookup!$A$2:$E$271,2,FALSE),"") ->  | D30: =IF($B30<>"",VLOOKUP($B30,CATLookup!$A$2:$E$271,3,FALSE),"") ->  | E30: =IF($B30<>"",VLOOKUP($B30,CATLookup!$A$2:$E$271,4,FALSE),"") ->  | L30: 1
A31: 21 | C31: =IF($B31<>"",VLOOKUP($B31,CATLookup!$A$2:$E$271,2,FALSE),"") ->  | D31: =IF($B31<>"",VLOOKUP($B31,CATLookup!$A$2:$E$271,3,FALSE),"") ->  | E31: =IF($B31<>"",VLOOKUP($B31,CATLookup!$A$2:$E$271,4,FALSE),"") ->  | L31: 1
A32: 22 | C32: =IF($B32<>"",VLOOKUP($B32,CATLookup!$A$2:$E$271,2,FALSE),"") ->  | D32: =IF($B32<>"",VLOOKUP($B32,CATLookup!$A$2:$E$271,3,FALSE),"") ->  | E32: =IF($B32<>"",VLOOKUP($B32,CATLookup!$A$2:$E$271,4,FALSE),"") ->  | L32: 1
A33: 23 | C33: =IF($B33<>"",VLOOKUP($B33,CATLookup!$A$2:$E$271,2,FALSE),"") ->  | D33: =IF($B33<>"",VLOOKUP($B33,CATLookup!$A$2:$E$271,3,FALSE),"") ->  | E33: =IF($B33<>"",VLOOKUP($B33,CATLookup!$A$2:$E$271,4,FALSE),"") ->  | L33: 1
A34: 24 | C34: =IF($B34<>"",VLOOKUP($B34,CATLookup!$A$2:$E$271,2,FALSE),"") ->  | D34: =IF($B34<>"",VLOOKUP($B34,CATLookup!$A$2:$E$271,3,FALSE),"") ->  | E34: =IF($B34<>"",VLOOKUP($B34,CATLookup!$A$2:$E$271,4,FALSE),"") ->  | L34: 1
A35: 25 | C35: =IF($B35<>"",VLOOKUP($B35,CATLookup!$A$2:$E$271,2,FALSE),"") ->  | D35: =IF($B35<>"",VLOOKUP($B35,CATLookup!$A$2:$E$271,3,FALSE),"") ->  | E35: =IF($B35<>"",VLOOKUP($B35,CATLookup!$A$2:$E$271,4,FALSE),"") ->  | L35: 1
A36: 26 | C36: =IF($B36<>"",VLOOKUP($B36,CATLookup!$A$2:$E$271,2,FALSE),"") ->  | D36: =IF($B36<>"",VLOOKUP($B36,CATLookup!$A$2:$E$271,3,FALSE),"") ->  | E36: =IF($B36<>"",VLOOKUP($B36,CATLookup!$A$2:$E$271,4,FALSE),"") ->  | L36: 1
A37: 27 | C37: =IF($B37<>"",VLOOKUP($B37,CATLookup!$A$2:$E$271,2,FALSE),"") ->  | D37: =IF($B37<>"",VLOOKUP($B37,CATLookup!$A$2:$E$271,3,FALSE),"") ->  | E37: =IF($B37<>"",VLOOKUP($B37,CATLookup!$A$2:$E$271,4,FALSE),"") ->  | L37: 1
A38: 28 | C38: =IF($B38<>"",VLOOKUP($B38,CATLookup!$A$2:$E$271,2,FALSE),"") ->  | D38: =IF($B38<>"",VLOOKUP($B38,CATLookup!$A$2:$E$271,3,FALSE),"") ->  | E38: =IF($B38<>"",VLOOKUP($B38,CATLookup!$A$2:$E$271,4,FALSE),"") ->  | L38: 1
A39: 29 | C39: =IF($B39<>"",VLOOKUP($B39,CATLookup!$A$2:$E$271,2,FALSE),"") ->  | D39: =IF($B39<>"",VLOOKUP($B39,CATLookup!$A$2:$E$271,3,FALSE),"") ->  | E39: =IF($B39<>"",VLOOKUP($B39,CATLookup!$A$2:$E$271,4,FALSE),"") ->  | L39: 1
A40: 30 | C40: =IF($B40<>"",VLOOKUP($B40,CATLookup!$A$2:$E$271,2,FALSE),"") ->  | D40: =IF($B40<>"",VLOOKUP($B40,CATLookup!$A$2:$E$271,3,FALSE),"") ->  | E40: =IF($B40<>"",VLOOKUP($B40,CATLookup!$A$2:$E$271,4,FALSE),"") ->  | L40: 1
A41: 31 | C41: =IF($B41<>"",VLOOKUP($B41,CATLookup!$A$2:$E$271,2,FALSE),"") ->  | D41: =IF($B41<>"",VLOOKUP($B41,CATLookup!$A$2:$E$271,3,FALSE),"") ->  | E41: =IF($B41<>"",VLOOKUP($B41,CATLookup!$A$2:$E$271,4,FALSE),"") ->  | L41: 1
A42: 32 | C42: =IF($B42<>"",VLOOKUP($B42,CATLookup!$A$2:$E$271,2,FALSE),"") ->  | D42: =IF($B42<>"",VLOOKUP($B42,CATLookup!$A$2:$E$271,3,FALSE),"") ->  | E42: =IF($B42<>"",VLOOKUP($B42,CATLookup!$A$2:$E$271,4,FALSE),"") ->  | L42: 1
A43: 33 | C43: =IF($B43<>"",VLOOKUP($B43,CATLookup!$A$2:$E$271,2,FALSE),"") ->  | D43: =IF($B43<>"",VLOOKUP($B43,CATLookup!$A$2:$E$271,3,FALSE),"") ->  | E43: =IF($B43<>"",VLOOKUP($B43,CATLookup!$A$2:$E$271,4,FALSE),"") ->  | L43: 1
A44: 34 | C44: =IF($B44<>"",VLOOKUP($B44,CATLookup!$A$2:$E$271,2,FALSE),"") ->  | D44: =IF($B44<>"",VLOOKUP($B44,CATLookup!$A$2:$E$271,3,FALSE),"") ->  | E44: =IF($B44<>"",VLOOKUP($B44,CATLookup!$A$2:$E$271,4,FALSE),"") ->  | L44: 1
A45: 35 | C45: =IF($B45<>"",VLOOKUP($B45,CATLookup!$A$2:$E$271,2,FALSE),"") ->  | D45: =IF($B45<>"",VLOOKUP($B45,CATLookup!$A$2:$E$271,3,FALSE),"") ->  | E45: =IF($B45<>"",VLOOKUP($B45,CATLookup!$A$2:$E$271,4,FALSE),"") ->  | L45: 1
A46: 36 | C46: =IF($B46<>"",VLOOKUP($B46,CATLookup!$A$2:$E$271,2,FALSE),"") ->  | D46: =IF($B46<>"",VLOOKUP($B46,CATLookup!$A$2:$E$271,3,FALSE),"") ->  | E46: =IF($B46<>"",VLOOKUP($B46,CATLookup!$A$2:$E$271,4,FALSE),"") ->  | L46: 1
A47: 37 | C47: =IF($B47<>"",VLOOKUP($B47,CATLookup!$A$2:$E$271,2,FALSE),"") ->  | D47: =IF($B47<>"",VLOOKUP($B47,CATLookup!$A$2:$E$271,3,FALSE),"") ->  | E47: =IF($B47<>"",VLOOKUP($B47,CATLookup!$A$2:$E$271,4,FALSE),"") ->  | L47: 1
A48: 38 | C48: =IF($B48<>"",VLOOKUP($B48,CATLookup!$A$2:$E$271,2,FALSE),"") ->  | D48: =IF($B48<>"",VLOOKUP($B48,CATLookup!$A$2:$E$271,3,FALSE),"") ->  | E48: =IF($B48<>"",VLOOKUP($B48,CATLookup!$A$2:$E$271,4,FALSE),"") ->  | L48: 1
A49: 39 | C49: =IF($B49<>"",VLOOKUP($B49,CATLookup!$A$2:$E$271,2,FALSE),"") ->  | D49: =IF($B49<>"",VLOOKUP($B49,CATLookup!$A$2:$E$271,3,FALSE),"") ->  | E49: =IF($B49<>"",VLOOKUP($B49,CATLookup!$A$2:$E$271,4,FALSE),"") ->  | L49: 1
A50: 40 | C50: =IF($B50<>"",VLOOKUP($B50,CATLookup!$A$2:$E$271,2,FALSE),"") ->  | D50: =IF($B50<>"",VLOOKUP($B50,CATLookup!$A$2:$E$271,3,FALSE),"") ->  | E50: =IF($B50<>"",VLOOKUP($B50,CATLookup!$A$2:$E$271,4,FALSE),"") ->  | L50: 1
A51: 41 | C51: =IF($B51<>"",VLOOKUP($B51,CATLookup!$A$2:$E$271,2,FALSE),"") ->  | D51: =IF($B51<>"",VLOOKUP($B51,CATLookup!$A$2:$E$271,3,FALSE),"") ->  | E51: =IF($B51<>"",VLOOKUP($B51,CATLookup!$A$2:$E$271,4,FALSE),"") ->  | L51: 1
A52: 42 | C52: =IF($B52<>"",VLOOKUP($B52,CATLookup!$A$2:$E$271,2,FALSE),"") ->  | D52: =IF($B52<>"",VLOOKUP($B52,CATLookup!$A$2:$E$271,3,FALSE),"") ->  | E52: =IF($B52<>"",VLOOKUP($B52,CATLookup!$A$2:$E$271,4,FALSE),"") ->  | L52: 1
A53: 43 | C53: =IF($B53<>"",VLOOKUP($B53,CATLookup!$A$2:$E$271,2,FALSE),"") ->  | D53: =IF($B53<>"",VLOOKUP($B53,CATLookup!$A$2:$E$271,3,FALSE),"") ->  | E53: =IF($B53<>"",VLOOKUP($B53,CATLookup!$A$2:$E$271,4,FALSE),"") ->  | L53: 1
A54: 44 | C54: =IF($B54<>"",VLOOKUP($B54,CATLookup!$A$2:$E$271,2,FALSE),"") ->  | D54: =IF($B54<>"",VLOOKUP($B54,CATLookup!$A$2:$E$271,3,FALSE),"") ->  | E54: =IF($B54<>"",VLOOKUP($B54,CATLookup!$A$2:$E$271,4,FALSE),"") ->  | L54: 1
A55: 45 | C55: =IF($B55<>"",VLOOKUP($B55,CATLookup!$A$2:$E$271,2,FALSE),"") ->  | D55: =IF($B55<>"",VLOOKUP($B55,CATLookup!$A$2:$E$271,3,FALSE),"") ->  | E55: =IF($B55<>"",VLOOKUP($B55,CATLookup!$A$2:$E$271,4,FALSE),"") ->  | L55: 1
A56: 46 | C56: =IF($B56<>"",VLOOKUP($B56,CATLookup!$A$2:$E$271,2,FALSE),"") ->  | D56: =IF($B56<>"",VLOOKUP($B56,CATLookup!$A$2:$E$271,3,FALSE),"") ->  | E56: =IF($B56<>"",VLOOKUP($B56,CATLookup!$A$2:$E$271,4,FALSE),"") ->  | L56: 1
A57: 47 | C57: =IF($B57<>"",VLOOKUP($B57,CATLookup!$A$2:$E$271,2,FALSE),"") ->  | D57: =IF($B57<>"",VLOOKUP($B57,CATLookup!$A$2:$E$271,3,FALSE),"") ->  | E57: =IF($B57<>"",VLOOKUP($B57,CATLookup!$A$2:$E$271,4,FALSE),"") ->  | L57: 1
A58: 48 | C58: =IF($B58<>"",VLOOKUP($B58,CATLookup!$A$2:$E$271,2,FALSE),"") ->  | D58: =IF($B58<>"",VLOOKUP($B58,CATLookup!$A$2:$E$271,3,FALSE),"") ->  | E58: =IF($B58<>"",VLOOKUP($B58,CATLookup!$A$2:$E$271,4,FALSE),"") ->  | L58: 1
A59: 49 | C59: =IF($B59<>"",VLOOKUP($B59,CATLookup!$A$2:$E$271,2,FALSE),"") ->  | D59: =IF($B59<>"",VLOOKUP($B59,CATLookup!$A$2:$E$271,3,FALSE),"") ->  | E59: =IF($B59<>"",VLOOKUP($B59,CATLookup!$A$2:$E$271,4,FALSE),"") ->  | L59: 1
A60: 50 | C60: =IF($B60<>"",VLOOKUP($B60,CATLookup!$A$2:$E$271,2,FALSE),"") ->  | D60: =IF($B60<>"",VLOOKUP($B60,CATLookup!$A$2:$E$271,3,FALSE),"") ->  | E60: =IF($B60<>"",VLOOKUP($B60,CATLookup!$A$2:$E$271,4,FALSE),"") ->  | L60: 1
A61: 51 | C61: =IF($B61<>"",VLOOKUP($B61,CATLookup!$A$2:$E$271,2,FALSE),"") ->  | D61: =IF($B61<>"",VLOOKUP($B61,CATLookup!$A$2:$E$271,3,FALSE),"") ->  | E61: =IF($B61<>"",VLOOKUP($B61,CATLookup!$A$2:$E$271,4,FALSE),"") ->  | L61: 1
A62: 52 | C62: =IF($B62<>"",VLOOKUP($B62,CATLookup!$A$2:$E$271,2,FALSE),"") ->  | D62: =IF($B62<>"",VLOOKUP($B62,CATLookup!$A$2:$E$271,3,FALSE),"") ->  | E62: =IF($B62<>"",VLOOKUP($B62,CATLookup!$A$2:$E$271,4,FALSE),"") ->  | L62: 1
A63: 53 | C63: =IF($B63<>"",VLOOKUP($B63,CATLookup!$A$2:$E$271,2,FALSE),"") ->  | D63: =IF($B63<>"",VLOOKUP($B63,CATLookup!$A$2:$E$271,3,FALSE),"") ->  | E63: =IF($B63<>"",VLOOKUP($B63,CATLookup!$A$2:$E$271,4,FALSE),"") ->  | L63: 1
